Workbook

Sheet Instructions
A2: Instructions for completing this workbook
A3: 1) The cells where information is required to be entered are unprotected in this workbook
A4: 2) Complete Column Schedule B for each Voltage and Current of the offered product with the relevant requested information.
A5: 3) All information shall be submitted in electronic format and this workbook complete in MS Excel format as requested.
A6: 4) Any other format for the submission of the requested electronic information will NOT be accepted OR evaluated.
A7: 5) Reference files shall be posted under relevant folder names corresponding to the tabs for the different sections of this workbook. Documents in .pdf file formats are preferred. Manufacturer supplied documents can be marked up for convenience.
A8: 6) Filenames shall be descriptive to indicate information contained.
A9: Completing the Worksheets
A10: Cover sheet | B10: 1) Complete all questions in the space provided.
A11: Scope | B11: 1) Complete the worksheet as required to indicate what equipment is being offered. If equipment is not offered in a category, leave the category blank.
A12: Installed base and failure reports - provide a document or spread sheet with the following information | B12: 1) First list countries with similar climatic conditions as South Africa.
B13: 2) Then list any other countries for which you have information.
B14: 3) To make the list not too exhaustive, you may in addition to the track records provided for the four countries make mention of other countries and list the references in the space provided.
B15: 4) The track record provided shall be exclusively for the equipment offered.
B16: 5) Any other relevant references that will aid in forming an idea of the track record of the company as a power electronics supplier can be supplied.
B17: 6) Post all relevant electronic copies of documents under folder named, "Track Record".
A18: Category worksheets. | B18: 1) Complete the schedule B columns on all the applicable worksheets for all the equipment offered as per the Scope tab.
B19: 2) Post all relevant electronic copies of documents under folders named after the applicable worksheets, for example "UPS Modular" for modular UPSs. Relevant documents may be detailed product specification sheets that substantiate statements made in Schedule B. Place hyper links to documents in the Evidence Reference colums where applicable. If you can indicate locations inside documents referenced, this will save time for the evaluators.
A20: Deviation Schedule | B20: 1) Complete this worksheet with all relevant deviations.
B21: 2) Post all relevant electronic copies of test certificates / documents under a folder named, "Deviation Schedule".

Sheet Cover sheet
A1: Converters and Inverters Schedule A & B
A3: Company details | B3: Company name :
B4: Registration number:
B5: Physical address:
B6: Web site address:
B7: Contact details for person responsible for this enquiry - telephone and email address:
B8: Alternate contact details:
A9: Title of enquiry
A10: Tender/enquiry number
A14: Date

Sheet References
A1: Documents to reference
A2: THYRISTOR AND SWITCH MODE CHARGERS, AC/DC TO DC/AC CONVERTERS AND INVERTER/UNINTERRUPTIBLE POWER SUPPLIES STANDARD | B2: 240-53114248 ( rev3)
A3: POWER ELECTRONICS TENDER TECHNICAL EVALUATION CRITERIA | B3: 240-17000901 (rev1)

Sheet Score results chargers & SMR (hidden)
A1: Thyristor charger SCORE
B2: Criteria Sub Weighting | C2: Criteria Weighting | D2: Individual Criteria Evaluation Weight
E3: 50 A | J3: 75 A | O3: 100 A | T3: 150 A | Y3: 175 A | AD3: 200 A | AI3: 300 A | AN3: 400 A | AS3: 500 A | AX3: 600 A | BB3: 750 A | BF3: 1000 A | BH3: 1500 A | BJ3: 1750 A | BL3: 2000 A
C4: Threshold value | D4: % | E4: 24 V | F4: 48 V | G4: 110 V | H4: 220 V | J4: 24 V | K4: 48 V | L4: 110 V | M4: 220 V | O4: 24 V | P4: 48 V | Q4: 110 V | R4: 220 V | T4: 24 V | U4: 48 V | V4: 110 V | W4: 220 V | Y4: 24 V | Z4: 48 V | AA4: 110 V | AB4: 220 V | AD4: 24 V | AE4: 48 V | AF4: 110 V | AG4: 220 V | AI4: 24 V | AJ4: 48 V | AK4: 110 V | AL4: 220 V | AN4: 24 V | AO4: 48 V | AP4: 110 V | AQ4: 220 V | AS4: 24 V | AT4: 48 V | AU4: 110 V | AV4: 220 V | AX4: 24 V | AY4: 48 V | AZ4: 220 V | BB4: 24 V | BC4: 48 V | BD4: 220 V | BF4: 24 V | BH4: 24 V | BJ4: 24 V | BL4: 24 V
A5: General Requirements | C5: =D5*0.8*100 -> 8 | D5: 0.1 | E5: ='Thyristor chargers rev 1'!J4*'Score results chargers & SMR'!$D5 -> 10 | F5: ='Thyristor chargers rev 1'!M4*'Score results chargers & SMR'!$D5 -> 10 | G5: ='Thyristor chargers rev 1'!P4*'Score results chargers & SMR'!$D5 -> 0 | H5: ='Thyristor chargers rev 1'!S4*'Score results chargers & SMR'!$D5 -> 0 | J5: ='Thyristor chargers rev 1'!Y4*'Score results chargers & SMR'!$D5 -> 0 | K5: ='Thyristor chargers rev 1'!AB4*'Score results chargers & SMR'!$D5 -> 0 | L5: ='Thyristor chargers rev 1'!AE4*'Score results chargers & SMR'!$D5 -> 0 | M5: ='Thyristor chargers rev 1'!AH4*'Score results chargers & SMR'!$D5 -> 0 | O5: ='Thyristor chargers rev 1'!AN4*'Score results chargers & SMR'!$D5 -> 0 | P5: ='Thyristor chargers rev 1'!AQ4*'Score results chargers & SMR'!$D5 -> 0 | Q5: ='Thyristor chargers rev 1'!AT4*'Score results chargers & SMR'!$D5 -> 0 | R5: ='Thyristor chargers rev 1'!AW4*'Score results chargers & SMR'!$D5 -> 0 | T5: ='Thyristor chargers rev 1'!BC4*'Score results chargers & SMR'!$D5 -> 0 | U5: ='Thyristor chargers rev 1'!BF4*'Score results chargers & SMR'!$D5 -> 0 | V5: ='Thyristor chargers rev 1'!BI4*'Score results chargers & SMR'!$D5 -> 0 | W5: ='Thyristor chargers rev 1'!BL4*'Score results chargers & SMR'!$D5 -> 0 | Y5: ='Thyristor chargers rev 1'!BR4*'Score results chargers & SMR'!$D5 -> 0 | Z5: ='Thyristor chargers rev 1'!BU4*'Score results chargers & SMR'!$D5 -> 0 | AA5: ='Thyristor chargers rev 1'!BX4*'Score results chargers & SMR'!$D5 -> 0 | AB5: ='Thyristor chargers rev 1'!CA4*'Score results chargers & SMR'!$D5 -> 0 | AD5: ='Thyristor chargers rev 1'!CG4*'Score results chargers & SMR'!$D5 -> 0 | AE5: ='Thyristor chargers rev 1'!CJ4*'Score results chargers & SMR'!$D5 -> 0 | AF5: ='Thyristor chargers rev 1'!CM4*'Score results chargers & SMR'!$D5 -> 0 | AG5: ='Thyristor chargers rev 1'!CP4*'Score results chargers & SMR'!$D5 -> 0 | AI5: ='Thyristor chargers rev 1'!CV4*'Score results chargers & SMR'!$D5 -> 0 | AJ5: ='Thyristor chargers rev 1'!CY4*'Score results chargers & SMR'!$D5 -> 0 | AK5: ='Thyristor chargers rev 1'!DB4*'Score results chargers & SMR'!$D5 -> 0 | AL5: ='Thyristor chargers rev 1'!DE4*'Score results chargers & SMR'!$D5 -> 0 | AN5: ='Thyristor chargers rev 1'!DK4*'Score results chargers & SMR'!$D5 -> 0 | AO5: ='Thyristor chargers rev 1'!DN4*'Score results chargers & SMR'!$D5 -> 0 | AP5: ='Thyristor chargers rev 1'!DQ4*'Score results chargers & SMR'!$D5 -> 0 | AQ5: ='Thyristor chargers rev 1'!DT4*'Score results chargers & SMR'!$D5 -> 0 | AS5: ='Thyristor chargers rev 1'!DZ4*'Score results chargers & SMR'!$D5 -> 0 | AT5: ='Thyristor chargers rev 1'!EC4*'Score results chargers & SMR'!$D5 -> 0 | AU5: ='Thyristor chargers rev 1'!EF4*'Score results chargers & SMR'!$D5 -> 0 | AV5: ='Thyristor chargers rev 1'!EI4*'Score results chargers & SMR'!$D5 -> 0 | AX5: ='Thyristor chargers rev 1'!EO4*'Score results chargers & SMR'!$D5 -> 0 | AY5: ='Thyristor chargers rev 1'!ER4*'Score results chargers & SMR'!$D5 -> 0 | AZ5: ='Thyristor chargers rev 1'!EU4*'Score results chargers & SMR'!$D5 -> 0 | BB5: ='Thyristor chargers rev 1'!FA4*'Score results chargers & SMR'!$D5 -> 0 | BC5: ='Thyristor chargers rev 1'!FD4*'Score results chargers & SMR'!$D5 -> 0 | BD5: ='Thyristor chargers rev 1'!FG4*'Score results chargers & SMR'!$D5 -> 0 | BF5: ='Thyristor chargers rev 1'!FM4*'Score results chargers & SMR'!$D5 -> 0 | BH5: ='Thyristor chargers rev 1'!FS4*'Score results chargers & SMR'!$D5 -> 0 | BJ5: ='Thyristor chargers rev 1'!FY4*'Score results chargers & SMR'!$D5 -> 0 | BL5: ='Thyristor chargers rev 1'!GE4*'Score results chargers & SMR'!$D5 -> 0
A6: Electrical input supply | C6: =D6*0.8*100 -> 16 | D6: 0.2 | E6: ='Thyristor chargers rev 1'!J20*'Score results chargers & SMR'!$D6 -> 20 | F6: ='Thyristor chargers rev 1'!M20*'Score results chargers & SMR'!$D6 -> 0 | G6: ='Thyristor chargers rev 1'!P20*'Score results chargers & SMR'!$D6 -> 0 | H6: ='Thyristor chargers rev 1'!S20*'Score results chargers & SMR'!$D6 -> 0 | J6: ='Thyristor chargers rev 1'!Y20*'Score results chargers & SMR'!$D6 -> 0 | K6: ='Thyristor chargers rev 1'!AB20*'Score results chargers & SMR'!$D6 -> 0 | L6: ='Thyristor chargers rev 1'!AE20*'Score results chargers & SMR'!$D6 -> 0 | M6: ='Thyristor chargers rev 1'!AH20*'Score results chargers & SMR'!$D6 -> 0 | O6: ='Thyristor chargers rev 1'!AN20*'Score results chargers & SMR'!$D6 -> 0 | P6: ='Thyristor chargers rev 1'!AQ20*'Score results chargers & SMR'!$D6 -> 0 | Q6: ='Thyristor chargers rev 1'!AT20*'Score results chargers & SMR'!$D6 -> 0 | R6: ='Thyristor chargers rev 1'!AW20*'Score results chargers & SMR'!$D6 -> 0 | T6: ='Thyristor chargers rev 1'!BC20*'Score results chargers & SMR'!$D6 -> 0 | U6: ='Thyristor chargers rev 1'!BF20*'Score results chargers & SMR'!$D6 -> 0 | V6: ='Thyristor chargers rev 1'!BI20*'Score results chargers & SMR'!$D6 -> 0 | W6: ='Thyristor chargers rev 1'!BL20*'Score results chargers & SMR'!$D6 -> 0 | Y6: ='Thyristor chargers rev 1'!BR20*'Score results chargers & SMR'!$D6 -> 0 | Z6: ='Thyristor chargers rev 1'!BU20*'Score results chargers & SMR'!$D6 -> 0 | AA6: ='Thyristor chargers rev 1'!BX20*'Score results chargers & SMR'!$D6 -> 0 | AB6: ='Thyristor chargers rev 1'!CA20*'Score results chargers & SMR'!$D6 -> 0 | AD6: ='Thyristor chargers rev 1'!CG20*'Score results chargers & SMR'!$D6 -> 0 | AE6: ='Thyristor chargers rev 1'!CJ20*'Score results chargers & SMR'!$D6 -> 0 | AF6: ='Thyristor chargers rev 1'!CM20*'Score results chargers & SMR'!$D6 -> 0 | AG6: ='Thyristor chargers rev 1'!CP20*'Score results chargers & SMR'!$D6 -> 0 | AI6: ='Thyristor chargers rev 1'!CV20*'Score results chargers & SMR'!$D6 -> 0 | AJ6: ='Thyristor chargers rev 1'!CY20*'Score results chargers & SMR'!$D6 -> 0 | AK6: ='Thyristor chargers rev 1'!DB20*'Score results chargers & SMR'!$D6 -> 0 | AL6: ='Thyristor chargers rev 1'!DE20*'Score results chargers & SMR'!$D6 -> 0 | AN6: ='Thyristor chargers rev 1'!DK20*'Score results chargers & SMR'!$D6 -> 0 | AO6: ='Thyristor chargers rev 1'!DN20*'Score results chargers & SMR'!$D6 -> 0 | AP6: ='Thyristor chargers rev 1'!DQ20*'Score results chargers & SMR'!$D6 -> 0 | AQ6: ='Thyristor chargers rev 1'!DT20*'Score results chargers & SMR'!$D6 -> 0 | AS6: ='Thyristor chargers rev 1'!DZ20*'Score results chargers & SMR'!$D6 -> 0 | AT6: ='Thyristor chargers rev 1'!EC20*'Score results chargers & SMR'!$D6 -> 0 | AU6: ='Thyristor chargers rev 1'!EF20*'Score results chargers & SMR'!$D6 -> 0 | AV6: ='Thyristor chargers rev 1'!EI20*'Score results chargers & SMR'!$D6 -> 0 | AX6: ='Thyristor chargers rev 1'!EO20*'Score results chargers & SMR'!$D6 -> 0 | AY6: ='Thyristor chargers rev 1'!ER20*'Score results chargers & SMR'!$D6 -> 0 | AZ6: ='Thyristor chargers rev 1'!EU20*'Score results chargers & SMR'!$D6 -> 0 | BB6: ='Thyristor chargers rev 1'!FA20*'Score results chargers & SMR'!$D6 -> 0 | BC6: ='Thyristor chargers rev 1'!FD20*'Score results chargers & SMR'!$D6 -> 0 | BD6: ='Thyristor chargers rev 1'!FG20*'Score results chargers & SMR'!$D6 -> 0 | BF6: ='Thyristor chargers rev 1'!FM20*'Score results chargers & SMR'!$D6 -> 0 | BH6: ='Thyristor chargers rev 1'!FS20*'Score results chargers & SMR'!$D6 -> 0 | BJ6: ='Thyristor chargers rev 1'!FY20*'Score results chargers & SMR'!$D6 -> 0 | BL6: ='Thyristor chargers rev 1'!GE20*'Score results chargers & SMR'!$D6 -> 0
A7: Operational requirements | C7: 20 | D7: 0.25 | E7: ='Thyristor chargers rev 1'!J31*'Score results chargers & SMR'!$D7 -> 25 | F7: ='Thyristor chargers rev 1'!M31*'Score results chargers & SMR'!$D7 -> 0 | G7: ='Thyristor chargers rev 1'!P31*'Score results chargers & SMR'!$D7 -> 0 | H7: ='Thyristor chargers rev 1'!S31*'Score results chargers & SMR'!$D7 -> 0 | J7: ='Thyristor chargers rev 1'!Y31*'Score results chargers & SMR'!$D7 -> 0 | K7: ='Thyristor chargers rev 1'!AB31*'Score results chargers & SMR'!$D7 -> 0 | L7: ='Thyristor chargers rev 1'!AE31*'Score results chargers & SMR'!$D7 -> 0 | M7: ='Thyristor chargers rev 1'!AH31*'Score results chargers & SMR'!$D7 -> 0 | O7: ='Thyristor chargers rev 1'!AN31*'Score results chargers & SMR'!$D7 -> 0 | P7: ='Thyristor chargers rev 1'!AQ31*'Score results chargers & SMR'!$D7 -> 0 | Q7: ='Thyristor chargers rev 1'!AT31*'Score results chargers & SMR'!$D7 -> 0 | R7: ='Thyristor chargers rev 1'!AW31*'Score results chargers & SMR'!$D7 -> 0 | T7: ='Thyristor chargers rev 1'!BC31*'Score results chargers & SMR'!$D7 -> 0 | U7: ='Thyristor chargers rev 1'!BF31*'Score results chargers & SMR'!$D7 -> 0 | V7: ='Thyristor chargers rev 1'!BI31*'Score results chargers & SMR'!$D7 -> 0 | W7: ='Thyristor chargers rev 1'!BL31*'Score results chargers & SMR'!$D7 -> 0 | Y7: ='Thyristor chargers rev 1'!BR31*'Score results chargers & SMR'!$D7 -> 0 | Z7: ='Thyristor chargers rev 1'!BU31*'Score results chargers & SMR'!$D7 -> 0 | AA7: ='Thyristor chargers rev 1'!BX31*'Score results chargers & SMR'!$D7 -> 0 | AB7: ='Thyristor chargers rev 1'!CA31*'Score results chargers & SMR'!$D7 -> 0 | AD7: ='Thyristor chargers rev 1'!CG31*'Score results chargers & SMR'!$D7 -> 0 | AE7: ='Thyristor chargers rev 1'!CJ31*'Score results chargers & SMR'!$D7 -> 0 | AF7: ='Thyristor chargers rev 1'!CM31*'Score results chargers & SMR'!$D7 -> 0 | AG7: ='Thyristor chargers rev 1'!CP31*'Score results chargers & SMR'!$D7 -> 0 | AI7: ='Thyristor chargers rev 1'!CV31*'Score results chargers & SMR'!$D7 -> 0 | AJ7: ='Thyristor chargers rev 1'!CY31*'Score results chargers & SMR'!$D7 -> 0 | AK7: ='Thyristor chargers rev 1'!DB31*'Score results chargers & SMR'!$D7 -> 0 | AL7: ='Thyristor chargers rev 1'!DE31*'Score results chargers & SMR'!$D7 -> 0 | AN7: ='Thyristor chargers rev 1'!DK31*'Score results chargers & SMR'!$D7 -> 0 | AO7: ='Thyristor chargers rev 1'!DN31*'Score results chargers & SMR'!$D7 -> 0 | AP7: ='Thyristor chargers rev 1'!DQ31*'Score results chargers & SMR'!$D7 -> 0 | AQ7: ='Thyristor chargers rev 1'!DT31*'Score results chargers & SMR'!$D7 -> 0 | AS7: ='Thyristor chargers rev 1'!DZ31*'Score results chargers & SMR'!$D7 -> 0 | AT7: ='Thyristor chargers rev 1'!EC31*'Score results chargers & SMR'!$D7 -> 0 | AU7: ='Thyristor chargers rev 1'!EF31*'Score results chargers & SMR'!$D7 -> 0 | AV7: ='Thyristor chargers rev 1'!EI31*'Score results chargers & SMR'!$D7 -> 0 | AX7: ='Thyristor chargers rev 1'!EO31*'Score results chargers & SMR'!$D7 -> 0 | AY7: ='Thyristor chargers rev 1'!ER31*'Score results chargers & SMR'!$D7 -> 0 | AZ7: ='Thyristor chargers rev 1'!EU31*'Score results chargers & SMR'!$D7 -> 0 | BB7: ='Thyristor chargers rev 1'!FA31*'Score results chargers & SMR'!$D7 -> 0 | BC7: ='Thyristor chargers rev 1'!FD31*'Score results chargers & SMR'!$D7 -> 0 | BD7: ='Thyristor chargers rev 1'!FG31*'Score results chargers & SMR'!$D7 -> 0 | BF7: ='Thyristor chargers rev 1'!FM31*'Score results chargers & SMR'!$D7 -> 0 | BH7: ='Thyristor chargers rev 1'!FS31*'Score results chargers & SMR'!$D7 -> 0 | BJ7: ='Thyristor chargers rev 1'!FY31*'Score results chargers & SMR'!$D7 -> 0 | BL7: ='Thyristor chargers rev 1'!GE31*'Score results chargers & SMR'!$D7 -> 0
A8: Mechanical Requirements | C8: 8 | D8: 0.1 | E8: ='Thyristor chargers rev 1'!J284*'Score results chargers & SMR'!$D8 -> 10 | F8: ='Thyristor chargers rev 1'!M284*'Score results chargers & SMR'!$D8 -> 0 | G8: ='Thyristor chargers rev 1'!P284*'Score results chargers & SMR'!$D8 -> 0 | H8: ='Thyristor chargers rev 1'!S284*'Score results chargers & SMR'!$D8 -> 0 | J8: ='Thyristor chargers rev 1'!Y284*'Score results chargers & SMR'!$D8 -> 0 | K8: ='Thyristor chargers rev 1'!AB284*'Score results chargers & SMR'!$D8 -> 0 | L8: ='Thyristor chargers rev 1'!AE284*'Score results chargers & SMR'!$D8 -> 0 | M8: ='Thyristor chargers rev 1'!AH284*'Score results chargers & SMR'!$D8 -> 0 | O8: ='Thyristor chargers rev 1'!AN284*'Score results chargers & SMR'!$D8 -> 0 | P8: ='Thyristor chargers rev 1'!AQ284*'Score results chargers & SMR'!$D8 -> 0 | Q8: ='Thyristor chargers rev 1'!AT284*'Score results chargers & SMR'!$D8 -> 0 | R8: ='Thyristor chargers rev 1'!AW284*'Score results chargers & SMR'!$D8 -> 0 | T8: ='Thyristor chargers rev 1'!BC284*'Score results chargers & SMR'!$D8 -> 0 | U8: ='Thyristor chargers rev 1'!BF284*'Score results chargers & SMR'!$D8 -> 0 | V8: ='Thyristor chargers rev 1'!BI284*'Score results chargers & SMR'!$D8 -> 0 | W8: ='Thyristor chargers rev 1'!BL284*'Score results chargers & SMR'!$D8 -> 0 | Y8: ='Thyristor chargers rev 1'!BR284*'Score results chargers & SMR'!$D8 -> 0 | Z8: ='Thyristor chargers rev 1'!BU284*'Score results chargers & SMR'!$D8 -> 0 | AA8: ='Thyristor chargers rev 1'!BX284*'Score results chargers & SMR'!$D8 -> 0 | AB8: ='Thyristor chargers rev 1'!CA284*'Score results chargers & SMR'!$D8 -> 0 | AD8: ='Thyristor chargers rev 1'!CG284*'Score results chargers & SMR'!$D8 -> 0 | AE8: ='Thyristor chargers rev 1'!CJ284*'Score results chargers & SMR'!$D8 -> 0 | AF8: ='Thyristor chargers rev 1'!CM284*'Score results chargers & SMR'!$D8 -> 0 | AG8: ='Thyristor chargers rev 1'!CP284*'Score results chargers & SMR'!$D8 -> 0 | AI8: ='Thyristor chargers rev 1'!CV284*'Score results chargers & SMR'!$D8 -> 0 | AJ8: ='Thyristor chargers rev 1'!CY284*'Score results chargers & SMR'!$D8 -> 0 | AK8: ='Thyristor chargers rev 1'!DB284*'Score results chargers & SMR'!$D8 -> 0 | AL8: ='Thyristor chargers rev 1'!DE284*'Score results chargers & SMR'!$D8 -> 0 | AN8: ='Thyristor chargers rev 1'!DK284*'Score results chargers & SMR'!$D8 -> 0 | AO8: ='Thyristor chargers rev 1'!DN284*'Score results chargers & SMR'!$D8 -> 0 | AP8: ='Thyristor chargers rev 1'!DQ284*'Score results chargers & SMR'!$D8 -> 0 | AQ8: ='Thyristor chargers rev 1'!DT284*'Score results chargers & SMR'!$D8 -> 0 | AS8: ='Thyristor chargers rev 1'!DZ284*'Score results chargers & SMR'!$D8 -> 0 | AT8: ='Thyristor chargers rev 1'!EC284*'Score results chargers & SMR'!$D8 -> 0 | AU8: ='Thyristor chargers rev 1'!EF284*'Score results chargers & SMR'!$D8 -> 0 | AV8: ='Thyristor chargers rev 1'!EI284*'Score results chargers & SMR'!$D8 -> 0 | AX8: ='Thyristor chargers rev 1'!EO284*'Score results chargers & SMR'!$D8 -> 0 | AY8: ='Thyristor chargers rev 1'!ER284*'Score results chargers & SMR'!$D8 -> 0 | AZ8: ='Thyristor chargers rev 1'!EU284*'Score results chargers & SMR'!$D8 -> 0 | BB8: ='Thyristor chargers rev 1'!FA284*'Score results chargers & SMR'!$D8 -> 0 | BC8: ='Thyristor chargers rev 1'!FD284*'Score results chargers & SMR'!$D8 -> 0 | BD8: ='Thyristor chargers rev 1'!FG284*'Score results chargers & SMR'!$D8 -> 0 | BF8: ='Thyristor chargers rev 1'!FM284*'Score results chargers & SMR'!$D8 -> 0 | BH8: ='Thyristor chargers rev 1'!FS284*'Score results chargers & SMR'!$D8 -> 0 | BJ8: ='Thyristor chargers rev 1'!FY284*'Score results chargers & SMR'!$D8 -> 0 | BL8: ='Thyristor chargers rev 1'!GE284*'Score results chargers & SMR'!$D8 -> 0
A9: Settings and Commissioning | C9: 4 | D9: 0.05 | E9: ='Thyristor chargers rev 1'!J424*'Score results chargers & SMR'!$D9 -> 5 | F9: ='Thyristor chargers rev 1'!M424*'Score results chargers & SMR'!$D9 -> 0 | G9: ='Thyristor chargers rev 1'!P424*'Score results chargers & SMR'!$D9 -> 0 | H9: ='Thyristor chargers rev 1'!S424*'Score results chargers & SMR'!$D9 -> 0 | J9: ='Thyristor chargers rev 1'!Y424*'Score results chargers & SMR'!$D9 -> 0 | K9: ='Thyristor chargers rev 1'!AB424*'Score results chargers & SMR'!$D9 -> 0 | L9: ='Thyristor chargers rev 1'!AE424*'Score results chargers & SMR'!$D9 -> 0 | M9: ='Thyristor chargers rev 1'!AH424*'Score results chargers & SMR'!$D9 -> 0 | O9: ='Thyristor chargers rev 1'!AN424*'Score results chargers & SMR'!$D9 -> 0 | P9: ='Thyristor chargers rev 1'!AQ424*'Score results chargers & SMR'!$D9 -> 0 | Q9: ='Thyristor chargers rev 1'!AT424*'Score results chargers & SMR'!$D9 -> 0 | R9: ='Thyristor chargers rev 1'!AW424*'Score results chargers & SMR'!$D9 -> 0 | T9: ='Thyristor chargers rev 1'!BC424*'Score results chargers & SMR'!$D9 -> 0 | U9: ='Thyristor chargers rev 1'!BF424*'Score results chargers & SMR'!$D9 -> 0 | V9: ='Thyristor chargers rev 1'!BI424*'Score results chargers & SMR'!$D9 -> 0 | W9: ='Thyristor chargers rev 1'!BL424*'Score results chargers & SMR'!$D9 -> 0 | Y9: ='Thyristor chargers rev 1'!BR424*'Score results chargers & SMR'!$D9 -> 0 | Z9: ='Thyristor chargers rev 1'!BU424*'Score results chargers & SMR'!$D9 -> 0 | AA9: ='Thyristor chargers rev 1'!BX424*'Score results chargers & SMR'!$D9 -> 0 | AB9: ='Thyristor chargers rev 1'!CA424*'Score results chargers & SMR'!$D9 -> 0 | AD9: ='Thyristor chargers rev 1'!CG424*'Score results chargers & SMR'!$D9 -> 0 | AE9: ='Thyristor chargers rev 1'!CJ424*'Score results chargers & SMR'!$D9 -> 0 | AF9: ='Thyristor chargers rev 1'!CM424*'Score results chargers & SMR'!$D9 -> 0 | AG9: ='Thyristor chargers rev 1'!CP424*'Score results chargers & SMR'!$D9 -> 0 | AI9: ='Thyristor chargers rev 1'!CV424*'Score results chargers & SMR'!$D9 -> 0 | AJ9: ='Thyristor chargers rev 1'!CY424*'Score results chargers & SMR'!$D9 -> 0 | AK9: ='Thyristor chargers rev 1'!DB424*'Score results chargers & SMR'!$D9 -> 0 | AL9: ='Thyristor chargers rev 1'!DE424*'Score results chargers & SMR'!$D9 -> 0 | AN9: ='Thyristor chargers rev 1'!DK424*'Score results chargers & SMR'!$D9 -> 0 | AO9: ='Thyristor chargers rev 1'!DN424*'Score results chargers & SMR'!$D9 -> 0 | AP9: ='Thyristor chargers rev 1'!DQ424*'Score results chargers & SMR'!$D9 -> 0 | AQ9: ='Thyristor chargers rev 1'!DT424*'Score results chargers & SMR'!$D9 -> 0 | AS9: ='Thyristor chargers rev 1'!DZ424*'Score results chargers & SMR'!$D9 -> 0 | AT9: ='Thyristor chargers rev 1'!EC424*'Score results chargers & SMR'!$D9 -> 0 | AU9: ='Thyristor chargers rev 1'!EF424*'Score results chargers & SMR'!$D9 -> 0 | AV9: ='Thyristor chargers rev 1'!EI424*'Score results chargers & SMR'!$D9 -> 0 | AX9: ='Thyristor chargers rev 1'!EO424*'Score results chargers & SMR'!$D9 -> 0 | AY9: ='Thyristor chargers rev 1'!ER424*'Score results chargers & SMR'!$D9 -> 0 | AZ9: ='Thyristor chargers rev 1'!EU424*'Score results chargers & SMR'!$D9 -> 0 | BB9: ='Thyristor chargers rev 1'!FA424*'Score results chargers & SMR'!$D9 -> 0 | BC9: ='Thyristor chargers rev 1'!FD424*'Score results chargers & SMR'!$D9 -> 0 | BD9: ='Thyristor chargers rev 1'!FG424*'Score results chargers & SMR'!$D9 -> 0 | BF9: ='Thyristor chargers rev 1'!FM424*'Score results chargers & SMR'!$D9 -> 0 | BH9: ='Thyristor chargers rev 1'!FS424*'Score results chargers & SMR'!$D9 -> 0 | BJ9: ='Thyristor chargers rev 1'!FY424*'Score results chargers & SMR'!$D9 -> 0 | BL9: ='Thyristor chargers rev 1'!GE424*'Score results chargers & SMR'!$D9 -> 0
A10: Type testing | C10: 8 | D10: 0.1 | E10: ='Thyristor chargers rev 1'!J451*'Score results chargers & SMR'!$D10 -> 10 | F10: ='Thyristor chargers rev 1'!M451*'Score results chargers & SMR'!$D10 -> 0 | G10: ='Thyristor chargers rev 1'!P451*'Score results chargers & SMR'!$D10 -> 0 | H10: ='Thyristor chargers rev 1'!S451*'Score results chargers & SMR'!$D10 -> 0 | J10: ='Thyristor chargers rev 1'!Y451*'Score results chargers & SMR'!$D10 -> 0 | K10: ='Thyristor chargers rev 1'!AB451*'Score results chargers & SMR'!$D10 -> 0 | L10: ='Thyristor chargers rev 1'!AE451*'Score results chargers & SMR'!$D10 -> 0 | M10: ='Thyristor chargers rev 1'!AH451*'Score results chargers & SMR'!$D10 -> 0 | O10: ='Thyristor chargers rev 1'!AN451*'Score results chargers & SMR'!$D10 -> 0 | P10: ='Thyristor chargers rev 1'!AQ451*'Score results chargers & SMR'!$D10 -> 0 | Q10: ='Thyristor chargers rev 1'!AT451*'Score results chargers & SMR'!$D10 -> 0 | R10: ='Thyristor chargers rev 1'!AW451*'Score results chargers & SMR'!$D10 -> 0 | T10: ='Thyristor chargers rev 1'!BC451*'Score results chargers & SMR'!$D10 -> 0 | U10: ='Thyristor chargers rev 1'!BF451*'Score results chargers & SMR'!$D10 -> 0 | V10: ='Thyristor chargers rev 1'!BI451*'Score results chargers & SMR'!$D10 -> 0 | W10: ='Thyristor chargers rev 1'!BL451*'Score results chargers & SMR'!$D10 -> 0 | Y10: ='Thyristor chargers rev 1'!BR451*'Score results chargers & SMR'!$D10 -> 0 | Z10: ='Thyristor chargers rev 1'!BU451*'Score results chargers & SMR'!$D10 -> 0 | AA10: ='Thyristor chargers rev 1'!BX451*'Score results chargers & SMR'!$D10 -> 0 | AB10: ='Thyristor chargers rev 1'!CA451*'Score results chargers & SMR'!$D10 -> 0 | AD10: ='Thyristor chargers rev 1'!CG451*'Score results chargers & SMR'!$D10 -> 0 | AE10: ='Thyristor chargers rev 1'!CJ451*'Score results chargers & SMR'!$D10 -> 0 | AF10: ='Thyristor chargers rev 1'!CM451*'Score results chargers & SMR'!$D10 -> 0 | AG10: ='Thyristor chargers rev 1'!CP451*'Score results chargers & SMR'!$D10 -> 0 | AI10: ='Thyristor chargers rev 1'!CV451*'Score results chargers & SMR'!$D10 -> 0 | AJ10: ='Thyristor chargers rev 1'!CY451*'Score results chargers & SMR'!$D10 -> 0 | AK10: ='Thyristor chargers rev 1'!DB451*'Score results chargers & SMR'!$D10 -> 0 | AL10: ='Thyristor chargers rev 1'!DE451*'Score results chargers & SMR'!$D10 -> 0 | AN10: ='Thyristor chargers rev 1'!DK451*'Score results chargers & SMR'!$D10 -> 0 | AO10: ='Thyristor chargers rev 1'!DN451*'Score results chargers & SMR'!$D10 -> 0 | AP10: ='Thyristor chargers rev 1'!DQ451*'Score results chargers & SMR'!$D10 -> 0 | AQ10: ='Thyristor chargers rev 1'!DT451*'Score results chargers & SMR'!$D10 -> 0 | AS10: ='Thyristor chargers rev 1'!DZ451*'Score results chargers & SMR'!$D10 -> 0 | AT10: ='Thyristor chargers rev 1'!EC451*'Score results chargers & SMR'!$D10 -> 0 | AU10: ='Thyristor chargers rev 1'!EF451*'Score results chargers & SMR'!$D10 -> 0 | AV10: ='Thyristor chargers rev 1'!EI451*'Score results chargers & SMR'!$D10 -> 0 | AX10: ='Thyristor chargers rev 1'!EO451*'Score results chargers & SMR'!$D10 -> 0 | AY10: ='Thyristor chargers rev 1'!ER451*'Score results chargers & SMR'!$D10 -> 0 | AZ10: ='Thyristor chargers rev 1'!EU451*'Score results chargers & SMR'!$D10 -> 0 | BB10: ='Thyristor chargers rev 1'!FA451*'Score results chargers & SMR'!$D10 -> 0 | BC10: ='Thyristor chargers rev 1'!FD451*'Score results chargers & SMR'!$D10 -> 0 | BD10: ='Thyristor chargers rev 1'!FG451*'Score results chargers & SMR'!$D10 -> 0 | BF10: ='Thyristor chargers rev 1'!FM451*'Score results chargers & SMR'!$D10 -> 0 | BH10: ='Thyristor chargers rev 1'!FS451*'Score results chargers & SMR'!$D10 -> 0 | BJ10: ='Thyristor chargers rev 1'!FY451*'Score results chargers & SMR'!$D10 -> 0 | BL10: ='Thyristor chargers rev 1'!GE451*'Score results chargers & SMR'!$D10 -> 0
A11: Marking, labeling and packaging | C11: 4 | D11: 0.05 | E11: ='Thyristor chargers rev 1'!J485*'Score results chargers & SMR'!$D11 -> 5 | F11: ='Thyristor chargers rev 1'!M485*'Score results chargers & SMR'!$D11 -> 0 | G11: ='Thyristor chargers rev 1'!P485*'Score results chargers & SMR'!$D11 -> 0 | H11: ='Thyristor chargers rev 1'!S485*'Score results chargers & SMR'!$D11 -> 0 | J11: ='Thyristor chargers rev 1'!Y485*'Score results chargers & SMR'!$D11 -> 0 | K11: ='Thyristor chargers rev 1'!AB485*'Score results chargers & SMR'!$D11 -> 0 | L11: ='Thyristor chargers rev 1'!AE485*'Score results chargers & SMR'!$D11 -> 0 | M11: ='Thyristor chargers rev 1'!AH485*'Score results chargers & SMR'!$D11 -> 0 | O11: ='Thyristor chargers rev 1'!AN485*'Score results chargers & SMR'!$D11 -> 0 | P11: ='Thyristor chargers rev 1'!AQ485*'Score results chargers & SMR'!$D11 -> 0 | Q11: ='Thyristor chargers rev 1'!AT485*'Score results chargers & SMR'!$D11 -> 0 | R11: ='Thyristor chargers rev 1'!AW485*'Score results chargers & SMR'!$D11 -> 0 | T11: ='Thyristor chargers rev 1'!BC485*'Score results chargers & SMR'!$D11 -> 0 | U11: ='Thyristor chargers rev 1'!BF485*'Score results chargers & SMR'!$D11 -> 0 | V11: ='Thyristor chargers rev 1'!BI485*'Score results chargers & SMR'!$D11 -> 0 | W11: ='Thyristor chargers rev 1'!BL485*'Score results chargers & SMR'!$D11 -> 0 | Y11: ='Thyristor chargers rev 1'!BR485*'Score results chargers & SMR'!$D11 -> 0 | Z11: ='Thyristor chargers rev 1'!BU485*'Score results chargers & SMR'!$D11 -> 0 | AA11: ='Thyristor chargers rev 1'!BX485*'Score results chargers & SMR'!$D11 -> 0 | AB11: ='Thyristor chargers rev 1'!CA485*'Score results chargers & SMR'!$D11 -> 0 | AD11: ='Thyristor chargers rev 1'!CG485*'Score results chargers & SMR'!$D11 -> 0 | AE11: ='Thyristor chargers rev 1'!CJ485*'Score results chargers & SMR'!$D11 -> 0 | AF11: ='Thyristor chargers rev 1'!CM485*'Score results chargers & SMR'!$D11 -> 0 | AG11: ='Thyristor chargers rev 1'!CP485*'Score results chargers & SMR'!$D11 -> 0 | AI11: ='Thyristor chargers rev 1'!CV485*'Score results chargers & SMR'!$D11 -> 0 | AJ11: ='Thyristor chargers rev 1'!CY485*'Score results chargers & SMR'!$D11 -> 0 | AK11: ='Thyristor chargers rev 1'!DB485*'Score results chargers & SMR'!$D11 -> 0 | AL11: ='Thyristor chargers rev 1'!DE485*'Score results chargers & SMR'!$D11 -> 0 | AN11: ='Thyristor chargers rev 1'!DK485*'Score results chargers & SMR'!$D11 -> 0 | AO11: ='Thyristor chargers rev 1'!DN485*'Score results chargers & SMR'!$D11 -> 0 | AP11: ='Thyristor chargers rev 1'!DQ485*'Score results chargers & SMR'!$D11 -> 0 | AQ11: ='Thyristor chargers rev 1'!DT485*'Score results chargers & SMR'!$D11 -> 0 | AS11: ='Thyristor chargers rev 1'!DZ485*'Score results chargers & SMR'!$D11 -> 0 | AT11: ='Thyristor chargers rev 1'!EC485*'Score results chargers & SMR'!$D11 -> 0 | AU11: ='Thyristor chargers rev 1'!EF485*'Score results chargers & SMR'!$D11 -> 0 | AV11: ='Thyristor chargers rev 1'!EI485*'Score results chargers & SMR'!$D11 -> 0 | AX11: ='Thyristor chargers rev 1'!EO485*'Score results chargers & SMR'!$D11 -> 0 | AY11: ='Thyristor chargers rev 1'!ER485*'Score results chargers & SMR'!$D11 -> 0 | AZ11: ='Thyristor chargers rev 1'!EU485*'Score results chargers & SMR'!$D11 -> 0 | BB11: ='Thyristor chargers rev 1'!FA485*'Score results chargers & SMR'!$D11 -> 0 | BC11: ='Thyristor chargers rev 1'!FD485*'Score results chargers & SMR'!$D11 -> 0 | BD11: ='Thyristor chargers rev 1'!FG485*'Score results chargers & SMR'!$D11 -> 0 | BF11: ='Thyristor chargers rev 1'!FM485*'Score results chargers & SMR'!$D11 -> 0 | BH11: ='Thyristor chargers rev 1'!FS485*'Score results chargers & SMR'!$D11 -> 0 | BJ11: ='Thyristor chargers rev 1'!FY485*'Score results chargers & SMR'!$D11 -> 0 | BL11: ='Thyristor chargers rev 1'!GE485*'Score results chargers & SMR'!$D11 -> 0
A12: Spares | C12: 4 | D12: 0.05 | E12: ='Thyristor chargers rev 1'!J492*'Score results chargers & SMR'!$D12 -> 5 | F12: ='Thyristor chargers rev 1'!M492*'Score results chargers & SMR'!$D12 -> 0 | G12: ='Thyristor chargers rev 1'!P492*'Score results chargers & SMR'!$D12 -> 0 | H12: ='Thyristor chargers rev 1'!S492*'Score results chargers & SMR'!$D12 -> 0 | J12: ='Thyristor chargers rev 1'!Y492*'Score results chargers & SMR'!$D12 -> 0 | K12: ='Thyristor chargers rev 1'!AB492*'Score results chargers & SMR'!$D12 -> 0 | L12: ='Thyristor chargers rev 1'!AE492*'Score results chargers & SMR'!$D12 -> 0 | M12: ='Thyristor chargers rev 1'!AH492*'Score results chargers & SMR'!$D12 -> 0 | O12: ='Thyristor chargers rev 1'!AN492*'Score results chargers & SMR'!$D12 -> 0 | P12: ='Thyristor chargers rev 1'!AQ492*'Score results chargers & SMR'!$D12 -> 0 | Q12: ='Thyristor chargers rev 1'!AT492*'Score results chargers & SMR'!$D12 -> 0 | R12: ='Thyristor chargers rev 1'!AW492*'Score results chargers & SMR'!$D12 -> 0 | T12: ='Thyristor chargers rev 1'!BC492*'Score results chargers & SMR'!$D12 -> 0 | U12: ='Thyristor chargers rev 1'!BF492*'Score results chargers & SMR'!$D12 -> 0 | V12: ='Thyristor chargers rev 1'!BI492*'Score results chargers & SMR'!$D12 -> 0 | W12: ='Thyristor chargers rev 1'!BL492*'Score results chargers & SMR'!$D12 -> 0 | Y12: ='Thyristor chargers rev 1'!BR492*'Score results chargers & SMR'!$D12 -> 0 | Z12: ='Thyristor chargers rev 1'!BU492*'Score results chargers & SMR'!$D12 -> 0 | AA12: ='Thyristor chargers rev 1'!BX492*'Score results chargers & SMR'!$D12 -> 0 | AB12: ='Thyristor chargers rev 1'!CA492*'Score results chargers & SMR'!$D12 -> 0 | AD12: ='Thyristor chargers rev 1'!CG492*'Score results chargers & SMR'!$D12 -> 0 | AE12: ='Thyristor chargers rev 1'!CJ492*'Score results chargers & SMR'!$D12 -> 0 | AF12: ='Thyristor chargers rev 1'!CM492*'Score results chargers & SMR'!$D12 -> 0 | AG12: ='Thyristor chargers rev 1'!CP492*'Score results chargers & SMR'!$D12 -> 0 | AI12: ='Thyristor chargers rev 1'!CV492*'Score results chargers & SMR'!$D12 -> 0 | AJ12: ='Thyristor chargers rev 1'!CY492*'Score results chargers & SMR'!$D12 -> 0 | AK12: ='Thyristor chargers rev 1'!DB492*'Score results chargers & SMR'!$D12 -> 0 | AL12: ='Thyristor chargers rev 1'!DE492*'Score results chargers & SMR'!$D12 -> 0 | AN12: ='Thyristor chargers rev 1'!DK492*'Score results chargers & SMR'!$D12 -> 0 | AO12: ='Thyristor chargers rev 1'!DN492*'Score results chargers & SMR'!$D12 -> 0 | AP12: ='Thyristor chargers rev 1'!DQ492*'Score results chargers & SMR'!$D12 -> 0 | AQ12: ='Thyristor chargers rev 1'!DT492*'Score results chargers & SMR'!$D12 -> 0 | AS12: ='Thyristor chargers rev 1'!DZ492*'Score results chargers & SMR'!$D12 -> 0 | AT12: ='Thyristor chargers rev 1'!EC492*'Score results chargers & SMR'!$D12 -> 0 | AU12: ='Thyristor chargers rev 1'!EF492*'Score results chargers & SMR'!$D12 -> 0 | AV12: ='Thyristor chargers rev 1'!EI492*'Score results chargers & SMR'!$D12 -> 0 | AX12: ='Thyristor chargers rev 1'!EO492*'Score results chargers & SMR'!$D12 -> 0 | AY12: ='Thyristor chargers rev 1'!ER492*'Score results chargers & SMR'!$D12 -> 0 | AZ12: ='Thyristor chargers rev 1'!EU492*'Score results chargers & SMR'!$D12 -> 0 | BB12: ='Thyristor chargers rev 1'!FA492*'Score results chargers & SMR'!$D12 -> 0 | BC12: ='Thyristor chargers rev 1'!FD492*'Score results chargers & SMR'!$D12 -> 0 | BD12: ='Thyristor chargers rev 1'!FG492*'Score results chargers & SMR'!$D12 -> 0 | BF12: ='Thyristor chargers rev 1'!FM492*'Score results chargers & SMR'!$D12 -> 0 | BH12: ='Thyristor chargers rev 1'!FS492*'Score results chargers & SMR'!$D12 -> 0 | BJ12: ='Thyristor chargers rev 1'!FY492*'Score results chargers & SMR'!$D12 -> 0 | BL12: ='Thyristor chargers rev 1'!GE492*'Score results chargers & SMR'!$D12 -> 0
A13: Documentation | C13: 4 | D13: 0.05 | E13: ='Thyristor chargers rev 1'!J503*'Score results chargers & SMR'!$D13 -> 5 | F13: ='Thyristor chargers rev 1'!M503*'Score results chargers & SMR'!$D13 -> 0 | G13: ='Thyristor chargers rev 1'!P503*'Score results chargers & SMR'!$D13 -> 0 | H13: ='Thyristor chargers rev 1'!S503*'Score results chargers & SMR'!$D13 -> 0 | J13: ='Thyristor chargers rev 1'!Y503*'Score results chargers & SMR'!$D13 -> 0.35 | K13: ='Thyristor chargers rev 1'!AB503*'Score results chargers & SMR'!$D13 -> 0 | L13: ='Thyristor chargers rev 1'!AE503*'Score results chargers & SMR'!$D13 -> 0 | M13: ='Thyristor chargers rev 1'!AH503*'Score results chargers & SMR'!$D13 -> 0 | O13: ='Thyristor chargers rev 1'!AN503*'Score results chargers & SMR'!$D13 -> 0 | P13: ='Thyristor chargers rev 1'!AQ503*'Score results chargers & SMR'!$D13 -> 0 | Q13: ='Thyristor chargers rev 1'!AT503*'Score results chargers & SMR'!$D13 -> 0 | R13: ='Thyristor chargers rev 1'!AW503*'Score results chargers & SMR'!$D13 -> 0 | T13: ='Thyristor chargers rev 1'!BC503*'Score results chargers & SMR'!$D13 -> 0 | U13: ='Thyristor chargers rev 1'!BF503*'Score results chargers & SMR'!$D13 -> 0 | V13: ='Thyristor chargers rev 1'!BI503*'Score results chargers & SMR'!$D13 -> 0 | W13: ='Thyristor chargers rev 1'!BL503*'Score results chargers & SMR'!$D13 -> 0 | Y13: ='Thyristor chargers rev 1'!BR503*'Score results chargers & SMR'!$D13 -> 0 | Z13: ='Thyristor chargers rev 1'!BU503*'Score results chargers & SMR'!$D13 -> 0 | AA13: ='Thyristor chargers rev 1'!BX503*'Score results chargers & SMR'!$D13 -> 0 | AB13: ='Thyristor chargers rev 1'!CA503*'Score results chargers & SMR'!$D13 -> 0 | AD13: ='Thyristor chargers rev 1'!CG503*'Score results chargers & SMR'!$D13 -> 0 | AE13: ='Thyristor chargers rev 1'!CJ503*'Score results chargers & SMR'!$D13 -> 0 | AF13: ='Thyristor chargers rev 1'!CM503*'Score results chargers & SMR'!$D13 -> 0 | AG13: ='Thyristor chargers rev 1'!CP503*'Score results chargers & SMR'!$D13 -> 0 | AI13: ='Thyristor chargers rev 1'!CV503*'Score results chargers & SMR'!$D13 -> 0 | AJ13: ='Thyristor chargers rev 1'!CY503*'Score results chargers & SMR'!$D13 -> 0 | AK13: ='Thyristor chargers rev 1'!DB503*'Score results chargers & SMR'!$D13 -> 0 | AL13: ='Thyristor chargers rev 1'!DE503*'Score results chargers & SMR'!$D13 -> 0 | AN13: ='Thyristor chargers rev 1'!DK503*'Score results chargers & SMR'!$D13 -> 0 | AO13: ='Thyristor chargers rev 1'!DN503*'Score results chargers & SMR'!$D13 -> 0 | AP13: ='Thyristor chargers rev 1'!DQ503*'Score results chargers & SMR'!$D13 -> 0.35 | AQ13: ='Thyristor chargers rev 1'!DT503*'Score results chargers & SMR'!$D13 -> 0 | AS13: ='Thyristor chargers rev 1'!DZ503*'Score results chargers & SMR'!$D13 -> 0 | AT13: ='Thyristor chargers rev 1'!EC503*'Score results chargers & SMR'!$D13 -> 0 | AU13: ='Thyristor chargers rev 1'!EF503*'Score results chargers & SMR'!$D13 -> 0 | AV13: ='Thyristor chargers rev 1'!EI503*'Score results chargers & SMR'!$D13 -> 0 | AX13: ='Thyristor chargers rev 1'!EO503*'Score results chargers & SMR'!$D13 -> 0 | AY13: ='Thyristor chargers rev 1'!ER503*'Score results chargers & SMR'!$D13 -> 0 | AZ13: ='Thyristor chargers rev 1'!EU503*'Score results chargers & SMR'!$D13 -> 0 | BB13: ='Thyristor chargers rev 1'!FA503*'Score results chargers & SMR'!$D13 -> 0 | BC13: ='Thyristor chargers rev 1'!FD503*'Score results chargers & SMR'!$D13 -> 0 | BD13: ='Thyristor chargers rev 1'!FG503*'Score results chargers & SMR'!$D13 -> 0 | BF13: ='Thyristor chargers rev 1'!FM503*'Score results chargers & SMR'!$D13 -> 0 | BH13: ='Thyristor chargers rev 1'!FS503*'Score results chargers & SMR'!$D13 -> 0 | BJ13: ='Thyristor chargers rev 1'!FY503*'Score results chargers & SMR'!$D13 -> 0 | BL13: ='Thyristor chargers rev 1'!GE503*'Score results chargers & SMR'!$D13 -> 0
A14: Language | C14: 4 | D14: 0.05 | E14: ='Thyristor chargers rev 1'!J524*'Score results chargers & SMR'!$D14 -> 5 | F14: ='Thyristor chargers rev 1'!M524*'Score results chargers & SMR'!$D14 -> 0 | G14: ='Thyristor chargers rev 1'!P524*'Score results chargers & SMR'!$D14 -> 0 | H14: ='Thyristor chargers rev 1'!S524*'Score results chargers & SMR'!$D14 -> 0 | J14: ='Thyristor chargers rev 1'!Y524*'Score results chargers & SMR'!$D14 -> 0 | K14: ='Thyristor chargers rev 1'!AB524*'Score results chargers & SMR'!$D14 -> 0 | L14: ='Thyristor chargers rev 1'!AE524*'Score results chargers & SMR'!$D14 -> 0 | M14: ='Thyristor chargers rev 1'!AH524*'Score results chargers & SMR'!$D14 -> 0 | O14: ='Thyristor chargers rev 1'!AN524*'Score results chargers & SMR'!$D14 -> 0 | P14: ='Thyristor chargers rev 1'!AQ524*'Score results chargers & SMR'!$D14 -> 0 | Q14: ='Thyristor chargers rev 1'!AT524*'Score results chargers & SMR'!$D14 -> 0 | R14: ='Thyristor chargers rev 1'!AW524*'Score results chargers & SMR'!$D14 -> 0 | T14: ='Thyristor chargers rev 1'!BC524*'Score results chargers & SMR'!$D14 -> 0 | U14: ='Thyristor chargers rev 1'!BF524*'Score results chargers & SMR'!$D14 -> 0 | V14: ='Thyristor chargers rev 1'!BI524*'Score results chargers & SMR'!$D14 -> 0 | W14: ='Thyristor chargers rev 1'!BL524*'Score results chargers & SMR'!$D14 -> 0 | Y14: ='Thyristor chargers rev 1'!BR524*'Score results chargers & SMR'!$D14 -> 0 | Z14: ='Thyristor chargers rev 1'!BU524*'Score results chargers & SMR'!$D14 -> 0 | AA14: ='Thyristor chargers rev 1'!BX524*'Score results chargers & SMR'!$D14 -> 0 | AB14: ='Thyristor chargers rev 1'!CA524*'Score results chargers & SMR'!$D14 -> 0 | AD14: ='Thyristor chargers rev 1'!CG524*'Score results chargers & SMR'!$D14 -> 0 | AE14: ='Thyristor chargers rev 1'!CJ524*'Score results chargers & SMR'!$D14 -> 0 | AF14: ='Thyristor chargers rev 1'!CM524*'Score results chargers & SMR'!$D14 -> 0 | AG14: ='Thyristor chargers rev 1'!CP524*'Score results chargers & SMR'!$D14 -> 0 | AI14: ='Thyristor chargers rev 1'!CV524*'Score results chargers & SMR'!$D14 -> 0 | AJ14: ='Thyristor chargers rev 1'!CY524*'Score results chargers & SMR'!$D14 -> 0 | AK14: ='Thyristor chargers rev 1'!DB524*'Score results chargers & SMR'!$D14 -> 0 | AL14: ='Thyristor chargers rev 1'!DE524*'Score results chargers & SMR'!$D14 -> 0 | AN14: ='Thyristor chargers rev 1'!DK524*'Score results chargers & SMR'!$D14 -> 0 | AO14: ='Thyristor chargers rev 1'!DN524*'Score results chargers & SMR'!$D14 -> 0 | AP14: ='Thyristor chargers rev 1'!DQ524*'Score results chargers & SMR'!$D14 -> 0 | AQ14: ='Thyristor chargers rev 1'!DT524*'Score results chargers & SMR'!$D14 -> 0 | AS14: ='Thyristor chargers rev 1'!DZ524*'Score results chargers & SMR'!$D14 -> 0 | AT14: ='Thyristor chargers rev 1'!EC524*'Score results chargers & SMR'!$D14 -> 0 | AU14: ='Thyristor chargers rev 1'!EF524*'Score results chargers & SMR'!$D14 -> 0 | AV14: ='Thyristor chargers rev 1'!EI524*'Score results chargers & SMR'!$D14 -> 0 | AX14: ='Thyristor chargers rev 1'!EO524*'Score results chargers & SMR'!$D14 -> 0 | AY14: ='Thyristor chargers rev 1'!ER524*'Score results chargers & SMR'!$D14 -> 0 | AZ14: ='Thyristor chargers rev 1'!EU524*'Score results chargers & SMR'!$D14 -> 0 | BB14: ='Thyristor chargers rev 1'!FA524*'Score results chargers & SMR'!$D14 -> 0 | BC14: ='Thyristor chargers rev 1'!FD524*'Score results chargers & SMR'!$D14 -> 0 | BD14: ='Thyristor chargers rev 1'!FG524*'Score results chargers & SMR'!$D14 -> 0 | BF14: ='Thyristor chargers rev 1'!FM524*'Score results chargers & SMR'!$D14 -> 0 | BH14: ='Thyristor chargers rev 1'!FS524*'Score results chargers & SMR'!$D14 -> 0 | BJ14: ='Thyristor chargers rev 1'!FY524*'Score results chargers & SMR'!$D14 -> 0 | BL14: ='Thyristor chargers rev 1'!GE524*'Score results chargers & SMR'!$D14 -> 0
A15: Total | C15: 80 | D15: 1 | E15: =SUM(E5:E14) -> 100 | F15: =SUM(F5:F14) -> 10 | G15: =SUM(G5:G14) -> 0 | H15: =SUM(H5:H14) -> 0 | J15: =SUM(J5:J14) -> 0.35 | K15: =SUM(K5:K14) -> 0 | L15: =SUM(L5:L14) -> 0 | M15: =SUM(M5:M14) -> 0 | O15: =SUM(O5:O14) -> 0 | P15: =SUM(P5:P14) -> 0 | Q15: =SUM(Q5:Q14) -> 0 | R15: =SUM(R5:R14) -> 0 | T15: =SUM(T5:T14) -> 0 | U15: =SUM(U5:U14) -> 0 | V15: =SUM(V5:V14) -> 0 | W15: =SUM(W5:W14) -> 0 | Y15: =SUM(Y5:Y14) -> 0 | Z15: =SUM(Z5:Z14) -> 0 | AA15: =SUM(AA5:AA14) -> 0 | AB15: =SUM(AB5:AB14) -> 0 | AD15: =SUM(AD5:AD14) -> 0 | AE15: =SUM(AE5:AE14) -> 0 | AF15: =SUM(AF5:AF14) -> 0 | AG15: =SUM(AG5:AG14) -> 0 | AI15: =SUM(AI5:AI14) -> 0 | AJ15: =SUM(AJ5:AJ14) -> 0 | AK15: =SUM(AK5:AK14) -> 0 | AL15: =SUM(AL5:AL14) -> 0 | AN15: =SUM(AN5:AN14) -> 0 | AO15: =SUM(AO5:AO14) -> 0 | AP15: =SUM(AP5:AP14) -> 0.35 | AQ15: =SUM(AQ5:AQ14) -> 0 | AS15: =SUM(AS5:AS14) -> 0 | AT15: =SUM(AT5:AT14) -> 0 | AU15: =SUM(AU5:AU14) -> 0 | AV15: =SUM(AV5:AV14) -> 0 | AX15: =SUM(AX5:AX14) -> 0 | AY15: =SUM(AY5:AY14) -> 0 | AZ15: =SUM(AZ5:AZ14) -> 0 | BB15: =SUM(BB5:BB14) -> 0 | BC15: =SUM(BC5:BC14) -> 0 | BD15: =SUM(BD5:BD14) -> 0 | BF15: =SUM(BF5:BF14) -> 0 | BH15: =SUM(BH5:BH14) -> 0 | BJ15: =SUM(BJ5:BJ14) -> 0 | BL15: =SUM(BL5:BL14) -> 0
A17: Schedule A and Schedule B | C17: 40 | E17: =E15*0.4 -> 40 | F17: =F15*0.4 -> 4 | G17: 0 | H17: 0 | J17: 0.14 | K17: 0 | L17: 0 | M17: 0 | O17: 0 | P17: 0 | Q17: 0 | R17: 0 | T17: 0 | U17: 0 | V17: 0 | W17: 0 | Y17: 0 | Z17: 0 | AA17: 0 | AB17: 0 | AD17: 0 | AE17: 0 | AF17: 0 | AG17: 0 | AI17: 0 | AJ17: 0 | AK17: 0 | AL17: 0 | AN17: 0 | AO17: 0 | AP17: 0.14 | AQ17: 0 | AS17: 0 | AT17: 0 | AU17: 0 | AV17: 0 | AX17: 0 | AY17: 0 | AZ17: 0 | BB17: 0 | BC17: 0 | BD17: 0 | BF17: 0 | BH17: 0 | BJ17: 0 | BL17: 0
A18: OEM Type Testing Reports | C18: 10 | D18: ='Type Tested Equipment Chargers'!A8 -> 0.25 | E18: =D18*C18 -> 2.5
A19: Drawings, Manuals and Training | C19: 10
A20: Equipment manuals (installation, operating and maintenance) and drawings of each category of product offered. | B20: 5 | D20: ='Drawings, Manuals and Training'!#REF! ->  | E20: =D20*B20 -> 
A21: Information on local technical support, level of support offered and training | B21: 5 | D21: ='Drawings, Manuals and Training'!#REF! ->  | E21: =D21*B21 -> 
A22: Life Cycle Costing (Section 8 below)(Mean Time Between Failures, Equipment Reliability Cost, Repair Cost of Equipment, Spares) | C22: 17 | D22: ='Repair Cost Eval. Charg. & SMR'!A9 -> 1 | E22: =D22*C22 -> 17
A23: Deemed Technical Risk | C23: 13 | D23: =Risks!H2 -> 0.7222222222 | E23: =D23*C23 -> 9.388888889
A24: Practical Evaluation | C24: 10 | D24: ='Practical Evaluation'!G6 -> 0 | E24: =D24*C24 -> 0
A25: TOTAL | E25: =SUM(E17:E24) -> 
A27: Switchmode charger SCORE
B28: Criteria Sub Weighting | C28: Criteria Weighting | D28: Individual Criteria Evaluation Weight
E29: 15 A | J29: 30 A | O29: 50 A | T29: 75 A | Y29: 100 A | AD29: 150 A | AI29: 175 A | AN29: 200 A | AS29: 300 A | AX29: 400 A | BC29: 500 A | BH29: 600 A | BL29: 750 A | BP29: 1000 A | BR29: 1500 A | BT29: 1750 A | BV29: 2000 A
C30: Threshold value | D30: % | E30: 24 V | F30: 48 V | G30: 110 V | H30: 220 V | J30: 24 V | K30: 48 V | L30: 110 V | M30: 220 V | O30: 24 V | P30: 48 V | Q30: 110 V | R30: 220 V | T30: 24 V | U30: 48 V | V30: 110 V | W30: 220 V | Y30: 24 V | Z30: 48 V | AA30: 110 V | AB30: 220 V | AD30: 24 V | AE30: 48 V | AF30: 110 V | AG30: 220 V | AI30: 24 V | AJ30: 48 V | AK30: 110 V | AL30: 220 V | AN30: 24 V | AO30: 48 V | AP30: 110 V | AQ30: 220 V | AS30: 24 V | AT30: 48 V | AU30: 110 V | AV30: 220 V | AX30: 24 V | AY30: 48 V | AZ30: 110 V | BA30: 220 V | BC30: 24 V | BD30: 48 V | BE30: 110 V | BF30: 220 V | BH30: 24 V | BI30: 48 V | BJ30: 220 V | BL30: 24 V | BM30: 48 V | BN30: 220 V | BP30: 24 V | BR30: 24 V | BT30: 24 V | BV30: 24 V
A31: General Requirements | C31: =D31*0.8*100 -> 8 | D31: 0.1 | E31: ='SMR rev 1'!J4*'Score results chargers & SMR'!$D5 -> 0 | F31: ='SMR rev 1'!M4*'Score results chargers & SMR'!$D5 -> 0 | G31: ='SMR rev 1'!P4*'Score results chargers & SMR'!$D5 -> 0 | H31: ='SMR rev 1'!S4*'Score results chargers & SMR'!$D5 -> 0 | J31: ='SMR rev 1'!Y4*'Score results chargers & SMR'!$D5 -> 0 | K31: ='SMR rev 1'!AB4*'Score results chargers & SMR'!$D5 -> 0 | L31: ='SMR rev 1'!AE4*'Score results chargers & SMR'!$D5 -> 0 | M31: ='SMR rev 1'!AH4*'Score results chargers & SMR'!$D5 -> 0 | O31: ='SMR rev 1'!AN4*'Score results chargers & SMR'!$D5 -> 0 | P31: ='SMR rev 1'!AQ4*'Score results chargers & SMR'!$D5 -> 0 | Q31: ='SMR rev 1'!AT4*'Score results chargers & SMR'!$D5 -> 0 | R31: ='SMR rev 1'!AW4*'Score results chargers & SMR'!$D5 -> 0 | T31: ='SMR rev 1'!BC4*'Score results chargers & SMR'!$D5 -> 0 | U31: ='SMR rev 1'!BF4*'Score results chargers & SMR'!$D5 -> 0 | V31: ='SMR rev 1'!BI4*'Score results chargers & SMR'!$D5 -> 0 | W31: ='SMR rev 1'!BL4*'Score results chargers & SMR'!$D5 -> 0 | Y31: ='SMR rev 1'!BR4*'Score results chargers & SMR'!$D5 -> 0 | Z31: ='SMR rev 1'!BU4*'Score results chargers & SMR'!$D5 -> 0 | AA31: ='SMR rev 1'!BX4*'Score results chargers & SMR'!$D5 -> 0 | AB31: ='SMR rev 1'!CA4*'Score results chargers & SMR'!$D5 -> 0 | AD31: ='SMR rev 1'!CG4*'Score results chargers & SMR'!$D5 -> 0 | AE31: ='SMR rev 1'!CJ4*'Score results chargers & SMR'!$D5 -> 0 | AF31: ='SMR rev 1'!CM4*'Score results chargers & SMR'!$D5 -> 0 | AG31: ='SMR rev 1'!CP4*'Score results chargers & SMR'!$D5 -> 0 | AI31: ='SMR rev 1'!CV4*'Score results chargers & SMR'!$D5 -> 0 | AJ31: ='SMR rev 1'!CY4*'Score results chargers & SMR'!$D5 -> 0 | AK31: ='SMR rev 1'!DB4*'Score results chargers & SMR'!$D5 -> 0 | AL31: ='SMR rev 1'!DE4*'Score results chargers & SMR'!$D5 -> 0 | AN31: ='SMR rev 1'!DK4*'Score results chargers & SMR'!$D5 -> 0 | AO31: ='SMR rev 1'!DN4*'Score results chargers & SMR'!$D5 -> 0 | AP31: ='SMR rev 1'!DQ4*'Score results chargers & SMR'!$D5 -> 0 | AQ31: ='SMR rev 1'!DT4*'Score results chargers & SMR'!$D5 -> 0 | AS31: ='SMR rev 1'!DZ4*'Score results chargers & SMR'!$D5 -> 0 | AT31: ='SMR rev 1'!EC4*'Score results chargers & SMR'!$D5 -> 0 | AU31: ='SMR rev 1'!EF4*'Score results chargers & SMR'!$D5 -> 0 | AV31: ='SMR rev 1'!EI4*'Score results chargers & SMR'!$D5 -> 0 | AX31: ='SMR rev 1'!EO4*'Score results chargers & SMR'!$D5 -> 0 | AY31: ='SMR rev 1'!ER4*'Score results chargers & SMR'!$D5 -> 0 | AZ31: ='SMR rev 1'!EU4*'Score results chargers & SMR'!$D5 -> 0 | BA31: ='SMR rev 1'!EX4*'Score results chargers & SMR'!$D5 -> 0 | BC31: ='SMR rev 1'!FD4*'Score results chargers & SMR'!$D5 -> 0 | BD31: ='SMR rev 1'!FG4*'Score results chargers & SMR'!$D5 -> 0 | BE31: ='SMR rev 1'!FJ4*'Score results chargers & SMR'!$D5 -> 0 | BF31: ='SMR rev 1'!FM4*'Score results chargers & SMR'!$D5 -> 0 | BH31: ='SMR rev 1'!FS4*'Score results chargers & SMR'!$D5 -> 0 | BI31: ='SMR rev 1'!FV4*'Score results chargers & SMR'!$D5 -> 0 | BJ31: ='SMR rev 1'!FY4*'Score results chargers & SMR'!$D5 -> 0 | BL31: ='SMR rev 1'!GE4*'Score results chargers & SMR'!$D5 -> 0 | BM31: ='SMR rev 1'!GH4*'Score results chargers & SMR'!$D5 -> 0 | BN31: ='SMR rev 1'!GK4*'Score results chargers & SMR'!$D5 -> 0 | BP31: ='SMR rev 1'!GQ4*'Score results chargers & SMR'!$D5 -> 0 | BR31: ='SMR rev 1'!GW4*'Score results chargers & SMR'!$D5 -> 0 | BT31: ='SMR rev 1'!HC4*'Score results chargers & SMR'!$D5 -> 0 | BV31: ='SMR rev 1'!HI4*'Score results chargers & SMR'!$D5 -> 0
A32: Electrical input supply | C32: =D32*0.8*100 -> 16 | D32: 0.2 | E32: ='SMR rev 1'!J20*'Score results chargers & SMR'!$D6 -> 0 | F32: ='SMR rev 1'!M20*'Score results chargers & SMR'!$D6 -> 0 | G32: ='SMR rev 1'!P20*'Score results chargers & SMR'!$D6 -> 0 | H32: ='SMR rev 1'!S20*'Score results chargers & SMR'!$D6 -> 0 | J32: ='SMR rev 1'!Y20*'Score results chargers & SMR'!$D6 -> 0 | K32: ='SMR rev 1'!AB20*'Score results chargers & SMR'!$D6 -> 0 | L32: ='SMR rev 1'!AE20*'Score results chargers & SMR'!$D6 -> 0 | M32: ='SMR rev 1'!AH20*'Score results chargers & SMR'!$D6 -> 0 | O32: ='SMR rev 1'!AN20*'Score results chargers & SMR'!$D6 -> 0 | P32: ='SMR rev 1'!AQ20*'Score results chargers & SMR'!$D6 -> 0 | Q32: ='SMR rev 1'!AT20*'Score results chargers & SMR'!$D6 -> 0 | R32: ='SMR rev 1'!AW20*'Score results chargers & SMR'!$D6 -> 0 | T32: ='SMR rev 1'!BC20*'Score results chargers & SMR'!$D6 -> 0 | U32: ='SMR rev 1'!BF20*'Score results chargers & SMR'!$D6 -> 0 | V32: ='SMR rev 1'!BI20*'Score results chargers & SMR'!$D6 -> 0 | W32: ='SMR rev 1'!BL20*'Score results chargers & SMR'!$D6 -> 0 | Y32: ='SMR rev 1'!BR20*'Score results chargers & SMR'!$D6 -> 0 | Z32: ='SMR rev 1'!BU20*'Score results chargers & SMR'!$D6 -> 0 | AA32: ='SMR rev 1'!BX20*'Score results chargers & SMR'!$D6 -> 0 | AB32: ='SMR rev 1'!CA20*'Score results chargers & SMR'!$D6 -> 0 | AD32: ='SMR rev 1'!CG20*'Score results chargers & SMR'!$D6 -> 0 | AE32: ='SMR rev 1'!CJ20*'Score results chargers & SMR'!$D6 -> 0 | AF32: ='SMR rev 1'!CM20*'Score results chargers & SMR'!$D6 -> 0 | AG32: ='SMR rev 1'!CP20*'Score results chargers & SMR'!$D6 -> 0 | AI32: ='SMR rev 1'!CV20*'Score results chargers & SMR'!$D6 -> 0 | AJ32: ='SMR rev 1'!CY20*'Score results chargers & SMR'!$D6 -> 0 | AK32: ='SMR rev 1'!DB20*'Score results chargers & SMR'!$D6 -> 0 | AL32: ='SMR rev 1'!DE20*'Score results chargers & SMR'!$D6 -> 0 | AN32: ='SMR rev 1'!DK20*'Score results chargers & SMR'!$D6 -> 0 | AO32: ='SMR rev 1'!DN20*'Score results chargers & SMR'!$D6 -> 0 | AP32: ='SMR rev 1'!DQ20*'Score results chargers & SMR'!$D6 -> 0 | AQ32: ='SMR rev 1'!DT20*'Score results chargers & SMR'!$D6 -> 0 | AS32: ='SMR rev 1'!DZ20*'Score results chargers & SMR'!$D6 -> 0 | AT32: ='SMR rev 1'!EC20*'Score results chargers & SMR'!$D6 -> 0 | AU32: ='SMR rev 1'!EF20*'Score results chargers & SMR'!$D6 -> 0 | AV32: ='SMR rev 1'!EI20*'Score results chargers & SMR'!$D6 -> 0 | AX32: ='SMR rev 1'!EO20*'Score results chargers & SMR'!$D6 -> 0 | AY32: ='SMR rev 1'!ER20*'Score results chargers & SMR'!$D6 -> 0 | AZ32: ='SMR rev 1'!EU20*'Score results chargers & SMR'!$D6 -> 0 | BA32: ='SMR rev 1'!EX20*'Score results chargers & SMR'!$D6 -> 0 | BC32: ='SMR rev 1'!FD20*'Score results chargers & SMR'!$D6 -> 0 | BD32: ='SMR rev 1'!FG20*'Score results chargers & SMR'!$D6 -> 0 | BE32: ='SMR rev 1'!FJ20*'Score results chargers & SMR'!$D6 -> 0 | BF32: ='SMR rev 1'!FM20*'Score results chargers & SMR'!$D6 -> 0 | BH32: ='SMR rev 1'!FS20*'Score results chargers & SMR'!$D6 -> 0 | BI32: ='SMR rev 1'!FV20*'Score results chargers & SMR'!$D6 -> 0 | BJ32: ='SMR rev 1'!FY20*'Score results chargers & SMR'!$D6 -> 0 | BL32: ='SMR rev 1'!GE20*'Score results chargers & SMR'!$D6 -> 0 | BM32: ='SMR rev 1'!GH20*'Score results chargers & SMR'!$D6 -> 0 | BN32: ='SMR rev 1'!GK20*'Score results chargers & SMR'!$D6 -> 0 | BP32: ='SMR rev 1'!GQ20*'Score results chargers & SMR'!$D6 -> 0 | BR32: ='SMR rev 1'!GW20*'Score results chargers & SMR'!$D6 -> 0 | BT32: ='SMR rev 1'!HC20*'Score results chargers & SMR'!$D6 -> 0 | BV32: ='SMR rev 1'!HI20*'Score results chargers & SMR'!$D6 -> 0
A33: Operational requirements | C33: 20 | D33: 0.25 | E33: ='SMR rev 1'!J31*'Score results chargers & SMR'!$D7 -> 0 | F33: ='SMR rev 1'!M31*'Score results chargers & SMR'!$D7 -> 0 | G33: ='SMR rev 1'!P31*'Score results chargers & SMR'!$D7 -> 0 | H33: ='SMR rev 1'!S31*'Score results chargers & SMR'!$D7 -> 0 | J33: ='SMR rev 1'!Y31*'Score results chargers & SMR'!$D7 -> 0 | K33: ='SMR rev 1'!AB31*'Score results chargers & SMR'!$D7 -> 0 | L33: ='SMR rev 1'!AE31*'Score results chargers & SMR'!$D7 -> 0 | M33: ='SMR rev 1'!AH31*'Score results chargers & SMR'!$D7 -> 0 | O33: ='SMR rev 1'!AN31*'Score results chargers & SMR'!$D7 -> 1.05 | P33: ='SMR rev 1'!AQ31*'Score results chargers & SMR'!$D7 -> 0 | Q33: ='SMR rev 1'!AT31*'Score results chargers & SMR'!$D7 -> 0 | R33: ='SMR rev 1'!AW31*'Score results chargers & SMR'!$D7 -> 0 | T33: ='SMR rev 1'!BC31*'Score results chargers & SMR'!$D7 -> 0 | U33: ='SMR rev 1'!BF31*'Score results chargers & SMR'!$D7 -> 0 | V33: ='SMR rev 1'!BI31*'Score results chargers & SMR'!$D7 -> 0 | W33: ='SMR rev 1'!BL31*'Score results chargers & SMR'!$D7 -> 0 | Y33: ='SMR rev 1'!BR31*'Score results chargers & SMR'!$D7 -> 0 | Z33: ='SMR rev 1'!BU31*'Score results chargers & SMR'!$D7 -> 0 | AA33: ='SMR rev 1'!BX31*'Score results chargers & SMR'!$D7 -> 0 | AB33: ='SMR rev 1'!CA31*'Score results chargers & SMR'!$D7 -> 0 | AD33: ='SMR rev 1'!CG31*'Score results chargers & SMR'!$D7 -> 0 | AE33: ='SMR rev 1'!CJ31*'Score results chargers & SMR'!$D7 -> 0 | AF33: ='SMR rev 1'!CM31*'Score results chargers & SMR'!$D7 -> 0 | AG33: ='SMR rev 1'!CP31*'Score results chargers & SMR'!$D7 -> 0 | AI33: ='SMR rev 1'!CV31*'Score results chargers & SMR'!$D7 -> 0 | AJ33: ='SMR rev 1'!CY31*'Score results chargers & SMR'!$D7 -> 0 | AK33: ='SMR rev 1'!DB31*'Score results chargers & SMR'!$D7 -> 0 | AL33: ='SMR rev 1'!DE31*'Score results chargers & SMR'!$D7 -> 0 | AN33: ='SMR rev 1'!DK31*'Score results chargers & SMR'!$D7 -> 0 | AO33: ='SMR rev 1'!DN31*'Score results chargers & SMR'!$D7 -> 0 | AP33: ='SMR rev 1'!DQ31*'Score results chargers & SMR'!$D7 -> 0 | AQ33: ='SMR rev 1'!DT31*'Score results chargers & SMR'!$D7 -> 0 | AS33: ='SMR rev 1'!DZ31*'Score results chargers & SMR'!$D7 -> 0 | AT33: ='SMR rev 1'!EC31*'Score results chargers & SMR'!$D7 -> 0 | AU33: ='SMR rev 1'!EF31*'Score results chargers & SMR'!$D7 -> 0 | AV33: ='SMR rev 1'!EI31*'Score results chargers & SMR'!$D7 -> 0 | AX33: ='SMR rev 1'!EO31*'Score results chargers & SMR'!$D7 -> 0 | AY33: ='SMR rev 1'!ER31*'Score results chargers & SMR'!$D7 -> 0 | AZ33: ='SMR rev 1'!EU31*'Score results chargers & SMR'!$D7 -> 0 | BA33: ='SMR rev 1'!EX31*'Score results chargers & SMR'!$D7 -> 0 | BC33: ='SMR rev 1'!FD31*'Score results chargers & SMR'!$D7 -> 0 | BD33: ='SMR rev 1'!FG31*'Score results chargers & SMR'!$D7 -> 0 | BE33: ='SMR rev 1'!FJ31*'Score results chargers & SMR'!$D7 -> 0 | BF33: ='SMR rev 1'!FM31*'Score results chargers & SMR'!$D7 -> 0 | BH33: ='SMR rev 1'!FS31*'Score results chargers & SMR'!$D7 -> 0 | BI33: ='SMR rev 1'!FV31*'Score results chargers & SMR'!$D7 -> 0 | BJ33: ='SMR rev 1'!FY31*'Score results chargers & SMR'!$D7 -> 0 | BL33: ='SMR rev 1'!GE31*'Score results chargers & SMR'!$D7 -> 0 | BM33: ='SMR rev 1'!GH31*'Score results chargers & SMR'!$D7 -> 0 | BN33: ='SMR rev 1'!GK31*'Score results chargers & SMR'!$D7 -> 0 | BP33: ='SMR rev 1'!GQ31*'Score results chargers & SMR'!$D7 -> 0 | BR33: ='SMR rev 1'!GW31*'Score results chargers & SMR'!$D7 -> 0 | BT33: ='SMR rev 1'!HC31*'Score results chargers & SMR'!$D7 -> 0 | BV33: ='SMR rev 1'!HI31*'Score results chargers & SMR'!$D7 -> 0
A34: Mechanical Requirements | C34: 8 | D34: 0.1 | E34: ='SMR rev 1'!J291*'Score results chargers & SMR'!$D8 -> 0 | F34: ='SMR rev 1'!M291*'Score results chargers & SMR'!$D8 -> 0 | G34: ='SMR rev 1'!P291*'Score results chargers & SMR'!$D8 -> 0 | H34: ='SMR rev 1'!S291*'Score results chargers & SMR'!$D8 -> 0 | J34: ='SMR rev 1'!Y291*'Score results chargers & SMR'!$D8 -> 0 | K34: ='SMR rev 1'!AB291*'Score results chargers & SMR'!$D8 -> 0 | L34: ='SMR rev 1'!AE291*'Score results chargers & SMR'!$D8 -> 0 | M34: ='SMR rev 1'!AH291*'Score results chargers & SMR'!$D8 -> 0 | O34: ='SMR rev 1'!AN291*'Score results chargers & SMR'!$D8 -> 0 | P34: ='SMR rev 1'!AQ291*'Score results chargers & SMR'!$D8 -> 0 | Q34: ='SMR rev 1'!AT291*'Score results chargers & SMR'!$D8 -> 0 | R34: ='SMR rev 1'!AW291*'Score results chargers & SMR'!$D8 -> 0 | T34: ='SMR rev 1'!BC291*'Score results chargers & SMR'!$D8 -> 0 | U34: ='SMR rev 1'!BF291*'Score results chargers & SMR'!$D8 -> 0 | V34: ='SMR rev 1'!BI291*'Score results chargers & SMR'!$D8 -> 0 | W34: ='SMR rev 1'!BL291*'Score results chargers & SMR'!$D8 -> 0 | Y34: ='SMR rev 1'!BR291*'Score results chargers & SMR'!$D8 -> 0 | Z34: ='SMR rev 1'!BU291*'Score results chargers & SMR'!$D8 -> 0 | AA34: ='SMR rev 1'!BX291*'Score results chargers & SMR'!$D8 -> 0 | AB34: ='SMR rev 1'!CA291*'Score results chargers & SMR'!$D8 -> 0 | AD34: ='SMR rev 1'!CG291*'Score results chargers & SMR'!$D8 -> 0 | AE34: ='SMR rev 1'!CJ291*'Score results chargers & SMR'!$D8 -> 0 | AF34: ='SMR rev 1'!CM291*'Score results chargers & SMR'!$D8 -> 0 | AG34: ='SMR rev 1'!CP291*'Score results chargers & SMR'!$D8 -> 0 | AI34: ='SMR rev 1'!CV291*'Score results chargers & SMR'!$D8 -> 0 | AJ34: ='SMR rev 1'!CY291*'Score results chargers & SMR'!$D8 -> 0 | AK34: ='SMR rev 1'!DB291*'Score results chargers & SMR'!$D8 -> 0 | AL34: ='SMR rev 1'!DE291*'Score results chargers & SMR'!$D8 -> 0 | AN34: ='SMR rev 1'!DK291*'Score results chargers & SMR'!$D8 -> 0 | AO34: ='SMR rev 1'!DN291*'Score results chargers & SMR'!$D8 -> 0 | AP34: ='SMR rev 1'!DQ291*'Score results chargers & SMR'!$D8 -> 0 | AQ34: ='SMR rev 1'!DT291*'Score results chargers & SMR'!$D8 -> 0 | AS34: ='SMR rev 1'!DZ291*'Score results chargers & SMR'!$D8 -> 0 | AT34: ='SMR rev 1'!EC291*'Score results chargers & SMR'!$D8 -> 0 | AU34: ='SMR rev 1'!EF291*'Score results chargers & SMR'!$D8 -> 0 | AV34: ='SMR rev 1'!EI291*'Score results chargers & SMR'!$D8 -> 0 | AX34: ='SMR rev 1'!EO291*'Score results chargers & SMR'!$D8 -> 0 | AY34: ='SMR rev 1'!ER291*'Score results chargers & SMR'!$D8 -> 0 | AZ34: ='SMR rev 1'!EU291*'Score results chargers & SMR'!$D8 -> 0 | BA34: ='SMR rev 1'!EX291*'Score results chargers & SMR'!$D8 -> 0 | BC34: ='SMR rev 1'!FD291*'Score results chargers & SMR'!$D8 -> 0 | BD34: ='SMR rev 1'!FG291*'Score results chargers & SMR'!$D8 -> 0 | BE34: ='SMR rev 1'!FJ291*'Score results chargers & SMR'!$D8 -> 0 | BF34: ='SMR rev 1'!FM291*'Score results chargers & SMR'!$D8 -> 0 | BH34: ='SMR rev 1'!FS291*'Score results chargers & SMR'!$D8 -> 0 | BI34: ='SMR rev 1'!FV291*'Score results chargers & SMR'!$D8 -> 0 | BJ34: ='SMR rev 1'!FY291*'Score results chargers & SMR'!$D8 -> 0 | BL34: ='SMR rev 1'!GE291*'Score results chargers & SMR'!$D8 -> 0 | BM34: ='SMR rev 1'!GH291*'Score results chargers & SMR'!$D8 -> 0 | BN34: ='SMR rev 1'!GK291*'Score results chargers & SMR'!$D8 -> 0 | BP34: ='SMR rev 1'!GQ291*'Score results chargers & SMR'!$D8 -> 0 | BR34: ='SMR rev 1'!GW291*'Score results chargers & SMR'!$D8 -> 0 | BT34: ='SMR rev 1'!HC291*'Score results chargers & SMR'!$D8 -> 0 | BV34: ='SMR rev 1'!HI291*'Score results chargers & SMR'!$D8 -> 0
A35: Settings and Commissioning | C35: 4 | D35: 0.05 | E35: ='SMR rev 1'!J452*'Score results chargers & SMR'!$D9 -> 0 | F35: ='SMR rev 1'!M452*'Score results chargers & SMR'!$D9 -> 0 | G35: ='SMR rev 1'!P452*'Score results chargers & SMR'!$D9 -> 0 | H35: ='SMR rev 1'!S452*'Score results chargers & SMR'!$D9 -> 0 | J35: ='SMR rev 1'!Y452*'Score results chargers & SMR'!$D9 -> 0 | K35: ='SMR rev 1'!AB452*'Score results chargers & SMR'!$D9 -> 0 | L35: ='SMR rev 1'!AE452*'Score results chargers & SMR'!$D9 -> 0 | M35: ='SMR rev 1'!AH452*'Score results chargers & SMR'!$D9 -> 0 | O35: ='SMR rev 1'!AN452*'Score results chargers & SMR'!$D9 -> 0 | P35: ='SMR rev 1'!AQ452*'Score results chargers & SMR'!$D9 -> 0 | Q35: ='SMR rev 1'!AT452*'Score results chargers & SMR'!$D9 -> 0 | R35: ='SMR rev 1'!AW452*'Score results chargers & SMR'!$D9 -> 0 | T35: ='SMR rev 1'!BC452*'Score results chargers & SMR'!$D9 -> 0 | U35: ='SMR rev 1'!BF452*'Score results chargers & SMR'!$D9 -> 0 | V35: ='SMR rev 1'!BI452*'Score results chargers & SMR'!$D9 -> 0 | W35: ='SMR rev 1'!BL452*'Score results chargers & SMR'!$D9 -> 0 | Y35: ='SMR rev 1'!BR452*'Score results chargers & SMR'!$D9 -> 0 | Z35: ='SMR rev 1'!BU452*'Score results chargers & SMR'!$D9 -> 0 | AA35: ='SMR rev 1'!BX452*'Score results chargers & SMR'!$D9 -> 0 | AB35: ='SMR rev 1'!CA452*'Score results chargers & SMR'!$D9 -> 0 | AD35: ='SMR rev 1'!CG452*'Score results chargers & SMR'!$D9 -> 0 | AE35: ='SMR rev 1'!CJ452*'Score results chargers & SMR'!$D9 -> 0 | AF35: ='SMR rev 1'!CM452*'Score results chargers & SMR'!$D9 -> 0 | AG35: ='SMR rev 1'!CP452*'Score results chargers & SMR'!$D9 -> 0 | AI35: ='SMR rev 1'!CV452*'Score results chargers & SMR'!$D9 -> 0 | AJ35: ='SMR rev 1'!CY452*'Score results chargers & SMR'!$D9 -> 0 | AK35: ='SMR rev 1'!DB452*'Score results chargers & SMR'!$D9 -> 0 | AL35: ='SMR rev 1'!DE452*'Score results chargers & SMR'!$D9 -> 0 | AN35: ='SMR rev 1'!DK452*'Score results chargers & SMR'!$D9 -> 0 | AO35: ='SMR rev 1'!DN452*'Score results chargers & SMR'!$D9 -> 0 | AP35: ='SMR rev 1'!DQ452*'Score results chargers & SMR'!$D9 -> 0 | AQ35: ='SMR rev 1'!DT452*'Score results chargers & SMR'!$D9 -> 0 | AS35: ='SMR rev 1'!DZ452*'Score results chargers & SMR'!$D9 -> 0 | AT35: ='SMR rev 1'!EC452*'Score results chargers & SMR'!$D9 -> 0 | AU35: ='SMR rev 1'!EF452*'Score results chargers & SMR'!$D9 -> 0 | AV35: ='SMR rev 1'!EI452*'Score results chargers & SMR'!$D9 -> 0 | AX35: ='SMR rev 1'!EO452*'Score results chargers & SMR'!$D9 -> 0 | AY35: ='SMR rev 1'!ER452*'Score results chargers & SMR'!$D9 -> 0 | AZ35: ='SMR rev 1'!EU452*'Score results chargers & SMR'!$D9 -> 0 | BA35: ='SMR rev 1'!EX452*'Score results chargers & SMR'!$D9 -> 0 | BC35: ='SMR rev 1'!FD452*'Score results chargers & SMR'!$D9 -> 0 | BD35: ='SMR rev 1'!FG452*'Score results chargers & SMR'!$D9 -> 0 | BE35: ='SMR rev 1'!FJ452*'Score results chargers & SMR'!$D9 -> 0 | BF35: ='SMR rev 1'!FM452*'Score results chargers & SMR'!$D9 -> 0 | BH35: ='SMR rev 1'!FS452*'Score results chargers & SMR'!$D9 -> 0 | BI35: ='SMR rev 1'!FV452*'Score results chargers & SMR'!$D9 -> 0 | BJ35: ='SMR rev 1'!FY452*'Score results chargers & SMR'!$D9 -> 0 | BL35: ='SMR rev 1'!GE452*'Score results chargers & SMR'!$D9 -> 0 | BM35: ='SMR rev 1'!GH452*'Score results chargers & SMR'!$D9 -> 0 | BN35: ='SMR rev 1'!GK452*'Score results chargers & SMR'!$D9 -> 0 | BP35: ='SMR rev 1'!GQ452*'Score results chargers & SMR'!$D9 -> 0 | BR35: ='SMR rev 1'!GW452*'Score results chargers & SMR'!$D9 -> 0 | BT35: ='SMR rev 1'!HC452*'Score results chargers & SMR'!$D9 -> 0 | BV35: ='SMR rev 1'!HI452*'Score results chargers & SMR'!$D9 -> 0
A36: Type testing | C36: 8 | D36: 0.1 | E36: ='SMR rev 1'!J479*'Score results chargers & SMR'!$D10 -> 0 | F36: ='SMR rev 1'!M479*'Score results chargers & SMR'!$D10 -> 0 | G36: ='SMR rev 1'!P479*'Score results chargers & SMR'!$D10 -> 0 | H36: ='SMR rev 1'!S479*'Score results chargers & SMR'!$D10 -> 0 | J36: ='SMR rev 1'!Y479*'Score results chargers & SMR'!$D10 -> 0 | K36: ='SMR rev 1'!AB479*'Score results chargers & SMR'!$D10 -> 0 | L36: ='SMR rev 1'!AE479*'Score results chargers & SMR'!$D10 -> 0 | M36: ='SMR rev 1'!AH479*'Score results chargers & SMR'!$D10 -> 0 | O36: ='SMR rev 1'!AN479*'Score results chargers & SMR'!$D10 -> 0 | P36: ='SMR rev 1'!AQ479*'Score results chargers & SMR'!$D10 -> 0 | Q36: ='SMR rev 1'!AT479*'Score results chargers & SMR'!$D10 -> 0 | R36: ='SMR rev 1'!AW479*'Score results chargers & SMR'!$D10 -> 0 | T36: ='SMR rev 1'!BC479*'Score results chargers & SMR'!$D10 -> 0 | U36: ='SMR rev 1'!BF479*'Score results chargers & SMR'!$D10 -> 0 | V36: ='SMR rev 1'!BI479*'Score results chargers & SMR'!$D10 -> 0 | W36: ='SMR rev 1'!BL479*'Score results chargers & SMR'!$D10 -> 0 | Y36: ='SMR rev 1'!BR479*'Score results chargers & SMR'!$D10 -> 0 | Z36: ='SMR rev 1'!BU479*'Score results chargers & SMR'!$D10 -> 0 | AA36: ='SMR rev 1'!BX479*'Score results chargers & SMR'!$D10 -> 0 | AB36: ='SMR rev 1'!CA479*'Score results chargers & SMR'!$D10 -> 0 | AD36: ='SMR rev 1'!CG479*'Score results chargers & SMR'!$D10 -> 0 | AE36: ='SMR rev 1'!CJ479*'Score results chargers & SMR'!$D10 -> 0 | AF36: ='SMR rev 1'!CM479*'Score results chargers & SMR'!$D10 -> 0 | AG36: ='SMR rev 1'!CP479*'Score results chargers & SMR'!$D10 -> 0 | AI36: ='SMR rev 1'!CV479*'Score results chargers & SMR'!$D10 -> 0 | AJ36: ='SMR rev 1'!CY479*'Score results chargers & SMR'!$D10 -> 0 | AK36: ='SMR rev 1'!DB479*'Score results chargers & SMR'!$D10 -> 0 | AL36: ='SMR rev 1'!DE479*'Score results chargers & SMR'!$D10 -> 0 | AN36: ='SMR rev 1'!DK479*'Score results chargers & SMR'!$D10 -> 0 | AO36: ='SMR rev 1'!DN479*'Score results chargers & SMR'!$D10 -> 0 | AP36: ='SMR rev 1'!DQ479*'Score results chargers & SMR'!$D10 -> 0 | AQ36: ='SMR rev 1'!DT479*'Score results chargers & SMR'!$D10 -> 0 | AS36: ='SMR rev 1'!DZ479*'Score results chargers & SMR'!$D10 -> 0 | AT36: ='SMR rev 1'!EC479*'Score results chargers & SMR'!$D10 -> 0 | AU36: ='SMR rev 1'!EF479*'Score results chargers & SMR'!$D10 -> 0 | AV36: ='SMR rev 1'!EI479*'Score results chargers & SMR'!$D10 -> 0 | AX36: ='SMR rev 1'!EO479*'Score results chargers & SMR'!$D10 -> 0 | AY36: ='SMR rev 1'!ER479*'Score results chargers & SMR'!$D10 -> 0 | AZ36: ='SMR rev 1'!EU479*'Score results chargers & SMR'!$D10 -> 0 | BA36: ='SMR rev 1'!EX479*'Score results chargers & SMR'!$D10 -> 0 | BC36: ='SMR rev 1'!FD479*'Score results chargers & SMR'!$D10 -> 0 | BD36: ='SMR rev 1'!FG479*'Score results chargers & SMR'!$D10 -> 0 | BE36: ='SMR rev 1'!FJ479*'Score results chargers & SMR'!$D10 -> 0 | BF36: ='SMR rev 1'!FM479*'Score results chargers & SMR'!$D10 -> 0 | BH36: ='SMR rev 1'!FS479*'Score results chargers & SMR'!$D10 -> 0 | BI36: ='SMR rev 1'!FV479*'Score results chargers & SMR'!$D10 -> 0 | BJ36: ='SMR rev 1'!FY479*'Score results chargers & SMR'!$D10 -> 0 | BL36: ='SMR rev 1'!GE479*'Score results chargers & SMR'!$D10 -> 0 | BM36: ='SMR rev 1'!GH479*'Score results chargers & SMR'!$D10 -> 0 | BN36: ='SMR rev 1'!GK479*'Score results chargers & SMR'!$D10 -> 0 | BP36: ='SMR rev 1'!GQ479*'Score results chargers & SMR'!$D10 -> 0 | BR36: ='SMR rev 1'!GW479*'Score results chargers & SMR'!$D10 -> 0 | BT36: ='SMR rev 1'!HC479*'Score results chargers & SMR'!$D10 -> 0 | BV36: ='SMR rev 1'!HI479*'Score results chargers & SMR'!$D10 -> 0
A37: Marking, labeling and packaging | C37: 4 | D37: 0.05 | E37: ='SMR rev 1'!J513*'Score results chargers & SMR'!$D11 -> 0 | F37: ='SMR rev 1'!M513*'Score results chargers & SMR'!$D11 -> 0 | G37: ='SMR rev 1'!P513*'Score results chargers & SMR'!$D11 -> 0 | H37: ='SMR rev 1'!S513*'Score results chargers & SMR'!$D11 -> 0 | J37: ='SMR rev 1'!Y513*'Score results chargers & SMR'!$D11 -> 0 | K37: ='SMR rev 1'!AB513*'Score results chargers & SMR'!$D11 -> 0 | L37: ='SMR rev 1'!AE513*'Score results chargers & SMR'!$D11 -> 0 | M37: ='SMR rev 1'!AH513*'Score results chargers & SMR'!$D11 -> 0 | O37: ='SMR rev 1'!AN513*'Score results chargers & SMR'!$D11 -> 0 | P37: ='SMR rev 1'!AQ513*'Score results chargers & SMR'!$D11 -> 0 | Q37: ='SMR rev 1'!AT513*'Score results chargers & SMR'!$D11 -> 0 | R37: ='SMR rev 1'!AW513*'Score results chargers & SMR'!$D11 -> 0 | T37: ='SMR rev 1'!BC513*'Score results chargers & SMR'!$D11 -> 0 | U37: ='SMR rev 1'!BF513*'Score results chargers & SMR'!$D11 -> 0 | V37: ='SMR rev 1'!BI513*'Score results chargers & SMR'!$D11 -> 0 | W37: ='SMR rev 1'!BL513*'Score results chargers & SMR'!$D11 -> 0 | Y37: ='SMR rev 1'!BR513*'Score results chargers & SMR'!$D11 -> 0 | Z37: ='SMR rev 1'!BU513*'Score results chargers & SMR'!$D11 -> 0 | AA37: ='SMR rev 1'!BX513*'Score results chargers & SMR'!$D11 -> 0 | AB37: ='SMR rev 1'!CA513*'Score results chargers & SMR'!$D11 -> 0 | AD37: ='SMR rev 1'!CG513*'Score results chargers & SMR'!$D11 -> 0 | AE37: ='SMR rev 1'!CJ513*'Score results chargers & SMR'!$D11 -> 0 | AF37: ='SMR rev 1'!CM513*'Score results chargers & SMR'!$D11 -> 0 | AG37: ='SMR rev 1'!CP513*'Score results chargers & SMR'!$D11 -> 0 | AI37: ='SMR rev 1'!CV513*'Score results chargers & SMR'!$D11 -> 0 | AJ37: ='SMR rev 1'!CY513*'Score results chargers & SMR'!$D11 -> 0 | AK37: ='SMR rev 1'!DB513*'Score results chargers & SMR'!$D11 -> 0 | AL37: ='SMR rev 1'!DE513*'Score results chargers & SMR'!$D11 -> 0 | AN37: ='SMR rev 1'!DK513*'Score results chargers & SMR'!$D11 -> 0 | AO37: ='SMR rev 1'!DN513*'Score results chargers & SMR'!$D11 -> 0 | AP37: ='SMR rev 1'!DQ513*'Score results chargers & SMR'!$D11 -> 0 | AQ37: ='SMR rev 1'!DT513*'Score results chargers & SMR'!$D11 -> 0 | AS37: ='SMR rev 1'!DZ513*'Score results chargers & SMR'!$D11 -> 0 | AT37: ='SMR rev 1'!EC513*'Score results chargers & SMR'!$D11 -> 0 | AU37: ='SMR rev 1'!EF513*'Score results chargers & SMR'!$D11 -> 0 | AV37: ='SMR rev 1'!EI513*'Score results chargers & SMR'!$D11 -> 0 | AX37: ='SMR rev 1'!EO513*'Score results chargers & SMR'!$D11 -> 0 | AY37: ='SMR rev 1'!ER513*'Score results chargers & SMR'!$D11 -> 0 | AZ37: ='SMR rev 1'!EU513*'Score results chargers & SMR'!$D11 -> 0 | BA37: ='SMR rev 1'!EX513*'Score results chargers & SMR'!$D11 -> 0 | BC37: ='SMR rev 1'!FD513*'Score results chargers & SMR'!$D11 -> 0 | BD37: ='SMR rev 1'!FG513*'Score results chargers & SMR'!$D11 -> 0 | BE37: ='SMR rev 1'!FJ513*'Score results chargers & SMR'!$D11 -> 0 | BF37: ='SMR rev 1'!FM513*'Score results chargers & SMR'!$D11 -> 0 | BH37: ='SMR rev 1'!FS513*'Score results chargers & SMR'!$D11 -> 0 | BI37: ='SMR rev 1'!FV513*'Score results chargers & SMR'!$D11 -> 0 | BJ37: ='SMR rev 1'!FY513*'Score results chargers & SMR'!$D11 -> 0 | BL37: ='SMR rev 1'!GE513*'Score results chargers & SMR'!$D11 -> 0 | BM37: ='SMR rev 1'!GH513*'Score results chargers & SMR'!$D11 -> 0 | BN37: ='SMR rev 1'!GK513*'Score results chargers & SMR'!$D11 -> 0 | BP37: ='SMR rev 1'!GQ513*'Score results chargers & SMR'!$D11 -> 0 | BR37: ='SMR rev 1'!GW513*'Score results chargers & SMR'!$D11 -> 0 | BT37: ='SMR rev 1'!HC513*'Score results chargers & SMR'!$D11 -> 0 | BV37: ='SMR rev 1'!HI513*'Score results chargers & SMR'!$D11 -> 0
A38: Spares | C38: 4 | D38: 0.05 | E38: ='SMR rev 1'!J520*'Score results chargers & SMR'!$D12 -> 0 | F38: ='SMR rev 1'!M520*'Score results chargers & SMR'!$D12 -> 0 | G38: ='SMR rev 1'!P520*'Score results chargers & SMR'!$D12 -> 0 | H38: ='SMR rev 1'!S520*'Score results chargers & SMR'!$D12 -> 0 | J38: ='SMR rev 1'!Y520*'Score results chargers & SMR'!$D12 -> 0 | K38: ='SMR rev 1'!AB520*'Score results chargers & SMR'!$D12 -> 0 | L38: ='SMR rev 1'!AE520*'Score results chargers & SMR'!$D12 -> 0 | M38: ='SMR rev 1'!AH520*'Score results chargers & SMR'!$D12 -> 0 | O38: ='SMR rev 1'!AN520*'Score results chargers & SMR'!$D12 -> 0 | P38: ='SMR rev 1'!AQ520*'Score results chargers & SMR'!$D12 -> 0 | Q38: ='SMR rev 1'!AT520*'Score results chargers & SMR'!$D12 -> 0 | R38: ='SMR rev 1'!AW520*'Score results chargers & SMR'!$D12 -> 0 | T38: ='SMR rev 1'!BC520*'Score results chargers & SMR'!$D12 -> 0 | U38: ='SMR rev 1'!BF520*'Score results chargers & SMR'!$D12 -> 0 | V38: ='SMR rev 1'!BI520*'Score results chargers & SMR'!$D12 -> 0 | W38: ='SMR rev 1'!BL520*'Score results chargers & SMR'!$D12 -> 0 | Y38: ='SMR rev 1'!BR520*'Score results chargers & SMR'!$D12 -> 0 | Z38: ='SMR rev 1'!BU520*'Score results chargers & SMR'!$D12 -> 0 | AA38: ='SMR rev 1'!BX520*'Score results chargers & SMR'!$D12 -> 0 | AB38: ='SMR rev 1'!CA520*'Score results chargers & SMR'!$D12 -> 0 | AD38: ='SMR rev 1'!CG520*'Score results chargers & SMR'!$D12 -> 0 | AE38: ='SMR rev 1'!CJ520*'Score results chargers & SMR'!$D12 -> 0 | AF38: ='SMR rev 1'!CM520*'Score results chargers & SMR'!$D12 -> 0 | AG38: ='SMR rev 1'!CP520*'Score results chargers & SMR'!$D12 -> 0 | AI38: ='SMR rev 1'!CV520*'Score results chargers & SMR'!$D12 -> 0 | AJ38: ='SMR rev 1'!CY520*'Score results chargers & SMR'!$D12 -> 0 | AK38: ='SMR rev 1'!DB520*'Score results chargers & SMR'!$D12 -> 0 | AL38: ='SMR rev 1'!DE520*'Score results chargers & SMR'!$D12 -> 0 | AN38: ='SMR rev 1'!DK520*'Score results chargers & SMR'!$D12 -> 0 | AO38: ='SMR rev 1'!DN520*'Score results chargers & SMR'!$D12 -> 0 | AP38: ='SMR rev 1'!DQ520*'Score results chargers & SMR'!$D12 -> 0 | AQ38: ='SMR rev 1'!DT520*'Score results chargers & SMR'!$D12 -> 0 | AS38: ='SMR rev 1'!DZ520*'Score results chargers & SMR'!$D12 -> 0 | AT38: ='SMR rev 1'!EC520*'Score results chargers & SMR'!$D12 -> 0 | AU38: ='SMR rev 1'!EF520*'Score results chargers & SMR'!$D12 -> 0 | AV38: ='SMR rev 1'!EI520*'Score results chargers & SMR'!$D12 -> 0 | AX38: ='SMR rev 1'!EO520*'Score results chargers & SMR'!$D12 -> 0 | AY38: ='SMR rev 1'!ER520*'Score results chargers & SMR'!$D12 -> 0 | AZ38: ='SMR rev 1'!EU520*'Score results chargers & SMR'!$D12 -> 0 | BA38: ='SMR rev 1'!EX520*'Score results chargers & SMR'!$D12 -> 0 | BC38: ='SMR rev 1'!FD520*'Score results chargers & SMR'!$D12 -> 0 | BD38: ='SMR rev 1'!FG520*'Score results chargers & SMR'!$D12 -> 0 | BE38: ='SMR rev 1'!FJ520*'Score results chargers & SMR'!$D12 -> 0 | BF38: ='SMR rev 1'!FM520*'Score results chargers & SMR'!$D12 -> 0 | BH38: ='SMR rev 1'!FS520*'Score results chargers & SMR'!$D12 -> 0 | BI38: ='SMR rev 1'!FV520*'Score results chargers & SMR'!$D12 -> 0 | BJ38: ='SMR rev 1'!FY520*'Score results chargers & SMR'!$D12 -> 0 | BL38: ='SMR rev 1'!GE520*'Score results chargers & SMR'!$D12 -> 0 | BM38: ='SMR rev 1'!GH520*'Score results chargers & SMR'!$D12 -> 0 | BN38: ='SMR rev 1'!GK520*'Score results chargers & SMR'!$D12 -> 0 | BP38: ='SMR rev 1'!GQ520*'Score results chargers & SMR'!$D12 -> 0 | BR38: ='SMR rev 1'!GW520*'Score results chargers & SMR'!$D12 -> 0 | BT38: ='SMR rev 1'!HC520*'Score results chargers & SMR'!$D12 -> 0 | BV38: ='SMR rev 1'!HI520*'Score results chargers & SMR'!$D12 -> 0
A39: Documentation | C39: 4 | D39: 0.05 | E39: ='SMR rev 1'!J531*'Score results chargers & SMR'!$D13 -> 0 | F39: ='SMR rev 1'!M531*'Score results chargers & SMR'!$D13 -> 0 | G39: ='SMR rev 1'!P531*'Score results chargers & SMR'!$D13 -> 0 | H39: ='SMR rev 1'!S531*'Score results chargers & SMR'!$D13 -> 0 | J39: ='SMR rev 1'!Y531*'Score results chargers & SMR'!$D13 -> 0 | K39: ='SMR rev 1'!AB531*'Score results chargers & SMR'!$D13 -> 0 | L39: ='SMR rev 1'!AE531*'Score results chargers & SMR'!$D13 -> 0 | M39: ='SMR rev 1'!AH531*'Score results chargers & SMR'!$D13 -> 0 | O39: ='SMR rev 1'!AN531*'Score results chargers & SMR'!$D13 -> 0 | P39: ='SMR rev 1'!AQ531*'Score results chargers & SMR'!$D13 -> 0 | Q39: ='SMR rev 1'!AT531*'Score results chargers & SMR'!$D13 -> 0 | R39: ='SMR rev 1'!AW531*'Score results chargers & SMR'!$D13 -> 0 | T39: ='SMR rev 1'!BC531*'Score results chargers & SMR'!$D13 -> 0 | U39: ='SMR rev 1'!BF531*'Score results chargers & SMR'!$D13 -> 0 | V39: ='SMR rev 1'!BI531*'Score results chargers & SMR'!$D13 -> 0 | W39: ='SMR rev 1'!BL531*'Score results chargers & SMR'!$D13 -> 0 | Y39: ='SMR rev 1'!BR531*'Score results chargers & SMR'!$D13 -> 0 | Z39: ='SMR rev 1'!BU531*'Score results chargers & SMR'!$D13 -> 0 | AA39: ='SMR rev 1'!BX531*'Score results chargers & SMR'!$D13 -> 0 | AB39: ='SMR rev 1'!CA531*'Score results chargers & SMR'!$D13 -> 0 | AD39: ='SMR rev 1'!CG531*'Score results chargers & SMR'!$D13 -> 0 | AE39: ='SMR rev 1'!CJ531*'Score results chargers & SMR'!$D13 -> 0 | AF39: ='SMR rev 1'!CM531*'Score results chargers & SMR'!$D13 -> 0 | AG39: ='SMR rev 1'!CP531*'Score results chargers & SMR'!$D13 -> 0 | AI39: ='SMR rev 1'!CV531*'Score results chargers & SMR'!$D13 -> 0 | AJ39: ='SMR rev 1'!CY531*'Score results chargers & SMR'!$D13 -> 0 | AK39: ='SMR rev 1'!DB531*'Score results chargers & SMR'!$D13 -> 0 | AL39: ='SMR rev 1'!DE531*'Score results chargers & SMR'!$D13 -> 0 | AN39: ='SMR rev 1'!DK531*'Score results chargers & SMR'!$D13 -> 0 | AO39: ='SMR rev 1'!DN531*'Score results chargers & SMR'!$D13 -> 0 | AP39: ='SMR rev 1'!DQ531*'Score results chargers & SMR'!$D13 -> 0 | AQ39: ='SMR rev 1'!DT531*'Score results chargers & SMR'!$D13 -> 0 | AS39: ='SMR rev 1'!DZ531*'Score results chargers & SMR'!$D13 -> 0 | AT39: ='SMR rev 1'!EC531*'Score results chargers & SMR'!$D13 -> 0 | AU39: ='SMR rev 1'!EF531*'Score results chargers & SMR'!$D13 -> 0 | AV39: ='SMR rev 1'!EI531*'Score results chargers & SMR'!$D13 -> 0 | AX39: ='SMR rev 1'!EO531*'Score results chargers & SMR'!$D13 -> 0 | AY39: ='SMR rev 1'!ER531*'Score results chargers & SMR'!$D13 -> 0 | AZ39: ='SMR rev 1'!EU531*'Score results chargers & SMR'!$D13 -> 0 | BA39: ='SMR rev 1'!EX531*'Score results chargers & SMR'!$D13 -> 0 | BC39: ='SMR rev 1'!FD531*'Score results chargers & SMR'!$D13 -> 0 | BD39: ='SMR rev 1'!FG531*'Score results chargers & SMR'!$D13 -> 0 | BE39: ='SMR rev 1'!FJ531*'Score results chargers & SMR'!$D13 -> 0 | BF39: ='SMR rev 1'!FM531*'Score results chargers & SMR'!$D13 -> 0 | BH39: ='SMR rev 1'!FS531*'Score results chargers & SMR'!$D13 -> 0 | BI39: ='SMR rev 1'!FV531*'Score results chargers & SMR'!$D13 -> 0 | BJ39: ='SMR rev 1'!FY531*'Score results chargers & SMR'!$D13 -> 0 | BL39: ='SMR rev 1'!GE531*'Score results chargers & SMR'!$D13 -> 0 | BM39: ='SMR rev 1'!GH531*'Score results chargers & SMR'!$D13 -> 0 | BN39: ='SMR rev 1'!GK531*'Score results chargers & SMR'!$D13 -> 0 | BP39: ='SMR rev 1'!GQ531*'Score results chargers & SMR'!$D13 -> 0 | BR39: ='SMR rev 1'!GW531*'Score results chargers & SMR'!$D13 -> 0 | BT39: ='SMR rev 1'!HC531*'Score results chargers & SMR'!$D13 -> 0 | BV39: ='SMR rev 1'!HI531*'Score results chargers & SMR'!$D13 -> 0
A40: Language | C40: 4 | D40: 0.05 | E40: ='SMR rev 1'!J552*'Score results chargers & SMR'!$D14 -> 0 | F40: ='SMR rev 1'!M552*'Score results chargers & SMR'!$D14 -> 0 | G40: ='SMR rev 1'!P552*'Score results chargers & SMR'!$D14 -> 0 | H40: ='SMR rev 1'!S552*'Score results chargers & SMR'!$D14 -> 0 | J40: ='SMR rev 1'!Y552*'Score results chargers & SMR'!$D14 -> 0 | K40: ='SMR rev 1'!AB552*'Score results chargers & SMR'!$D14 -> 0 | L40: ='SMR rev 1'!AE552*'Score results chargers & SMR'!$D14 -> 0 | M40: ='SMR rev 1'!AH552*'Score results chargers & SMR'!$D14 -> 0 | O40: ='SMR rev 1'!AN552*'Score results chargers & SMR'!$D14 -> 5 | P40: ='SMR rev 1'!AQ552*'Score results chargers & SMR'!$D14 -> 0 | Q40: ='SMR rev 1'!AT552*'Score results chargers & SMR'!$D14 -> 0 | R40: ='SMR rev 1'!AW552*'Score results chargers & SMR'!$D14 -> 0 | T40: ='SMR rev 1'!BC552*'Score results chargers & SMR'!$D14 -> 0 | U40: ='SMR rev 1'!BF552*'Score results chargers & SMR'!$D14 -> 0 | V40: ='SMR rev 1'!BI552*'Score results chargers & SMR'!$D14 -> 0 | W40: ='SMR rev 1'!BL552*'Score results chargers & SMR'!$D14 -> 0 | Y40: ='SMR rev 1'!BR552*'Score results chargers & SMR'!$D14 -> 0 | Z40: ='SMR rev 1'!BU552*'Score results chargers & SMR'!$D14 -> 0 | AA40: ='SMR rev 1'!BX552*'Score results chargers & SMR'!$D14 -> 0 | AB40: ='SMR rev 1'!CA552*'Score results chargers & SMR'!$D14 -> 0 | AD40: ='SMR rev 1'!CG552*'Score results chargers & SMR'!$D14 -> 0 | AE40: ='SMR rev 1'!CJ552*'Score results chargers & SMR'!$D14 -> 0 | AF40: ='SMR rev 1'!CM552*'Score results chargers & SMR'!$D14 -> 0 | AG40: ='SMR rev 1'!CP552*'Score results chargers & SMR'!$D14 -> 0 | AI40: ='SMR rev 1'!CV552*'Score results chargers & SMR'!$D14 -> 0 | AJ40: ='SMR rev 1'!CY552*'Score results chargers & SMR'!$D14 -> 0 | AK40: ='SMR rev 1'!DB552*'Score results chargers & SMR'!$D14 -> 0 | AL40: ='SMR rev 1'!DE552*'Score results chargers & SMR'!$D14 -> 0 | AN40: ='SMR rev 1'!DK552*'Score results chargers & SMR'!$D14 -> 0 | AO40: ='SMR rev 1'!DN552*'Score results chargers & SMR'!$D14 -> 0 | AP40: ='SMR rev 1'!DQ552*'Score results chargers & SMR'!$D14 -> 0 | AQ40: ='SMR rev 1'!DT552*'Score results chargers & SMR'!$D14 -> 0 | AS40: ='SMR rev 1'!DZ552*'Score results chargers & SMR'!$D14 -> 0 | AT40: ='SMR rev 1'!EC552*'Score results chargers & SMR'!$D14 -> 0 | AU40: ='SMR rev 1'!EF552*'Score results chargers & SMR'!$D14 -> 0 | AV40: ='SMR rev 1'!EI552*'Score results chargers & SMR'!$D14 -> 0 | AX40: ='SMR rev 1'!EO552*'Score results chargers & SMR'!$D14 -> 0 | AY40: ='SMR rev 1'!ER552*'Score results chargers & SMR'!$D14 -> 0 | AZ40: ='SMR rev 1'!EU552*'Score results chargers & SMR'!$D14 -> 0 | BA40: ='SMR rev 1'!EX552*'Score results chargers & SMR'!$D14 -> 0 | BC40: ='SMR rev 1'!FD552*'Score results chargers & SMR'!$D14 -> 0 | BD40: ='SMR rev 1'!FG552*'Score results chargers & SMR'!$D14 -> 0 | BE40: ='SMR rev 1'!FJ552*'Score results chargers & SMR'!$D14 -> 0 | BF40: ='SMR rev 1'!FM552*'Score results chargers & SMR'!$D14 -> 0 | BH40: ='SMR rev 1'!FS552*'Score results chargers & SMR'!$D14 -> 0 | BI40: ='SMR rev 1'!FV552*'Score results chargers & SMR'!$D14 -> 0 | BJ40: ='SMR rev 1'!FY552*'Score results chargers & SMR'!$D14 -> 0 | BL40: ='SMR rev 1'!GE552*'Score results chargers & SMR'!$D14 -> 0 | BM40: ='SMR rev 1'!GH552*'Score results chargers & SMR'!$D14 -> 0 | BN40: ='SMR rev 1'!GK552*'Score results chargers & SMR'!$D14 -> 0 | BP40: ='SMR rev 1'!GQ552*'Score results chargers & SMR'!$D14 -> 0 | BR40: ='SMR rev 1'!GW552*'Score results chargers & SMR'!$D14 -> 0 | BT40: ='SMR rev 1'!HC552*'Score results chargers & SMR'!$D14 -> 0 | BV40: ='SMR rev 1'!HI552*'Score results chargers & SMR'!$D14 -> 0
A41: Total | C41: 80 | D41: 1 | E41: =SUM(E31:E40) -> 0 | F41: =SUM(F31:F40) -> 0 | G41: =SUM(G31:G40) -> 0 | H41: =SUM(H31:H40) -> 0 | J41: =SUM(J31:J40) -> 0 | K41: =SUM(K31:K40) -> 0 | L41: =SUM(L31:L40) -> 0 | M41: =SUM(M31:M40) -> 0 | O41: =SUM(O31:O40) -> 6.05 | P41: =SUM(P31:P40) -> 0 | Q41: =SUM(Q31:Q40) -> 0 | R41: =SUM(R31:R40) -> 0 | T41: =SUM(T31:T40) -> 0 | U41: =SUM(U31:U40) -> 0 | V41: =SUM(V31:V40) -> 0 | W41: =SUM(W31:W40) -> 0 | Y41: =SUM(Y31:Y40) -> 0 | Z41: =SUM(Z31:Z40) -> 0 | AA41: =SUM(AA31:AA40) -> 0 | AB41: =SUM(AB31:AB40) -> 0 | AD41: =SUM(AD31:AD40) -> 0 | AE41: =SUM(AE31:AE40) -> 0 | AF41: =SUM(AF31:AF40) -> 0 | AG41: =SUM(AG31:AG40) -> 0 | AI41: =SUM(AI31:AI40) -> 0 | AJ41: =SUM(AJ31:AJ40) -> 0 | AK41: =SUM(AK31:AK40) -> 0 | AL41: =SUM(AL31:AL40) -> 0 | AN41: =SUM(AN31:AN40) -> 0 | AO41: =SUM(AO31:AO40) -> 0 | AP41: =SUM(AP31:AP40) -> 0 | AQ41: =SUM(AQ31:AQ40) -> 0 | AS41: =SUM(AS31:AS40) -> 0 | AT41: =SUM(AT31:AT40) -> 0 | AU41: =SUM(AU31:AU40) -> 0 | AV41: =SUM(AV31:AV40) -> 0 | AX41: =SUM(AX31:AX40) -> 0 | AY41: =SUM(AY31:AY40) -> 0 | AZ41: =SUM(AZ31:AZ40) -> 0 | BA41: =SUM(BA31:BA40) -> 0 | BC41: =SUM(BC31:BC40) -> 0 | BD41: =SUM(BD31:BD40) -> 0 | BE41: =SUM(BE31:BE40) -> 0 | BF41: =SUM(BF31:BF40) -> 0 | BH41: =SUM(BH31:BH40) -> 0 | BI41: =SUM(BI31:BI40) -> 0 | BJ41: =SUM(BJ31:BJ40) -> 0 | BL41: =SUM(BL31:BL40) -> 0 | BM41: =SUM(BM31:BM40) -> 0 | BN41: =SUM(BN31:BN40) -> 0 | BP41: =SUM(BP31:BP40) -> 0 | BR41: =SUM(BR31:BR40) -> 0 | BT41: =SUM(BT31:BT40) -> 0 | BV41: =SUM(BV31:BV40) -> 0
A43: Schedule A and Schedule B | C43: 40 | E43: =E41*0.4 -> 0 | F43: =F41*0.4 -> 0 | G43: 0 | H43: 0 | J43: 0 | K43: 0 | L43: 0 | M43: 0 | O43: 2.42 | P43: 0 | Q43: 0 | R43: 0 | T43: 0 | U43: 0 | V43: 0 | W43: 0 | Y43: 0 | Z43: 0 | AA43: 0 | AB43: 0 | AD43: 0 | AE43: 0 | AF43: 0 | AG43: 0 | AI43: 0 | AJ43: 0 | AK43: 0 | AL43: 0 | AN43: 0 | AO43: 0 | AP43: 0 | AQ43: 0 | AS43: 0 | AT43: 0 | AU43: 0 | AV43: 0 | AX43: 0 | AY43: 0 | AZ43: 0 | BA43: 0 | BC43: 0 | BD43: 0 | BE43: 0 | BF43: 0 | BH43: 0 | BI43: 0 | BJ43: 0 | BL43: 0 | BM43: 0 | BN43: 0 | BP43: 0 | BR43: =BR41*0.4 -> 0 | BT43: 0 | BV43: 0
A44: OEM Type Testing Reports | C44: 10 | D44: ='Type Tested Equipment Chargers'!A36 -> 0.25 | E44: =D44*C44 -> 2.5
A45: Drawings, Manuals and Training | C45: 10
A46: Equipment manuals (installation, operating and maintenance) and drawings of each category of product offered. | B46: 5 | D46: ='Drawings, Manuals and Training'!#REF! ->  | E46: =D46*B46 -> 
A47: Information on local technical support, level of support offered and training | B47: 5 | D47: ='Drawings, Manuals and Training'!#REF! ->  | E47: =D47*B47 -> 
A48: Life Cycle Costing (Section 8 below)(Mean Time Between Failures, Equipment Reliability Cost, Repair Cost of Equipment, Spares) | C48: 17 | D48: ='Repair Cost Eval. Charg. & SMR'!A37 ->  | E48: =D48*C48 -> 
A49: Deemed Technical Risk | C49: 13 | D49: =Risks!H13 -> 0.8666666667 | E49: =D49*C49 -> 11.26666667
A50: Practical Evaluation | C50: 10 | D50: ='Practical Evaluation'!G6 -> 0 | E50: =D50*C50 -> 0
A51: TOTAL | E51: =SUM(E43:E50) -> 

Sheet Score results UPS&UPS Modular (hidden)
A1: UPS MODULAR SCORE
B2: Criteria Sub Weighting | C2: Criteria Weighting | D2: Individual Criteria Evaluation Weight
E3: 5 KVA | K3: 10 KVA | Q3: 15 KVA | W3: 20 KVA | AC3: 30 KVA | AI3: 40 KVA | AO3: 50 KVA | AU3: 60 KVA | BA3: 80 KVA | BG3: 100 KVA | BM3: 120 KVA | BS3: 160 KVA | BY3: 200 KVA | CE3: 300 KVA
C4: Threshold value | D4: % | E4: 0.5 hr | F4: 1 hr | G4: 2 hr | H4: 4 hr | I4: 6 hr | K4: 0.5 hr | L4: 1 hr | M4: 2 hr | N4: 4 hr | O4: 6 hr | Q4: 0.5 hr | R4: 1 hr | S4: 2 hr | T4: 4 hr | U4: 6 hr | W4: 0.5 hr | X4: 1 hr | Y4: 2 hr | Z4: 4 hr | AA4: 6 hr | AC4: 0.5 hr | AD4: 1 hr | AE4: 2 hr | AF4: 4 hr | AG4: 6 hr | AI4: 0.5 hr | AJ4: 1 hr | AK4: 2 hr | AL4: 4 hr | AM4: 6 hr | AO4: 0.5 hr | AP4: 1 hr | AQ4: 2 hr | AR4: 4 hr | AS4: 6 hr | AU4: 0.5 hr | AV4: 1 hr | AW4: 2 hr | AX4: 4 hr | AY4: 6 hr | BA4: 0.5 hr | BB4: 1 hr | BC4: 2 hr | BD4: 4 hr | BE4: 6 hr | BG4: 0.5 hr | BH4: 1 hr | BI4: 2 hr | BJ4: 4 hr | BK4: 6 hr | BM4: 0.5 hr | BN4: 1 hr | BO4: 2 hr | BP4: 4 hr | BQ4: 6 hr | BS4: 0.5 hr | BT4: 1 hr | BU4: 2 hr | BV4: 4 hr | BW4: 6 hr | BY4: 0.5 hr | BZ4: 1 hr | CA4: 2 hr | CB4: 4 hr | CC4: 6 hr | CE4: 0.5 hr | CF4: 1 hr | CG4: 2 hr | CH4: 4 hr | CI4: 6 hr
A5: General Requirements | C5: =D5*0.8*100 -> 8 | D5: 0.1 | E5: ='UPS modular Rev 1'!J4*$D5 -> 0 | F5: ='UPS modular Rev 1'!M4*$D5 -> 0 | G5: ='UPS modular Rev 1'!P4*$D5 -> 0 | H5: ='UPS modular Rev 1'!S4*$D5 -> 0 | I5: ='UPS modular Rev 1'!V4*$D5 -> 0 | K5: ='UPS modular Rev 1'!AB4*$D5 -> 0 | L5: ='UPS modular Rev 1'!AE4*$D5 -> 0 | M5: ='UPS modular Rev 1'!AH4*$D5 -> 0 | N5: ='UPS modular Rev 1'!AK4*$D5 -> 0 | O5: ='UPS modular Rev 1'!AV4*$D5 -> 0 | Q5: ='UPS modular Rev 1'!AT4*$D5 -> 0 | R5: ='UPS modular Rev 1'!AW4*$D5 -> 0 | S5: ='UPS modular Rev 1'!AZ4*$D5 -> 0 | T5: ='UPS modular Rev 1'!BC4*$D5 -> 0 | U5: ='UPS modular Rev 1'!BF4*$D5 -> 0 | W5: ='UPS modular Rev 1'!BL4*$D5 -> 0 | X5: ='UPS modular Rev 1'!BO4*$D5 -> 0 | Y5: ='UPS modular Rev 1'!BR4*$D5 -> 0 | Z5: ='UPS modular Rev 1'!BU4*$D5 -> 0 | AA5: ='UPS modular Rev 1'!BX4*$D5 -> 0 | AC5: ='UPS modular Rev 1'!CD4*$D5 -> 0 | AD5: ='UPS modular Rev 1'!CG4*$D5 -> 0 | AE5: ='UPS modular Rev 1'!CJ4*$D5 -> 0 | AF5: ='UPS modular Rev 1'!CM4*$D5 -> 0 | AG5: ='UPS modular Rev 1'!CP4*$D5 -> 0 | AI5: ='UPS modular Rev 1'!CV4*$D5 -> 0 | AJ5: ='UPS modular Rev 1'!CY4*$D5 -> 0 | AK5: ='UPS modular Rev 1'!DB4*$D5 -> 0 | AL5: ='UPS modular Rev 1'!DE4*$D5 -> 0 | AM5: ='UPS modular Rev 1'!DH4*$D5 -> 0 | AO5: ='UPS modular Rev 1'!DN4*$D5 -> 0 | AP5: ='UPS modular Rev 1'!DQ4*$D5 -> 0 | AQ5: ='UPS modular Rev 1'!DT4*$D5 -> 0 | AR5: ='UPS modular Rev 1'!DW4*$D5 -> 0 | AS5: ='UPS modular Rev 1'!DZ4*$D5 -> 0 | AU5: ='UPS modular Rev 1'!EF4*$D5 -> 0 | AV5: ='UPS modular Rev 1'!EI4*$D5 -> 0 | AW5: ='UPS modular Rev 1'!EL4*$D5 -> 0 | AX5: ='UPS modular Rev 1'!EO4*$D5 -> 0 | AY5: ='UPS modular Rev 1'!ER4*$D5 -> 0 | BA5: ='UPS modular Rev 1'!EX4*$D5 -> 0 | BB5: ='UPS modular Rev 1'!FA4*$D5 -> 0 | BC5: ='UPS modular Rev 1'!FD4*$D5 -> 0 | BD5: ='UPS modular Rev 1'!FG4*$D5 -> 0 | BE5: ='UPS modular Rev 1'!FV4*$D5 -> 0 | BG5: ='UPS modular Rev 1'!FP4*$D5 -> 0 | BH5: ='UPS modular Rev 1'!FS4*$D5 -> 0 | BI5: ='UPS modular Rev 1'!FV4*$D5 -> 0 | BJ5: ='UPS modular Rev 1'!FY4*$D5 -> 0 | BK5: ='UPS modular Rev 1'!GB4*$D5 -> 0 | BM5: ='UPS modular Rev 1'!GH4*$D5 -> 0 | BN5: ='UPS modular Rev 1'!GK4*$D5 -> 0 | BO5: ='UPS modular Rev 1'!GN4*$D5 -> 0 | BP5: ='UPS modular Rev 1'!GQ4*$D5 -> 0 | BQ5: ='UPS modular Rev 1'!GT4*$D5 -> 0 | BS5: ='UPS modular Rev 1'!GZ4*$D5 -> 0 | BT5: ='UPS modular Rev 1'!HC4*$D5 -> 0 | BU5: ='UPS modular Rev 1'!HF4*$D5 -> 0 | BV5: ='UPS modular Rev 1'!HI4*$D5 -> 0 | BW5: ='UPS modular Rev 1'!HL4*$D5 -> 0 | BY5: ='UPS modular Rev 1'!HR4*$D5 -> 0 | BZ5: ='UPS modular Rev 1'!HU4*$D5 -> 0 | CA5: ='UPS modular Rev 1'!HX4*$D5 -> 0 | CB5: ='UPS modular Rev 1'!IA4*$D5 -> 0 | CC5: ='UPS modular Rev 1'!ID4*$D5 -> 0 | CE5: ='UPS modular Rev 1'!IJ4*$D5 -> 0 | CF5: ='UPS modular Rev 1'!IM4*$D5 -> 0 | CG5: ='UPS modular Rev 1'!IP4*$D5 -> 0 | CH5: ='UPS modular Rev 1'!IS4*$D5 -> 0 | CI5: ='UPS modular Rev 1'!IV4*$D5 -> 7.8
A6: Electrical input supply | C6: =D6*0.8*100 -> 16 | D6: 0.2 | E6: ='UPS modular Rev 1'!J20*$D6 -> 0 | F6: ='UPS modular Rev 1'!M20*$D5 -> 0 | G6: ='UPS modular Rev 1'!P20*$D5 -> 0 | H6: ='UPS modular Rev 1'!S20*$D5 -> 0 | I6: ='UPS modular Rev 1'!V20*$D5 -> 0 | K6: ='UPS modular Rev 1'!AB20*$D5 -> 0 | L6: ='UPS modular Rev 1'!AE20*$D5 -> 0 | M6: ='UPS modular Rev 1'!AH20*$D5 -> 0 | N6: ='UPS modular Rev 1'!AK20*$D5 -> 0 | O6: ='UPS modular Rev 1'!AV20*$D5 -> 0 | Q6: ='UPS modular Rev 1'!AT20*$D5 -> 0 | R6: ='UPS modular Rev 1'!AW20*$D5 -> 0 | S6: ='UPS modular Rev 1'!AZ20*$D5 -> 0 | T6: ='UPS modular Rev 1'!BC20*$D5 -> 0 | U6: ='UPS modular Rev 1'!BF20*$D5 -> 0 | W6: ='UPS modular Rev 1'!BL20*$D5 -> 0 | X6: ='UPS modular Rev 1'!BO20*$D5 -> 0 | Y6: ='UPS modular Rev 1'!BR20*$D5 -> 0 | Z6: ='UPS modular Rev 1'!BU20*$D5 -> 0 | AA6: ='UPS modular Rev 1'!BX20*$D5 -> 0 | AC6: ='UPS modular Rev 1'!CD20*$D5 -> 0 | AD6: ='UPS modular Rev 1'!CG20*$D5 -> 0 | AE6: ='UPS modular Rev 1'!CJ20*$D5 -> 0 | AF6: ='UPS modular Rev 1'!CM20*$D5 -> 0 | AG6: ='UPS modular Rev 1'!CP20*$D5 -> 0 | AI6: ='UPS modular Rev 1'!CV20*$D5 -> 0 | AJ6: ='UPS modular Rev 1'!CY20*$D5 -> 0 | AK6: ='UPS modular Rev 1'!DB20*$D5 -> 0 | AL6: ='UPS modular Rev 1'!DE20*$D5 -> 0 | AM6: ='UPS modular Rev 1'!DH20*$D5 -> 0 | AO6: ='UPS modular Rev 1'!DN20*$D6 -> 0 | AP6: ='UPS modular Rev 1'!DQ20*$D6 -> 0 | AQ6: ='UPS modular Rev 1'!DT20*$D6 -> 0 | AR6: ='UPS modular Rev 1'!DW20*$D6 -> 0 | AS6: ='UPS modular Rev 1'!DZ20*$D6 -> 0 | AU6: ='UPS modular Rev 1'!EF20*$D6 -> 0 | AV6: ='UPS modular Rev 1'!EI20*$D6 -> 0 | AW6: ='UPS modular Rev 1'!EL20*$D6 -> 0 | AX6: ='UPS modular Rev 1'!EO20*$D6 -> 0 | AY6: ='UPS modular Rev 1'!ER20*$D6 -> 0 | BA6: ='UPS modular Rev 1'!EX20*$D6 -> 0 | BB6: ='UPS modular Rev 1'!FA20*$D6 -> 0 | BC6: ='UPS modular Rev 1'!FD20*$D6 -> 0 | BD6: ='UPS modular Rev 1'!FG20*$D6 -> 0 | BE6: ='UPS modular Rev 1'!FJ20*$D6 -> 0 | BG6: ='UPS modular Rev 1'!FP20*$D6 -> 0 | BH6: ='UPS modular Rev 1'!FS20*$D6 -> 0 | BI6: ='UPS modular Rev 1'!FV20*$D6 -> 0 | BJ6: ='UPS modular Rev 1'!FY20*$D6 -> 0 | BK6: ='UPS modular Rev 1'!GB20*$D6 -> 0 | BM6: ='UPS modular Rev 1'!GH20*$D6 -> 0 | BN6: ='UPS modular Rev 1'!GK20*$D6 -> 0 | BO6: ='UPS modular Rev 1'!GN20*$D6 -> 0 | BP6: ='UPS modular Rev 1'!GQ20*$D6 -> 0 | BQ6: ='UPS modular Rev 1'!GT20*$D6 -> 0 | BS6: ='UPS modular Rev 1'!GZ20*$D6 -> 0 | BT6: ='UPS modular Rev 1'!HC20*$D6 -> 0 | BU6: ='UPS modular Rev 1'!HF20*$D6 -> 0 | BV6: ='UPS modular Rev 1'!HI20*$D6 -> 0 | BW6: ='UPS modular Rev 1'!HL20*$D6 -> 0 | BY6: ='UPS modular Rev 1'!HR20*$D6 -> 0 | BZ6: ='UPS modular Rev 1'!HU20*$D6 -> 0 | CA6: ='UPS modular Rev 1'!HX20*$D6 -> 0 | CB6: ='UPS modular Rev 1'!IA20*$D6 -> 0 | CC6: ='UPS modular Rev 1'!ID20*$D6 -> 0 | CE6: ='UPS modular Rev 1'!IJ20*$D6 -> 0 | CF6: ='UPS modular Rev 1'!IM20*$D6 -> 0 | CG6: ='UPS modular Rev 1'!IP20*$D6 -> 0 | CH6: ='UPS modular Rev 1'!IS20*$D6 -> 0 | CI6: ='UPS modular Rev 1'!IV20*$D6 -> 0
A7: Operational requirements | C7: 20 | D7: 0.25 | E7: ='UPS modular Rev 1'!J30*$D7 -> 0 | F7: ='UPS modular Rev 1'!M30*$D6 -> 0 | G7: ='UPS modular Rev 1'!P30*$D6 -> 0 | H7: ='UPS modular Rev 1'!S30*$D6 -> 0 | I7: ='UPS modular Rev 1'!V30*$D6 -> 0 | K7: ='UPS modular Rev 1'!AB30*$D6 -> 0 | L7: ='UPS modular Rev 1'!AE30*$D6 -> 0 | M7: ='UPS modular Rev 1'!AH30*$D6 -> 0 | N7: ='UPS modular Rev 1'!AK30*$D6 -> 0 | O7: ='UPS modular Rev 1'!AV30*$D6 -> 0 | Q7: ='UPS modular Rev 1'!AT30*$D6 -> 0 | R7: ='UPS modular Rev 1'!AW30*$D6 -> 0 | S7: ='UPS modular Rev 1'!AZ30*$D6 -> 0 | T7: ='UPS modular Rev 1'!BC30*$D6 -> 0 | U7: ='UPS modular Rev 1'!BF30*$D6 -> 0 | W7: ='UPS modular Rev 1'!BL30*$D6 -> 0 | X7: ='UPS modular Rev 1'!BO30*$D6 -> 0 | Y7: ='UPS modular Rev 1'!BR30*$D6 -> 0 | Z7: ='UPS modular Rev 1'!BU30*$D6 -> 0 | AA7: ='UPS modular Rev 1'!BX30*$D6 -> 0 | AC7: ='UPS modular Rev 1'!CD30*$D6 -> 0 | AD7: ='UPS modular Rev 1'!CG30*$D6 -> 0 | AE7: ='UPS modular Rev 1'!CJ30*$D6 -> 0 | AF7: ='UPS modular Rev 1'!CM30*$D6 -> 0 | AG7: ='UPS modular Rev 1'!CP30*$D6 -> 0 | AI7: ='UPS modular Rev 1'!CV30*$D6 -> 0 | AJ7: ='UPS modular Rev 1'!CY30*$D6 -> 0 | AK7: ='UPS modular Rev 1'!DB30*$D6 -> 0 | AL7: ='UPS modular Rev 1'!DE30*$D6 -> 0 | AM7: ='UPS modular Rev 1'!DH30*$D6 -> 0 | AO7: ='UPS modular Rev 1'!DN30*$D7 -> 0 | AP7: ='UPS modular Rev 1'!DQ30*$D7 -> 0 | AQ7: ='UPS modular Rev 1'!DT30*$D7 -> 0 | AR7: ='UPS modular Rev 1'!DW30*$D7 -> 0 | AS7: ='UPS modular Rev 1'!DZ30*$D7 -> 0 | AU7: ='UPS modular Rev 1'!EF30*$D7 -> 0 | AV7: ='UPS modular Rev 1'!EI30*$D7 -> 0 | AW7: ='UPS modular Rev 1'!EL30*$D7 -> 0 | AX7: ='UPS modular Rev 1'!EO30*$D7 -> 0 | AY7: ='UPS modular Rev 1'!ER30*$D7 -> 0 | BA7: ='UPS modular Rev 1'!EX30*$D7 -> 0 | BB7: ='UPS modular Rev 1'!FA30*$D7 -> 0 | BC7: ='UPS modular Rev 1'!FD30*$D7 -> 0 | BD7: ='UPS modular Rev 1'!FG30*$D7 -> 0 | BE7: ='UPS modular Rev 1'!FJ30*$D7 -> 0 | BG7: ='UPS modular Rev 1'!FP30*$D7 -> 0 | BH7: ='UPS modular Rev 1'!FS30*$D7 -> 0 | BI7: ='UPS modular Rev 1'!FV30*$D7 -> 0 | BJ7: ='UPS modular Rev 1'!FY30*$D7 -> 0 | BK7: ='UPS modular Rev 1'!GB30*$D7 -> 0 | BM7: ='UPS modular Rev 1'!GH30*$D7 -> 0 | BN7: ='UPS modular Rev 1'!GK30*$D7 -> 0 | BO7: ='UPS modular Rev 1'!GN30*$D7 -> 0 | BP7: ='UPS modular Rev 1'!GQ30*$D7 -> 0 | BQ7: ='UPS modular Rev 1'!GT30*$D7 -> 0 | BS7: ='UPS modular Rev 1'!GZ30*$D7 -> 0 | BT7: ='UPS modular Rev 1'!HC30*$D7 -> 0 | BU7: ='UPS modular Rev 1'!HF30*$D7 -> 0 | BV7: ='UPS modular Rev 1'!HI30*$D7 -> 0 | BW7: ='UPS modular Rev 1'!HL30*$D7 -> 0 | BY7: ='UPS modular Rev 1'!HR30*$D7 -> 0 | BZ7: ='UPS modular Rev 1'!HU30*$D7 -> 0 | CA7: ='UPS modular Rev 1'!HX30*$D7 -> 0 | CB7: ='UPS modular Rev 1'!IA30*$D7 -> 0 | CC7: ='UPS modular Rev 1'!ID30*$D7 -> 0 | CE7: ='UPS modular Rev 1'!IJ30*$D7 -> 0 | CF7: ='UPS modular Rev 1'!IM30*$D7 -> 0 | CG7: ='UPS modular Rev 1'!IP30*$D7 -> 0 | CH7: ='UPS modular Rev 1'!IS30*$D7 -> 0 | CI7: ='UPS modular Rev 1'!IV30*$D7 -> 0
A8: Mechanical Requirements | C8: 8 | D8: 0.1 | E8: ='UPS modular Rev 1'!J370*$D8 -> 0 | F8: ='UPS modular Rev 1'!M370*$D7 -> 0 | G8: ='UPS modular Rev 1'!P370*$D7 -> 0 | H8: ='UPS modular Rev 1'!S370*$D7 -> 0 | I8: ='UPS modular Rev 1'!V370*$D7 -> 0 | K8: ='UPS modular Rev 1'!AB370*$D7 -> 0 | L8: ='UPS modular Rev 1'!AE370*$D7 -> 0 | M8: ='UPS modular Rev 1'!AH370*$D7 -> 0 | N8: ='UPS modular Rev 1'!AK370*$D7 -> 0 | O8: ='UPS modular Rev 1'!AV370*$D7 -> 0 | Q8: ='UPS modular Rev 1'!AT370*$D7 -> 0 | R8: ='UPS modular Rev 1'!AW370*$D7 -> 0 | S8: ='UPS modular Rev 1'!AZ370*$D7 -> 0 | T8: ='UPS modular Rev 1'!BC370*$D7 -> 0 | U8: ='UPS modular Rev 1'!BF370*$D7 -> 0 | W8: ='UPS modular Rev 1'!BL370*$D7 -> 0 | X8: ='UPS modular Rev 1'!BO370*$D7 -> 0 | Y8: ='UPS modular Rev 1'!BR370*$D7 -> 0 | Z8: ='UPS modular Rev 1'!BU370*$D7 -> 0 | AA8: ='UPS modular Rev 1'!BX370*$D7 -> 0 | AC8: ='UPS modular Rev 1'!CD370*$D7 -> 0 | AD8: ='UPS modular Rev 1'!CG370*$D7 -> 0 | AE8: ='UPS modular Rev 1'!CJ370*$D7 -> 0 | AF8: ='UPS modular Rev 1'!CM370*$D7 -> 0 | AG8: ='UPS modular Rev 1'!CP370*$D7 -> 0 | AI8: ='UPS modular Rev 1'!CV370*$D7 -> 0 | AJ8: ='UPS modular Rev 1'!CY370*$D7 -> 0 | AK8: ='UPS modular Rev 1'!DB370*$D7 -> 0 | AL8: ='UPS modular Rev 1'!DE370*$D7 -> 0 | AM8: ='UPS modular Rev 1'!DH370*$D7 -> 0 | AO8: ='UPS modular Rev 1'!DN370*$D8 -> 0 | AP8: ='UPS modular Rev 1'!DQ370*$D8 -> 0 | AQ8: ='UPS modular Rev 1'!DT370*$D8 -> 0 | AR8: ='UPS modular Rev 1'!DW370*$D8 -> 0 | AS8: ='UPS modular Rev 1'!DZ370*$D8 -> 0 | AU8: ='UPS modular Rev 1'!EF370*$D8 -> 0 | AV8: ='UPS modular Rev 1'!EI370*$D8 -> 0 | AW8: ='UPS modular Rev 1'!EL370*$D8 -> 0 | AX8: ='UPS modular Rev 1'!EO370*$D8 -> 0 | AY8: ='UPS modular Rev 1'!ER370*$D8 -> 0 | BA8: ='UPS modular Rev 1'!EX370*$D8 -> 0 | BB8: ='UPS modular Rev 1'!FA370*$D8 -> 0 | BC8: ='UPS modular Rev 1'!FD370*$D8 -> 0 | BD8: ='UPS modular Rev 1'!FG370*$D8 -> 0 | BE8: ='UPS modular Rev 1'!FJ370*$D8 -> 0 | BG8: ='UPS modular Rev 1'!FP370*$D8 -> 0 | BH8: ='UPS modular Rev 1'!FS370*$D8 -> 0 | BI8: ='UPS modular Rev 1'!FV370*$D8 -> 0 | BJ8: ='UPS modular Rev 1'!FY370*$D8 -> 0 | BK8: ='UPS modular Rev 1'!GB370*$D8 -> 0 | BM8: ='UPS modular Rev 1'!GH370*$D8 -> 0 | BN8: ='UPS modular Rev 1'!GK370*$D8 -> 0 | BO8: ='UPS modular Rev 1'!GN370*$D8 -> 0 | BP8: ='UPS modular Rev 1'!GQ370*$D8 -> 0 | BQ8: ='UPS modular Rev 1'!GT370*$D8 -> 0 | BS8: ='UPS modular Rev 1'!GZ370*$D8 -> 0 | BT8: ='UPS modular Rev 1'!HC370*$D8 -> 0 | BU8: ='UPS modular Rev 1'!HF370*$D8 -> 0 | BV8: ='UPS modular Rev 1'!HI370*$D8 -> 0 | BW8: ='UPS modular Rev 1'!HL370*$D8 -> 0 | BY8: ='UPS modular Rev 1'!HR370*$D8 -> 0 | BZ8: ='UPS modular Rev 1'!HU370*$D8 -> 0 | CA8: ='UPS modular Rev 1'!HX370*$D8 -> 0 | CB8: ='UPS modular Rev 1'!IA370*$D8 -> 0 | CC8: ='UPS modular Rev 1'!ID370*$D8 -> 0 | CE8: ='UPS modular Rev 1'!IJ370*$D8 -> 0 | CF8: ='UPS modular Rev 1'!IM370*$D8 -> 0 | CG8: ='UPS modular Rev 1'!IP370*$D8 -> 0 | CH8: ='UPS modular Rev 1'!IS370*$D8 -> 0 | CI8: ='UPS modular Rev 1'!IV370*$D8 -> 0
A9: Settings and Commissioning | C9: 4 | D9: 0.05 | E9: ='UPS modular Rev 1'!J532*$D9 -> 0 | F9: ='UPS modular Rev 1'!M532*$D8 -> 0 | G9: ='UPS modular Rev 1'!P532*$D8 -> 0 | H9: ='UPS modular Rev 1'!S532*$D8 -> 0 | I9: ='UPS modular Rev 1'!V532*$D8 -> 0 | K9: ='UPS modular Rev 1'!AB532*$D8 -> 0 | L9: ='UPS modular Rev 1'!AE532*$D8 -> 0 | M9: ='UPS modular Rev 1'!AH532*$D8 -> 0 | N9: ='UPS modular Rev 1'!AK532*$D8 -> 0 | O9: ='UPS modular Rev 1'!AV532*$D8 -> 0 | Q9: ='UPS modular Rev 1'!AT532*$D8 -> 0 | R9: ='UPS modular Rev 1'!AW532*$D8 -> 0 | S9: ='UPS modular Rev 1'!AZ532*$D8 -> 0 | T9: ='UPS modular Rev 1'!BC532*$D8 -> 0 | U9: ='UPS modular Rev 1'!BF532*$D8 -> 0 | W9: ='UPS modular Rev 1'!BL532*$D8 -> 0 | X9: ='UPS modular Rev 1'!BO532*$D8 -> 0 | Y9: ='UPS modular Rev 1'!BR532*$D8 -> 0 | Z9: ='UPS modular Rev 1'!BU532*$D8 -> 0 | AA9: ='UPS modular Rev 1'!BX532*$D8 -> 0 | AC9: ='UPS modular Rev 1'!CD532*$D8 -> 0 | AD9: ='UPS modular Rev 1'!CG532*$D8 -> 0 | AE9: ='UPS modular Rev 1'!CJ532*$D8 -> 0 | AF9: ='UPS modular Rev 1'!CM532*$D8 -> 0 | AG9: ='UPS modular Rev 1'!CP532*$D8 -> 0 | AI9: ='UPS modular Rev 1'!CV532*$D8 -> 0 | AJ9: ='UPS modular Rev 1'!CY532*$D8 -> 0 | AK9: ='UPS modular Rev 1'!DB532*$D8 -> 0 | AL9: ='UPS modular Rev 1'!DE532*$D8 -> 0 | AM9: ='UPS modular Rev 1'!DH532*$D8 -> 0 | AO9: ='UPS modular Rev 1'!DN532*$D9 -> 0 | AP9: ='UPS modular Rev 1'!DQ532*$D9 -> 0 | AQ9: ='UPS modular Rev 1'!DT532*$D9 -> 0 | AR9: ='UPS modular Rev 1'!DW532*$D9 -> 0 | AS9: ='UPS modular Rev 1'!DZ532*$D9 -> 0 | AU9: ='UPS modular Rev 1'!EF532*$D9 -> 0 | AV9: ='UPS modular Rev 1'!EI532*$D9 -> 0 | AW9: ='UPS modular Rev 1'!EL532*$D9 -> 0 | AX9: ='UPS modular Rev 1'!EO532*$D9 -> 0 | AY9: ='UPS modular Rev 1'!ER532*$D9 -> 0 | BA9: ='UPS modular Rev 1'!EX532*$D9 -> 0 | BB9: ='UPS modular Rev 1'!FA532*$D9 -> 0 | BC9: ='UPS modular Rev 1'!FD532*$D9 -> 0 | BD9: ='UPS modular Rev 1'!FG532*$D9 -> 0 | BE9: ='UPS modular Rev 1'!FJ532*$D9 -> 0 | BG9: ='UPS modular Rev 1'!FP532*$D9 -> 0 | BH9: ='UPS modular Rev 1'!FS532*$D9 -> 0 | BI9: ='UPS modular Rev 1'!FV532*$D9 -> 0 | BJ9: ='UPS modular Rev 1'!FY532*$D9 -> 0 | BK9: ='UPS modular Rev 1'!GB532*$D9 -> 0 | BM9: ='UPS modular Rev 1'!GH532*$D9 -> 0 | BN9: ='UPS modular Rev 1'!GK532*$D9 -> 0 | BO9: ='UPS modular Rev 1'!GN532*$D9 -> 0 | BP9: ='UPS modular Rev 1'!GQ532*$D9 -> 0 | BQ9: ='UPS modular Rev 1'!GT532*$D9 -> 0 | BS9: ='UPS modular Rev 1'!GZ532*$D9 -> 0 | BT9: ='UPS modular Rev 1'!HC532*$D9 -> 0 | BU9: ='UPS modular Rev 1'!HF532*$D9 -> 0 | BV9: ='UPS modular Rev 1'!HI532*$D9 -> 0 | BW9: ='UPS modular Rev 1'!HL532*$D9 -> 0 | BY9: ='UPS modular Rev 1'!HR532*$D9 -> 0 | BZ9: ='UPS modular Rev 1'!HU532*$D9 -> 0 | CA9: ='UPS modular Rev 1'!HX532*$D9 -> 0 | CB9: ='UPS modular Rev 1'!IA532*$D9 -> 0 | CC9: ='UPS modular Rev 1'!ID532*$D9 -> 0 | CE9: ='UPS modular Rev 1'!IJ532*$D9 -> 0 | CF9: ='UPS modular Rev 1'!IM532*$D9 -> 0 | CG9: ='UPS modular Rev 1'!IP532*$D9 -> 0 | CH9: ='UPS modular Rev 1'!IS532*$D9 -> 0 | CI9: ='UPS modular Rev 1'!IV532*$D9 -> 0
A10: Type testing | C10: 8 | D10: 0.1 | E10: ='UPS modular Rev 1'!J559*$D10 -> 0 | F10: ='UPS modular Rev 1'!M559*$D9 -> 0 | G10: ='UPS modular Rev 1'!P559*$D9 -> 0 | H10: ='UPS modular Rev 1'!S559*$D9 -> 0 | I10: ='UPS modular Rev 1'!V559*$D9 -> 0 | K10: ='UPS modular Rev 1'!AB559*$D9 -> 0 | L10: ='UPS modular Rev 1'!AE559*$D9 -> 0 | M10: ='UPS modular Rev 1'!AH559*$D9 -> 0 | N10: ='UPS modular Rev 1'!AK559*$D9 -> 0 | O10: ='UPS modular Rev 1'!AV559*$D9 -> 0 | Q10: ='UPS modular Rev 1'!AT559*$D9 -> 0 | R10: ='UPS modular Rev 1'!AW559*$D9 -> 0 | S10: ='UPS modular Rev 1'!AZ559*$D9 -> 0 | T10: ='UPS modular Rev 1'!BC559*$D9 -> 0 | U10: ='UPS modular Rev 1'!BF559*$D9 -> 0 | W10: ='UPS modular Rev 1'!BL559*$D9 -> 0 | X10: ='UPS modular Rev 1'!BO559*$D9 -> 0 | Y10: ='UPS modular Rev 1'!BR559*$D9 -> 0 | Z10: ='UPS modular Rev 1'!BU559*$D9 -> 0 | AA10: ='UPS modular Rev 1'!BX559*$D9 -> 0 | AC10: ='UPS modular Rev 1'!CD559*$D9 -> 0 | AD10: ='UPS modular Rev 1'!CG559*$D9 -> 0 | AE10: ='UPS modular Rev 1'!CJ559*$D9 -> 0 | AF10: ='UPS modular Rev 1'!CM559*$D9 -> 0 | AG10: ='UPS modular Rev 1'!CP559*$D9 -> 0 | AI10: ='UPS modular Rev 1'!CV559*$D9 -> 0 | AJ10: ='UPS modular Rev 1'!CY559*$D9 -> 0 | AK10: ='UPS modular Rev 1'!DB559*$D9 -> 0 | AL10: ='UPS modular Rev 1'!DE559*$D9 -> 0 | AM10: ='UPS modular Rev 1'!DH559*$D9 -> 0 | AO10: ='UPS modular Rev 1'!DN559*$D10 -> 0 | AP10: ='UPS modular Rev 1'!DQ559*$D10 -> 0 | AQ10: ='UPS modular Rev 1'!DT559*$D10 -> 0 | AR10: ='UPS modular Rev 1'!DW559*$D10 -> 0 | AS10: ='UPS modular Rev 1'!DZ559*$D10 -> 0 | AU10: ='UPS modular Rev 1'!EF559*$D10 -> 0 | AV10: ='UPS modular Rev 1'!EI559*$D10 -> 0 | AW10: ='UPS modular Rev 1'!EL559*$D10 -> 0 | AX10: ='UPS modular Rev 1'!EO559*$D10 -> 0 | AY10: ='UPS modular Rev 1'!ER559*$D10 -> 0 | BA10: ='UPS modular Rev 1'!EX559*$D10 -> 0 | BB10: ='UPS modular Rev 1'!FA559*$D10 -> 0 | BC10: ='UPS modular Rev 1'!FD559*$D10 -> 0 | BD10: ='UPS modular Rev 1'!FG559*$D10 -> 0 | BE10: ='UPS modular Rev 1'!FJ559*$D10 -> 0 | BG10: ='UPS modular Rev 1'!FP559*$D10 -> 0 | BH10: ='UPS modular Rev 1'!FS559*$D10 -> 0 | BI10: ='UPS modular Rev 1'!FV559*$D10 -> 0 | BJ10: ='UPS modular Rev 1'!FY559*$D10 -> 0 | BK10: ='UPS modular Rev 1'!GB559*$D10 -> 0 | BM10: ='UPS modular Rev 1'!GH559*$D10 -> 0 | BN10: ='UPS modular Rev 1'!GK559*$D10 -> 0 | BO10: ='UPS modular Rev 1'!GN559*$D10 -> 0 | BP10: ='UPS modular Rev 1'!GQ559*$D10 -> 0 | BQ10: ='UPS modular Rev 1'!GT559*$D10 -> 0 | BS10: ='UPS modular Rev 1'!GZ559*$D10 -> 0 | BT10: ='UPS modular Rev 1'!HC559*$D10 -> 0 | BU10: ='UPS modular Rev 1'!HF559*$D10 -> 0 | BV10: ='UPS modular Rev 1'!HI559*$D10 -> 0 | BW10: ='UPS modular Rev 1'!HL559*$D10 -> 0 | BY10: ='UPS modular Rev 1'!HR559*$D10 -> 0 | BZ10: ='UPS modular Rev 1'!HU559*$D10 -> 0 | CA10: ='UPS modular Rev 1'!HX559*$D10 -> 0 | CB10: ='UPS modular Rev 1'!IA559*$D10 -> 0 | CC10: ='UPS modular Rev 1'!ID559*$D10 -> 0 | CE10: ='UPS modular Rev 1'!IJ559*$D10 -> 0 | CF10: ='UPS modular Rev 1'!IM559*$D10 -> 0 | CG10: ='UPS modular Rev 1'!IP559*$D10 -> 0 | CH10: ='UPS modular Rev 1'!IS559*$D10 -> 0 | CI10: ='UPS modular Rev 1'!IV559*$D10 -> 0
A11: Marking, labeling and packaging | C11: 4 | D11: 0.05 | E11: ='UPS modular Rev 1'!J657*$D11 -> 0 | F11: ='UPS modular Rev 1'!M657*$D10 -> 0 | G11: ='UPS modular Rev 1'!P657*$D10 -> 0 | H11: ='UPS modular Rev 1'!S657*$D10 -> 0 | I11: ='UPS modular Rev 1'!V657*$D10 -> 0 | K11: ='UPS modular Rev 1'!AB657*$D10 -> 0 | L11: ='UPS modular Rev 1'!AE657*$D10 -> 0 | M11: ='UPS modular Rev 1'!AH657*$D10 -> 0 | N11: ='UPS modular Rev 1'!AK657*$D10 -> 0 | O11: ='UPS modular Rev 1'!AV657*$D10 -> 0 | Q11: ='UPS modular Rev 1'!AT657*$D10 -> 0 | R11: ='UPS modular Rev 1'!AW657*$D10 -> 0 | S11: ='UPS modular Rev 1'!AZ657*$D10 -> 0 | T11: ='UPS modular Rev 1'!BC657*$D10 -> 0 | U11: ='UPS modular Rev 1'!BF657*$D10 -> 0 | W11: ='UPS modular Rev 1'!BL657*$D10 -> 0 | X11: ='UPS modular Rev 1'!BO657*$D10 -> 0 | Y11: ='UPS modular Rev 1'!BR657*$D10 -> 0 | Z11: ='UPS modular Rev 1'!BU657*$D10 -> 0 | AA11: ='UPS modular Rev 1'!BX657*$D10 -> 0 | AC11: ='UPS modular Rev 1'!CD657*$D10 -> 0 | AD11: ='UPS modular Rev 1'!CG657*$D10 -> 0 | AE11: ='UPS modular Rev 1'!CJ657*$D10 -> 0 | AF11: ='UPS modular Rev 1'!CM657*$D10 -> 0 | AG11: ='UPS modular Rev 1'!CP657*$D10 -> 0 | AI11: ='UPS modular Rev 1'!CV657*$D10 -> 0 | AJ11: ='UPS modular Rev 1'!CY657*$D10 -> 0 | AK11: ='UPS modular Rev 1'!DB657*$D10 -> 0 | AL11: ='UPS modular Rev 1'!DE657*$D10 -> 0 | AM11: ='UPS modular Rev 1'!DH657*$D10 -> 0 | AO11: ='UPS modular Rev 1'!DN657*$D11 -> 0 | AP11: ='UPS modular Rev 1'!DQ657*$D11 -> 0 | AQ11: ='UPS modular Rev 1'!DT657*$D11 -> 0 | AR11: ='UPS modular Rev 1'!DW657*$D11 -> 0 | AS11: ='UPS modular Rev 1'!DZ657*$D11 -> 0 | AU11: ='UPS modular Rev 1'!EF657*$D11 -> 0 | AV11: ='UPS modular Rev 1'!EI657*$D11 -> 0 | AW11: ='UPS modular Rev 1'!EL657*$D11 -> 0 | AX11: ='UPS modular Rev 1'!EO657*$D11 -> 0 | AY11: ='UPS modular Rev 1'!ER657*$D11 -> 0 | BA11: ='UPS modular Rev 1'!EX657*$D11 -> 0 | BB11: ='UPS modular Rev 1'!FA657*$D11 -> 0 | BC11: ='UPS modular Rev 1'!FD657*$D11 -> 0 | BD11: ='UPS modular Rev 1'!FG657*$D11 -> 0 | BE11: ='UPS modular Rev 1'!FJ657*$D11 -> 0 | BG11: ='UPS modular Rev 1'!FP657*$D11 -> 0 | BH11: ='UPS modular Rev 1'!FS657*$D11 -> 0 | BI11: ='UPS modular Rev 1'!FV657*$D11 -> 0 | BJ11: ='UPS modular Rev 1'!FY657*$D11 -> 0 | BK11: ='UPS modular Rev 1'!GB657*$D11 -> 0 | BM11: ='UPS modular Rev 1'!GH657*$D11 -> 0 | BN11: ='UPS modular Rev 1'!GK657*$D11 -> 0 | BO11: ='UPS modular Rev 1'!GN657*$D11 -> 0 | BP11: ='UPS modular Rev 1'!GQ657*$D11 -> 0 | BQ11: ='UPS modular Rev 1'!GT657*$D11 -> 0 | BS11: ='UPS modular Rev 1'!GZ657*$D11 -> 0 | BT11: ='UPS modular Rev 1'!HC657*$D11 -> 0 | BU11: ='UPS modular Rev 1'!HF657*$D11 -> 0 | BV11: ='UPS modular Rev 1'!HI657*$D11 -> 0 | BW11: ='UPS modular Rev 1'!HL657*$D11 -> 0 | BY11: ='UPS modular Rev 1'!HR657*$D11 -> 0 | BZ11: ='UPS modular Rev 1'!HU657*$D11 -> 0 | CA11: ='UPS modular Rev 1'!HX657*$D11 -> 0 | CB11: ='UPS modular Rev 1'!IA657*$D11 -> 0 | CC11: ='UPS modular Rev 1'!ID657*$D11 -> 0 | CE11: ='UPS modular Rev 1'!IJ657*$D11 -> 0 | CF11: ='UPS modular Rev 1'!IM657*$D11 -> 0 | CG11: ='UPS modular Rev 1'!IP657*$D11 -> 0 | CH11: ='UPS modular Rev 1'!IS657*$D11 -> 0 | CI11: ='UPS modular Rev 1'!IV657*$D11 -> 0
A12: Spares | C12: 4 | D12: 0.05 | E12: ='UPS modular Rev 1'!J664*$D12 -> 0 | F12: ='UPS modular Rev 1'!M664*$D11 -> 0 | G12: ='UPS modular Rev 1'!P664*$D11 -> 0 | H12: ='UPS modular Rev 1'!S664*$D11 -> 0 | I12: ='UPS modular Rev 1'!V664*$D11 -> 0 | K12: ='UPS modular Rev 1'!AB664*$D11 -> 0 | L12: ='UPS modular Rev 1'!AE664*$D11 -> 0 | M12: ='UPS modular Rev 1'!AH664*$D11 -> 0 | N12: ='UPS modular Rev 1'!AK664*$D11 -> 0 | O12: ='UPS modular Rev 1'!AV664*$D11 -> 0 | Q12: ='UPS modular Rev 1'!AT664*$D11 -> 0 | R12: ='UPS modular Rev 1'!AW664*$D11 -> 0 | S12: ='UPS modular Rev 1'!AZ664*$D11 -> 0 | T12: ='UPS modular Rev 1'!BC664*$D11 -> 0 | U12: ='UPS modular Rev 1'!BF664*$D11 -> 0 | W12: ='UPS modular Rev 1'!BL664*$D11 -> 0 | X12: ='UPS modular Rev 1'!BO664*$D11 -> 0 | Y12: ='UPS modular Rev 1'!BR664*$D11 -> 0 | Z12: ='UPS modular Rev 1'!BU664*$D11 -> 0 | AA12: ='UPS modular Rev 1'!BX664*$D11 -> 0 | AC12: ='UPS modular Rev 1'!CD664*$D11 -> 0 | AD12: ='UPS modular Rev 1'!CG664*$D11 -> 0 | AE12: ='UPS modular Rev 1'!CJ664*$D11 -> 0 | AF12: ='UPS modular Rev 1'!CM664*$D11 -> 0 | AG12: ='UPS modular Rev 1'!CP664*$D11 -> 0 | AI12: ='UPS modular Rev 1'!CV664*$D11 -> 0 | AJ12: ='UPS modular Rev 1'!CY664*$D11 -> 0 | AK12: ='UPS modular Rev 1'!DB664*$D11 -> 0 | AL12: ='UPS modular Rev 1'!DE664*$D11 -> 0 | AM12: ='UPS modular Rev 1'!DH664*$D11 -> 0 | AO12: ='UPS modular Rev 1'!DN664*$D12 -> 0 | AP12: ='UPS modular Rev 1'!DQ664*$D12 -> 0 | AQ12: ='UPS modular Rev 1'!DT664*$D12 -> 0 | AR12: ='UPS modular Rev 1'!DW664*$D12 -> 0 | AS12: ='UPS modular Rev 1'!DZ664*$D12 -> 0 | AU12: ='UPS modular Rev 1'!EF664*$D12 -> 0 | AV12: ='UPS modular Rev 1'!EI664*$D12 -> 0 | AW12: ='UPS modular Rev 1'!EL664*$D12 -> 0 | AX12: ='UPS modular Rev 1'!EO664*$D12 -> 0 | AY12: ='UPS modular Rev 1'!ER664*$D12 -> 0 | BA12: ='UPS modular Rev 1'!EX664*$D12 -> 0 | BB12: ='UPS modular Rev 1'!FA664*$D12 -> 0 | BC12: ='UPS modular Rev 1'!FD664*$D12 -> 0 | BD12: ='UPS modular Rev 1'!FG664*$D12 -> 0 | BE12: ='UPS modular Rev 1'!FJ664*$D12 -> 0 | BG12: ='UPS modular Rev 1'!FP664*$D12 -> 0 | BH12: ='UPS modular Rev 1'!FS664*$D12 -> 0 | BI12: ='UPS modular Rev 1'!FV664*$D12 -> 0 | BJ12: ='UPS modular Rev 1'!FY664*$D12 -> 0 | BK12: ='UPS modular Rev 1'!GB664*$D12 -> 0 | BM12: ='UPS modular Rev 1'!GH664*$D12 -> 0 | BN12: ='UPS modular Rev 1'!GK664*$D12 -> 0 | BO12: ='UPS modular Rev 1'!GN664*$D12 -> 0 | BP12: ='UPS modular Rev 1'!GQ664*$D12 -> 0 | BQ12: ='UPS modular Rev 1'!GT664*$D12 -> 0 | BS12: ='UPS modular Rev 1'!GZ664*$D12 -> 0 | BT12: ='UPS modular Rev 1'!HC664*$D12 -> 0 | BU12: ='UPS modular Rev 1'!HF664*$D12 -> 0 | BV12: ='UPS modular Rev 1'!HI664*$D12 -> 0 | BW12: ='UPS modular Rev 1'!HL664*$D12 -> 0 | BY12: ='UPS modular Rev 1'!HR664*$D12 -> 0 | BZ12: ='UPS modular Rev 1'!HU664*$D12 -> 0 | CA12: ='UPS modular Rev 1'!HX664*$D12 -> 0 | CB12: ='UPS modular Rev 1'!IA664*$D12 -> 0 | CC12: ='UPS modular Rev 1'!ID664*$D12 -> 0 | CE12: ='UPS modular Rev 1'!IJ664*$D12 -> 0 | CF12: ='UPS modular Rev 1'!IM664*$D12 -> 0 | CG12: ='UPS modular Rev 1'!IP664*$D12 -> 0 | CH12: ='UPS modular Rev 1'!IS664*$D12 -> 0 | CI12: ='UPS modular Rev 1'!IV664*$D12 -> 0
A13: Documentation | C13: 4 | D13: 0.05 | E13: ='UPS modular Rev 1'!J675*$D13 -> 0 | F13: ='UPS modular Rev 1'!M675*$D12 -> 0 | G13: ='UPS modular Rev 1'!P675*$D12 -> 0 | H13: ='UPS modular Rev 1'!S675*$D12 -> 0 | I13: ='UPS modular Rev 1'!V675*$D12 -> 0 | K13: ='UPS modular Rev 1'!AB675*$D12 -> 0 | L13: ='UPS modular Rev 1'!AE675*$D12 -> 0 | M13: ='UPS modular Rev 1'!AH675*$D12 -> 0 | N13: ='UPS modular Rev 1'!AK675*$D12 -> 0 | O13: ='UPS modular Rev 1'!AV675*$D12 -> 0 | Q13: ='UPS modular Rev 1'!AT675*$D12 -> 0 | R13: ='UPS modular Rev 1'!AW675*$D12 -> 0 | S13: ='UPS modular Rev 1'!AZ675*$D12 -> 0 | T13: ='UPS modular Rev 1'!BC675*$D12 -> 0 | U13: ='UPS modular Rev 1'!BF675*$D12 -> 0 | W13: ='UPS modular Rev 1'!BL675*$D12 -> 0 | X13: ='UPS modular Rev 1'!BO675*$D12 -> 0 | Y13: ='UPS modular Rev 1'!BR675*$D12 -> 0 | Z13: ='UPS modular Rev 1'!BU675*$D12 -> 0 | AA13: ='UPS modular Rev 1'!BX675*$D12 -> 0 | AC13: ='UPS modular Rev 1'!CD675*$D12 -> 0 | AD13: ='UPS modular Rev 1'!CG675*$D12 -> 0 | AE13: ='UPS modular Rev 1'!CJ675*$D12 -> 0 | AF13: ='UPS modular Rev 1'!CM675*$D12 -> 0 | AG13: ='UPS modular Rev 1'!CP675*$D12 -> 0 | AI13: ='UPS modular Rev 1'!CV675*$D12 -> 0 | AJ13: ='UPS modular Rev 1'!CY675*$D12 -> 0 | AK13: ='UPS modular Rev 1'!DB675*$D12 -> 0 | AL13: ='UPS modular Rev 1'!DE675*$D12 -> 0 | AM13: ='UPS modular Rev 1'!DH675*$D12 -> 0 | AO13: ='UPS modular Rev 1'!DN675*$D13 -> 0 | AP13: ='UPS modular Rev 1'!DQ675*$D13 -> 0 | AQ13: ='UPS modular Rev 1'!DT675*$D13 -> 0 | AR13: ='UPS modular Rev 1'!DW675*$D13 -> 0 | AS13: ='UPS modular Rev 1'!DZ675*$D13 -> 0 | AU13: ='UPS modular Rev 1'!EF675*$D13 -> 0 | AV13: ='UPS modular Rev 1'!EI675*$D13 -> 0 | AW13: ='UPS modular Rev 1'!EL675*$D13 -> 0 | AX13: ='UPS modular Rev 1'!EO675*$D13 -> 0 | AY13: ='UPS modular Rev 1'!ER675*$D13 -> 0 | BA13: ='UPS modular Rev 1'!EX675*$D13 -> 0 | BB13: ='UPS modular Rev 1'!FA675*$D13 -> 0 | BC13: ='UPS modular Rev 1'!FD675*$D13 -> 0 | BD13: ='UPS modular Rev 1'!FG675*$D13 -> 0 | BE13: ='UPS modular Rev 1'!FJ675*$D13 -> 0 | BG13: ='UPS modular Rev 1'!FP675*$D13 -> 0 | BH13: ='UPS modular Rev 1'!FS675*$D13 -> 0 | BI13: ='UPS modular Rev 1'!FV675*$D13 -> 0 | BJ13: ='UPS modular Rev 1'!FY675*$D13 -> 0 | BK13: ='UPS modular Rev 1'!GB675*$D13 -> 0 | BM13: ='UPS modular Rev 1'!GH675*$D13 -> 0 | BN13: ='UPS modular Rev 1'!GK675*$D13 -> 0 | BO13: ='UPS modular Rev 1'!GN675*$D13 -> 0 | BP13: ='UPS modular Rev 1'!GQ675*$D13 -> 0 | BQ13: ='UPS modular Rev 1'!GT675*$D13 -> 0 | BS13: ='UPS modular Rev 1'!GZ675*$D13 -> 0 | BT13: ='UPS modular Rev 1'!HC675*$D13 -> 0 | BU13: ='UPS modular Rev 1'!HF675*$D13 -> 0 | BV13: ='UPS modular Rev 1'!HI675*$D13 -> 0 | BW13: ='UPS modular Rev 1'!HL675*$D13 -> 0 | BY13: ='UPS modular Rev 1'!HR675*$D13 -> 0 | BZ13: ='UPS modular Rev 1'!HU675*$D13 -> 0 | CA13: ='UPS modular Rev 1'!HX675*$D13 -> 0 | CB13: ='UPS modular Rev 1'!IA675*$D13 -> 0 | CC13: ='UPS modular Rev 1'!ID675*$D13 -> 0 | CE13: ='UPS modular Rev 1'!IJ675*$D13 -> 0 | CF13: ='UPS modular Rev 1'!IM675*$D13 -> 0 | CG13: ='UPS modular Rev 1'!IP675*$D13 -> 0 | CH13: ='UPS modular Rev 1'!IS675*$D13 -> 0 | CI13: ='UPS modular Rev 1'!IV675*$D13 -> 0
A14: Language | C14: 4 | D14: 0.05 | E14: ='UPS modular Rev 1'!J697*$D14 -> 0 | F14: ='UPS modular Rev 1'!M697*$D13 -> 0 | G14: ='UPS modular Rev 1'!P697*$D13 -> 5 | H14: ='UPS modular Rev 1'!S697*$D13 -> 0 | I14: ='UPS modular Rev 1'!V697*$D13 -> 0 | K14: ='UPS modular Rev 1'!AB697*$D13 -> 0 | L14: ='UPS modular Rev 1'!AE697*$D13 -> 0 | M14: ='UPS modular Rev 1'!AH697*$D13 -> 0 | N14: ='UPS modular Rev 1'!AK697*$D13 -> 0 | O14: ='UPS modular Rev 1'!AV697*$D13 -> 0 | Q14: ='UPS modular Rev 1'!AT697*$D13 -> 0 | R14: ='UPS modular Rev 1'!AW697*$D13 -> 0 | S14: ='UPS modular Rev 1'!AZ697*$D13 -> 0 | T14: ='UPS modular Rev 1'!BC697*$D13 -> 0 | U14: ='UPS modular Rev 1'!BF697*$D13 -> 0 | W14: ='UPS modular Rev 1'!BL697*$D13 -> 0 | X14: ='UPS modular Rev 1'!BO697*$D13 -> 0 | Y14: ='UPS modular Rev 1'!BR697*$D13 -> 0 | Z14: ='UPS modular Rev 1'!BU697*$D13 -> 0 | AA14: ='UPS modular Rev 1'!BX697*$D13 -> 0 | AC14: ='UPS modular Rev 1'!CD697*$D13 -> 0 | AD14: ='UPS modular Rev 1'!CG697*$D13 -> 0 | AE14: ='UPS modular Rev 1'!CJ697*$D13 -> 0 | AF14: ='UPS modular Rev 1'!CM697*$D13 -> 0 | AG14: ='UPS modular Rev 1'!CP697*$D13 -> 0 | AI14: ='UPS modular Rev 1'!CV697*$D13 -> 0 | AJ14: ='UPS modular Rev 1'!CY697*$D13 -> 0 | AK14: ='UPS modular Rev 1'!DB697*$D13 -> 0 | AL14: ='UPS modular Rev 1'!DE697*$D13 -> 0 | AM14: ='UPS modular Rev 1'!DH697*$D13 -> 0 | AO14: ='UPS modular Rev 1'!DN697*$D14 -> 0 | AP14: ='UPS modular Rev 1'!DQ697*$D14 -> 0 | AQ14: ='UPS modular Rev 1'!DT697*$D14 -> 0 | AR14: ='UPS modular Rev 1'!DW697*$D14 -> 0 | AS14: ='UPS modular Rev 1'!DZ697*$D14 -> 0 | AU14: ='UPS modular Rev 1'!EF697*$D14 -> 0 | AV14: ='UPS modular Rev 1'!EI697*$D14 -> 0 | AW14: ='UPS modular Rev 1'!EL697*$D14 -> 0 | AX14: ='UPS modular Rev 1'!EO697*$D14 -> 0 | AY14: ='UPS modular Rev 1'!ER697*$D14 -> 0 | BA14: ='UPS modular Rev 1'!EX697*$D14 -> 0 | BB14: ='UPS modular Rev 1'!FA697*$D14 -> 0 | BC14: ='UPS modular Rev 1'!FD697*$D14 -> 0 | BD14: ='UPS modular Rev 1'!FG697*$D14 -> 0 | BE14: ='UPS modular Rev 1'!FJ697*$D14 -> 0 | BG14: ='UPS modular Rev 1'!FP697*$D14 -> 0 | BH14: ='UPS modular Rev 1'!FS697*$D14 -> 0 | BI14: ='UPS modular Rev 1'!FV697*$D14 -> 0 | BJ14: ='UPS modular Rev 1'!FY697*$D14 -> 0 | BK14: ='UPS modular Rev 1'!GB697*$D14 -> 0 | BM14: ='UPS modular Rev 1'!GH697*$D14 -> 0 | BN14: ='UPS modular Rev 1'!GK697*$D14 -> 0 | BO14: ='UPS modular Rev 1'!GN697*$D14 -> 0 | BP14: ='UPS modular Rev 1'!GQ697*$D14 -> 0 | BQ14: ='UPS modular Rev 1'!GT697*$D14 -> 0 | BS14: ='UPS modular Rev 1'!GZ697*$D14 -> 0 | BT14: ='UPS modular Rev 1'!HC697*$D14 -> 0 | BU14: ='UPS modular Rev 1'!HF697*$D14 -> 0 | BV14: ='UPS modular Rev 1'!HI697*$D14 -> 0 | BW14: ='UPS modular Rev 1'!HL697*$D14 -> 0 | BY14: ='UPS modular Rev 1'!HR697*$D14 -> 0 | BZ14: ='UPS modular Rev 1'!HU697*$D14 -> 0 | CA14: ='UPS modular Rev 1'!HX697*$D14 -> 0 | CB14: ='UPS modular Rev 1'!IA697*$D14 -> 0 | CC14: ='UPS modular Rev 1'!ID697*$D14 -> 0 | CE14: ='UPS modular Rev 1'!IJ697*$D14 -> 5 | CF14: ='UPS modular Rev 1'!IM697*$D14 -> 5 | CG14: ='UPS modular Rev 1'!IP697*$D14 -> 5 | CH14: ='UPS modular Rev 1'!IS697*$D14 -> 5 | CI14: ='UPS modular Rev 1'!IV697*$D14 -> 0
C15: =SUM(C5:C14) -> 80 | D15: =SUM(D5:D14) -> 1 | E15: =SUM(E5:E14) -> 0 | F15: =SUM(F5:F14) -> 0 | G15: 5 | H15: 0 | I15: 0 | K15: 0 | L15: 0 | M15: 0 | N15: 0 | O15: 0 | Q15: 0 | R15: 0 | S15: 0 | T15: 0 | U15: 0 | W15: 0 | X15: 0 | Y15: 0 | Z15: 0 | AA15: 0 | AC15: 0 | AD15: 0 | AE15: 0 | AF15: 0 | AG15: 0 | AI15: 0 | AJ15: 0 | AK15: 0 | AL15: 0 | AM15: 0 | AO15: 0 | AP15: 0 | AQ15: 0 | AR15: 0 | AS15: 0 | AU15: 0 | AV15: 0 | AW15: 0 | AX15: 0 | AY15: 0 | BA15: 0 | BB15: 0 | BC15: 0 | BD15: 0 | BE15: 0 | BG15: 0 | BH15: 0 | BI15: 0 | BJ15: 0 | BK15: 0 | BM15: 0 | BN15: 0 | BO15: 0 | BP15: 0 | BQ15: 0 | BS15: =SUM(BS5:BS14) -> 0 | BT15: 0 | BU15: 0 | BV15: 0 | BW15: 0 | BY15: 0 | BZ15: 0 | CA15: 0 | CB15: 0 | CC15: 0 | CE15: 5 | CF15: 5 | CG15: 5 | CH15: 5 | CI15: 7.8
A17: Schedule A and Schedule B | C17: 40 | E17: =E15*0.4 -> 0 | F17: =F15*0.4 -> 0 | G17: 2 | H17: 0 | I17: 0 | K17: 0 | L17: 0 | M17: 0 | N17: 0 | O17: 0 | Q17: 0 | R17: 0 | S17: 0 | T17: 0 | U17: 0 | W17: 0 | X17: 0 | Y17: 0 | Z17: 0 | AA17: 0 | AC17: 0 | AD17: 0 | AE17: 0 | AF17: 0 | AG17: 0 | AI17: 0 | AJ17: 0 | AK17: 0 | AL17: 0 | AM17: 0 | AO17: 0 | AP17: 0 | AQ17: 0 | AR17: 0 | AS17: 0 | AU17: 0 | AV17: 0 | AW17: 0 | AX17: 0 | AY17: 0 | BA17: 0 | BB17: 0 | BC17: 0 | BD17: 0 | BE17: 0 | BG17: 0 | BH17: 0 | BI17: 0 | BJ17: 0 | BK17: 0 | BM17: 0 | BN17: 0 | BO17: 0 | BP17: 0 | BQ17: 0 | BS17: =BS15*0.4 -> 0 | BT17: 0 | BU17: 0 | BV17: 0 | BW17: 0 | BY17: 0 | BZ17: 0 | CA17: 0 | CB17: 0 | CC17: 0 | CE17: 2 | CF17: 2 | CG17: 2 | CH17: 2 | CI17: 3.12
A18: OEM Type Testing Reports | C18: 10 | D18: ='Type Tested Equipment UPS'!A32 -> 0.2 | E18: =D18*C18 -> 2
A19: Drawings, Manuals and Training | C19: 10
A20: Equipment manuals (installation, operating and maintenance) and drawings of each category of product offered. | B20: 5 | D20: ='Drawings, Manuals and Training'!#REF! ->  | E20: =D20*B20 -> 
A21: Information on local technical support, level of support offered and training | B21: 5 | D21: ='Drawings, Manuals and Training'!#REF! ->  | E21: =D21*B21 -> 
A22: Life Cycle Costing (Section 8 below)(Mean Time Between Failures, Equipment Reliability Cost, Repair Cost of Equipment, Spares) | C22: 17 | D22: ='Repair Cost Eval. UPS & MUPS'!A31 -> 1 | E22: =D22*C22 -> 17
A23: Deemed Technical Risk | C23: 13 | D23: =Risks!H36 -> 0.8666666667 | E23: =D23*C23 -> 11.26666667
A24: Practical Evaluation | C24: 10 | D24: ='Practical Evaluation'!G6 -> 0 | E24: =D24*C24 -> 0
A25: TOTAL | E25: =SUM(E17:E24) -> 
A28: UPS SCORE
B29: Criteria Sub Weighting | C29: Criteria Weighting | D29: Individual Criteria Evaluation Weight
E30: 5 KVA | K30: 10 KVA | Q30: 15 KVA | W30: 20 KVA | AC30: 30 KVA | AI30: 40 KVA | AO30: 50 KVA | AU30: 60 KVA | BA30: 80 KVA | BG30: 100 KVA | BM30: 120 KVA | BS30: 160 KVA | BY30: 200 KVA | CE30: 300 KVA
C31: Threshold value | D31: % | E31: 0.5 hr | F31: 1 hr | G31: 2 hr | H31: 4 hr | I31: 6 hr | K31: 0.5 hr | L31: 1 hr | M31: 2 hr | N31: 4 hr | O31: 6 hr | Q31: 0.5 hr | R31: 1 hr | S31: 2 hr | T31: 4 hr | U31: 6 hr | W31: 0.5 hr | X31: 1 hr | Y31: 2 hr | Z31: 4 hr | AA31: 6 hr | AC31: 0.5 hr | AD31: 1 hr | AE31: 2 hr | AF31: 4 hr | AG31: 6 hr | AI31: 0.5 hr | AJ31: 1 hr | AK31: 2 hr | AL31: 4 hr | AM31: 6 hr | AO31: 0.5 hr | AP31: 1 hr | AQ31: 2 hr | AR31: 4 hr | AS31: 6 hr | AU31: 0.5 hr | AV31: 1 hr | AW31: 2 hr | AX31: 4 hr | AY31: 6 hr | BA31: 0.5 hr | BB31: 1 hr | BC31: 2 hr | BD31: 4 hr | BE31: 6 hr | BG31: 0.5 hr | BH31: 1 hr | BI31: 2 hr | BJ31: 4 hr | BK31: 6 hr | BM31: 0.5 hr | BN31: 1 hr | BO31: 2 hr | BP31: 4 hr | BQ31: 6 hr | BS31: 0.5 hr | BT31: 1 hr | BU31: 2 hr | BV31: 4 hr | BW31: 6 hr | BY31: 0.5 hr | BZ31: 1 hr | CA31: 2 hr | CB31: 4 hr | CC31: 6 hr | CE31: 0.5 hr | CF31: 1 hr | CG31: 2 hr | CH31: 4 hr | CI31: 6 hr
A32: General Requirements | C32: =D32*0.8*100 -> 8 | D32: 0.1 | E32: ='UPS Rev 1 '!J4*$D32 -> 0 | F32: ='UPS Rev 1 '!M4*$D32 -> 0 | G32: ='UPS Rev 1 '!P4*$D32 -> 0 | H32: ='UPS Rev 1 '!S4*$D32 -> 0 | I32: ='UPS Rev 1 '!V4*$D32 -> 0 | K32: ='UPS Rev 1 '!AB4*$D32 -> 0 | L32: ='UPS Rev 1 '!AE4*$D32 -> 0 | M32: ='UPS Rev 1 '!AH4*$D32 -> 0 | N32: ='UPS Rev 1 '!AK4*$D32 -> 0 | O32: ='UPS Rev 1 '!AV4*$D32 -> 0 | Q32: ='UPS Rev 1 '!AT4*$D32 -> 0 | R32: ='UPS Rev 1 '!AW4*$D32 -> 0 | S32: ='UPS Rev 1 '!AZ4*$D32 -> 0 | T32: ='UPS Rev 1 '!BC4*$D32 -> 0 | U32: ='UPS Rev 1 '!BF4*$D32 -> 0 | W32: ='UPS Rev 1 '!BL4*$D32 -> 0 | X32: ='UPS Rev 1 '!BO4*$D32 -> 0 | Y32: ='UPS Rev 1 '!BR4*$D32 -> 0 | Z32: ='UPS Rev 1 '!BU4*$D32 -> 0 | AA32: ='UPS Rev 1 '!BX4*$D32 -> 0 | AC32: ='UPS Rev 1 '!CD4*$D32 -> 0 | AD32: ='UPS Rev 1 '!CG4*$D32 -> 0 | AE32: ='UPS Rev 1 '!CJ4*$D32 -> 0 | AF32: ='UPS Rev 1 '!CM4*$D32 -> 0 | AG32: ='UPS Rev 1 '!CP4*$D32 -> 0 | AI32: ='UPS Rev 1 '!CV4*$D32 -> 0 | AJ32: ='UPS Rev 1 '!CY4*$D32 -> 0 | AK32: ='UPS Rev 1 '!DB4*$D32 -> 0 | AL32: ='UPS Rev 1 '!DE4*$D32 -> 0 | AM32: ='UPS Rev 1 '!DH4*$D32 -> 0 | AO32: ='UPS Rev 1 '!DN4*$D32 -> 0 | AP32: ='UPS Rev 1 '!DQ4*$D32 -> 0 | AQ32: ='UPS Rev 1 '!DT4*$D32 -> 0 | AR32: ='UPS Rev 1 '!DW4*$D32 -> 0 | AS32: ='UPS Rev 1 '!DZ4*$D32 -> 0 | AU32: ='UPS Rev 1 '!EF4*$D32 -> 0 | AV32: ='UPS Rev 1 '!EI4*$D32 -> 0 | AW32: ='UPS Rev 1 '!EL4*$D32 -> 0 | AX32: ='UPS Rev 1 '!EO4*$D32 -> 0 | AY32: ='UPS Rev 1 '!ER4*$D32 -> 0 | BA32: ='UPS Rev 1 '!EX4*$D32 -> 0 | BB32: ='UPS Rev 1 '!FA4*$D32 -> 0 | BC32: ='UPS Rev 1 '!FD4*$D32 -> 0 | BD32: ='UPS Rev 1 '!FG4*$D32 -> 0 | BE32: ='UPS Rev 1 '!FV4*$D32 -> 0 | BG32: ='UPS Rev 1 '!FP4*$D32 -> 0 | BH32: ='UPS Rev 1 '!FS4*$D32 -> 0 | BI32: ='UPS Rev 1 '!FV4*$D32 -> 0 | BJ32: ='UPS Rev 1 '!FY4*$D32 -> 0 | BK32: ='UPS Rev 1 '!GB4*$D32 -> 0 | BM32: ='UPS Rev 1 '!GH4*$D32 -> 0 | BN32: ='UPS Rev 1 '!GK4*$D32 -> 0 | BO32: ='UPS Rev 1 '!GN4*$D32 -> 0 | BP32: ='UPS Rev 1 '!GQ4*$D32 -> 0 | BQ32: ='UPS Rev 1 '!GT4*$D32 -> 0 | BS32: ='UPS Rev 1 '!GZ4*$D32 -> 0 | BT32: ='UPS Rev 1 '!HC4*$D32 -> 0 | BU32: ='UPS Rev 1 '!HF4*$D32 -> 0 | BV32: ='UPS Rev 1 '!HI4*$D32 -> 0 | BW32: ='UPS Rev 1 '!HL4*$D32 -> 0 | BY32: ='UPS Rev 1 '!HR4*$D32 -> 0 | BZ32: ='UPS Rev 1 '!HU4*$D32 -> 0 | CA32: ='UPS Rev 1 '!HX4*$D32 -> 0 | CB32: ='UPS Rev 1 '!IA4*$D32 -> 0 | CC32: ='UPS Rev 1 '!ID4*$D32 -> 0 | CE32: ='UPS Rev 1 '!IJ4*$D32 -> 0 | CF32: ='UPS Rev 1 '!IM4*$D32 -> 0 | CG32: ='UPS Rev 1 '!IP4*$D32 -> 0 | CH32: ='UPS Rev 1 '!IS4*$D32 -> 0 | CI32: ='UPS Rev 1 '!IV4*$D32 -> 0
A33: Electrical input supply | C33: =D33*0.8*100 -> 16 | D33: 0.2 | E33: ='UPS Rev 1 '!J20*$D33 -> 0 | F33: ='UPS Rev 1 '!M20*$D32 -> 0 | G33: ='UPS Rev 1 '!P20*$D32 -> 0 | H33: ='UPS Rev 1 '!S20*$D32 -> 0 | I33: ='UPS Rev 1 '!V20*$D32 -> 0 | K33: ='UPS Rev 1 '!AB20*$D32 -> 0 | L33: ='UPS Rev 1 '!AE20*$D32 -> 0 | M33: ='UPS Rev 1 '!AH20*$D32 -> 0 | N33: ='UPS Rev 1 '!AK20*$D32 -> 0 | O33: ='UPS Rev 1 '!AV20*$D32 -> 0 | Q33: ='UPS Rev 1 '!AT20*$D32 -> 0 | R33: ='UPS Rev 1 '!AW20*$D32 -> 0 | S33: ='UPS Rev 1 '!AZ20*$D32 -> 0 | T33: ='UPS Rev 1 '!BC20*$D32 -> 0 | U33: ='UPS Rev 1 '!BF20*$D32 -> 0 | W33: ='UPS Rev 1 '!BL20*$D32 -> 0 | X33: ='UPS Rev 1 '!BO20*$D32 -> 0 | Y33: ='UPS Rev 1 '!BR20*$D32 -> 0 | Z33: ='UPS Rev 1 '!BU20*$D32 -> 0 | AA33: ='UPS Rev 1 '!BX20*$D32 -> 0 | AC33: ='UPS Rev 1 '!CD20*$D32 -> 0 | AD33: ='UPS Rev 1 '!CG20*$D32 -> 0 | AE33: ='UPS Rev 1 '!CJ20*$D32 -> 0 | AF33: ='UPS Rev 1 '!CM20*$D32 -> 0 | AG33: ='UPS Rev 1 '!CP20*$D32 -> 0 | AI33: ='UPS Rev 1 '!CV20*$D32 -> 0 | AJ33: ='UPS Rev 1 '!CY20*$D32 -> 0 | AK33: ='UPS Rev 1 '!DB20*$D32 -> 0 | AL33: ='UPS Rev 1 '!DE20*$D32 -> 0 | AM33: ='UPS Rev 1 '!DH20*$D32 -> 0 | AO33: ='UPS Rev 1 '!DN20*$D33 -> 0 | AP33: ='UPS Rev 1 '!DQ20*$D33 -> 0 | AQ33: ='UPS Rev 1 '!DT20*$D33 -> 0 | AR33: ='UPS Rev 1 '!DW20*$D33 -> 0 | AS33: ='UPS Rev 1 '!DZ20*$D33 -> 0 | AU33: ='UPS Rev 1 '!EF20*$D33 -> 0 | AV33: ='UPS Rev 1 '!EI20*$D33 -> 0 | AW33: ='UPS Rev 1 '!EL20*$D33 -> 0 | AX33: ='UPS Rev 1 '!EO20*$D33 -> 0 | AY33: ='UPS Rev 1 '!ER20*$D33 -> 0 | BA33: ='UPS Rev 1 '!EX20*$D33 -> 0 | BB33: ='UPS Rev 1 '!FA20*$D33 -> 0 | BC33: ='UPS Rev 1 '!FD20*$D33 -> 0 | BD33: ='UPS Rev 1 '!FG20*$D33 -> 0 | BE33: ='UPS Rev 1 '!FJ20*$D33 -> 0 | BG33: ='UPS Rev 1 '!FP20*$D33 -> 0 | BH33: ='UPS Rev 1 '!FS20*$D33 -> 0 | BI33: ='UPS Rev 1 '!FV20*$D33 -> 0 | BJ33: ='UPS Rev 1 '!FY20*$D33 -> 0 | BK33: ='UPS Rev 1 '!GB20*$D33 -> 0 | BM33: ='UPS Rev 1 '!GH20*$D33 -> 0 | BN33: ='UPS Rev 1 '!GK20*$D33 -> 0 | BO33: ='UPS Rev 1 '!GN20*$D33 -> 0 | BP33: ='UPS Rev 1 '!GQ20*$D33 -> 0 | BQ33: ='UPS Rev 1 '!GT20*$D33 -> 0 | BS33: ='UPS Rev 1 '!GZ20*$D33 -> 0 | BT33: ='UPS Rev 1 '!HC20*$D33 -> 0 | BU33: ='UPS Rev 1 '!HF20*$D33 -> 0 | BV33: ='UPS Rev 1 '!HI20*$D33 -> 0 | BW33: ='UPS Rev 1 '!HL20*$D33 -> 0 | BY33: ='UPS Rev 1 '!HR20*$D33 -> 0 | BZ33: ='UPS Rev 1 '!HU20*$D33 -> 0 | CA33: ='UPS Rev 1 '!HX20*$D33 -> 0 | CB33: ='UPS Rev 1 '!IA20*$D33 -> 0 | CC33: ='UPS Rev 1 '!ID20*$D33 -> 0 | CE33: ='UPS Rev 1 '!IJ20*$D33 -> 0 | CF33: ='UPS Rev 1 '!IM20*$D33 -> 0 | CG33: ='UPS Rev 1 '!IP20*$D33 -> 0 | CH33: ='UPS Rev 1 '!IS20*$D33 -> 0 | CI33: ='UPS Rev 1 '!IV20*$D33 -> 0
A34: Operational requirements | C34: 20 | D34: 0.25 | E34: ='UPS Rev 1 '!J30*$D34 -> 0 | F34: ='UPS Rev 1 '!M30*$D33 -> 0 | G34: ='UPS Rev 1 '!P30*$D33 -> 0 | H34: ='UPS Rev 1 '!S30*$D33 -> 0 | I34: ='UPS Rev 1 '!V30*$D33 -> 0 | K34: ='UPS Rev 1 '!AB30*$D33 -> 0 | L34: ='UPS Rev 1 '!AE30*$D33 -> 0 | M34: ='UPS Rev 1 '!AH30*$D33 -> 0 | N34: ='UPS Rev 1 '!AK30*$D33 -> 0 | O34: ='UPS Rev 1 '!AV30*$D33 -> 0 | Q34: ='UPS Rev 1 '!AT30*$D33 -> 0 | R34: ='UPS Rev 1 '!AW30*$D33 -> 0 | S34: ='UPS Rev 1 '!AZ30*$D33 -> 0 | T34: ='UPS Rev 1 '!BC30*$D33 -> 0 | U34: ='UPS Rev 1 '!BF30*$D33 -> 0 | W34: ='UPS Rev 1 '!BL30*$D33 -> 0 | X34: ='UPS Rev 1 '!BO30*$D33 -> 0 | Y34: ='UPS Rev 1 '!BR30*$D33 -> 0 | Z34: ='UPS Rev 1 '!BU30*$D33 -> 0 | AA34: ='UPS Rev 1 '!BX30*$D33 -> 0 | AC34: ='UPS Rev 1 '!CD30*$D33 -> 0 | AD34: ='UPS Rev 1 '!CG30*$D33 -> 0 | AE34: ='UPS Rev 1 '!CJ30*$D33 -> 0 | AF34: ='UPS Rev 1 '!CM30*$D33 -> 0 | AG34: ='UPS Rev 1 '!CP30*$D33 -> 0 | AI34: ='UPS Rev 1 '!CV30*$D33 -> 0 | AJ34: ='UPS Rev 1 '!CY30*$D33 -> 0 | AK34: ='UPS Rev 1 '!DB30*$D33 -> 0 | AL34: ='UPS Rev 1 '!DE30*$D33 -> 0 | AM34: ='UPS Rev 1 '!DH30*$D33 -> 0 | AO34: ='UPS Rev 1 '!DN30*$D34 -> 0 | AP34: ='UPS Rev 1 '!DQ30*$D34 -> 0 | AQ34: ='UPS Rev 1 '!DT30*$D34 -> 0 | AR34: ='UPS Rev 1 '!DW30*$D34 -> 0 | AS34: ='UPS Rev 1 '!DZ30*$D34 -> 0 | AU34: ='UPS Rev 1 '!EF30*$D34 -> 0 | AV34: ='UPS Rev 1 '!EI30*$D34 -> 0 | AW34: ='UPS Rev 1 '!EL30*$D34 -> 0 | AX34: ='UPS Rev 1 '!EO30*$D34 -> 0 | AY34: ='UPS Rev 1 '!ER30*$D34 -> 0 | BA34: ='UPS Rev 1 '!EX30*$D34 -> 0 | BB34: ='UPS Rev 1 '!FA30*$D34 -> 0 | BC34: ='UPS Rev 1 '!FD30*$D34 -> 0 | BD34: ='UPS Rev 1 '!FG30*$D34 -> 0 | BE34: ='UPS Rev 1 '!FJ30*$D34 -> 0 | BG34: ='UPS Rev 1 '!FP30*$D34 -> 0 | BH34: ='UPS Rev 1 '!FS30*$D34 -> 0 | BI34: ='UPS Rev 1 '!FV30*$D34 -> 0 | BJ34: ='UPS Rev 1 '!FY30*$D34 -> 0 | BK34: ='UPS Rev 1 '!GB30*$D34 -> 0 | BM34: ='UPS Rev 1 '!GH30*$D34 -> 0 | BN34: ='UPS Rev 1 '!GK30*$D34 -> 0 | BO34: ='UPS Rev 1 '!GN30*$D34 -> 0 | BP34: ='UPS Rev 1 '!GQ30*$D34 -> 0 | BQ34: ='UPS Rev 1 '!GT30*$D34 -> 0 | BS34: ='UPS Rev 1 '!GZ30*$D34 -> 0 | BT34: ='UPS Rev 1 '!HC30*$D34 -> 0 | BU34: ='UPS Rev 1 '!HF30*$D34 -> 0 | BV34: ='UPS Rev 1 '!HI30*$D34 -> 0 | BW34: ='UPS Rev 1 '!HL30*$D34 -> 0 | BY34: ='UPS Rev 1 '!HR30*$D34 -> 0 | BZ34: ='UPS Rev 1 '!HU30*$D34 -> 0 | CA34: ='UPS Rev 1 '!HX30*$D34 -> 0 | CB34: ='UPS Rev 1 '!IA30*$D34 -> 0 | CC34: ='UPS Rev 1 '!ID30*$D34 -> 0 | CE34: ='UPS Rev 1 '!IJ30*$D34 -> 0 | CF34: ='UPS Rev 1 '!IM30*$D34 -> 0 | CG34: ='UPS Rev 1 '!IP30*$D34 -> 0 | CH34: ='UPS Rev 1 '!IS30*$D34 -> 0 | CI34: ='UPS Rev 1 '!IV30*$D34 -> 0
A35: Mechanical Requirements | C35: 8 | D35: 0.1 | E35: ='UPS Rev 1 '!J361*$D35 -> 0 | F35: ='UPS Rev 1 '!M361*$D34 -> 0 | G35: ='UPS Rev 1 '!P361*$D34 -> 0 | H35: ='UPS Rev 1 '!S361*$D34 -> 0 | I35: ='UPS Rev 1 '!V361*$D34 -> 0 | K35: ='UPS Rev 1 '!AB361*$D34 -> 0 | L35: ='UPS Rev 1 '!AE361*$D34 -> 0 | M35: ='UPS Rev 1 '!AH361*$D34 -> 0 | N35: ='UPS Rev 1 '!AK361*$D34 -> 0 | O35: ='UPS Rev 1 '!AV361*$D34 -> 0 | Q35: ='UPS Rev 1 '!AT361*$D34 -> 0 | R35: ='UPS Rev 1 '!AW361*$D34 -> 0 | S35: ='UPS Rev 1 '!AZ361*$D34 -> 0 | T35: ='UPS Rev 1 '!BC361*$D34 -> 0 | U35: ='UPS Rev 1 '!BF361*$D34 -> 0 | W35: ='UPS Rev 1 '!BL361*$D34 -> 0 | X35: ='UPS Rev 1 '!BO361*$D34 -> 0 | Y35: ='UPS Rev 1 '!BR361*$D34 -> 0 | Z35: ='UPS Rev 1 '!BU361*$D34 -> 0 | AA35: ='UPS Rev 1 '!BX361*$D34 -> 0 | AC35: ='UPS Rev 1 '!CD361*$D34 -> 0 | AD35: ='UPS Rev 1 '!CG361*$D34 -> 0 | AE35: ='UPS Rev 1 '!CJ361*$D34 -> 0 | AF35: ='UPS Rev 1 '!CM361*$D34 -> 0 | AG35: ='UPS Rev 1 '!CP361*$D34 -> 0 | AI35: ='UPS Rev 1 '!CV361*$D34 -> 0 | AJ35: ='UPS Rev 1 '!CY361*$D34 -> 0 | AK35: ='UPS Rev 1 '!DB361*$D34 -> 0 | AL35: ='UPS Rev 1 '!DE361*$D34 -> 0 | AM35: ='UPS Rev 1 '!DH361*$D34 -> 0 | AO35: ='UPS Rev 1 '!DN361*$D35 -> 0 | AP35: ='UPS Rev 1 '!DQ361*$D35 -> 0 | AQ35: ='UPS Rev 1 '!DT361*$D35 -> 0 | AR35: ='UPS Rev 1 '!DW361*$D35 -> 0 | AS35: ='UPS Rev 1 '!DZ361*$D35 -> 0 | AU35: ='UPS Rev 1 '!EF361*$D35 -> 0 | AV35: ='UPS Rev 1 '!EI361*$D35 -> 0 | AW35: ='UPS Rev 1 '!EL361*$D35 -> 0 | AX35: ='UPS Rev 1 '!EO361*$D35 -> 0 | AY35: ='UPS Rev 1 '!ER361*$D35 -> 0 | BA35: ='UPS Rev 1 '!EX361*$D35 -> 0 | BB35: ='UPS Rev 1 '!FA361*$D35 -> 0 | BC35: ='UPS Rev 1 '!FD361*$D35 -> 0 | BD35: ='UPS Rev 1 '!FG361*$D35 -> 0 | BE35: ='UPS Rev 1 '!FJ361*$D35 -> 0 | BG35: ='UPS Rev 1 '!FP361*$D35 -> 0 | BH35: ='UPS Rev 1 '!FS361*$D35 -> 0 | BI35: ='UPS Rev 1 '!FV361*$D35 -> 0 | BJ35: ='UPS Rev 1 '!FY361*$D35 -> 0 | BK35: ='UPS Rev 1 '!GB361*$D35 -> 0 | BM35: ='UPS Rev 1 '!GH361*$D35 -> 0 | BN35: ='UPS Rev 1 '!GK361*$D35 -> 0 | BO35: ='UPS Rev 1 '!GN361*$D35 -> 0 | BP35: ='UPS Rev 1 '!GQ361*$D35 -> 0 | BQ35: ='UPS Rev 1 '!GT361*$D35 -> 0 | BS35: ='UPS Rev 1 '!GZ361*$D35 -> 0 | BT35: ='UPS Rev 1 '!HC361*$D35 -> 0 | BU35: ='UPS Rev 1 '!HF361*$D35 -> 0 | BV35: ='UPS Rev 1 '!HI361*$D35 -> 0 | BW35: ='UPS Rev 1 '!HL361*$D35 -> 0 | BY35: ='UPS Rev 1 '!HR361*$D35 -> 0 | BZ35: ='UPS Rev 1 '!HU361*$D35 -> 0 | CA35: ='UPS Rev 1 '!HX361*$D35 -> 0 | CB35: ='UPS Rev 1 '!IA361*$D35 -> 0 | CC35: ='UPS Rev 1 '!ID361*$D35 -> 0 | CE35: ='UPS Rev 1 '!IJ361*$D35 -> 0 | CF35: ='UPS Rev 1 '!IM361*$D35 -> 0 | CG35: ='UPS Rev 1 '!IP361*$D35 -> 0 | CH35: ='UPS Rev 1 '!IS361*$D35 -> 0 | CI35: ='UPS Rev 1 '!IV361*$D35 -> 0
A36: Settings and Commissioning | C36: 4 | D36: 0.05 | E36: ='UPS Rev 1 '!J502*$D36 -> 0 | F36: ='UPS Rev 1 '!M502*$D35 -> 0 | G36: ='UPS Rev 1 '!P502*$D35 -> 0 | H36: ='UPS Rev 1 '!S502*$D35 -> 0 | I36: ='UPS Rev 1 '!V502*$D35 -> 0 | K36: ='UPS Rev 1 '!AB502*$D35 -> 0 | L36: ='UPS Rev 1 '!AE502*$D35 -> 0 | M36: ='UPS Rev 1 '!AH502*$D35 -> 0 | N36: ='UPS Rev 1 '!AK502*$D35 -> 0 | O36: ='UPS Rev 1 '!AV502*$D35 -> 0 | Q36: ='UPS Rev 1 '!AT502*$D35 -> 0 | R36: ='UPS Rev 1 '!AW502*$D35 -> 0 | S36: ='UPS Rev 1 '!AZ502*$D35 -> 0 | T36: ='UPS Rev 1 '!BC502*$D35 -> 0 | U36: ='UPS Rev 1 '!BF502*$D35 -> 0 | W36: ='UPS Rev 1 '!BL502*$D35 -> 0 | X36: ='UPS Rev 1 '!BO502*$D35 -> 0 | Y36: ='UPS Rev 1 '!BR502*$D35 -> 0 | Z36: ='UPS Rev 1 '!BU502*$D35 -> 0 | AA36: ='UPS Rev 1 '!BX502*$D35 -> 0 | AC36: ='UPS Rev 1 '!CD502*$D35 -> 0 | AD36: ='UPS Rev 1 '!CG502*$D35 -> 0 | AE36: ='UPS Rev 1 '!CJ502*$D35 -> 0 | AF36: ='UPS Rev 1 '!CM502*$D35 -> 0 | AG36: ='UPS Rev 1 '!CP502*$D35 -> 0 | AI36: ='UPS Rev 1 '!CV502*$D35 -> 0 | AJ36: ='UPS Rev 1 '!CY502*$D35 -> 0 | AK36: ='UPS Rev 1 '!DB502*$D35 -> 0 | AL36: ='UPS Rev 1 '!DE502*$D35 -> 0 | AM36: ='UPS Rev 1 '!DH502*$D35 -> 0 | AO36: ='UPS Rev 1 '!DN502*$D36 -> 0 | AP36: ='UPS Rev 1 '!DQ502*$D36 -> 0 | AQ36: ='UPS Rev 1 '!DT502*$D36 -> 0 | AR36: ='UPS Rev 1 '!DW502*$D36 -> 0 | AS36: ='UPS Rev 1 '!DZ502*$D36 -> 0 | AU36: ='UPS Rev 1 '!EF502*$D36 -> 0 | AV36: ='UPS Rev 1 '!EI502*$D36 -> 0 | AW36: ='UPS Rev 1 '!EL502*$D36 -> 0 | AX36: ='UPS Rev 1 '!EO502*$D36 -> 0 | AY36: ='UPS Rev 1 '!ER502*$D36 -> 0 | BA36: ='UPS Rev 1 '!EX502*$D36 -> 0 | BB36: ='UPS Rev 1 '!FA502*$D36 -> 0 | BC36: ='UPS Rev 1 '!FD502*$D36 -> 0 | BD36: ='UPS Rev 1 '!FG502*$D36 -> 0 | BE36: ='UPS Rev 1 '!FJ502*$D36 -> 0 | BG36: ='UPS Rev 1 '!FP502*$D36 -> 0 | BH36: ='UPS Rev 1 '!FS502*$D36 -> 0 | BI36: ='UPS Rev 1 '!FV502*$D36 -> 0 | BJ36: ='UPS Rev 1 '!FY502*$D36 -> 0 | BK36: ='UPS Rev 1 '!GB502*$D36 -> 0 | BM36: ='UPS Rev 1 '!GH502*$D36 -> 0 | BN36: ='UPS Rev 1 '!GK502*$D36 -> 0 | BO36: ='UPS Rev 1 '!GN502*$D36 -> 0 | BP36: ='UPS Rev 1 '!GQ502*$D36 -> 0 | BQ36: ='UPS Rev 1 '!GT502*$D36 -> 0 | BS36: ='UPS Rev 1 '!GZ502*$D36 -> 0 | BT36: ='UPS Rev 1 '!HC502*$D36 -> 0 | BU36: ='UPS Rev 1 '!HF502*$D36 -> 0 | BV36: ='UPS Rev 1 '!HI502*$D36 -> 0 | BW36: ='UPS Rev 1 '!HL502*$D36 -> 0 | BY36: ='UPS Rev 1 '!HR502*$D36 -> 0 | BZ36: ='UPS Rev 1 '!HU502*$D36 -> 0 | CA36: ='UPS Rev 1 '!HX502*$D36 -> 0 | CB36: ='UPS Rev 1 '!IA502*$D36 -> 0 | CC36: ='UPS Rev 1 '!ID502*$D36 -> 0 | CE36: ='UPS Rev 1 '!IJ502*$D36 -> 0 | CF36: ='UPS Rev 1 '!IM502*$D36 -> 0 | CG36: ='UPS Rev 1 '!IP502*$D36 -> 0 | CH36: ='UPS Rev 1 '!IS502*$D36 -> 0 | CI36: ='UPS Rev 1 '!IV502*$D36 -> 0
A37: Type testing | C37: 8 | D37: 0.1 | E37: ='UPS Rev 1 '!J529*$D37 -> 0 | F37: ='UPS Rev 1 '!M529*$D36 -> 0 | G37: ='UPS Rev 1 '!P529*$D36 -> 0 | H37: ='UPS Rev 1 '!S529*$D36 -> 0 | I37: ='UPS Rev 1 '!V529*$D36 -> 0 | K37: ='UPS Rev 1 '!AB529*$D36 -> 0 | L37: ='UPS Rev 1 '!AE529*$D36 -> 0 | M37: ='UPS Rev 1 '!AH529*$D36 -> 0 | N37: ='UPS Rev 1 '!AK529*$D36 -> 0 | O37: ='UPS Rev 1 '!AV529*$D36 -> 0 | Q37: ='UPS Rev 1 '!AT529*$D36 -> 0 | R37: ='UPS Rev 1 '!AW529*$D36 -> 0 | S37: ='UPS Rev 1 '!AZ529*$D36 -> 0 | T37: ='UPS Rev 1 '!BC529*$D36 -> 0 | U37: ='UPS Rev 1 '!BF529*$D36 -> 0 | W37: ='UPS Rev 1 '!BL529*$D36 -> 0 | X37: ='UPS Rev 1 '!BO529*$D36 -> 0 | Y37: ='UPS Rev 1 '!BR529*$D36 -> 0 | Z37: ='UPS Rev 1 '!BU529*$D36 -> 0 | AA37: ='UPS Rev 1 '!BX529*$D36 -> 0 | AC37: ='UPS Rev 1 '!CD529*$D36 -> 0 | AD37: ='UPS Rev 1 '!CG529*$D36 -> 0 | AE37: ='UPS Rev 1 '!CJ529*$D36 -> 0 | AF37: ='UPS Rev 1 '!CM529*$D36 -> 0 | AG37: ='UPS Rev 1 '!CP529*$D36 -> 0 | AI37: ='UPS Rev 1 '!CV529*$D36 -> 0 | AJ37: ='UPS Rev 1 '!CY529*$D36 -> 0 | AK37: ='UPS Rev 1 '!DB529*$D36 -> 0 | AL37: ='UPS Rev 1 '!DE529*$D36 -> 0 | AM37: ='UPS Rev 1 '!DH529*$D36 -> 0 | AO37: ='UPS Rev 1 '!DN529*$D37 -> 0 | AP37: ='UPS Rev 1 '!DQ529*$D37 -> 0 | AQ37: ='UPS Rev 1 '!DT529*$D37 -> 0 | AR37: ='UPS Rev 1 '!DW529*$D37 -> 0 | AS37: ='UPS Rev 1 '!DZ529*$D37 -> 0 | AU37: ='UPS Rev 1 '!EF529*$D37 -> 0 | AV37: ='UPS Rev 1 '!EI529*$D37 -> 0 | AW37: ='UPS Rev 1 '!EL529*$D37 -> 0 | AX37: ='UPS Rev 1 '!EO529*$D37 -> 0 | AY37: ='UPS Rev 1 '!ER529*$D37 -> 0 | BA37: ='UPS Rev 1 '!EX529*$D37 -> 0 | BB37: ='UPS Rev 1 '!FA529*$D37 -> 0 | BC37: ='UPS Rev 1 '!FD529*$D37 -> 0 | BD37: ='UPS Rev 1 '!FG529*$D37 -> 0 | BE37: ='UPS Rev 1 '!FJ529*$D37 -> 0 | BG37: ='UPS Rev 1 '!FP529*$D37 -> 0 | BH37: ='UPS Rev 1 '!FS529*$D37 -> 0 | BI37: ='UPS Rev 1 '!FV529*$D37 -> 0 | BJ37: ='UPS Rev 1 '!FY529*$D37 -> 0 | BK37: ='UPS Rev 1 '!GB529*$D37 -> 0 | BM37: ='UPS Rev 1 '!GH529*$D37 -> 0 | BN37: ='UPS Rev 1 '!GK529*$D37 -> 0 | BO37: ='UPS Rev 1 '!GN529*$D37 -> 0 | BP37: ='UPS Rev 1 '!GQ529*$D37 -> 0 | BQ37: ='UPS Rev 1 '!GT529*$D37 -> 0 | BS37: ='UPS Rev 1 '!GZ529*$D37 -> 0 | BT37: ='UPS Rev 1 '!HC529*$D37 -> 0 | BU37: ='UPS Rev 1 '!HF529*$D37 -> 0 | BV37: ='UPS Rev 1 '!HI529*$D37 -> 0 | BW37: ='UPS Rev 1 '!HL529*$D37 -> 0 | BY37: ='UPS Rev 1 '!HR529*$D37 -> 0 | BZ37: ='UPS Rev 1 '!HU529*$D37 -> 0 | CA37: ='UPS Rev 1 '!HX529*$D37 -> 0 | CB37: ='UPS Rev 1 '!IA529*$D37 -> 0 | CC37: ='UPS Rev 1 '!ID529*$D37 -> 0 | CE37: ='UPS Rev 1 '!IJ529*$D37 -> 0 | CF37: ='UPS Rev 1 '!IM529*$D37 -> 0 | CG37: ='UPS Rev 1 '!IP529*$D37 -> 0 | CH37: ='UPS Rev 1 '!IS529*$D37 -> 0 | CI37: ='UPS Rev 1 '!IV529*$D37 -> 0
A38: Marking, labeling and packaging | C38: 4 | D38: 0.05 | E38: ='UPS Rev 1 '!J627*$D38 -> 0 | F38: ='UPS Rev 1 '!M627*$D37 -> 0 | G38: ='UPS Rev 1 '!P627*$D37 -> 0 | H38: ='UPS Rev 1 '!S627*$D37 -> 0 | I38: ='UPS Rev 1 '!V627*$D37 -> 0 | K38: ='UPS Rev 1 '!AB627*$D37 -> 0 | L38: ='UPS Rev 1 '!AE627*$D37 -> 0 | M38: ='UPS Rev 1 '!AH627*$D37 -> 0 | N38: ='UPS Rev 1 '!AK627*$D37 -> 0 | O38: ='UPS Rev 1 '!AV627*$D37 -> 0 | Q38: ='UPS Rev 1 '!AT627*$D37 -> 0 | R38: ='UPS Rev 1 '!AW627*$D37 -> 0 | S38: ='UPS Rev 1 '!AZ627*$D37 -> 0 | T38: ='UPS Rev 1 '!BC627*$D37 -> 0 | U38: ='UPS Rev 1 '!BF627*$D37 -> 0 | W38: ='UPS Rev 1 '!BL627*$D37 -> 0 | X38: ='UPS Rev 1 '!BO627*$D37 -> 0 | Y38: ='UPS Rev 1 '!BR627*$D37 -> 0 | Z38: ='UPS Rev 1 '!BU627*$D37 -> 0 | AA38: ='UPS Rev 1 '!BX627*$D37 -> 0 | AC38: ='UPS Rev 1 '!CD627*$D37 -> 0 | AD38: ='UPS Rev 1 '!CG627*$D37 -> 0 | AE38: ='UPS Rev 1 '!CJ627*$D37 -> 0 | AF38: ='UPS Rev 1 '!CM627*$D37 -> 0 | AG38: ='UPS Rev 1 '!CP627*$D37 -> 0 | AI38: ='UPS Rev 1 '!CV627*$D37 -> 0 | AJ38: ='UPS Rev 1 '!CY627*$D37 -> 0 | AK38: ='UPS Rev 1 '!DB627*$D37 -> 0 | AL38: ='UPS Rev 1 '!DE627*$D37 -> 0 | AM38: ='UPS Rev 1 '!DH627*$D37 -> 0 | AO38: ='UPS Rev 1 '!DN627*$D38 -> 0 | AP38: ='UPS Rev 1 '!DQ627*$D38 -> 0 | AQ38: ='UPS Rev 1 '!DT627*$D38 -> 0 | AR38: ='UPS Rev 1 '!DW627*$D38 -> 0 | AS38: ='UPS Rev 1 '!DZ627*$D38 -> 0 | AU38: ='UPS Rev 1 '!EF627*$D38 -> 0 | AV38: ='UPS Rev 1 '!EI627*$D38 -> 0 | AW38: ='UPS Rev 1 '!EL627*$D38 -> 0 | AX38: ='UPS Rev 1 '!EO627*$D38 -> 0 | AY38: ='UPS Rev 1 '!ER627*$D38 -> 0 | BA38: ='UPS Rev 1 '!EX627*$D38 -> 0 | BB38: ='UPS Rev 1 '!FA627*$D38 -> 0 | BC38: ='UPS Rev 1 '!FD627*$D38 -> 0 | BD38: ='UPS Rev 1 '!FG627*$D38 -> 0 | BE38: ='UPS Rev 1 '!FJ627*$D38 -> 0 | BG38: ='UPS Rev 1 '!FP627*$D38 -> 0 | BH38: ='UPS Rev 1 '!FS627*$D38 -> 0 | BI38: ='UPS Rev 1 '!FV627*$D38 -> 0 | BJ38: ='UPS Rev 1 '!FY627*$D38 -> 0 | BK38: ='UPS Rev 1 '!GB627*$D38 -> 0 | BM38: ='UPS Rev 1 '!GH627*$D38 -> 0 | BN38: ='UPS Rev 1 '!GK627*$D38 -> 0 | BO38: ='UPS Rev 1 '!GN627*$D38 -> 0 | BP38: ='UPS Rev 1 '!GQ627*$D38 -> 0 | BQ38: ='UPS Rev 1 '!GT627*$D38 -> 0 | BS38: ='UPS Rev 1 '!GZ627*$D38 -> 0 | BT38: ='UPS Rev 1 '!HC627*$D38 -> 0 | BU38: ='UPS Rev 1 '!HF627*$D38 -> 0 | BV38: ='UPS Rev 1 '!HI627*$D38 -> 0 | BW38: ='UPS Rev 1 '!HL627*$D38 -> 0 | BY38: ='UPS Rev 1 '!HR627*$D38 -> 0 | BZ38: ='UPS Rev 1 '!HU627*$D38 -> 0 | CA38: ='UPS Rev 1 '!HX627*$D38 -> 0 | CB38: ='UPS Rev 1 '!IA627*$D38 -> 0 | CC38: ='UPS Rev 1 '!ID627*$D38 -> 0 | CE38: ='UPS Rev 1 '!IJ627*$D38 -> 0 | CF38: ='UPS Rev 1 '!IM627*$D38 -> 0 | CG38: ='UPS Rev 1 '!IP627*$D38 -> 0 | CH38: ='UPS Rev 1 '!IS627*$D38 -> 0 | CI38: ='UPS Rev 1 '!IV627*$D38 -> 0
A39: Spares | C39: 4 | D39: 0.05 | E39: ='UPS Rev 1 '!J634*$D39 -> 0 | F39: ='UPS Rev 1 '!M634*$D38 -> 0 | G39: ='UPS Rev 1 '!P634*$D38 -> 0 | H39: ='UPS Rev 1 '!S634*$D38 -> 0 | I39: ='UPS Rev 1 '!V634*$D38 -> 0 | K39: ='UPS Rev 1 '!AB634*$D38 -> 0 | L39: ='UPS Rev 1 '!AE634*$D38 -> 0 | M39: ='UPS Rev 1 '!AH634*$D38 -> 0 | N39: ='UPS Rev 1 '!AK634*$D38 -> 0 | O39: ='UPS Rev 1 '!AV634*$D38 -> 0 | Q39: ='UPS Rev 1 '!AT634*$D38 -> 0 | R39: ='UPS Rev 1 '!AW634*$D38 -> 0 | S39: ='UPS Rev 1 '!AZ634*$D38 -> 0 | T39: ='UPS Rev 1 '!BC634*$D38 -> 0 | U39: ='UPS Rev 1 '!BF634*$D38 -> 0 | W39: ='UPS Rev 1 '!BL634*$D38 -> 0 | X39: ='UPS Rev 1 '!BO634*$D38 -> 0 | Y39: ='UPS Rev 1 '!BR634*$D38 -> 0 | Z39: ='UPS Rev 1 '!BU634*$D38 -> 0 | AA39: ='UPS Rev 1 '!BX634*$D38 -> 0 | AC39: ='UPS Rev 1 '!CD634*$D38 -> 0 | AD39: ='UPS Rev 1 '!CG634*$D38 -> 0 | AE39: ='UPS Rev 1 '!CJ634*$D38 -> 0 | AF39: ='UPS Rev 1 '!CM634*$D38 -> 0 | AG39: ='UPS Rev 1 '!CP634*$D38 -> 0 | AI39: ='UPS Rev 1 '!CV634*$D38 -> 0 | AJ39: ='UPS Rev 1 '!CY634*$D38 -> 0 | AK39: ='UPS Rev 1 '!DB634*$D38 -> 0 | AL39: ='UPS Rev 1 '!DE634*$D38 -> 0 | AM39: ='UPS Rev 1 '!DH634*$D38 -> 0 | AO39: ='UPS Rev 1 '!DN634*$D39 -> 0 | AP39: ='UPS Rev 1 '!DQ634*$D39 -> 0 | AQ39: ='UPS Rev 1 '!DT634*$D39 -> 0 | AR39: ='UPS Rev 1 '!DW634*$D39 -> 0 | AS39: ='UPS Rev 1 '!DZ634*$D39 -> 0 | AU39: ='UPS Rev 1 '!EF634*$D39 -> 0 | AV39: ='UPS Rev 1 '!EI634*$D39 -> 0 | AW39: ='UPS Rev 1 '!EL634*$D39 -> 0 | AX39: ='UPS Rev 1 '!EO634*$D39 -> 0 | AY39: ='UPS Rev 1 '!ER634*$D39 -> 0 | BA39: ='UPS Rev 1 '!EX634*$D39 -> 0 | BB39: ='UPS Rev 1 '!FA634*$D39 -> 0 | BC39: ='UPS Rev 1 '!FD634*$D39 -> 0 | BD39: ='UPS Rev 1 '!FG634*$D39 -> 0 | BE39: ='UPS Rev 1 '!FJ634*$D39 -> 0 | BG39: ='UPS Rev 1 '!FP634*$D39 -> 0 | BH39: ='UPS Rev 1 '!FS634*$D39 -> 0 | BI39: ='UPS Rev 1 '!FV634*$D39 -> 0 | BJ39: ='UPS Rev 1 '!FY634*$D39 -> 0 | BK39: ='UPS Rev 1 '!GB634*$D39 -> 0 | BM39: ='UPS Rev 1 '!GH634*$D39 -> 0 | BN39: ='UPS Rev 1 '!GK634*$D39 -> 0 | BO39: ='UPS Rev 1 '!GN634*$D39 -> 0 | BP39: ='UPS Rev 1 '!GQ634*$D39 -> 0 | BQ39: ='UPS Rev 1 '!GT634*$D39 -> 0 | BS39: ='UPS Rev 1 '!GZ634*$D39 -> 0 | BT39: ='UPS Rev 1 '!HC634*$D39 -> 0 | BU39: ='UPS Rev 1 '!HF634*$D39 -> 0 | BV39: ='UPS Rev 1 '!HI634*$D39 -> 0 | BW39: ='UPS Rev 1 '!HL634*$D39 -> 0 | BY39: ='UPS Rev 1 '!HR634*$D39 -> 0 | BZ39: ='UPS Rev 1 '!HU634*$D39 -> 0 | CA39: ='UPS Rev 1 '!HX634*$D39 -> 0 | CB39: ='UPS Rev 1 '!IA634*$D39 -> 0 | CC39: ='UPS Rev 1 '!ID634*$D39 -> 0 | CE39: ='UPS Rev 1 '!IJ634*$D39 -> 0 | CF39: ='UPS Rev 1 '!IM634*$D39 -> 0 | CG39: ='UPS Rev 1 '!IP634*$D39 -> 0 | CH39: ='UPS Rev 1 '!IS634*$D39 -> 0 | CI39: ='UPS Rev 1 '!IV634*$D39 -> 0
A40: Documentation | C40: 4 | D40: 0.05 | E40: ='UPS Rev 1 '!J645*$D40 -> 0 | F40: ='UPS Rev 1 '!M645*$D39 -> 0 | G40: ='UPS Rev 1 '!P645*$D39 -> 0 | H40: ='UPS Rev 1 '!S645*$D39 -> 0 | I40: ='UPS Rev 1 '!V645*$D39 -> 0 | K40: ='UPS Rev 1 '!AB645*$D39 -> 0 | L40: ='UPS Rev 1 '!AE645*$D39 -> 0 | M40: ='UPS Rev 1 '!AH645*$D39 -> 0 | N40: ='UPS Rev 1 '!AK645*$D39 -> 0 | O40: ='UPS Rev 1 '!AV645*$D39 -> 0 | Q40: ='UPS Rev 1 '!AT645*$D39 -> 0 | R40: ='UPS Rev 1 '!AW645*$D39 -> 0 | S40: ='UPS Rev 1 '!AZ645*$D39 -> 0 | T40: ='UPS Rev 1 '!BC645*$D39 -> 0 | U40: ='UPS Rev 1 '!BF645*$D39 -> 0 | W40: ='UPS Rev 1 '!BL645*$D39 -> 0 | X40: ='UPS Rev 1 '!BO645*$D39 -> 0 | Y40: ='UPS Rev 1 '!BR645*$D39 -> 0 | Z40: ='UPS Rev 1 '!BU645*$D39 -> 0 | AA40: ='UPS Rev 1 '!BX645*$D39 -> 0 | AC40: ='UPS Rev 1 '!CD645*$D39 -> 0 | AD40: ='UPS Rev 1 '!CG645*$D39 -> 0 | AE40: ='UPS Rev 1 '!CJ645*$D39 -> 0 | AF40: ='UPS Rev 1 '!CM645*$D39 -> 0 | AG40: ='UPS Rev 1 '!CP645*$D39 -> 0 | AI40: ='UPS Rev 1 '!CV645*$D39 -> 0 | AJ40: ='UPS Rev 1 '!CY645*$D39 -> 0 | AK40: ='UPS Rev 1 '!DB645*$D39 -> 0 | AL40: ='UPS Rev 1 '!DE645*$D39 -> 0 | AM40: ='UPS Rev 1 '!DH645*$D39 -> 0 | AO40: ='UPS Rev 1 '!DN645*$D40 -> 0 | AP40: ='UPS Rev 1 '!DQ645*$D40 -> 0 | AQ40: ='UPS Rev 1 '!DT645*$D40 -> 0 | AR40: ='UPS Rev 1 '!DW645*$D40 -> 0 | AS40: ='UPS Rev 1 '!DZ645*$D40 -> 0 | AU40: ='UPS Rev 1 '!EF645*$D40 -> 0 | AV40: ='UPS Rev 1 '!EI645*$D40 -> 0 | AW40: ='UPS Rev 1 '!EL645*$D40 -> 0 | AX40: ='UPS Rev 1 '!EO645*$D40 -> 0 | AY40: ='UPS Rev 1 '!ER645*$D40 -> 0 | BA40: ='UPS Rev 1 '!EX645*$D40 -> 0 | BB40: ='UPS Rev 1 '!FA645*$D40 -> 0 | BC40: ='UPS Rev 1 '!FD645*$D40 -> 0 | BD40: ='UPS Rev 1 '!FG645*$D40 -> 0 | BE40: ='UPS Rev 1 '!FJ645*$D40 -> 0 | BG40: ='UPS Rev 1 '!FP645*$D40 -> 0 | BH40: ='UPS Rev 1 '!FS645*$D40 -> 0 | BI40: ='UPS Rev 1 '!FV645*$D40 -> 0 | BJ40: ='UPS Rev 1 '!FY645*$D40 -> 0 | BK40: ='UPS Rev 1 '!GB645*$D40 -> 0 | BM40: ='UPS Rev 1 '!GH645*$D40 -> 0 | BN40: ='UPS Rev 1 '!GK645*$D40 -> 0 | BO40: ='UPS Rev 1 '!GN645*$D40 -> 0 | BP40: ='UPS Rev 1 '!GQ645*$D40 -> 0 | BQ40: ='UPS Rev 1 '!GT645*$D40 -> 0 | BS40: ='UPS Rev 1 '!GZ645*$D40 -> 0 | BT40: ='UPS Rev 1 '!HC645*$D40 -> 0 | BU40: ='UPS Rev 1 '!HF645*$D40 -> 0 | BV40: ='UPS Rev 1 '!HI645*$D40 -> 0 | BW40: ='UPS Rev 1 '!HL645*$D40 -> 0 | BY40: ='UPS Rev 1 '!HR645*$D40 -> 0 | BZ40: ='UPS Rev 1 '!HU645*$D40 -> 0 | CA40: ='UPS Rev 1 '!HX645*$D40 -> 0 | CB40: ='UPS Rev 1 '!IA645*$D40 -> 0 | CC40: ='UPS Rev 1 '!ID645*$D40 -> 0 | CE40: ='UPS Rev 1 '!IJ645*$D40 -> 0 | CF40: ='UPS Rev 1 '!IM645*$D40 -> 0 | CG40: ='UPS Rev 1 '!IP645*$D40 -> 0 | CH40: ='UPS Rev 1 '!IS645*$D40 -> 0 | CI40: ='UPS Rev 1 '!IV645*$D40 -> 0
A41: Language | C41: 4 | D41: 0.05 | E41: ='UPS Rev 1 '!J667*$D41 -> 0 | F41: ='UPS Rev 1 '!M667*$D40 -> 0 | G41: ='UPS Rev 1 '!P667*$D40 -> 5 | H41: ='UPS Rev 1 '!S667*$D40 -> 0 | I41: ='UPS Rev 1 '!V667*$D40 -> 0 | K41: ='UPS Rev 1 '!AB667*$D40 -> 0 | L41: ='UPS Rev 1 '!AE667*$D40 -> 0 | M41: ='UPS Rev 1 '!AH667*$D40 -> 0 | N41: ='UPS Rev 1 '!AK667*$D40 -> 0 | O41: ='UPS Rev 1 '!AV667*$D40 -> 0 | Q41: ='UPS Rev 1 '!AT667*$D40 -> 0 | R41: ='UPS Rev 1 '!AW667*$D40 -> 0 | S41: ='UPS Rev 1 '!AZ667*$D40 -> 0 | T41: ='UPS Rev 1 '!BC667*$D40 -> 0 | U41: ='UPS Rev 1 '!BF667*$D40 -> 0 | W41: ='UPS Rev 1 '!BL667*$D40 -> 0 | X41: ='UPS Rev 1 '!BO667*$D40 -> 0 | Y41: ='UPS Rev 1 '!BR667*$D40 -> 0 | Z41: ='UPS Rev 1 '!BU667*$D40 -> 0 | AA41: ='UPS Rev 1 '!BX667*$D40 -> 0 | AC41: ='UPS Rev 1 '!CD667*$D40 -> 0 | AD41: ='UPS Rev 1 '!CG667*$D40 -> 0 | AE41: ='UPS Rev 1 '!CJ667*$D40 -> 0 | AF41: ='UPS Rev 1 '!CM667*$D40 -> 0 | AG41: ='UPS Rev 1 '!CP667*$D40 -> 0 | AI41: ='UPS Rev 1 '!CV667*$D40 -> 0 | AJ41: ='UPS Rev 1 '!CY667*$D40 -> 0 | AK41: ='UPS Rev 1 '!DB667*$D40 -> 0 | AL41: ='UPS Rev 1 '!DE667*$D40 -> 0 | AM41: ='UPS Rev 1 '!DH667*$D40 -> 0 | AO41: ='UPS Rev 1 '!DN667*$D41 -> 0 | AP41: ='UPS Rev 1 '!DQ667*$D41 -> 0 | AQ41: ='UPS Rev 1 '!DT667*$D41 -> 0 | AR41: ='UPS Rev 1 '!DW667*$D41 -> 0 | AS41: ='UPS Rev 1 '!DZ667*$D41 -> 0 | AU41: ='UPS Rev 1 '!EF667*$D41 -> 0 | AV41: ='UPS Rev 1 '!EI667*$D41 -> 0 | AW41: ='UPS Rev 1 '!EL667*$D41 -> 0 | AX41: ='UPS Rev 1 '!EO667*$D41 -> 0 | AY41: ='UPS Rev 1 '!ER667*$D41 -> 0 | BA41: ='UPS Rev 1 '!EX667*$D41 -> 0 | BB41: ='UPS Rev 1 '!FA667*$D41 -> 0 | BC41: ='UPS Rev 1 '!FD667*$D41 -> 0 | BD41: ='UPS Rev 1 '!FG667*$D41 -> 0 | BE41: ='UPS Rev 1 '!FJ667*$D41 -> 0 | BG41: ='UPS Rev 1 '!FP667*$D41 -> 0 | BH41: ='UPS Rev 1 '!FS667*$D41 -> 0 | BI41: ='UPS Rev 1 '!FV667*$D41 -> 0 | BJ41: ='UPS Rev 1 '!FY667*$D41 -> 0 | BK41: ='UPS Rev 1 '!GB667*$D41 -> 0 | BM41: ='UPS Rev 1 '!GH667*$D41 -> 0 | BN41: ='UPS Rev 1 '!GK667*$D41 -> 0 | BO41: ='UPS Rev 1 '!GN667*$D41 -> 0 | BP41: ='UPS Rev 1 '!GQ667*$D41 -> 0 | BQ41: ='UPS Rev 1 '!GT667*$D41 -> 0 | BS41: ='UPS Rev 1 '!GZ667*$D41 -> 0 | BT41: ='UPS Rev 1 '!HC667*$D41 -> 0 | BU41: ='UPS Rev 1 '!HF667*$D41 -> 0 | BV41: ='UPS Rev 1 '!HI667*$D41 -> 0 | BW41: ='UPS Rev 1 '!HL667*$D41 -> 0 | BY41: ='UPS Rev 1 '!HR667*$D41 -> 0 | BZ41: ='UPS Rev 1 '!HU667*$D41 -> 0 | CA41: ='UPS Rev 1 '!HX667*$D41 -> 0 | CB41: ='UPS Rev 1 '!IA667*$D41 -> 0 | CC41: ='UPS Rev 1 '!ID667*$D41 -> 0 | CE41: ='UPS Rev 1 '!IJ667*$D41 -> 0 | CF41: ='UPS Rev 1 '!IM667*$D41 -> 0 | CG41: ='UPS Rev 1 '!IP667*$D41 -> 0 | CH41: ='UPS Rev 1 '!IS667*$D41 -> 0 | CI41: ='UPS Rev 1 '!IV667*$D41 -> 0
C42: =SUM(C32:C41) -> 80 | D42: =SUM(D32:D41) -> 1 | E42: =SUM(E32:E41) -> 0 | F42: =SUM(F32:F41) -> 0 | G42: 5 | H42: 0 | I42: 0 | K42: 0 | L42: 0 | M42: 0 | N42: 0 | O42: 0 | Q42: 0 | R42: 0 | S42: 0 | T42: 0 | U42: 0 | W42: 0 | X42: 0 | Y42: 0 | Z42: 0 | AA42: 0 | AC42: 0 | AD42: 0 | AE42: 0 | AF42: 0 | AG42: 0 | AI42: 0 | AJ42: 0 | AK42: 0 | AL42: 0 | AM42: 0 | AO42: 0 | AP42: 0 | AQ42: 0 | AR42: 0 | AS42: 0 | AU42: 0 | AV42: 0 | AW42: 0 | AX42: 0 | AY42: 0 | BA42: 0 | BB42: 0 | BC42: 0 | BD42: 0 | BE42: 0 | BG42: 0 | BH42: 0 | BI42: 0 | BJ42: 0 | BK42: 0 | BM42: 0 | BN42: 0 | BO42: 0 | BP42: 0 | BQ42: 0 | BS42: =SUM(BS32:BS41) -> 0 | BT42: 0 | BU42: 0 | BV42: 0 | BW42: 0 | BY42: 0 | BZ42: 0 | CA42: 0 | CB42: 0 | CC42: 0 | CE42: 0 | CF42: 0 | CG42: 0 | CH42: 0 | CI42: 0
A44: Schedule A and Schedule B | C44: 40 | E44: =E42*0.4 -> 0 | F44: =F42*0.4 -> 0 | G44: 2 | H44: 0 | I44: 0 | K44: 0 | L44: 0 | M44: 0 | N44: 0 | O44: 0 | Q44: 0 | R44: 0 | S44: 0 | T44: 0 | U44: 0 | W44: 0 | X44: 0 | Y44: 0 | Z44: 0 | AA44: 0 | AC44: 0 | AD44: 0 | AE44: 0 | AF44: 0 | AG44: 0 | AI44: 0 | AJ44: 0 | AK44: 0 | AL44: 0 | AM44: 0 | AO44: 0 | AP44: 0 | AQ44: 0 | AR44: 0 | AS44: 0 | AU44: 0 | AV44: 0 | AW44: 0 | AX44: 0 | AY44: 0 | BA44: 0 | BB44: 0 | BC44: 0 | BD44: 0 | BE44: 0 | BG44: 0 | BH44: 0 | BI44: 0 | BJ44: 0 | BK44: 0 | BM44: 0 | BN44: 0 | BO44: 0 | BP44: 0 | BQ44: 0 | BS44: =BS42*0.4 -> 0 | BT44: 0 | BU44: 0 | BV44: 0 | BW44: 0 | BY44: 0 | BZ44: 0 | CA44: 0 | CB44: 0 | CC44: 0 | CE44: 0 | CF44: 0 | CG44: 0 | CH44: 0 | CI44: 0
A45: OEM Type Testing Reports | C45: 10 | D45: ='Type Tested Equipment UPS'!A8 -> 0.1846153846 | E45: =D45*C45 -> 1.846153846
A46: Drawings, Manuals and Training | C46: 10
A47: Equipment manuals (installation, operating and maintenance) and drawings of each category of product offered. | B47: 5 | D47: ='Drawings, Manuals and Training'!#REF! ->  | E47: =D47*B47 -> 
A48: Information on local technical support, level of support offered and training | B48: 5 | D48: ='Drawings, Manuals and Training'!#REF! ->  | E48: =D48*B48 -> 
A49: Life Cycle Costing (Section 8 below)(Mean Time Between Failures, Equipment Reliability Cost, Repair Cost of Equipment, Spares) | C49: 17 | D49: ='Repair Cost Eval. UPS & MUPS'!A8 -> 1 | E49: =D49*C49 -> 17
A50: Deemed Technical Risk | C50: 13 | D50: =Risks!H24 -> 0.8666666667 | E50: =D50*C50 -> 11.26666667
A51: Practical Evaluation | C51: 10 | D51: ='Practical Evaluation'!G6 -> 0 | E51: =D51*C51 -> 0
A52: TOTAL | E52: =SUM(E44:E51) -> 

Sheet Thyristor chargers rev 1 (hidden)
H1: 50 A | W1: 75 A | AL1: 100 A | BA1: 150 A | BP1: 175 A | CE1: 200 A | CT1: 300 A | DI1: 400 A | DX1: 500 A | EM1: 600 A | EY1: 750 A | FK1: 1000 A | FQ1: 1500 A | FW1: 1750 A | GC1: 2000 A
H2: 24 V | K2: 48 V | N2: 110 V | Q2: 220 V | W2: 24 V | Z2: 48 V | AC2: 110 V | AF2: 220 V | AL2: 24 V | AO2: 48 V | AR2: 110 V | AU2: 220 V | BA2: 24 V | BD2: 48 V | BG2: 110 V | BJ2: 220 V | BP2: 24 V | BS2: 48 V | BV2: 110 V | BY2: 220 V | CE2: 24 V | CH2: 48 V | CK2: 110 V | CN2: 220 V | CT2: 24 V | CW2: 48 V | CZ2: 110 V | DC2: 220 V | DI2: 24 V | DL2: 48 V | DO2: 110 V | DR2: 220 V | DX2: 24 V | EA2: 48 V | ED2: 110 V | EG2: 220 V | EM2: 24 V | EP2: 48 V | ES2: 220 V | EY2: 24 V | FB2: 48 V | FE2: 220 V | FK2: 24 V | FQ2: 24 V | FW2: 24 V | GC2: 24 V
A3: Item | B3: Sub-Clause | C3: Description | E3: Description | F3: Schedule A | G3: Total weight | H3: Schedule B | I3: Score | J3: Weight | K3: Schedule B | L3: Score | M3: Weight | N3: Schedule B | O3: Score | P3: Weight | Q3: Schedule B | R3: Score | S3: Weight | T3: Evidence reference | U3: Comments | W3: Schedule B | X3: Score | Y3: Weight | Z3: Schedule B | AA3: Score | AB3: Weight | AC3: Schedule B | AD3: Score | AE3: Weight | AF3: Schedule B | AG3: Score | AH3: Weight | AI3: Evidence reference | AJ3: Comments | AL3: Schedule B | AM3: Score | AN3: Weight | AO3: Schedule B | AP3: Score | AQ3: Weight | AR3: Schedule B | AS3: Score | AT3: Weight | AU3: Schedule B | AV3: Score | AW3: Weight | AX3: Evidence reference | AY3: Comments | BA3: Schedule B | BB3: Score | BC3: Weight | BD3: Schedule B | BE3: Score | BF3: Weight | BG3: Schedule B | BH3: Score | BI3: Weight | BJ3: Schedule B | BK3: Score | BL3: Weight | BM3: Evidence reference | BN3: Comments | BP3: Schedule B | BQ3: Score | BR3: Weight | BS3: Schedule B | BT3: Score | BU3: Weight | BV3: Schedule B | BW3: Score | BX3: Weight | BY3: Schedule B | BZ3: Score | CA3: Weight | CB3: Evidence reference | CC3: Comments | CE3: Schedule B | CF3: Score | CG3: Weight | CH3: Schedule B | CI3: Score | CJ3: Weight | CK3: Schedule B | CL3: Score | CM3: Weight | CN3: Schedule B | CO3: Score | CP3: Weight | CQ3: Evidence reference | CR3: Comments | CT3: Schedule B | CU3: Score | CV3: Weight | CW3: Schedule B | CX3: Score | CY3: Weight | CZ3: Schedule B | DA3: Score | DB3: Weight | DC3: Schedule B | DD3: Score | DE3: Weight | DF3: Evidence reference | DG3: Comments | DI3: Schedule B | DJ3: Score | DK3: Weight | DL3: Schedule B | DM3: Score | DN3: Weight | DO3: Schedule B | DP3: Score | DQ3: Weight | DR3: Schedule B | DS3: Score | DT3: Weight | DU3: Evidence reference | DV3: Comments | DX3: Schedule B | DY3: Score | DZ3: Weight | EA3: Schedule B | EB3: Score | EC3: Weight | ED3: Schedule B | EE3: Score | EF3: Weight | EG3: Schedule B | EH3: Score | EI3: Weight | EJ3: Evidence reference | EK3: Comments | EM3: Schedule B | EN3: Score | EO3: Weight | EP3: Schedule B | EQ3: Score | ER3: Weight | ES3: Schedule B | ET3: Score | EU3: Weight | EV3: Evidence reference | EW3: Comments | EY3: Schedule B | EZ3: Score | FA3: Weight | FB3: Schedule B | FC3: Score | FD3: Weight | FE3: Schedule B | FF3: Score | FG3: Weight | FH3: Evidence reference | FI3: Comments | FK3: Schedule B | FL3: Score | FM3: Weight | FN3: Evidence reference | FO3: Comments | FQ3: Schedule B | FR3: Score | FS3: Weight | FT3: Evidence reference | FU3: Comments | FW3: Schedule B | FX3: Score | FY3: Weight | FZ3: Evidence reference | GA3: Comments | GC3: Schedule B | GD3: Score | GE3: Weight | GF3: Evidence reference | GG3: Comments
A4: 1 | B4: 3.1. | C4: General Requirements | G4: =SUM(G5:G19) -> 100 | J4: =SUM(J6:J19) -> 100 | M4: =SUM(M6:M19) -> 100 | P4: =SUM(P6:P19) -> 0 | S4: =SUM(S6:S19) -> 0 | Y4: =SUM(Y6:Y19) -> 0 | AB4: =SUM(AB6:AB19) -> 0 | AE4: =SUM(AE6:AE19) -> 0 | AH4: =SUM(AH6:AH19) -> 0 | AJ4: Single/dual | AN4: =SUM(AN6:AN19) -> 0 | AQ4: =SUM(AQ6:AQ19) -> 0 | AT4: =SUM(AT6:AT19) -> 0 | AW4: =SUM(AW6:AW19) -> 0 | AY4: Single/dual | BC4: =SUM(BC6:BC19) -> 0 | BF4: =SUM(BF6:BF19) -> 0 | BI4: =SUM(BI6:BI19) -> 0 | BL4: =SUM(BL6:BL19) -> 0 | BN4: Single/dual | BR4: =SUM(BR6:BR19) -> 0 | BU4: =SUM(BU6:BU19) -> 0 | BX4: =SUM(BX6:BX19) -> 0 | CA4: =SUM(CA6:CA19) -> 0 | CC4: Single/dual | CG4: =SUM(CG6:CG19) -> 0 | CJ4: =SUM(CJ6:CJ19) -> 0 | CM4: =SUM(CM6:CM19) -> 0 | CP4: =SUM(CP6:CP19) -> 0 | CR4: Single/dual | CV4: =SUM(CV6:CV19) -> 0 | CY4: =SUM(CY6:CY19) -> 0 | DB4: =SUM(DB6:DB19) -> 0 | DE4: =SUM(DE6:DE19) -> 0 | DG4: Single/dual | DK4: =SUM(DK6:DK19) -> 0 | DN4: =SUM(DN6:DN19) -> 0 | DQ4: =SUM(DQ6:DQ19) -> 0 | DT4: =SUM(DT6:DT19) -> 0 | DV4: Single/dual | DZ4: =SUM(DZ6:DZ19) -> 0 | EC4: =SUM(EC6:EC19) -> 0 | EF4: =SUM(EF6:EF19) -> 0 | EI4: =SUM(EI6:EI19) -> 0 | EK4: Single/dual | EO4: =SUM(EO6:EO19) -> 0 | ER4: =SUM(ER6:ER19) -> 0 | EU4: =SUM(EU6:EU19) -> 0 | EW4: Single/dual | FA4: =SUM(FA6:FA19) -> 0 | FD4: =SUM(FD6:FD19) -> 0 | FG4: =SUM(FG6:FG19) -> 0 | FI4: Single/dual | FM4: =SUM(FM6:FM19) -> 0 | FO4: Single/dual | FS4: =SUM(FS6:FS19) -> 0 | FU4: Single/dual | FY4: =SUM(FY6:FY19) -> 0 | GA4: Single/dual | GE4: =SUM(GE6:GE19) -> 0 | GG4: Single/dual
A5: 1.1 | B5: 3.1.1 | C5: Site conditions
A6: 1.2 | B6: 3.1.1.1.1 | C6: Altitude | E6: m | F6: 2000 | G6: 9 | H6: 2000 | I6: 3 | J6: =$G6/3*I6 -> 9 | K6: 2000 | L6: 3 | M6: =$G6/3*L6 -> 9 | N6: 2000 | P6: =$G6/3*O6 -> 0 | Q6: 2000 | S6: =$G6/3*R6 -> 0 | T6: Charger Spec | W6: 2000 | Y6: =$G6/3*X6 -> 0 | Z6: 2000 | AB6: =$G6/3*AA6 -> 0 | AC6: 2000 | AE6: =$G6/3*AD6 -> 0 | AF6: 2000 | AH6: =$G6/3*AG6 -> 0 | AI6: Charger Spec | AL6: 2000 | AN6: =$G6/3*AM6 -> 0 | AO6: 2000 | AQ6: =$G6/3*AP6 -> 0 | AR6: 2000 | AT6: =$G6/3*AS6 -> 0 | AU6: 2000 | AW6: =$G6/3*AV6 -> 0 | AX6: Charger Spec | BA6: 2000 | BC6: =$G6/3*BB6 -> 0 | BD6: 2000 | BF6: =$G6/3*BE6 -> 0 | BG6: 2000 | BI6: =$G6/3*BH6 -> 0 | BJ6: 2000 | BL6: =$G6/3*BK6 -> 0 | BM6: Charger Spec | BP6: 2000 | BR6: =$G6/3*BQ6 -> 0 | BS6: 2000 | BU6: =$G6/3*BT6 -> 0 | BV6: 2000 | BX6: =$G6/3*BW6 -> 0 | BY6: 2000 | CA6: =$G6/3*BZ6 -> 0 | CB6: Charger Spec | CE6: 2000 | CG6: =$G6/3*CF6 -> 0 | CH6: 2000 | CJ6: =$G6/3*CI6 -> 0 | CK6: 2000 | CM6: =$G6/3*CL6 -> 0 | CN6: 2000 | CP6: =$G6/3*CO6 -> 0 | CQ6: Charger Spec | CT6: 2000 | CV6: =$G6/3*CU6 -> 0 | CW6: 2000 | CY6: =$G6/3*CX6 -> 0 | CZ6: 2000 | DB6: =$G6/3*DA6 -> 0 | DC6: 2000 | DE6: =$G6/3*DD6 -> 0 | DF6: Charger Spec | DI6: 2000 | DK6: =$G6/3*DJ6 -> 0 | DL6: 2000 | DN6: =$G6/3*DM6 -> 0 | DO6: 2000 | DQ6: =$G6/3*DP6 -> 0 | DR6: 2000 | DT6: =$G6/3*DS6 -> 0 | DU6: Charger Spec | DX6: 2000 | DZ6: =$G6/3*DY6 -> 0 | EA6: 2000 | EC6: =$G6/3*EB6 -> 0 | ED6: 2000 | EF6: =$G6/3*EE6 -> 0 | EG6: 2000 | EI6: =$G6/3*EH6 -> 0 | EJ6: Charger Spec | EM6: 2000 | EO6: =$G6/3*EN6 -> 0 | EP6: 2000 | ER6: =$G6/3*EQ6 -> 0 | ES6: 2000 | EU6: =$G6/3*ET6 -> 0 | EV6: Charger Spec | EY6: 2000 | FA6: =$G6/3*EZ6 -> 0 | FB6: 2000 | FD6: =$G6/3*FC6 -> 0 | FE6: 2000 | FG6: =$G6/3*FF6 -> 0 | FH6: Charger Spec | FK6: 2000 | FM6: =$G6/3*FL6 -> 0 | FN6: Charger Spec | FQ6: 2000 | FS6: =$G6/3*FR6 -> 0 | FT6: Charger Spec | FW6: 2000 | FY6: =$G6/3*FX6 -> 0 | FZ6: Charger Spec | GC6: 2000 | GE6: =$G6/3*GD6 -> 0 | GF6: Charger Spec
A7: 1.4 | B7: 3.1.1.1.2 | C7: Relative humidity | E7: % | F7: 10-90 non condensing | G7: 9 | H7: 10-90 non condensing | I7: 3 | J7: =$G7/3*I7 -> 9 | K7: 10-90 non condensing | L7: 3 | M7: =$G7/3*L7 -> 9 | N7: 10-90 non condensing | P7: =$G7/3*O7 -> 0 | Q7: 10-90 non condensing | S7: =$G7/3*R7 -> 0 | T7: Charger Spec | W7: 10-90 non condensing | Y7: =$G7/3*X7 -> 0 | Z7: 10-90 non condensing | AB7: =$G7/3*AA7 -> 0 | AC7: 10-90 non condensing | AE7: =$G7/3*AD7 -> 0 | AF7: 10-90 non condensing | AH7: =$G7/3*AG7 -> 0 | AI7: Charger Spec | AL7: 10-90 non condensing | AN7: =$G7/3*AM7 -> 0 | AO7: 10-90 non condensing | AQ7: =$G7/3*AP7 -> 0 | AR7: 10-90 non condensing | AT7: =$G7/3*AS7 -> 0 | AU7: 10-90 non condensing | AW7: =$G7/3*AV7 -> 0 | AX7: Charger Spec | BA7: 10-90 non condensing | BC7: =$G7/3*BB7 -> 0 | BD7: 10-90 non condensing | BF7: =$G7/3*BE7 -> 0 | BG7: 10-90 non condensing | BI7: =$G7/3*BH7 -> 0 | BJ7: 10-90 non condensing | BL7: =$G7/3*BK7 -> 0 | BM7: Charger Spec | BP7: 10-90 non condensing | BR7: =$G7/3*BQ7 -> 0 | BS7: 10-90 non condensing | BU7: =$G7/3*BT7 -> 0 | BV7: 10-90 non condensing | BX7: =$G7/3*BW7 -> 0 | BY7: 10-90 non condensing | CA7: =$G7/3*BZ7 -> 0 | CB7: Charger Spec | CE7: 10-90 non condensing | CG7: =$G7/3*CF7 -> 0 | CH7: 10-90 non condensing | CJ7: =$G7/3*CI7 -> 0 | CK7: 10-90 non condensing | CM7: =$G7/3*CL7 -> 0 | CN7: 10-90 non condensing | CP7: =$G7/3*CO7 -> 0 | CQ7: Charger Spec | CT7: 10-90 non condensing | CV7: =$G7/3*CU7 -> 0 | CW7: 10-90 non condensing | CY7: =$G7/3*CX7 -> 0 | CZ7: 10-90 non condensing | DB7: =$G7/3*DA7 -> 0 | DC7: 10-90 non condensing | DE7: =$G7/3*DD7 -> 0 | DF7: Charger Spec | DI7: 10-90 non condensing | DK7: =$G7/3*DJ7 -> 0 | DL7: 10-90 non condensing | DN7: =$G7/3*DM7 -> 0 | DO7: 10-90 non condensing | DQ7: =$G7/3*DP7 -> 0 | DR7: 10-90 non condensing | DT7: =$G7/3*DS7 -> 0 | DU7: Charger Spec | DX7: 10-90 non condensing | DZ7: =$G7/3*DY7 -> 0 | EA7: 10-90 non condensing | EC7: =$G7/3*EB7 -> 0 | ED7: 10-90 non condensing | EF7: =$G7/3*EE7 -> 0 | EG7: 10-90 non condensing | EI7: =$G7/3*EH7 -> 0 | EJ7: Charger Spec | EM7: 10-90 non condensing | EO7: =$G7/3*EN7 -> 0 | EP7: 10-90 non condensing | ER7: =$G7/3*EQ7 -> 0 | ES7: 10-90 non condensing | EU7: =$G7/3*ET7 -> 0 | EV7: Charger Spec | EY7: 10-90 non condensing | FA7: =$G7/3*EZ7 -> 0 | FB7: 10-90 non condensing | FD7: =$G7/3*FC7 -> 0 | FE7: 10-90 non condensing | FG7: =$G7/3*FF7 -> 0 | FH7: Charger Spec | FK7: 10-90 non condensing | FM7: =$G7/3*FL7 -> 0 | FN7: Charger Spec | FQ7: 10-90 non condensing | FS7: =$G7/3*FR7 -> 0 | FT7: Charger Spec | FW7: 10-90 non condensing | FY7: =$G7/3*FX7 -> 0 | FZ7: Charger Spec | GC7: 10-90 non condensing | GE7: =$G7/3*GD7 -> 0 | GF7: Charger Spec
A8: 1.5 | B8: 3.1.1.1.3 | C8: Lightning | F8: High lightning area as SANS 1652 and SANS 61439 -1 Table G1 | G8: 10 | H8: Noted Surge Suppression | I8: 3 | J8: =$G8/3*I8 -> 10 | K8: Noted Surge Suppression | L8: 3 | M8: =$G8/3*L8 -> 10 | N8: Noted Surge Suppression | P8: =$G8/3*O8 -> 0 | Q8: Noted Surge Suppression | S8: =$G8/3*R8 -> 0 | W8: Noted Surge Suppression | Y8: =$G8/3*X8 -> 0 | Z8: Noted Surge Suppression | AB8: =$G8/3*AA8 -> 0 | AC8: Noted Surge Suppression | AE8: =$G8/3*AD8 -> 0 | AF8: Noted Surge Suppression | AH8: =$G8/3*AG8 -> 0 | AL8: Noted Surge Suppression | AN8: =$G8/3*AM8 -> 0 | AO8: Noted Surge Suppression | AQ8: =$G8/3*AP8 -> 0 | AR8: Noted Surge Suppression | AT8: =$G8/3*AS8 -> 0 | AU8: Noted Surge Suppression | AW8: =$G8/3*AV8 -> 0 | BA8: Noted Surge Suppression | BC8: =$G8/3*BB8 -> 0 | BD8: Noted Surge Suppression | BF8: =$G8/3*BE8 -> 0 | BG8: Noted Surge Suppression | BI8: =$G8/3*BH8 -> 0 | BJ8: Noted Surge Suppression | BL8: =$G8/3*BK8 -> 0 | BP8: Noted Surge Suppression | BR8: =$G8/3*BQ8 -> 0 | BS8: Noted Surge Suppression | BU8: =$G8/3*BT8 -> 0 | BV8: Noted Surge Suppression | BX8: =$G8/3*BW8 -> 0 | BY8: Noted Surge Suppression | CA8: =$G8/3*BZ8 -> 0 | CE8: Noted Surge Suppression | CG8: =$G8/3*CF8 -> 0 | CH8: Noted Surge Suppression | CJ8: =$G8/3*CI8 -> 0 | CK8: Noted Surge Suppression | CM8: =$G8/3*CL8 -> 0 | CN8: Noted Surge Suppression | CP8: =$G8/3*CO8 -> 0 | CT8: Noted Surge Suppression | CV8: =$G8/3*CU8 -> 0 | CW8: Noted Surge Suppression | CY8: =$G8/3*CX8 -> 0 | CZ8: Noted Surge Suppression | DB8: =$G8/3*DA8 -> 0 | DC8: Noted Surge Suppression | DE8: =$G8/3*DD8 -> 0 | DI8: Noted Surge Suppression | DK8: =$G8/3*DJ8 -> 0 | DL8: Noted Surge Suppression | DN8: =$G8/3*DM8 -> 0 | DO8: Noted Surge Suppression | DQ8: =$G8/3*DP8 -> 0 | DR8: Noted Surge Suppression | DT8: =$G8/3*DS8 -> 0 | DX8: Noted Surge Suppression | DZ8: =$G8/3*DY8 -> 0 | EA8: Noted Surge Suppression | EC8: =$G8/3*EB8 -> 0 | ED8: Noted Surge Suppression | EF8: =$G8/3*EE8 -> 0 | EG8: Noted Surge Suppression | EI8: =$G8/3*EH8 -> 0 | EM8: Noted Surge Suppression | EO8: =$G8/3*EN8 -> 0 | EP8: Noted Surge Suppression | ER8: =$G8/3*EQ8 -> 0 | ES8: Noted Surge Suppression | EU8: =$G8/3*ET8 -> 0 | EY8: Noted Surge Suppression | FA8: =$G8/3*EZ8 -> 0 | FB8: Noted Surge Suppression | FD8: =$G8/3*FC8 -> 0 | FE8: Noted Surge Suppression | FG8: =$G8/3*FF8 -> 0 | FK8: Noted Surge Suppression | FM8: =$G8/3*FL8 -> 0 | FQ8: Noted Surge Suppression | FS8: =$G8/3*FR8 -> 0 | FW8: Noted Surge Suppression | FY8: =$G8/3*FX8 -> 0 | GC8: Noted Surge Suppression | GE8: =$G8/3*GD8 -> 0
A9: 1.6 | B9: 3.1.1.2 | C9: Outdoor air temperature
A10: 1.6.1 | B10: 3.1.1.2.1 | C10: Maximum | E10: °C | F10: 60 | G10: 9 | H10: N/A,Equipment room spec | I10: 3 | J10: =$G10/3*I10 -> 9 | K10: N/A,Equipment room spec | L10: 3 | M10: =$G10/3*L10 -> 9 | N10: N/A,Equipment room spec | P10: =$G10/3*O10 -> 0 | Q10: N/A,Equipment room spec | S10: =$G10/3*R10 -> 0 | W10: N/A,Equipment room spec | Y10: =$G10/3*X10 -> 0 | Z10: N/A,Equipment room spec | AB10: =$G10/3*AA10 -> 0 | AC10: N/A,Equipment room spec | AE10: =$G10/3*AD10 -> 0 | AF10: N/A,Equipment room spec | AH10: =$G10/3*AG10 -> 0 | AL10: N/A,Equipment room spec | AN10: =$G10/3*AM10 -> 0 | AO10: N/A,Equipment room spec | AQ10: =$G10/3*AP10 -> 0 | AR10: N/A,Equipment room spec | AT10: =$G10/3*AS10 -> 0 | AU10: N/A,Equipment room spec | AW10: =$G10/3*AV10 -> 0 | BA10: N/A,Equipment room spec | BC10: =$G10/3*BB10 -> 0 | BD10: N/A,Equipment room spec | BF10: =$G10/3*BE10 -> 0 | BG10: N/A,Equipment room spec | BI10: =$G10/3*BH10 -> 0 | BJ10: N/A,Equipment room spec | BL10: =$G10/3*BK10 -> 0 | BP10: N/A,Equipment room spec | BR10: =$G10/3*BQ10 -> 0 | BS10: N/A,Equipment room spec | BU10: =$G10/3*BT10 -> 0 | BV10: N/A,Equipment room spec | BX10: =$G10/3*BW10 -> 0 | BY10: N/A,Equipment room spec | CA10: =$G10/3*BZ10 -> 0 | CE10: N/A,Equipment room spec | CG10: =$G10/3*CF10 -> 0 | CH10: N/A,Equipment room spec | CJ10: =$G10/3*CI10 -> 0 | CK10: N/A,Equipment room spec | CM10: =$G10/3*CL10 -> 0 | CN10: N/A,Equipment room spec | CP10: =$G10/3*CO10 -> 0 | CT10: N/A,Equipment room spec | CV10: =$G10/3*CU10 -> 0 | CW10: N/A,Equipment room spec | CY10: =$G10/3*CX10 -> 0 | CZ10: N/A,Equipment room spec | DB10: =$G10/3*DA10 -> 0 | DC10: N/A,Equipment room spec | DE10: =$G10/3*DD10 -> 0 | DI10: N/A,Equipment room spec | DK10: =$G10/3*DJ10 -> 0 | DL10: N/A,Equipment room spec | DN10: =$G10/3*DM10 -> 0 | DO10: N/A,Equipment room spec | DQ10: =$G10/3*DP10 -> 0 | DR10: N/A,Equipment room spec | DT10: =$G10/3*DS10 -> 0 | DX10: N/A,Equipment room spec | DZ10: =$G10/3*DY10 -> 0 | EA10: N/A,Equipment room spec | EC10: =$G10/3*EB10 -> 0 | ED10: N/A,Equipment room spec | EF10: =$G10/3*EE10 -> 0 | EG10: N/A,Equipment room spec | EI10: =$G10/3*EH10 -> 0 | EM10: N/A,Equipment room spec | EO10: =$G10/3*EN10 -> 0 | EP10: N/A,Equipment room spec | ER10: =$G10/3*EQ10 -> 0 | ES10: N/A,Equipment room spec | EU10: =$G10/3*ET10 -> 0 | EY10: N/A,Equipment room spec | FA10: =$G10/3*EZ10 -> 0 | FB10: N/A,Equipment room spec | FD10: =$G10/3*FC10 -> 0 | FE10: N/A,Equipment room spec | FG10: =$G10/3*FF10 -> 0 | FK10: N/A,Equipment room spec | FM10: =$G10/3*FL10 -> 0 | FQ10: N/A,Equipment room spec | FS10: =$G10/3*FR10 -> 0 | FW10: N/A,Equipment room spec | FY10: =$G10/3*FX10 -> 0 | GC10: N/A,Equipment room spec | GE10: =$G10/3*GD10 -> 0
A11: 1.6.2 | B11: 3.1.1.2.2 | C11: Daily average | E11: °C | F11: 30 | G11: 9 | H11: N/A,Equipment room spec | I11: 3 | J11: =$G11/3*I11 -> 9 | K11: N/A,Equipment room spec | L11: 3 | M11: =$G11/3*L11 -> 9 | N11: N/A,Equipment room spec | P11: =$G11/3*O11 -> 0 | Q11: N/A,Equipment room spec | S11: =$G11/3*R11 -> 0 | W11: N/A,Equipment room spec | Y11: =$G11/3*X11 -> 0 | Z11: N/A,Equipment room spec | AB11: =$G11/3*AA11 -> 0 | AC11: N/A,Equipment room spec | AE11: =$G11/3*AD11 -> 0 | AF11: N/A,Equipment room spec | AH11: =$G11/3*AG11 -> 0 | AL11: N/A,Equipment room spec | AN11: =$G11/3*AM11 -> 0 | AO11: N/A,Equipment room spec | AQ11: =$G11/3*AP11 -> 0 | AR11: N/A,Equipment room spec | AT11: =$G11/3*AS11 -> 0 | AU11: N/A,Equipment room spec | AW11: =$G11/3*AV11 -> 0 | BA11: N/A,Equipment room spec | BC11: =$G11/3*BB11 -> 0 | BD11: N/A,Equipment room spec | BF11: =$G11/3*BE11 -> 0 | BG11: N/A,Equipment room spec | BI11: =$G11/3*BH11 -> 0 | BJ11: N/A,Equipment room spec | BL11: =$G11/3*BK11 -> 0 | BP11: N/A,Equipment room spec | BR11: =$G11/3*BQ11 -> 0 | BS11: N/A,Equipment room spec | BU11: =$G11/3*BT11 -> 0 | BV11: N/A,Equipment room spec | BX11: =$G11/3*BW11 -> 0 | BY11: N/A,Equipment room spec | CA11: =$G11/3*BZ11 -> 0 | CE11: N/A,Equipment room spec | CG11: =$G11/3*CF11 -> 0 | CH11: N/A,Equipment room spec | CJ11: =$G11/3*CI11 -> 0 | CK11: N/A,Equipment room spec | CM11: =$G11/3*CL11 -> 0 | CN11: N/A,Equipment room spec | CP11: =$G11/3*CO11 -> 0 | CT11: N/A,Equipment room spec | CV11: =$G11/3*CU11 -> 0 | CW11: N/A,Equipment room spec | CY11: =$G11/3*CX11 -> 0 | CZ11: N/A,Equipment room spec | DB11: =$G11/3*DA11 -> 0 | DC11: N/A,Equipment room spec | DE11: =$G11/3*DD11 -> 0 | DI11: N/A,Equipment room spec | DK11: =$G11/3*DJ11 -> 0 | DL11: N/A,Equipment room spec | DN11: =$G11/3*DM11 -> 0 | DO11: N/A,Equipment room spec | DQ11: =$G11/3*DP11 -> 0 | DR11: N/A,Equipment room spec | DT11: =$G11/3*DS11 -> 0 | DX11: N/A,Equipment room spec | DZ11: =$G11/3*DY11 -> 0 | EA11: N/A,Equipment room spec | EC11: =$G11/3*EB11 -> 0 | ED11: N/A,Equipment room spec | EF11: =$G11/3*EE11 -> 0 | EG11: N/A,Equipment room spec | EI11: =$G11/3*EH11 -> 0 | EM11: N/A,Equipment room spec | EO11: =$G11/3*EN11 -> 0 | EP11: N/A,Equipment room spec | ER11: =$G11/3*EQ11 -> 0 | ES11: N/A,Equipment room spec | EU11: =$G11/3*ET11 -> 0 | EY11: N/A,Equipment room spec | FA11: =$G11/3*EZ11 -> 0 | FB11: N/A,Equipment room spec | FD11: =$G11/3*FC11 -> 0 | FE11: N/A,Equipment room spec | FG11: =$G11/3*FF11 -> 0 | FK11: N/A,Equipment room spec | FM11: =$G11/3*FL11 -> 0 | FQ11: N/A,Equipment room spec | FS11: =$G11/3*FR11 -> 0 | FW11: N/A,Equipment room spec | FY11: =$G11/3*FX11 -> 0 | GC11: N/A,Equipment room spec | GE11: =$G11/3*GD11 -> 0
A12: 1.6.3 | B12: 3.1.1.2.4 | C12: Minimum | E12: °C | F12: -15 | G12: 9 | H12: N/A,Equipment room spec | I12: 3 | J12: =$G12/3*I12 -> 9 | K12: N/A,Equipment room spec | L12: 3 | M12: =$G12/3*L12 -> 9 | N12: N/A,Equipment room spec | P12: =$G12/3*O12 -> 0 | Q12: N/A,Equipment room spec | S12: =$G12/3*R12 -> 0 | W12: N/A,Equipment room spec | Y12: =$G12/3*X12 -> 0 | Z12: N/A,Equipment room spec | AB12: =$G12/3*AA12 -> 0 | AC12: N/A,Equipment room spec | AE12: =$G12/3*AD12 -> 0 | AF12: N/A,Equipment room spec | AH12: =$G12/3*AG12 -> 0 | AL12: N/A,Equipment room spec | AN12: =$G12/3*AM12 -> 0 | AO12: N/A,Equipment room spec | AQ12: =$G12/3*AP12 -> 0 | AR12: N/A,Equipment room spec | AT12: =$G12/3*AS12 -> 0 | AU12: N/A,Equipment room spec | AW12: =$G12/3*AV12 -> 0 | BA12: N/A,Equipment room spec | BC12: =$G12/3*BB12 -> 0 | BD12: N/A,Equipment room spec | BF12: =$G12/3*BE12 -> 0 | BG12: N/A,Equipment room spec | BI12: =$G12/3*BH12 -> 0 | BJ12: N/A,Equipment room spec | BL12: =$G12/3*BK12 -> 0 | BP12: N/A,Equipment room spec | BR12: =$G12/3*BQ12 -> 0 | BS12: N/A,Equipment room spec | BU12: =$G12/3*BT12 -> 0 | BV12: N/A,Equipment room spec | BX12: =$G12/3*BW12 -> 0 | BY12: N/A,Equipment room spec | CA12: =$G12/3*BZ12 -> 0 | CE12: N/A,Equipment room spec | CG12: =$G12/3*CF12 -> 0 | CH12: N/A,Equipment room spec | CJ12: =$G12/3*CI12 -> 0 | CK12: N/A,Equipment room spec | CM12: =$G12/3*CL12 -> 0 | CN12: N/A,Equipment room spec | CP12: =$G12/3*CO12 -> 0 | CT12: N/A,Equipment room spec | CV12: =$G12/3*CU12 -> 0 | CW12: N/A,Equipment room spec | CY12: =$G12/3*CX12 -> 0 | CZ12: N/A,Equipment room spec | DB12: =$G12/3*DA12 -> 0 | DC12: N/A,Equipment room spec | DE12: =$G12/3*DD12 -> 0 | DI12: N/A,Equipment room spec | DK12: =$G12/3*DJ12 -> 0 | DL12: N/A,Equipment room spec | DN12: =$G12/3*DM12 -> 0 | DO12: N/A,Equipment room spec | DQ12: =$G12/3*DP12 -> 0 | DR12: N/A,Equipment room spec | DT12: =$G12/3*DS12 -> 0 | DX12: N/A,Equipment room spec | DZ12: =$G12/3*DY12 -> 0 | EA12: N/A,Equipment room spec | EC12: =$G12/3*EB12 -> 0 | ED12: N/A,Equipment room spec | EF12: =$G12/3*EE12 -> 0 | EG12: N/A,Equipment room spec | EI12: =$G12/3*EH12 -> 0 | EM12: N/A,Equipment room spec | EO12: =$G12/3*EN12 -> 0 | EP12: N/A,Equipment room spec | ER12: =$G12/3*EQ12 -> 0 | ES12: N/A,Equipment room spec | EU12: =$G12/3*ET12 -> 0 | EY12: N/A,Equipment room spec | FA12: =$G12/3*EZ12 -> 0 | FB12: N/A,Equipment room spec | FD12: =$G12/3*FC12 -> 0 | FE12: N/A,Equipment room spec | FG12: =$G12/3*FF12 -> 0 | FK12: N/A,Equipment room spec | FM12: =$G12/3*FL12 -> 0 | FQ12: N/A,Equipment room spec | FS12: =$G12/3*FR12 -> 0 | FW12: N/A,Equipment room spec | FY12: =$G12/3*FX12 -> 0 | GC12: N/A,Equipment room spec | GE12: =$G12/3*GD12 -> 0
A13: 1.7 | B13: 3.1.1.3 | C13: Equipment room air temperature
A14: 1.7.1 | B14: 3.1.1.3.1 | C14: Maximum | E14: °C | F14: 50 | G14: 9 | H14: 50 | I14: 3 | J14: =$G14/3*I14 -> 9 | K14: 50 | L14: 3 | M14: =$G14/3*L14 -> 9 | N14: 50 | P14: =$G14/3*O14 -> 0 | Q14: 50 | S14: =$G14/3*R14 -> 0 | T14: Charger Efficiencies | U14: Max Design Value | W14: 50 | Y14: =$G14/3*X14 -> 0 | Z14: 50 | AB14: =$G14/3*AA14 -> 0 | AC14: 50 | AE14: =$G14/3*AD14 -> 0 | AF14: 50 | AH14: =$G14/3*AG14 -> 0 | AI14: Charger Efficiencies | AJ14: Max Design Value | AL14: 50 | AN14: =$G14/3*AM14 -> 0 | AO14: 50 | AQ14: =$G14/3*AP14 -> 0 | AR14: 50 | AT14: =$G14/3*AS14 -> 0 | AU14: 50 | AW14: =$G14/3*AV14 -> 0 | AX14: Charger Efficiencies | AY14: Max Design Value | BA14: 50 | BC14: =$G14/3*BB14 -> 0 | BD14: 50 | BF14: =$G14/3*BE14 -> 0 | BG14: 50 | BI14: =$G14/3*BH14 -> 0 | BJ14: 50 | BL14: =$G14/3*BK14 -> 0 | BM14: Charger Efficiencies | BN14: Max Design Value | BP14: 50 | BR14: =$G14/3*BQ14 -> 0 | BS14: 50 | BU14: =$G14/3*BT14 -> 0 | BV14: 50 | BX14: =$G14/3*BW14 -> 0 | BY14: 50 | CA14: =$G14/3*BZ14 -> 0 | CB14: Charger Efficiencies | CC14: Max Design Value | CE14: 50 | CG14: =$G14/3*CF14 -> 0 | CH14: 50 | CJ14: =$G14/3*CI14 -> 0 | CK14: 50 | CM14: =$G14/3*CL14 -> 0 | CN14: 50 | CP14: =$G14/3*CO14 -> 0 | CQ14: Charger Efficiencies | CR14: Max Design Value | CT14: 50 | CV14: =$G14/3*CU14 -> 0 | CW14: 50 | CY14: =$G14/3*CX14 -> 0 | CZ14: 50 | DB14: =$G14/3*DA14 -> 0 | DC14: 50 | DE14: =$G14/3*DD14 -> 0 | DF14: Charger Efficiencies | DG14: Max Design Value | DI14: 50 | DK14: =$G14/3*DJ14 -> 0 | DL14: 50 | DN14: =$G14/3*DM14 -> 0 | DO14: 50 | DQ14: =$G14/3*DP14 -> 0 | DR14: 50 | DT14: =$G14/3*DS14 -> 0 | DU14: Charger Efficiencies | DV14: Max Design Value | DX14: 50 | DZ14: =$G14/3*DY14 -> 0 | EA14: 50 | EC14: =$G14/3*EB14 -> 0 | ED14: 50 | EF14: =$G14/3*EE14 -> 0 | EG14: 50 | EI14: =$G14/3*EH14 -> 0 | EJ14: Charger Efficiencies | EK14: Max Design Value | EM14: 50 | EO14: =$G14/3*EN14 -> 0 | EP14: 50 | ER14: =$G14/3*EQ14 -> 0 | ES14: 50 | EU14: =$G14/3*ET14 -> 0 | EV14: Charger Efficiencies | EW14: Max Design Value | EY14: 50 | FA14: =$G14/3*EZ14 -> 0 | FB14: 50 | FD14: =$G14/3*FC14 -> 0 | FE14: 50 | FG14: =$G14/3*FF14 -> 0 | FH14: Charger Efficiencies | FI14: Max Design Value | FK14: 50 | FM14: =$G14/3*FL14 -> 0 | FN14: Charger Efficiencies | FO14: Max Design Value | FQ14: 50 | FS14: =$G14/3*FR14 -> 0 | FT14: Charger Efficiencies | FU14: Max Design Value | FW14: 50 | FY14: =$G14/3*FX14 -> 0 | FZ14: Charger Efficiencies | GC14: 50 | GE14: =$G14/3*GD14 -> 0 | GF14: Charger Efficiencies
A15: 1.7.2 | B15: 3.1.1.3.2 | C15: Daily average | E15: °C | F15: 35 | G15: 9 | H15: 35 | I15: 3 | J15: =$G15/3*I15 -> 9 | K15: 35 | L15: 3 | M15: =$G15/3*L15 -> 9 | N15: 35 | P15: =$G15/3*O15 -> 0 | Q15: 35 | S15: =$G15/3*R15 -> 0 | W15: 35 | Y15: =$G15/3*X15 -> 0 | Z15: 35 | AB15: =$G15/3*AA15 -> 0 | AC15: 35 | AE15: =$G15/3*AD15 -> 0 | AF15: 35 | AH15: =$G15/3*AG15 -> 0 | AL15: 35 | AN15: =$G15/3*AM15 -> 0 | AO15: 35 | AQ15: =$G15/3*AP15 -> 0 | AR15: 35 | AT15: =$G15/3*AS15 -> 0 | AU15: 35 | AW15: =$G15/3*AV15 -> 0 | BA15: 35 | BC15: =$G15/3*BB15 -> 0 | BD15: 35 | BF15: =$G15/3*BE15 -> 0 | BG15: 35 | BI15: =$G15/3*BH15 -> 0 | BJ15: 35 | BL15: =$G15/3*BK15 -> 0 | BP15: 35 | BR15: =$G15/3*BQ15 -> 0 | BS15: 35 | BU15: =$G15/3*BT15 -> 0 | BV15: 35 | BX15: =$G15/3*BW15 -> 0 | BY15: 35 | CA15: =$G15/3*BZ15 -> 0 | CE15: 35 | CG15: =$G15/3*CF15 -> 0 | CH15: 35 | CJ15: =$G15/3*CI15 -> 0 | CK15: 35 | CM15: =$G15/3*CL15 -> 0 | CN15: 35 | CP15: =$G15/3*CO15 -> 0 | CT15: 35 | CV15: =$G15/3*CU15 -> 0 | CW15: 35 | CY15: =$G15/3*CX15 -> 0 | CZ15: 35 | DB15: =$G15/3*DA15 -> 0 | DC15: 35 | DE15: =$G15/3*DD15 -> 0 | DI15: 35 | DK15: =$G15/3*DJ15 -> 0 | DL15: 35 | DN15: =$G15/3*DM15 -> 0 | DO15: 35 | DQ15: =$G15/3*DP15 -> 0 | DR15: 35 | DT15: =$G15/3*DS15 -> 0 | DX15: 35 | DZ15: =$G15/3*DY15 -> 0 | EA15: 35 | EC15: =$G15/3*EB15 -> 0 | ED15: 35 | EF15: =$G15/3*EE15 -> 0 | EG15: 35 | EI15: =$G15/3*EH15 -> 0 | EM15: 35 | EO15: =$G15/3*EN15 -> 0 | EP15: 35 | ER15: =$G15/3*EQ15 -> 0 | ES15: 35 | EU15: =$G15/3*ET15 -> 0 | EY15: 35 | FA15: =$G15/3*EZ15 -> 0 | FB15: 35 | FD15: =$G15/3*FC15 -> 0 | FE15: 35 | FG15: =$G15/3*FF15 -> 0 | FK15: 35 | FM15: =$G15/3*FL15 -> 0 | FQ15: 35 | FS15: =$G15/3*FR15 -> 0 | FW15: 35 | FY15: =$G15/3*FX15 -> 0 | GC15: 35 | GE15: =$G15/3*GD15 -> 0
A16: 1.7.3 | B16: 3.1.1.3.4 | C16: Minimum | E16: °C | F16: -5 | G16: 9 | H16: -5 | I16: 3 | J16: =$G16/3*I16 -> 9 | K16: -5 | L16: 3 | M16: =$G16/3*L16 -> 9 | N16: -5 | P16: =$G16/3*O16 -> 0 | Q16: -5 | S16: =$G16/3*R16 -> 0 | W16: -5 | Y16: =$G16/3*X16 -> 0 | Z16: -5 | AB16: =$G16/3*AA16 -> 0 | AC16: -5 | AE16: =$G16/3*AD16 -> 0 | AF16: -5 | AH16: =$G16/3*AG16 -> 0 | AL16: -5 | AN16: =$G16/3*AM16 -> 0 | AO16: -5 | AQ16: =$G16/3*AP16 -> 0 | AR16: -5 | AT16: =$G16/3*AS16 -> 0 | AU16: -5 | AW16: =$G16/3*AV16 -> 0 | BA16: Noted/Comply | BC16: =$G16/3*BB16 -> 0 | BD16: Noted/Comply | BF16: =$G16/3*BE16 -> 0 | BG16: Noted/Comply | BI16: =$G16/3*BH16 -> 0 | BJ16: Noted/Comply | BL16: =$G16/3*BK16 -> 0 | BP16: -5 | BR16: =$G16/3*BQ16 -> 0 | BS16: -5 | BU16: =$G16/3*BT16 -> 0 | BV16: -5 | BX16: =$G16/3*BW16 -> 0 | BY16: -5 | CA16: =$G16/3*BZ16 -> 0 | CE16: -5 | CG16: =$G16/3*CF16 -> 0 | CH16: -5 | CJ16: =$G16/3*CI16 -> 0 | CK16: -5 | CM16: =$G16/3*CL16 -> 0 | CN16: -5 | CP16: =$G16/3*CO16 -> 0 | CT16: -5 | CV16: =$G16/3*CU16 -> 0 | CW16: -5 | CY16: =$G16/3*CX16 -> 0 | CZ16: -5 | DB16: =$G16/3*DA16 -> 0 | DC16: -5 | DE16: =$G16/3*DD16 -> 0 | DI16: -5 | DK16: =$G16/3*DJ16 -> 0 | DL16: -5 | DN16: =$G16/3*DM16 -> 0 | DO16: -5 | DQ16: =$G16/3*DP16 -> 0 | DR16: -5 | DT16: =$G16/3*DS16 -> 0 | DX16: -5 | DZ16: =$G16/3*DY16 -> 0 | EA16: -5 | EC16: =$G16/3*EB16 -> 0 | ED16: -5 | EF16: =$G16/3*EE16 -> 0 | EG16: -5 | EI16: =$G16/3*EH16 -> 0 | EM16: -5 | EO16: =$G16/3*EN16 -> 0 | EP16: -5 | ER16: =$G16/3*EQ16 -> 0 | ES16: -5 | EU16: =$G16/3*ET16 -> 0 | EY16: -5 | FA16: =$G16/3*EZ16 -> 0 | FB16: -5 | FD16: =$G16/3*FC16 -> 0 | FE16: -5 | FG16: =$G16/3*FF16 -> 0 | FK16: -5 | FM16: =$G16/3*FL16 -> 0 | FQ16: -5 | FS16: =$G16/3*FR16 -> 0 | FW16: -5 | FY16: =$G16/3*FX16 -> 0 | GC16: -5 | GE16: =$G16/3*GD16 -> 0
A17: 1.8 | B17: 3.1.1.4 | C17: Controlled equipment room environment temperature | E17: Yes/No | F17: No (equipment room air temperature conditions will be applicable)
A18: 1.8.1 | B18: 3.1.1.4.1 | C18: Maximum | E18: °C | F18: 27 | G18: 9 | H18: 50 | I18: 3 | J18: =$G18/3*I18 -> 9 | K18: 50 | L18: 3 | M18: =$G18/3*L18 -> 9 | N18: 50 | P18: =$G18/3*O18 -> 0 | Q18: 50 | S18: =$G18/3*R18 -> 0 | W18: 50 | Y18: =$G18/3*X18 -> 0 | Z18: 50 | AB18: =$G18/3*AA18 -> 0 | AC18: 50 | AE18: =$G18/3*AD18 -> 0 | AF18: 50 | AH18: =$G18/3*AG18 -> 0 | AL18: 50 | AN18: =$G18/3*AM18 -> 0 | AO18: 50 | AQ18: =$G18/3*AP18 -> 0 | AR18: 50 | AT18: =$G18/3*AS18 -> 0 | AU18: 50 | AW18: =$G18/3*AV18 -> 0 | BA18: 50 | BC18: =$G18/3*BB18 -> 0 | BD18: 50 | BF18: =$G18/3*BE18 -> 0 | BG18: 50 | BI18: =$G18/3*BH18 -> 0 | BJ18: 50 | BL18: =$G18/3*BK18 -> 0 | BP18: 50 | BR18: =$G18/3*BQ18 -> 0 | BS18: 50 | BU18: =$G18/3*BT18 -> 0 | BV18: 50 | BX18: =$G18/3*BW18 -> 0 | BY18: 50 | CA18: =$G18/3*BZ18 -> 0 | CE18: 50 | CG18: =$G18/3*CF18 -> 0 | CH18: 50 | CJ18: =$G18/3*CI18 -> 0 | CK18: 50 | CM18: =$G18/3*CL18 -> 0 | CN18: 50 | CP18: =$G18/3*CO18 -> 0 | CT18: 50 | CV18: =$G18/3*CU18 -> 0 | CW18: 50 | CY18: =$G18/3*CX18 -> 0 | CZ18: 50 | DB18: =$G18/3*DA18 -> 0 | DC18: 50 | DE18: =$G18/3*DD18 -> 0 | DI18: 50 | DK18: =$G18/3*DJ18 -> 0 | DL18: 50 | DN18: =$G18/3*DM18 -> 0 | DO18: 50 | DQ18: =$G18/3*DP18 -> 0 | DR18: 50 | DT18: =$G18/3*DS18 -> 0 | DX18: 50 | DZ18: =$G18/3*DY18 -> 0 | EA18: 50 | EC18: =$G18/3*EB18 -> 0 | ED18: 50 | EF18: =$G18/3*EE18 -> 0 | EG18: 50 | EI18: =$G18/3*EH18 -> 0 | EM18: 50 | EO18: =$G18/3*EN18 -> 0 | EP18: 50 | ER18: =$G18/3*EQ18 -> 0 | ES18: 50 | EU18: =$G18/3*ET18 -> 0 | EY18: 50 | FA18: =$G18/3*EZ18 -> 0 | FB18: 50 | FD18: =$G18/3*FC18 -> 0 | FE18: 50 | FG18: =$G18/3*FF18 -> 0 | FK18: 50 | FM18: =$G18/3*FL18 -> 0 | FQ18: 50 | FS18: =$G18/3*FR18 -> 0 | FW18: 50 | FY18: =$G18/3*FX18 -> 0 | GC18: 50 | GE18: =$G18/3*GD18 -> 0
A19: 1.8.2 | B19: 3.1.1.4.2 | C19: Minimum | E19: °C | F19: 20 | G19: 9 | H19: -5 | I19: 3 | J19: =$G19/3*I19 -> 9 | K19: -5 | L19: 3 | M19: =$G19/3*L19 -> 9 | N19: -5 | P19: =$G19/3*O19 -> 0 | Q19: -5 | S19: =$G19/3*R19 -> 0 | W19: -5 | Y19: =$G19/3*X19 -> 0 | Z19: -5 | AB19: =$G19/3*AA19 -> 0 | AC19: -5 | AE19: =$G19/3*AD19 -> 0 | AF19: -5 | AH19: =$G19/3*AG19 -> 0 | AL19: -5 | AN19: =$G19/3*AM19 -> 0 | AO19: -5 | AQ19: =$G19/3*AP19 -> 0 | AR19: -5 | AT19: =$G19/3*AS19 -> 0 | AU19: -5 | AW19: =$G19/3*AV19 -> 0 | BA19: -5 | BC19: =$G19/3*BB19 -> 0 | BD19: -5 | BF19: =$G19/3*BE19 -> 0 | BG19: -5 | BI19: =$G19/3*BH19 -> 0 | BJ19: -5 | BL19: =$G19/3*BK19 -> 0 | BP19: -5 | BR19: =$G19/3*BQ19 -> 0 | BS19: -5 | BU19: =$G19/3*BT19 -> 0 | BV19: -5 | BX19: =$G19/3*BW19 -> 0 | BY19: -5 | CA19: =$G19/3*BZ19 -> 0 | CE19: -5 | CG19: =$G19/3*CF19 -> 0 | CH19: -5 | CJ19: =$G19/3*CI19 -> 0 | CK19: -5 | CM19: =$G19/3*CL19 -> 0 | CN19: -5 | CP19: =$G19/3*CO19 -> 0 | CT19: -5 | CV19: =$G19/3*CU19 -> 0 | CW19: -5 | CY19: =$G19/3*CX19 -> 0 | CZ19: -5 | DB19: =$G19/3*DA19 -> 0 | DC19: -5 | DE19: =$G19/3*DD19 -> 0 | DI19: -5 | DK19: =$G19/3*DJ19 -> 0 | DL19: -5 | DN19: =$G19/3*DM19 -> 0 | DO19: -5 | DQ19: =$G19/3*DP19 -> 0 | DR19: -5 | DT19: =$G19/3*DS19 -> 0 | DX19: -5 | DZ19: =$G19/3*DY19 -> 0 | EA19: -5 | EC19: =$G19/3*EB19 -> 0 | ED19: -5 | EF19: =$G19/3*EE19 -> 0 | EG19: -5 | EI19: =$G19/3*EH19 -> 0 | EM19: -5 | EO19: =$G19/3*EN19 -> 0 | EP19: -5 | ER19: =$G19/3*EQ19 -> 0 | ES19: -5 | EU19: =$G19/3*ET19 -> 0 | EY19: -5 | FA19: =$G19/3*EZ19 -> 0 | FB19: -5 | FD19: =$G19/3*FC19 -> 0 | FE19: -5 | FG19: =$G19/3*FF19 -> 0 | FK19: -5 | FM19: =$G19/3*FL19 -> 0 | FQ19: -5 | FS19: =$G19/3*FR19 -> 0 | FW19: -5 | FY19: =$G19/3*FX19 -> 0 | GC19: -5 | GE19: =$G19/3*GD19 -> 0
A20: 2 | B20: 3.1.2 | C20: Electrical input supply | G20: =SUM(G21:G30) -> 100 | J20: =SUM(J21:J30) -> 100 | M20: =SUM(M21:M30) -> 0 | P20: =SUM(P21:P30) -> 0 | S20: =SUM(S21:S30) -> 0 | Y20: =SUM(Y21:Y30) -> 0 | AB20: =SUM(AB21:AB30) -> 0 | AE20: =SUM(AE21:AE30) -> 0 | AH20: =SUM(AH21:AH30) -> 0 | AN20: =SUM(AN21:AN30) -> 0 | AQ20: =SUM(AQ21:AQ30) -> 0 | AT20: =SUM(AT21:AT30) -> 0 | AW20: =SUM(AW21:AW30) -> 0 | BC20: =SUM(BC21:BC30) -> 0 | BF20: =SUM(BF21:BF30) -> 0 | BI20: =SUM(BI21:BI30) -> 0 | BL20: =SUM(BL21:BL30) -> 0 | BR20: =SUM(BR21:BR30) -> 0 | BU20: =SUM(BU21:BU30) -> 0 | BX20: =SUM(BX21:BX30) -> 0 | CA20: =SUM(CA21:CA30) -> 0 | CG20: =SUM(CG21:CG30) -> 0 | CJ20: =SUM(CJ21:CJ30) -> 0 | CM20: =SUM(CM21:CM30) -> 0 | CP20: =SUM(CP21:CP30) -> 0 | CV20: =SUM(CV21:CV30) -> 0 | CY20: =SUM(CY21:CY30) -> 0 | DB20: =SUM(DB21:DB30) -> 0 | DE20: =SUM(DE21:DE30) -> 0 | DK20: =SUM(DK21:DK30) -> 0 | DN20: =SUM(DN21:DN30) -> 0 | DQ20: =SUM(DQ21:DQ30) -> 0 | DT20: =SUM(DT21:DT30) -> 0 | DZ20: =SUM(DZ21:DZ30) -> 0 | EC20: =SUM(EC21:EC30) -> 0 | EF20: =SUM(EF21:EF30) -> 0 | EI20: =SUM(EI21:EI30) -> 0 | EO20: =SUM(EO21:EO30) -> 0 | ER20: =SUM(ER21:ER30) -> 0 | EU20: =SUM(EU21:EU30) -> 0 | FA20: =SUM(FA21:FA30) -> 0 | FD20: =SUM(FD21:FD30) -> 0 | FG20: =SUM(FG21:FG30) -> 0 | FM20: =SUM(FM21:FM30) -> 0 | FS20: =SUM(FS21:FS30) -> 0 | FY20: =SUM(FY21:FY30) -> 0 | GE20: =SUM(GE21:GE30) -> 0
A21: 2.1 | B21: 3.1.2.1 | C21: Input supply configuration | E21: Configuration as per SANS 10142-1 | F21: TN-S | G21: 5 | H21: Comply/3phase 4wire+Earth | I21: 3 | J21: =$G21/3*I21 -> 5 | K21: Comply/3phase 4wire+Earth | M21: =$G21/3*L21 -> 0 | N21: Comply/3phase 4wire+Earth | P21: =$G21/3*O21 -> 0 | Q21: Comply/3phase 4wire+Earth | S21: =$G21/3*R21 -> 0 | W21: Comply/3phase 4wire+Earth | Y21: =$G21/3*X21 -> 0 | Z21: Comply/3phase 4wire+Earth | AB21: =$G21/3*AA21 -> 0 | AC21: Comply/3phase 4wire+Earth | AE21: =$G21/3*AD21 -> 0 | AF21: Comply/3phase 4wire+Earth | AH21: =$G21/3*AG21 -> 0 | AL21: Comply/3phase 4wire+Earth | AN21: =$G21/3*AM21 -> 0 | AO21: Comply/3phase 4wire+Earth | AQ21: =$G21/3*AP21 -> 0 | AR21: Comply/3phase 4wire+Earth | AT21: =$G21/3*AS21 -> 0 | AU21: Comply/3phase 4wire+Earth | AW21: =$G21/3*AV21 -> 0 | BA21: Comply/3phase 4wire+Earth | BC21: =$G21/3*BB21 -> 0 | BD21: Comply/3phase 4wire+Earth | BF21: =$G21/3*BE21 -> 0 | BG21: Comply/3phase 4wire+Earth | BI21: =$G21/3*BH21 -> 0 | BJ21: Comply/3phase 4wire+Earth | BL21: =$G21/3*BK21 -> 0 | BP21: Comply/3phase 4wire+Earth | BR21: =$G21/3*BQ21 -> 0 | BS21: Comply/3phase 4wire+Earth | BU21: =$G21/3*BT21 -> 0 | BV21: Comply/3phase 4wire+Earth | BX21: =$G21/3*BW21 -> 0 | BY21: Comply/3phase 4wire+Earth | CA21: =$G21/3*BZ21 -> 0 | CE21: Comply/3phase 4wire+Earth | CG21: =$G21/3*CF21 -> 0 | CH21: Comply/3phase 4wire+Earth | CJ21: =$G21/3*CI21 -> 0 | CK21: Comply/3phase 4wire+Earth | CM21: =$G21/3*CL21 -> 0 | CN21: Comply/3phase 4wire+Earth | CP21: =$G21/3*CO21 -> 0 | CT21: Comply/3phase 4wire+Earth | CV21: =$G21/3*CU21 -> 0 | CW21: Comply/3phase 4wire+Earth | CY21: =$G21/3*CX21 -> 0 | CZ21: Comply/3phase 4wire+Earth | DB21: =$G21/3*DA21 -> 0 | DC21: Comply/3phase 4wire+Earth | DE21: =$G21/3*DD21 -> 0 | DI21: Comply/3phase 4wire+Earth | DK21: =$G21/3*DJ21 -> 0 | DL21: Comply/3phase 4wire+Earth | DN21: =$G21/3*DM21 -> 0 | DO21: Comply/3phase 4wire+Earth | DQ21: =$G21/3*DP21 -> 0 | DR21: Comply/3phase 4wire+Earth | DT21: =$G21/3*DS21 -> 0 | DX21: Comply/3phase 4wire+Earth | DZ21: =$G21/3*DY21 -> 0 | EA21: Comply/3phase 4wire+Earth | EC21: =$G21/3*EB21 -> 0 | ED21: Comply/3phase 4wire+Earth | EF21: =$G21/3*EE21 -> 0 | EG21: Comply/3phase 4wire+Earth | EI21: =$G21/3*EH21 -> 0 | EM21: Comply/3phase 4wire+Earth | EO21: =$G21/3*EN21 -> 0 | EP21: Comply/3phase 4wire+Earth | ER21: =$G21/3*EQ21 -> 0 | ES21: Comply/3phase 4wire+Earth | EU21: =$G21/3*ET21 -> 0 | EY21: Comply/3phase 4wire+Earth | FA21: =$G21/3*EZ21 -> 0 | FB21: Comply/3phase 4wire+Earth | FD21: =$G21/3*FC21 -> 0 | FE21: Comply/3phase 4wire+Earth | FG21: =$G21/3*FF21 -> 0 | FK21: Comply/3phase 4wire+Earth | FM21: =$G21/3*FL21 -> 0 | FQ21: Comply/3phase 4wire+Earth | FS21: =$G21/3*FR21 -> 0 | FW21: Comply/3phase 4wire+Earth | FY21: =$G21/3*FX21 -> 0 | GC21: Comply/3phase 4wire+Earth | GE21: =$G21/3*GD21 -> 0
A22: 2.2 | B22: 3.1.2.2 | C22: Input voltage fluctuations as percentage of nominal voltage | E22: % | F22: 400V±25 | G22: 40 | H22: 400v+-25 | I22: 3 | J22: =$G22/3*I22 -> 40 | K22: 400v+-25 | M22: =$G22/3*L22 -> 0 | N22: 400v+-25 | P22: =$G22/3*O22 -> 0 | Q22: 400v+-25 | S22: =$G22/3*R22 -> 0 | T22: Charger Spec | W22: 400v+-25 | Y22: =$G22/3*X22 -> 0 | Z22: 400v+-25 | AB22: =$G22/3*AA22 -> 0 | AC22: 400v+-25 | AE22: =$G22/3*AD22 -> 0 | AF22: 400v+-25 | AH22: =$G22/3*AG22 -> 0 | AI22: Charger Spec | AL22: 400v+-25 | AN22: =$G22/3*AM22 -> 0 | AO22: 400v+-25 | AQ22: =$G22/3*AP22 -> 0 | AR22: 400v+-25 | AT22: =$G22/3*AS22 -> 0 | AU22: 400v+-25 | AW22: =$G22/3*AV22 -> 0 | AX22: Charger Spec | BA22: 400v+-25 | BC22: =$G22/3*BB22 -> 0 | BD22: 400v+-25 | BF22: =$G22/3*BE22 -> 0 | BG22: 400v+-25 | BI22: =$G22/3*BH22 -> 0 | BJ22: 400v+-25 | BL22: =$G22/3*BK22 -> 0 | BM22: Charger Spec | BP22: 400v+-25 | BR22: =$G22/3*BQ22 -> 0 | BS22: 400v+-25 | BU22: =$G22/3*BT22 -> 0 | BV22: 400v+-25 | BX22: =$G22/3*BW22 -> 0 | BY22: 400v+-25 | CA22: =$G22/3*BZ22 -> 0 | CB22: Charger Spec | CE22: 400v+-25 | CG22: =$G22/3*CF22 -> 0 | CH22: 400v+-25 | CJ22: =$G22/3*CI22 -> 0 | CK22: 400v+-25 | CM22: =$G22/3*CL22 -> 0 | CN22: 400v+-25 | CP22: =$G22/3*CO22 -> 0 | CQ22: Charger Spec | CT22: 400v+-25 | CV22: =$G22/3*CU22 -> 0 | CW22: 400v+-25 | CY22: =$G22/3*CX22 -> 0 | CZ22: 400v+-25 | DB22: =$G22/3*DA22 -> 0 | DC22: 400v+-25 | DE22: =$G22/3*DD22 -> 0 | DF22: Charger Spec | DI22: 400v+-25 | DK22: =$G22/3*DJ22 -> 0 | DL22: 400v+-25 | DN22: =$G22/3*DM22 -> 0 | DO22: 400v+-25 | DQ22: =$G22/3*DP22 -> 0 | DR22: 400v+-25 | DT22: =$G22/3*DS22 -> 0 | DU22: Charger Spec | DX22: 400v+-25 | DZ22: =$G22/3*DY22 -> 0 | EA22: 400v+-25 | EC22: =$G22/3*EB22 -> 0 | ED22: 400v+-25 | EF22: =$G22/3*EE22 -> 0 | EG22: 400v+-25 | EI22: =$G22/3*EH22 -> 0 | EJ22: Charger Spec | EM22: 400v+-25 | EO22: =$G22/3*EN22 -> 0 | EP22: 400v+-25 | ER22: =$G22/3*EQ22 -> 0 | ES22: 400v+-25 | EU22: =$G22/3*ET22 -> 0 | EV22: Charger Spec | EY22: 400v+-25 | FA22: =$G22/3*EZ22 -> 0 | FB22: 400v+-25 | FD22: =$G22/3*FC22 -> 0 | FE22: 400v+-25 | FG22: =$G22/3*FF22 -> 0 | FH22: Charger Spec | FK22: 400v+-25 | FM22: =$G22/3*FL22 -> 0 | FN22: Charger Spec | FQ22: 400v+-25 | FS22: =$G22/3*FR22 -> 0 | FT22: Charger Spec | FW22: 400v+-25 | FY22: =$G22/3*FX22 -> 0 | FZ22: Charger Spec | GC22: 400v+-25 | GE22: =$G22/3*GD22 -> 0 | GF22: Charger Spec
A23: 2.3 | B23: 3.1.2.3 | C23: Input frequency fluctuations as percentage of nominal frequency | E23: % | F23: 50Hz±5 | G23: 10 | H23: 50hZ+-5% | I23: 3 | J23: 10 | K23: 50hZ+-5% | M23: 0 | N23: 50hZ+-5% | P23: 0 | Q23: 50hZ+-5% | S23: 0 | T23: Charger Spec | W23: 50hZ+-5% | Y23: 0 | Z23: 50hZ+-5% | AB23: 0 | AC23: 50hZ+-5% | AE23: 0 | AF23: 50hZ+-5% | AH23: 0 | AI23: Charger Spec | AL23: 50hZ+-5% | AN23: 0 | AO23: 50hZ+-5% | AQ23: 0 | AR23: 50hZ+-5% | AT23: 0 | AU23: 50hZ+-5% | AW23: 0 | AX23: Charger Spec | BA23: 50hZ+-5% | BC23: 0 | BD23: 50hZ+-5% | BF23: 0 | BG23: 50hZ+-5% | BI23: 0 | BJ23: 50hZ+-5% | BL23: 0 | BM23: Charger Spec | BP23: 50hZ+-5% | BR23: 0 | BS23: 50hZ+-5% | BU23: 0 | BV23: 50hZ+-5% | BX23: 0 | BY23: 50hZ+-5% | CA23: 0 | CB23: Charger Spec | CE23: 50hZ+-5% | CG23: 0 | CH23: 50hZ+-5% | CJ23: 0 | CK23: 50hZ+-5% | CM23: 0 | CN23: 50hZ+-5% | CP23: 0 | CQ23: Charger Spec | CT23: 50hZ+-5% | CV23: 0 | CW23: 50hZ+-5% | CY23: 0 | CZ23: 50hZ+-5% | DB23: 0 | DC23: 50hZ+-5% | DE23: 0 | DF23: Charger Spec | DI23: 50hZ+-5% | DK23: 0 | DL23: 50hZ+-5% | DN23: 0 | DO23: 50hZ+-5% | DQ23: 0 | DR23: 50hZ+-5% | DT23: 0 | DU23: Charger Spec | DX23: 50hZ+-5% | DZ23: 0 | EA23: 50hZ+-5% | EC23: 0 | ED23: 50hZ+-5% | EF23: 0 | EG23: 50hZ+-5% | EI23: 0 | EJ23: Charger Spec | EM23: 50hZ+-5% | EO23: 0 | EP23: 50hZ+-5% | ER23: 0 | ES23: 50hZ+-5% | EU23: 0 | EV23: Charger Spec | EY23: 50hZ+-5% | FA23: 0 | FB23: 50hZ+-5% | FD23: 0 | FE23: 50hZ+-5% | FG23: 0 | FH23: Charger Spec | FK23: 50hZ+-5% | FM23: 0 | FN23: Charger Spec | FQ23: 50hZ+-5% | FS23: 0 | FT23: Charger Spec | FW23: 50hZ+-5% | FY23: 0 | FZ23: Charger Spec | GC23: 50hZ+-5% | GE23: 0 | GF23: Charger Spec
A24: 2.4 | B24: 3.1.2.5 | C24: Input voltage deviation from specified voltage maximum to minimum within 1 second. | E24: Yes/No | F24: Yes | G24: 10 | H24: Comply | I24: 3 | J24: 10 | K24: Comply | M24: 0 | N24: Comply | P24: 0 | Q24: Comply | S24: 0 | W24: Comply | Y24: 0 | Z24: Comply | AB24: 0 | AC24: Comply | AE24: 0 | AF24: Comply | AH24: 0 | AL24: Comply | AN24: 0 | AO24: Comply | AQ24: 0 | AR24: Comply | AT24: 0 | AU24: Comply | AW24: 0 | BA24: Comply | BC24: 0 | BD24: Comply | BF24: 0 | BG24: Comply | BI24: 0 | BJ24: Comply | BL24: 0 | BP24: Comply | BR24: 0 | BS24: Comply | BU24: 0 | BV24: Comply | BX24: 0 | BY24: Comply | CA24: 0 | CE24: Comply | CG24: 0 | CH24: Comply | CJ24: 0 | CK24: Comply | CM24: 0 | CN24: Comply | CP24: 0 | CT24: Comply | CV24: 0 | CW24: Comply | CY24: 0 | CZ24: Comply | DB24: 0 | DC24: Comply | DE24: 0 | DI24: Comply | DK24: 0 | DL24: Comply | DN24: 0 | DO24: Comply | DQ24: 0 | DR24: Comply | DT24: 0 | DX24: Comply | DZ24: 0 | EA24: Comply | EC24: 0 | ED24: Comply | EF24: 0 | EG24: Comply | EI24: 0 | EM24: Comply | EO24: 0 | EP24: Comply | ER24: 0 | ES24: Comply | EU24: 0 | EY24: Comply | FA24: 0 | FB24: Comply | FD24: 0 | FE24: Comply | FG24: 0 | FK24: Comply | FM24: 0 | FQ24: Comply | FS24: 0 | FW24: Comply | FY24: 0 | GC24: Comply | GE24: 0
A25: 2.5 | B25: 3.1.2.6 | C25: Input voltage fluctuation between specified minimum to maximum value within one to ten cycles | E25: Yes/No | F25: Yes | G25: 10 | H25: Comply | I25: 3 | J25: 10 | K25: Comply | M25: 0 | N25: Comply | P25: 0 | Q25: Comply | S25: 0 | W25: Comply | Y25: 0 | Z25: Comply | AB25: 0 | AC25: Comply | AE25: 0 | AF25: Comply | AH25: 0 | AL25: Comply | AN25: 0 | AO25: Comply | AQ25: 0 | AR25: Comply | AT25: 0 | AU25: Comply | AW25: 0 | BA25: Comply | BC25: 0 | BD25: Comply | BF25: 0 | BG25: Comply | BI25: 0 | BJ25: Comply | BL25: 0 | BP25: Comply | BR25: 0 | BS25: Comply | BU25: 0 | BV25: Comply | BX25: 0 | BY25: Comply | CA25: 0 | CE25: Comply | CG25: 0 | CH25: Comply | CJ25: 0 | CK25: Comply | CM25: 0 | CN25: Comply | CP25: 0 | CT25: Comply | CV25: 0 | CW25: Comply | CY25: 0 | CZ25: Comply | DB25: 0 | DC25: Comply | DE25: 0 | DI25: Comply | DK25: 0 | DL25: Comply | DN25: 0 | DO25: Comply | DQ25: 0 | DR25: Comply | DT25: 0 | DX25: Comply | DZ25: 0 | EA25: Comply | EC25: 0 | ED25: Comply | EF25: 0 | EG25: Comply | EI25: 0 | EM25: Comply | EO25: 0 | EP25: Comply | ER25: 0 | ES25: Comply | EU25: 0 | EY25: Comply | FA25: 0 | FB25: Comply | FD25: 0 | FE25: Comply | FG25: 0 | FK25: Comply | FM25: 0 | FQ25: Comply | FS25: 0 | FW25: Comply | FY25: 0 | GC25: Comply | GE25: 0
A26: 2.6 | B26: 3.1.2.7 | C26: Unbalance between phase | E26: % | F26: ≤3 negative phase sequence and/or the magnitude of one phase not lower than 5% than any of the other two for 6 hours | G26: 10 | H26: Comply | I26: 3 | J26: 10 | K26: Comply | M26: 0 | N26: Comply | P26: 0 | Q26: Comply | S26: 0 | W26: Comply | Y26: 0 | Z26: Comply | AB26: 0 | AC26: Comply | AE26: 0 | AF26: Comply | AH26: 0 | AL26: Comply | AN26: 0 | AO26: Comply | AQ26: 0 | AR26: Comply | AT26: 0 | AU26: Comply | AW26: 0 | BA26: Comply | BC26: 0 | BD26: Comply | BF26: 0 | BG26: Comply | BI26: 0 | BJ26: Comply | BL26: 0 | BP26: Comply | BR26: 0 | BS26: Comply | BU26: 0 | BV26: Comply | BX26: 0 | BY26: Comply | CA26: 0 | CE26: Comply | CG26: 0 | CH26: Comply | CJ26: 0 | CK26: Comply | CM26: 0 | CN26: Comply | CP26: 0 | CT26: Comply | CV26: 0 | CW26: Comply | CY26: 0 | CZ26: Comply | DB26: 0 | DC26: Comply | DE26: 0 | DI26: Comply | DK26: 0 | DL26: Comply | DN26: 0 | DO26: Comply | DQ26: 0 | DR26: Comply | DT26: 0 | DX26: Comply | DZ26: 0 | EA26: Comply | EC26: 0 | ED26: Comply | EF26: 0 | EG26: Comply | EI26: 0 | EM26: Comply | EO26: 0 | EP26: Comply | ER26: 0 | ES26: Comply | EU26: 0 | EY26: Comply | FA26: 0 | FB26: Comply | FD26: 0 | FE26: Comply | FG26: 0 | FK26: Comply | FM26: 0 | FQ26: Comply | FS26: 0 | FW26: Comply | FY26: 0 | GC26: Comply | GE26: 0
A27: 2.7 | B27: 3.1.2.8 | C27: Input voltage total distortion | F27: Table 1 IEC 61000-2-2 | G27: 10 | H27: Comply | I27: 3 | J27: 10 | K27: Comply | M27: 0 | N27: Comply | P27: 0 | Q27: Comply | S27: 0 | W27: Comply | Y27: 0 | Z27: Comply | AB27: 0 | AC27: Comply | AE27: 0 | AF27: Comply | AH27: 0 | AL27: Comply | AN27: 0 | AO27: Comply | AQ27: 0 | AR27: Comply | AT27: 0 | AU27: Comply | AW27: 0 | BA27: Comply | BC27: 0 | BD27: Comply | BF27: 0 | BG27: Comply | BI27: 0 | BJ27: Comply | BL27: 0 | BP27: Comply | BR27: 0 | BS27: Comply | BU27: 0 | BV27: Comply | BX27: 0 | BY27: Comply | CA27: 0 | CE27: Comply | CG27: 0 | CH27: Comply | CJ27: 0 | CK27: Comply | CM27: 0 | CN27: Comply | CP27: 0 | CT27: Comply | CV27: 0 | CW27: Comply | CY27: 0 | CZ27: Comply | DB27: 0 | DC27: Comply | DE27: 0 | DI27: Comply | DK27: 0 | DL27: Comply | DN27: 0 | DO27: Comply | DQ27: 0 | DR27: Comply | DT27: 0 | DX27: Comply | DZ27: 0 | EA27: Comply | EC27: 0 | ED27: Comply | EF27: 0 | EG27: Comply | EI27: 0 | EM27: Comply | EO27: 0 | EP27: Comply | ER27: 0 | ES27: Comply | EU27: 0 | EY27: Comply | FA27: 0 | FB27: Comply | FD27: 0 | FE27: Comply | FG27: 0 | FK27: Comply | FM27: 0 | FQ27: Comply | FS27: 0 | FW27: Comply | FY27: 0 | GC27: Comply | GE27: 0
A28: 2.8 | B28: 3.1.2.9 | C28: The minimum, maximum DC input voltage | E28: Minimum and maximum
A29: 2.9 | B29: 3.1.2.12 | C29: Additional input supply requirements | E29: Yes/No | F29: Yes. | W29: Comply | Z29: Comply | AC29: Comply | AF29: Comply | AL29: Comply | AO29: Comply | AR29: Comply | AU29: Comply | BA29: Comply | BD29: Comply | BG29: Comply | BJ29: Comply | BP29: Comply | BS29: Comply | BV29: Comply | BY29: Comply | CE29: Comply | CH29: Comply | CK29: Comply | CN29: Comply | CT29: Comply | CW29: Comply | CZ29: Comply | DC29: Comply | DI29: Comply | DL29: Comply | DO29: Comply | DR29: Comply | DX29: Comply | EA29: Comply | ED29: Comply | EG29: Comply | EM29: Comply | EP29: Comply | ES29: Comply | EY29: Comply | FB29: Comply | FE29: Comply | FK29: Comply | FQ29: Comply | FW29: Comply | GC29: Comply
E30: Dual input supplies to be accommodated with electrical chop-over system inside charger/rectifier. 1 kW heater element circuit breakers on the input supply (number to be indicated). | F30: Dual input supplies to be accommodated with electrical chop-over system inside charger/rectifier. | G30: 5 | H30: Not Required for 24volt unit can be fitted. | I30: 3 | J30: 5 | K30: Not Required for 24volt unit can be fitted. | M30: 0 | N30: Not Required for 24volt unit can be fitted. | P30: 0 | Q30: Not Required for 24volt unit can be fitted. | S30: 0 | W30: Not Required for 24volt unit can be fitted. | Y30: 0 | Z30: Not Required for 48volt unit can be fitted. | AB30: 0 | AC30: Not Required for 110volt unit can be fitted. | AE30: 0 | AF30: Comply | AH30: 0 | AL30: Not Required for 24volt unit can be fitted. | AN30: 0 | AO30: Not Required for 48volt unit can be fitted. | AQ30: 0 | AR30: Not Required for 110volt unit can be fitted. | AT30: 0 | AU30: Comply. | AW30: 0 | BA30: Not Required for 24volt unit can be fitted. | BC30: 0 | BD30: Not Required for 48volt unit can be fitted. | BF30: 0 | BG30: Not Required for 110volt unit can be fitted. | BI30: 0 | BJ30: Comply | BL30: 0 | BP30: Not Required for 24volt unit can be fitted. | BR30: 0 | BS30: Not Required for 48volt unit can be fitted. | BU30: 0 | BV30: Not Required for 110volt unit can be fitted. | BX30: 0 | BY30: Comply | CA30: 0 | CE30: Not Required for 24volt unit can be fitted. | CG30: 0 | CH30: Not Required for 48volt unit can be fitted. | CJ30: 0 | CK30: Not Required for 110volt unit can be fitted. | CM30: 0 | CN30: Comply | CP30: 0 | CT30: Not Required for 24volt unit can be fitted. | CV30: 0 | CW30: Not Required for 48volt unit can be fitted. | CY30: 0 | CZ30: Not Required for 110volt unit can be fitted. | DB30: 0 | DC30: Not Required for 220v unit> 250a can be fitted. | DE30: 0 | DI30: Not Required for 24volt unit can be fitted. | DK30: 0 | DL30: Not Required for 48volt unit can be fitted. | DN30: 0 | DO30: Not Required for 110volt unit can be fitted. | DQ30: 0 | DR30: Not ReqNot Required for 220v unit> 250a can be fitted | DT30: 0 | DX30: Not Required for 24volt unit can be fitted. | DZ30: 0 | EA30: Not Required for 48volt unit can be fitted. | EC30: 0 | ED30: Not Required for 110volt unit can be fitted. | EF30: 0 | EG30: Not Required for 220v unit> 250a can be fitted. | EI30: 0 | EM30: Not Required for 24volt unit can be fitted. | EO30: 0 | EP30: Not Required for 48volt unit can be fitted. | ER30: 0 | ES30: Not Required for 220v unit> 250a can be fitted. | EU30: 0 | EY30: Not Required for 24volt unit can be fitted. | FA30: 0 | FB30: Not Required for 48volt unit can be fitted. | FD30: 0 | FE30: Not Required for 220v unit> 250a can be fitted. | FG30: 0 | FK30: Not Required for 24volt unit can be fitted. | FM30: 0 | FQ30: Not Required for 24volt unit can be fitted. | FS30: 0 | FW30: Not Required for 24volt unit can be fitted. | FY30: 0 | GC30: Not Required for 24volt unit can be fitted. | GE30: 0
A31: 3 | B31: 3.2 | C31: Operational requirements | G31: =SUM(G32:G283) -> 100 | J31: =SUM(J32:J283) -> 100 | M31: =SUM(M32:M283) -> 0 | P31: =SUM(P32:P283) -> 0 | S31: =SUM(S32:S283) -> 0 | Y31: =SUM(Y32:Y283) -> 0 | AB31: =SUM(AB32:AB283) -> 0 | AE31: =SUM(AE32:AE283) -> 0 | AH31: =SUM(AH32:AH283) -> 0 | AN31: =SUM(AN32:AN283) -> 0 | AQ31: =SUM(AQ32:AQ283) -> 0 | AT31: =SUM(AT32:AT283) -> 0 | AW31: =SUM(AW32:AW283) -> 0 | BC31: =SUM(BC32:BC283) -> 0 | BF31: =SUM(BF32:BF283) -> 0 | BI31: =SUM(BI32:BI283) -> 0 | BL31: =SUM(BL32:BL283) -> 0 | BR31: =SUM(BR32:BR283) -> 0 | BU31: =SUM(BU32:BU283) -> 0 | BX31: =SUM(BX32:BX283) -> 0 | CA31: =SUM(CA32:CA283) -> 0 | CG31: =SUM(CG32:CG283) -> 0 | CJ31: =SUM(CJ32:CJ283) -> 0 | CM31: =SUM(CM32:CM283) -> 0 | CP31: =SUM(CP32:CP283) -> 0 | CV31: =SUM(CV32:CV283) -> 0 | CY31: =SUM(CY32:CY283) -> 0 | DB31: =SUM(DB32:DB283) -> 0 | DE31: =SUM(DE32:DE283) -> 0 | DK31: =SUM(DK32:DK283) -> 0 | DN31: =SUM(DN32:DN283) -> 0 | DQ31: =SUM(DQ32:DQ283) -> 0 | DT31: =SUM(DT32:DT283) -> 0 | DZ31: =SUM(DZ32:DZ283) -> 0 | EC31: =SUM(EC32:EC283) -> 0 | EF31: =SUM(EF32:EF283) -> 0 | EI31: =SUM(EI32:EI283) -> 0 | EO31: =SUM(EO32:EO283) -> 0 | ER31: =SUM(ER32:ER283) -> 0 | EU31: =SUM(EU32:EU283) -> 0 | FA31: =SUM(FA32:FA283) -> 0 | FD31: =SUM(FD32:FD283) -> 0 | FG31: =SUM(FG32:FG283) -> 0 | FM31: =SUM(FM32:FM283) -> 0 | FS31: =SUM(FS32:FS283) -> 0 | FY31: =SUM(FY32:FY283) -> 0 | GE31: =SUM(GE32:GE283) -> 0
A32: 3.1.1 | B32: 3.2.1.1 | C32: Number of pulses | E32: Number | F32: 6 or 12 | G32: 0.4 | H32: 12 | I32: 3 | J32: =$G32/3*I32 -> 0.4 | K32: 12 | M32: =$G32/3*L32 -> 0 | N32: 12 | P32: =$G32/3*O32 -> 0 | Q32: 12 | S32: =$G32/3*R32 -> 0 | W32: 12 | Y32: =$G32/3*X32 -> 0 | Z32: 12 | AB32: =$G32/3*AA32 -> 0 | AC32: 12 | AE32: =$G32/3*AD32 -> 0 | AF32: 12 | AH32: =$G32/3*AG32 -> 0 | AL32: 12 | AN32: =$G32/3*AM32 -> 0 | AO32: 12 | AQ32: =$G32/3*AP32 -> 0 | AR32: 12 | AT32: =$G32/3*AS32 -> 0 | AU32: 12 | AW32: =$G32/3*AV32 -> 0 | BA32: 12 | BC32: =$G32/3*BB32 -> 0 | BD32: 12 | BF32: =$G32/3*BE32 -> 0 | BG32: 12 | BI32: =$G32/3*BH32 -> 0 | BJ32: 12 | BL32: =$G32/3*BK32 -> 0 | BP32: 12 | BR32: =$G32/3*BQ32 -> 0 | BS32: 12 | BU32: =$G32/3*BT32 -> 0 | BV32: 12 | BX32: =$G32/3*BW32 -> 0 | BY32: 12 | CA32: =$G32/3*BZ32 -> 0 | CE32: 12 | CG32: =$G32/3*CF32 -> 0 | CH32: 12 | CJ32: =$G32/3*CI32 -> 0 | CK32: 12 | CM32: =$G32/3*CL32 -> 0 | CN32: 12 | CP32: =$G32/3*CO32 -> 0 | CT32: 12 | CV32: =$G32/3*CU32 -> 0 | CW32: 12 | CY32: =$G32/3*CX32 -> 0 | CZ32: 12 | DB32: =$G32/3*DA32 -> 0 | DC32: 12 | DE32: =$G32/3*DD32 -> 0 | DI32: 12 | DK32: =$G32/3*DJ32 -> 0 | DL32: 12 | DN32: =$G32/3*DM32 -> 0 | DO32: 12 | DQ32: =$G32/3*DP32 -> 0 | DR32: 12 | DT32: =$G32/3*DS32 -> 0 | DX32: 12 | DZ32: =$G32/3*DY32 -> 0 | EA32: 12 | EC32: =$G32/3*EB32 -> 0 | ED32: 12 | EF32: =$G32/3*EE32 -> 0 | EG32: 12 | EI32: =$G32/3*EH32 -> 0 | EM32: 12 | EO32: =$G32/3*EN32 -> 0 | EP32: 12 | ER32: =$G32/3*EQ32 -> 0 | ES32: 12 | EU32: =$G32/3*ET32 -> 0 | EY32: 12 | FA32: =$G32/3*EZ32 -> 0 | FB32: 12 | FD32: =$G32/3*FC32 -> 0 | FE32: 12 | FG32: =$G32/3*FF32 -> 0 | FK32: 12 | FM32: =$G32/3*FL32 -> 0 | FQ32: 12 | FS32: =$G32/3*FR32 -> 0 | FW32: 12 | FY32: =$G32/3*FX32 -> 0 | GC32: 12 | GE32: =$G32/3*GD32 -> 0
A33: 3.1.2 | B33: 3.2.1.2 | C33: Double wound transformer on the input | E33: Yes/No | F33: Yes | G33: 0.4 | H33: Comply | I33: 3 | J33: 0.4 | K33: Comply | M33: 0 | N33: Comply | P33: 0 | Q33: Comply | S33: 0 | W33: Comply | Y33: 0 | Z33: Comply | AB33: 0 | AC33: Comply | AE33: 0 | AF33: Comply | AH33: 0 | AL33: Comply | AN33: 0 | AO33: Comply | AQ33: 0 | AR33: Comply | AT33: 0 | AU33: Comply | AW33: 0 | BA33: Comply | BC33: 0 | BD33: Comply | BF33: 0 | BG33: Comply | BI33: 0 | BJ33: Comply | BL33: 0 | BP33: Comply | BR33: 0 | BS33: Comply | BU33: 0 | BV33: Comply | BX33: 0 | BY33: Comply | CA33: 0 | CE33: Comply | CG33: 0 | CH33: Comply | CJ33: 0 | CK33: Comply | CM33: 0 | CN33: Comply | CP33: 0 | CT33: Comply | CV33: 0 | CW33: Comply | CY33: 0 | CZ33: Comply | DB33: 0 | DC33: Comply | DE33: 0 | DI33: Comply | DK33: 0 | DL33: Comply | DN33: 0 | DO33: Comply | DQ33: 0 | DR33: Comply | DT33: 0 | DX33: Comply | DZ33: 0 | EA33: Comply | EC33: 0 | ED33: Comply | EF33: 0 | EG33: Comply | EI33: 0 | EM33: Comply | EO33: 0 | EP33: Comply | ER33: 0 | ES33: Comply | EU33: 0 | EY33: Comply | FA33: 0 | FB33: Comply | FD33: 0 | FE33: Comply | FG33: 0 | FK33: Comply | FM33: 0 | FQ33: Comply | FS33: 0 | FW33: Comply | FY33: 0 | GC33: Comply | GE33: 0
A34: 3.1.3 | B34: 3.2.1.3 | C34: Controls, rectifier functions, charging mode settings, alarms and monitoring functions done via micro-processor | E34: Yes/No | F34: Yes | G34: 0.6 | H34: Comply | I34: 3 | J34: 0.6 | K34: Comply | M34: 0 | N34: Comply | P34: 0 | Q34: Comply | S34: 0 | W34: Comply | Y34: 0 | Z34: Comply | AB34: 0 | AC34: Comply | AE34: 0 | AF34: Comply | AH34: 0 | AL34: Comply | AN34: 0 | AO34: Comply | AQ34: 0 | AR34: Comply | AT34: 0 | AU34: Comply | AW34: 0 | BA34: Comply | BC34: 0 | BD34: Comply | BF34: 0 | BG34: Comply | BI34: 0 | BJ34: Comply | BL34: 0 | BP34: Comply | BR34: 0 | BS34: Comply | BU34: 0 | BV34: Comply | BX34: 0 | BY34: Comply | CA34: 0 | CE34: Comply | CG34: 0 | CH34: Comply | CJ34: 0 | CK34: Comply | CM34: 0 | CN34: Comply | CP34: 0 | CT34: Comply | CV34: 0 | CW34: Comply | CY34: 0 | CZ34: Comply | DB34: 0 | DC34: Comply | DE34: 0 | DI34: Comply | DK34: 0 | DL34: Comply | DN34: 0 | DO34: Comply | DQ34: 0 | DR34: Comply | DT34: 0 | DX34: Comply | DZ34: 0 | EA34: Comply | EC34: 0 | ED34: Comply | EF34: 0 | EG34: Comply | EI34: 0 | EM34: Comply | EO34: 0 | EP34: Comply | ER34: 0 | ES34: Comply | EU34: 0 | EY34: Comply | FA34: 0 | FB34: Comply | FD34: 0 | FE34: Comply | FG34: 0 | FK34: Comply | FM34: 0 | FQ34: Comply | FS34: 0 | FW34: Comply | FY34: 0 | GC34: Comply | GE34: 0
A35: 3.1.4 | B35: 3.2.1.4 | C35: Overload protection on all circuits | E35: Yes/No | F35: Yes | G35: 0.6 | H35: Comply | I35: 3 | J35: 0.6 | K35: Comply | M35: 0 | N35: Comply | P35: 0 | Q35: Comply | S35: 0 | W35: Comply | Y35: 0 | Z35: Comply | AB35: 0 | AC35: Comply | AE35: 0 | AF35: Comply | AH35: 0 | AL35: Comply | AN35: 0 | AO35: Comply | AQ35: 0 | AR35: Comply | AT35: 0 | AU35: Comply | AW35: 0 | BA35: Comply | BC35: 0 | BD35: Comply | BF35: 0 | BG35: Comply | BI35: 0 | BJ35: Comply | BL35: 0 | BP35: Comply | BR35: 0 | BS35: Comply | BU35: 0 | BV35: Comply | BX35: 0 | BY35: Comply | CA35: 0 | CE35: Comply | CG35: 0 | CH35: Comply | CJ35: 0 | CK35: Comply | CM35: 0 | CN35: Comply | CP35: 0 | CT35: Comply | CV35: 0 | CW35: Comply | CY35: 0 | CZ35: Comply | DB35: 0 | DC35: Comply | DE35: 0 | DI35: Comply | DK35: 0 | DL35: Comply | DN35: 0 | DO35: Comply | DQ35: 0 | DR35: Comply | DT35: 0 | DX35: Comply | DZ35: 0 | EA35: Comply | EC35: 0 | ED35: Comply | EF35: 0 | EG35: Comply | EI35: 0 | EM35: Comply | EO35: 0 | EP35: Comply | ER35: 0 | ES35: Comply | EU35: 0 | EY35: Comply | FA35: 0 | FB35: Comply | FD35: 0 | FE35: Comply | FG35: 0 | FK35: Comply | FM35: 0 | FQ35: Comply | FS35: 0 | FW35: Comply | FY35: 0 | GC35: Comply | GE35: 0
A36: 3.1.5 | B36: 3.2.1.5 | C36: DC output bus voltage to be regulated. | E36: Yes/No | F36: Yes | G36: 0.6 | H36: Comply | I36: 3 | J36: 0.6 | K36: Comply | M36: 0 | N36: Comply | P36: 0 | Q36: Comply | S36: 0 | W36: Comply | Y36: 0 | Z36: Comply | AB36: 0 | AC36: Comply | AE36: 0 | AF36: Comply | AH36: 0 | AL36: Comply | AN36: 0 | AO36: Comply | AQ36: 0 | AR36: Comply | AT36: 0 | AU36: Comply | AW36: 0 | BA36: Comply | BC36: 0 | BD36: Comply | BF36: 0 | BG36: Comply | BI36: 0 | BJ36: Comply | BL36: 0 | BP36: Comply | BR36: 0 | BS36: Comply | BU36: 0 | BV36: Comply | BX36: 0 | BY36: Comply | CA36: 0 | CE36: Comply | CG36: 0 | CH36: Comply | CJ36: 0 | CK36: Comply | CM36: 0 | CN36: Comply | CP36: 0 | CT36: Comply | CV36: 0 | CW36: Comply | CY36: 0 | CZ36: Comply | DB36: 0 | DC36: Comply | DE36: 0 | DI36: Comply | DK36: 0 | DL36: Comply | DN36: 0 | DO36: Comply | DQ36: 0 | DR36: Comply | DT36: 0 | DX36: Comply | DZ36: 0 | EA36: Comply | EC36: 0 | ED36: Comply | EF36: 0 | EG36: Comply | EI36: 0 | EM36: Comply | EO36: 0 | EP36: Comply | ER36: 0 | ES36: Comply | EU36: 0 | EY36: Comply | FA36: 0 | FB36: Comply | FD36: 0 | FE36: Comply | FG36: 0 | FK36: Comply | FM36: 0 | FQ36: Comply | FS36: 0 | FW36: Comply | FY36: 0 | GC36: Comply | GE36: 0
A37: 3.1.6 | B37: 3.2.1.6 | C37: Monitoring requirements:
C38: Rectifier voltage and current before and after battery isolator | E38: Yes/No | F38: Yes | G38: 0.6 | H38: Comply | I38: 3 | J38: 0.6 | K38: Comply | M38: 0 | N38: Comply | P38: 0 | Q38: Comply | S38: 0 | W38: Comply | Y38: 0 | Z38: Comply | AB38: 0 | AC38: Comply | AE38: 0 | AF38: Comply | AH38: 0 | AL38: Comply | AN38: 0 | AO38: Comply | AQ38: 0 | AR38: Comply | AT38: 0 | AU38: Comply | AW38: 0 | BA38: Comply | BC38: 0 | BD38: Comply | BF38: 0 | BG38: Comply | BI38: 0 | BJ38: Comply | BL38: 0 | BP38: Comply | BR38: 0 | BS38: Comply | BU38: 0 | BV38: Comply | BX38: 0 | BY38: Comply | CA38: 0 | CE38: Comply | CG38: 0 | CH38: Comply | CJ38: 0 | CK38: Comply | CM38: 0 | CN38: Comply | CP38: 0 | CT38: Comply | CV38: 0 | CW38: Comply | CY38: 0 | CZ38: Comply | DB38: 0 | DC38: Comply | DE38: 0 | DI38: Comply | DK38: 0 | DL38: Comply | DN38: 0 | DO38: Comply | DQ38: 0 | DR38: Comply | DT38: 0 | DX38: Comply | DZ38: 0 | EA38: Comply | EC38: 0 | ED38: Comply | EF38: 0 | EG38: Comply | EI38: 0 | EM38: Comply | EO38: 0 | EP38: Comply | ER38: 0 | ES38: Comply | EU38: 0 | EY38: Comply | FA38: 0 | FB38: Comply | FD38: 0 | FE38: Comply | FG38: 0 | FK38: Comply | FM38: 0 | FQ38: Comply | FS38: 0 | FW38: Comply | FY38: 0 | GC38: Comply | GE38: 0
C39: Battery loss | F39: Yes | G39: 0.6 | H39: Comply | I39: 3 | J39: 0.6 | K39: Comply | M39: 0 | N39: Comply | P39: 0 | Q39: Comply | S39: 0 | T39: Battery loss monitoring | U39: p4 | W39: Comply | Y39: 0 | Z39: Comply | AB39: 0 | AC39: Comply | AE39: 0 | AF39: Comply | AH39: 0 | AI39: Battery loss monitoring | AJ39: p4 | AL39: Comply | AN39: 0 | AO39: Comply | AQ39: 0 | AR39: Comply | AT39: 0 | AU39: Comply | AW39: 0 | AX39: Battery loss monitoring | AY39: p4 | BA39: Comply | BC39: 0 | BD39: Comply | BF39: 0 | BG39: Comply | BI39: 0 | BJ39: Comply | BL39: 0 | BM39: Battery loss monitoring | BN39: p4 | BP39: Comply | BR39: 0 | BS39: Comply | BU39: 0 | BV39: Comply | BX39: 0 | BY39: Comply | CA39: 0 | CB39: Battery loss monitoring | CC39: p4 | CE39: Comply | CG39: 0 | CH39: Comply | CJ39: 0 | CK39: Comply | CM39: 0 | CN39: Comply | CP39: 0 | CQ39: Battery loss monitoring | CR39: p4 | CT39: Comply | CV39: 0 | CW39: Comply | CY39: 0 | CZ39: Comply | DB39: 0 | DC39: Comply | DE39: 0 | DF39: Battery loss monitoring | DG39: p4 | DI39: Comply | DK39: 0 | DL39: Comply | DN39: 0 | DO39: Comply | DQ39: 0 | DR39: Comply | DT39: 0 | DU39: Battery loss monitoring | DV39: p4 | DX39: Comply | DZ39: 0 | EA39: Comply | EC39: 0 | ED39: Comply | EF39: 0 | EG39: Comply | EI39: 0 | EJ39: Battery loss monitoring | EK39: p4 | EM39: Comply | EO39: 0 | EP39: Comply | ER39: 0 | ES39: Comply | EU39: 0 | EV39: Battery loss monitoring | EW39: p4 | EY39: Comply | FA39: 0 | FB39: Comply | FD39: 0 | FE39: Comply | FG39: 0 | FH39: Battery loss monitoring | FI39: p4 | FK39: Comply | FM39: 0 | FN39: Battery loss monitoring | FO39: p4 | FQ39: Comply | FS39: 0 | FT39: Battery loss monitoring | FU39: p4 | FW39: Comply | FY39: 0 | FZ39: Battery loss monitoring | GC39: Comply | GE39: 0 | GF39: Battery loss monitoring
C40: Voltage and current before output circuit breaker/isolator | F40: Yes | G40: 0.6 | H40: Comply | I40: 3 | J40: 0.6 | K40: Comply | M40: 0 | N40: Comply | P40: 0 | Q40: Comply | S40: 0 | T40: Additional voltage monitoring after the protection devices | U40: p8 | W40: Comply | Y40: 0 | Z40: Comply | AB40: 0 | AC40: Comply | AE40: 0 | AF40: Comply | AH40: 0 | AI40: Additional voltage monitoring after the protection devices | AJ40: p8 | AL40: Comply | AN40: 0 | AO40: Comply | AQ40: 0 | AR40: Comply | AT40: 0 | AU40: Comply | AW40: 0 | AX40: Additional voltage monitoring after the protection devices | AY40: p8 | BA40: Comply | BC40: 0 | BD40: Comply | BF40: 0 | BG40: Comply | BI40: 0 | BJ40: Comply | BL40: 0 | BM40: Additional voltage monitoring after the protection devices | BN40: p8 | BP40: Comply | BR40: 0 | BS40: Comply | BU40: 0 | BV40: Comply | BX40: 0 | BY40: Comply | CA40: 0 | CB40: Additional voltage monitoring after the protection devices | CC40: p8 | CE40: Comply | CG40: 0 | CH40: Comply | CJ40: 0 | CK40: Comply | CM40: 0 | CN40: Comply | CP40: 0 | CQ40: Additional voltage monitoring after the protection devices | CR40: p8 | CT40: Comply | CV40: 0 | CW40: Comply | CY40: 0 | CZ40: Comply | DB40: 0 | DC40: Comply | DE40: 0 | DF40: Additional voltage monitoring after the protection devices | DG40: p8 | DI40: Comply | DK40: 0 | DL40: Comply | DN40: 0 | DO40: Comply | DQ40: 0 | DR40: Comply | DT40: 0 | DU40: Additional voltage monitoring after the protection devices | DV40: p8 | DX40: Comply | DZ40: 0 | EA40: Comply | EC40: 0 | ED40: Comply | EF40: 0 | EG40: Comply | EI40: 0 | EJ40: Additional voltage monitoring after the protection devices | EK40: p8 | EM40: Comply | EO40: 0 | EP40: Comply | ER40: 0 | ES40: Comply | EU40: 0 | EV40: Additional voltage monitoring after the protection devices | EW40: p8 | EY40: Comply | FA40: 0 | FB40: Comply | FD40: 0 | FE40: Comply | FG40: 0 | FH40: Additional voltage monitoring after the protection devices | FI40: p8 | FK40: Comply | FM40: 0 | FN40: Additional voltage monitoring after the protection devices | FO40: p8 | FQ40: Comply | FS40: 0 | FT40: Additional voltage monitoring after the protection devices | FU40: p8 | FW40: Comply | FY40: 0 | FZ40: Additional voltage monitoring after the protection devices | GC40: Comply | GE40: 0 | GF40: Additional voltage monitoring after the protection devices
C41: Voltage after output circuit breaker | F41: Yes | G41: 0.6 | H41: Comply | I41: 3 | J41: 0.6 | K41: Comply | M41: 0 | N41: Comply | P41: 0 | Q41: Comply | S41: 0 | T41: Additional voltage monitoring after the protection devices | U41: p8 | W41: Comply | Y41: 0 | Z41: Comply | AB41: 0 | AC41: Comply | AE41: 0 | AF41: Comply | AH41: 0 | AI41: Additional voltage monitoring after the protection devices | AJ41: p8 | AL41: Comply | AN41: 0 | AO41: Comply | AQ41: 0 | AR41: Comply | AT41: 0 | AU41: Comply | AW41: 0 | AX41: Additional voltage monitoring after the protection devices | AY41: p8 | BA41: Comply | BC41: 0 | BD41: Comply | BF41: 0 | BG41: Comply | BI41: 0 | BJ41: Comply | BL41: 0 | BM41: Additional voltage monitoring after the protection devices | BN41: p8 | BP41: Comply | BR41: 0 | BS41: Comply | BU41: 0 | BV41: Comply | BX41: 0 | BY41: Comply | CA41: 0 | CB41: Additional voltage monitoring after the protection devices | CC41: p8 | CE41: Comply | CG41: 0 | CH41: Comply | CJ41: 0 | CK41: Comply | CM41: 0 | CN41: Comply | CP41: 0 | CQ41: Additional voltage monitoring after the protection devices | CR41: p8 | CT41: Comply | CV41: 0 | CW41: Comply | CY41: 0 | CZ41: Comply | DB41: 0 | DC41: Comply | DE41: 0 | DF41: Additional voltage monitoring after the protection devices | DG41: p8 | DI41: Comply | DK41: 0 | DL41: Comply | DN41: 0 | DO41: Comply | DQ41: 0 | DR41: Comply | DT41: 0 | DU41: Additional voltage monitoring after the protection devices | DV41: p8 | DX41: Comply | DZ41: 0 | EA41: Comply | EC41: 0 | ED41: Comply | EF41: 0 | EG41: Comply | EI41: 0 | EJ41: Additional voltage monitoring after the protection devices | EK41: p8 | EM41: Comply | EO41: 0 | EP41: Comply | ER41: 0 | ES41: Comply | EU41: 0 | EV41: Additional voltage monitoring after the protection devices | EW41: p8 | EY41: Comply | FA41: 0 | FB41: Comply | FD41: 0 | FE41: Comply | FG41: 0 | FH41: Additional voltage monitoring after the protection devices | FI41: p8 | FK41: Comply | FM41: 0 | FN41: Additional voltage monitoring after the protection devices | FO41: p8 | FQ41: Comply | FS41: 0 | FT41: Additional voltage monitoring after the protection devices | FU41: p8 | FW41: Comply | FY41: 0 | FZ41: Additional voltage monitoring after the protection devices | GC41: Comply | GE41: 0 | GF41: Additional voltage monitoring after the protection devices
C42: Temperature and operating status of each charger | F42: Yes | G42: 0.6 | H42: Comply | I42: 3 | J42: 0.6 | K42: Comply | M42: 0 | N42: Comply | P42: 0 | Q42: Comply | S42: 0 | W42: Comply | Y42: 0 | Z42: Comply | AB42: 0 | AC42: Comply | AE42: 0 | AF42: Comply | AH42: 0 | AL42: Comply | AN42: 0 | AO42: Comply | AQ42: 0 | AR42: Comply | AT42: 0 | AU42: Comply | AW42: 0 | BA42: Comply | BC42: 0 | BD42: Comply | BF42: 0 | BG42: Comply | BI42: 0 | BJ42: Comply | BL42: 0 | BP42: Comply | BR42: 0 | BS42: Comply | BU42: 0 | BV42: Comply | BX42: 0 | BY42: Comply | CA42: 0 | CE42: Comply | CG42: 0 | CH42: Comply | CJ42: 0 | CK42: Comply | CM42: 0 | CN42: Comply | CP42: 0 | CT42: Comply | CV42: 0 | CW42: Comply | CY42: 0 | CZ42: Comply | DB42: 0 | DC42: Comply | DE42: 0 | DI42: Comply | DK42: 0 | DL42: Comply | DN42: 0 | DO42: Comply | DQ42: 0 | DR42: Comply | DT42: 0 | DX42: Comply | DZ42: 0 | EA42: Comply | EC42: 0 | ED42: Comply | EF42: 0 | EG42: Comply | EI42: 0 | EM42: Comply | EO42: 0 | EP42: Comply | ER42: 0 | ES42: Comply | EU42: 0 | EY42: Comply | FA42: 0 | FB42: Comply | FD42: 0 | FE42: Comply | FG42: 0 | FK42: Comply | FM42: 0 | FQ42: Comply | FS42: 0 | FW42: Comply | FY42: 0 | GC42: Comply | GE42: 0
A43: 3.1.7 | B43: 3.2.1.7 | C43: Charger compatible with and meets the required charging requirements for all types of batteries specified. | E43: Yes/No | F43: Yes | G43: 0.6 | H43: Comply | I43: 3 | J43: 0.6 | K43: Comply | M43: 0 | N43: Comply | P43: 0 | Q43: Comply | S43: 0 | T43: Charging modes | U43: p9 | W43: Comply | Y43: 0 | Z43: Comply | AB43: 0 | AC43: Comply | AE43: 0 | AF43: Comply | AH43: 0 | AI43: Charging modes | AJ43: p9 | AL43: Comply | AN43: 0 | AO43: Comply | AQ43: 0 | AR43: Comply | AT43: 0 | AU43: Comply | AW43: 0 | AX43: Charging modes | AY43: p9 | BA43: Comply | BC43: 0 | BD43: Comply | BF43: 0 | BG43: Comply | BI43: 0 | BJ43: Comply | BL43: 0 | BM43: Charging modes | BN43: p9 | BP43: Comply | BR43: 0 | BS43: Comply | BU43: 0 | BV43: Comply | BX43: 0 | BY43: Comply | CA43: 0 | CB43: Charging modes | CC43: p9 | CE43: Comply | CG43: 0 | CH43: Comply | CJ43: 0 | CK43: Comply | CM43: 0 | CN43: Comply | CP43: 0 | CQ43: Charging modes | CR43: p9 | CT43: Comply | CV43: 0 | CW43: Comply | CY43: 0 | CZ43: Comply | DB43: 0 | DC43: Comply | DE43: 0 | DF43: Charging modes | DG43: p9 | DI43: Comply | DK43: 0 | DL43: Comply | DN43: 0 | DO43: Comply | DQ43: 0 | DR43: Comply | DT43: 0 | DU43: Charging modes | DV43: p9 | DX43: Comply | DZ43: 0 | EA43: Comply | EC43: 0 | ED43: Comply | EF43: 0 | EG43: Comply | EI43: 0 | EJ43: Charging modes | EK43: p9 | EM43: Comply | EO43: 0 | EP43: Comply | ER43: 0 | ES43: Comply | EU43: 0 | EV43: Charging modes | EW43: p9 | EY43: Comply | FA43: 0 | FB43: Comply | FD43: 0 | FE43: Comply | FG43: 0 | FH43: Charging modes | FI43: p9 | FK43: Comply | FM43: 0 | FN43: Charging modes | FO43: p9 | FQ43: Comply | FS43: 0 | FT43: Charging modes | FU43: p9 | FW43: Comply | FY43: 0 | FZ43: Charging modes | GC43: Comply | GE43: 0 | GF43: Charging modes
A44: 3.1.8 | B44: 3.2.1.8 | C44: Standard output operating voltage tolerance | E44: Vnom | F44: Vnom | G44: 0.6 | H44: 24v | I44: 3 | J44: 0.6 | K44: 48v | M44: 0 | N44: 110v | P44: 0 | Q44: 220v | S44: 0 | W44: 24v | Y44: 0 | Z44: 48v | AB44: 0 | AC44: 110v | AE44: 0 | AF44: 220v | AH44: 0 | AL44: 24v | AN44: 0 | AO44: 48v | AQ44: 0 | AR44: 110v | AT44: 0 | AU44: 220v | AW44: 0 | BA44: 24v | BC44: 0 | BD44: 48v | BF44: 0 | BG44: 110v | BI44: 0 | BJ44: 220v | BL44: 0 | BP44: 24v | BR44: 0 | BS44: 48v | BU44: 0 | BV44: 110v | BX44: 0 | BY44: 220v | CA44: 0 | CE44: 24v | CG44: 0 | CH44: 48v | CJ44: 0 | CK44: 110v | CM44: 0 | CN44: 220v | CP44: 0 | CT44: 24v | CV44: 0 | CW44: 48v | CY44: 0 | CZ44: 110v | DB44: 0 | DC44: 220v | DE44: 0 | DI44: 24v | DK44: 0 | DL44: 48v | DN44: 0 | DO44: 110v | DQ44: 0 | DR44: 220v | DT44: 0 | DX44: 24v | DZ44: 0 | EA44: 48v | EC44: 0 | ED44: 110v | EF44: 0 | EG44: 220v | EI44: 0 | EM44: 24v | EO44: 0 | EP44: 48v | ER44: 0 | ES44: 220v | EU44: 0 | EY44: 24v | FA44: 0 | FB44: 48v | FD44: 0 | FE44: 220v | FG44: 0 | FK44: 24v | FM44: 0 | FQ44: 24v | FS44: 0 | FW44: 24v | FY44: 0 | GC44: 24v | GE44: 0
C45: Minimum output voltage | E45: Vmin | F45: Vmin | G45: 0.6 | H45: 16v | I45: 3 | J45: 0.6 | K45: 36v | M45: 0 | N45: 80v | P45: 0 | Q45: 120v | S45: 0 | W45: 16v | Y45: 0 | Z45: 36v | AB45: 0 | AC45: 80v | AE45: 0 | AF45: 120v | AH45: 0 | AL45: 16v | AN45: 0 | AO45: 36v | AQ45: 0 | AR45: 80v | AT45: 0 | AU45: 120v | AW45: 0 | BA45: 16v | BC45: 0 | BD45: 36v | BF45: 0 | BG45: 80v | BI45: 0 | BJ45: 120v | BL45: 0 | BP45: 16v | BR45: 0 | BS45: 36v | BU45: 0 | BV45: 80v | BX45: 0 | BY45: 120v | CA45: 0 | CE45: 16v | CG45: 0 | CH45: 36v | CJ45: 0 | CK45: 80v | CM45: 0 | CN45: 120v | CP45: 0 | CT45: 16v | CV45: 0 | CW45: 36v | CY45: 0 | CZ45: 80v | DB45: 0 | DC45: 120v | DE45: 0 | DI45: 16v | DK45: 0 | DL45: 36v | DN45: 0 | DO45: 80v | DQ45: 0 | DR45: 120v | DT45: 0 | DX45: 16v | DZ45: 0 | EA45: 36v | EC45: 0 | ED45: 80v | EF45: 0 | EG45: 120v | EI45: 0 | EM45: 16v | EO45: 0 | EP45: 36v | ER45: 0 | ES45: 120v | EU45: 0 | EY45: 16v | FA45: 0 | FB45: 36v | FD45: 0 | FE45: 120v | FG45: 0 | FK45: 16v | FM45: 0 | FQ45: 16v | FS45: 0 | FW45: 16v | FY45: 0 | GC45: 16v | GE45: 0
C46: Maximum output voltage | E46: Vmax | F46: Vmax | G46: 0.4 | H46: 36v | I46: 3 | J46: 0.4 | K46: 72v | M46: 0 | N46: 160v | P46: 0 | Q46: 320v | S46: 0 | W46: 36v | Y46: 0 | Z46: 72v | AB46: 0 | AC46: 160v | AE46: 0 | AF46: 320v | AH46: 0 | AL46: 36v | AN46: 0 | AO46: 72v | AQ46: 0 | AR46: 160v | AT46: 0 | AU46: 320v | AW46: 0 | BA46: 36v | BC46: 0 | BD46: 72v | BF46: 0 | BG46: 160v | BI46: 0 | BJ46: 320v | BL46: 0 | BP46: 36v | BR46: 0 | BS46: 72v | BU46: 0 | BV46: 160v | BX46: 0 | BY46: 320v | CA46: 0 | CE46: 36v | CG46: 0 | CH46: 72v | CJ46: 0 | CK46: 160v | CM46: 0 | CN46: 320v | CP46: 0 | CT46: 36v | CV46: 0 | CW46: 72v | CY46: 0 | CZ46: 160v | DB46: 0 | DC46: 320v | DE46: 0 | DI46: 36v | DK46: 0 | DL46: 72v | DN46: 0 | DO46: 160v | DQ46: 0 | DR46: 320v | DT46: 0 | DX46: 36v | DZ46: 0 | EA46: 72v | EC46: 0 | ED46: 160v | EF46: 0 | EG46: 320v | EI46: 0 | EM46: 36v | EO46: 0 | EP46: 72v | ER46: 0 | ES46: 320v | EU46: 0 | EY46: 36v | FA46: 0 | FB46: 72v | FD46: 0 | FE46: 320v | FG46: 0 | FK46: 36v | FM46: 0 | FQ46: 36v | FS46: 0 | FW46: 36v | FY46: 0 | GC46: 36v | GE46: 0
A47: 3.1.9 | B47: 3.2.1.9 | C47: Charger/rectifier modules shall be constant voltage, current limiting | E47: Yes/No | F47: Yes | G47: 0.4 | H47: Comply | I47: 3 | J47: 0.4 | K47: Comply | M47: 0 | N47: Comply | P47: 0 | Q47: Comply | S47: 0 | W47: Comply | Y47: 0 | Z47: Comply | AB47: 0 | AC47: Comply | AE47: 0 | AF47: Comply | AH47: 0 | AL47: Comply | AN47: 0 | AO47: Comply | AQ47: 0 | AR47: Comply | AT47: 0 | AU47: Comply | AW47: 0 | BA47: Comply | BC47: 0 | BD47: Comply | BF47: 0 | BG47: Comply | BI47: 0 | BJ47: Comply | BL47: 0 | BP47: Comply | BR47: 0 | BS47: Comply | BU47: 0 | BV47: Comply | BX47: 0 | BY47: Comply | CA47: 0 | CE47: Comply | CG47: 0 | CH47: Comply | CJ47: 0 | CK47: Comply | CM47: 0 | CN47: Comply | CP47: 0 | CT47: Comply | CV47: 0 | CW47: Comply | CY47: 0 | CZ47: Comply | DB47: 0 | DC47: Comply | DE47: 0 | DI47: Comply | DK47: 0 | DL47: Comply | DN47: 0 | DO47: Comply | DQ47: 0 | DR47: Comply | DT47: 0 | DX47: Comply | DZ47: 0 | EA47: Comply | EC47: 0 | ED47: Comply | EF47: 0 | EG47: Comply | EI47: 0 | EM47: Comply | EO47: 0 | EP47: Comply | ER47: 0 | ES47: Comply | EU47: 0 | EY47: Comply | FA47: 0 | FB47: Comply | FD47: 0 | FE47: Comply | FG47: 0 | FK47: Comply | FM47: 0 | FQ47: Comply | FS47: 0 | FW47: Comply | FY47: 0 | GC47: Comply | GE47: 0
A48: 3.1.10 | B48: 3.2.1.10 | C48: Number of parallel modules/units | E48: Number | F48: xxxxx | G48: 0.4 | H48: Two | I48: 3 | J48: 0.4 | K48: Two | M48: 0 | N48: Two | P48: 0 | Q48: Two | S48: 0 | W48: Two | Y48: 0 | Z48: Two | AB48: 0 | AC48: Two | AE48: 0 | AF48: Two | AH48: 0 | AL48: Two | AN48: 0 | AO48: Two | AQ48: 0 | AR48: Two | AT48: 0 | AU48: Two | AW48: 0 | BA48: Two | BC48: 0 | BD48: Two | BF48: 0 | BG48: Two | BI48: 0 | BJ48: Two | BL48: 0 | BP48: Two | BR48: 0 | BS48: Two | BU48: 0 | BV48: Two | BX48: 0 | BY48: Two | CA48: 0 | CE48: Two | CG48: 0 | CH48: Two | CJ48: 0 | CK48: Two | CM48: 0 | CN48: Two | CP48: 0 | CT48: Two | CV48: 0 | CW48: Two | CY48: 0 | CZ48: Two | DB48: 0 | DC48: Two | DE48: 0 | DI48: Two | DK48: 0 | DL48: Two | DN48: 0 | DO48: Two | DQ48: 0 | DR48: Two | DT48: 0 | DX48: Two | DZ48: 0 | EA48: Two | EC48: 0 | ED48: Two | EF48: 0 | EG48: Two | EI48: 0 | EM48: Two | EO48: 0 | EP48: Two | ER48: 0 | ES48: Two | EU48: 0 | EY48: Two | FA48: 0 | FB48: Two | FD48: 0 | FE48: Two | FG48: 0 | FK48: Two | FM48: 0 | FQ48: Two | FS48: 0 | FW48: Two | FY48: 0 | GC48: Two | GE48: 0
A49: 3.1.11 | B49: 3.2.1.11 | C49: Load sharing requirement of parallel modules/units | E49: % | F49: ≤10 | G49: 0.6 | H49: <10% | I49: 3 | J49: 0.6 | K49: <10% | M49: 0 | N49: <10% | P49: 0 | Q49: <10% | S49: 0 | T49: Parallel operation test | U49: p9 - p10 | W49: <10% | Y49: 0 | Z49: <10% | AB49: 0 | AC49: <10% | AE49: 0 | AF49: <10% | AH49: 0 | AI49: Parallel operation test | AJ49: p9 - p10 | AL49: <10% | AN49: 0 | AO49: <10% | AQ49: 0 | AR49: <10% | AT49: 0 | AU49: <10% | AW49: 0 | AX49: Parallel operation test | AY49: p9 - p10 | BA49: Comply | BC49: 0 | BD49: Comply | BF49: 0 | BG49: Comply | BI49: 0 | BJ49: Comply | BL49: 0 | BM49: Parallel operation test | BN49: p9 - p10 | BP49: Comply | BR49: 0 | BS49: Comply | BU49: 0 | BV49: Comply | BX49: 0 | BY49: Comply | CA49: 0 | CB49: Parallel operation test | CC49: p9 - p10 | CE49: <10% | CG49: 0 | CH49: <10% | CJ49: 0 | CK49: <10% | CM49: 0 | CN49: <10% | CP49: 0 | CQ49: Parallel operation test | CR49: p9 - p10 | CT49: <10% | CV49: 0 | CW49: <10% | CY49: 0 | CZ49: <10% | DB49: 0 | DC49: <10% | DE49: 0 | DF49: Parallel operation test | DG49: p9 - p10 | DI49: <10% | DK49: 0 | DL49: <10% | DN49: 0 | DO49: <10% | DQ49: 0 | DR49: <10% | DT49: 0 | DU49: Parallel operation test | DV49: p9 - p10 | DX49: <10% | DZ49: 0 | EA49: <10% | EC49: 0 | ED49: <10% | EF49: 0 | EG49: <10% | EI49: 0 | EJ49: Parallel operation test | EK49: p9 - p10 | EM49: <10% | EO49: 0 | EP49: <10% | ER49: 0 | ES49: <10% | EU49: 0 | EV49: Parallel operation test | EW49: p9 - p10 | EY49: <10% | FA49: 0 | FB49: <10% | FD49: 0 | FE49: <10% | FG49: 0 | FH49: Parallel operation test | FI49: p9 - p10 | FK49: <10% | FM49: 0 | FN49: Parallel operation test | FO49: p9 - p10 | FQ49: <10% | FS49: 0 | FT49: Parallel operation test | FU49: p9 - p10 | FW49: <10% | FY49: 0 | FZ49: Parallel operation test | GC49: <10% | GE49: 0 | GF49: Parallel operation test
A50: 3.1.12 | B50: 3.2.1.14 | C50: Boost charge at maximum boost charge voltage with load connected | E50: Yes/No | F50: Yes | G50: 0.6 | H50: Comply | I50: 3 | J50: 0.6 | K50: Comply | M50: 0 | N50: Comply | P50: 0 | Q50: Comply | S50: 0 | W50: Comply | Y50: 0 | Z50: Comply | AB50: 0 | AC50: Comply | AE50: 0 | AF50: Comply | AH50: 0 | AL50: Comply | AN50: 0 | AO50: Comply | AQ50: 0 | AR50: Comply | AT50: 0 | AU50: Comply | AW50: 0 | BA50: Comply | BC50: 0 | BD50: Comply | BF50: 0 | BG50: Comply | BI50: 0 | BJ50: Comply | BL50: 0 | BP50: Comply | BR50: 0 | BS50: Comply | BU50: 0 | BV50: Comply | BX50: 0 | BY50: Comply | CA50: 0 | CE50: Comply | CG50: 0 | CH50: Comply | CJ50: 0 | CK50: Comply | CM50: 0 | CN50: Comply | CP50: 0 | CT50: Comply | CV50: 0 | CW50: Comply | CY50: 0 | CZ50: Comply | DB50: 0 | DC50: Comply | DE50: 0 | DI50: Comply | DK50: 0 | DL50: Comply | DN50: 0 | DO50: Comply | DQ50: 0 | DR50: Comply | DT50: 0 | DX50: Comply | DZ50: 0 | EA50: Comply | EC50: 0 | ED50: Comply | EF50: 0 | EG50: Comply | EI50: 0 | EM50: Comply | EO50: 0 | EP50: Comply | ER50: 0 | ES50: Comply | EU50: 0 | EY50: Comply | FA50: 0 | FB50: Comply | FD50: 0 | FE50: Comply | FG50: 0 | FK50: Comply | FM50: 0 | FQ50: Comply | FS50: 0 | FW50: Comply | FY50: 0 | GC50: Comply | GE50: 0
A51: 3.1.13 | B51: 3.2.1.15 | C51: Initial charge capability | E51: Yes/No | F51: No | G51: 0.6 | H51: Noted/Comply | I51: 3 | J51: 0.6 | K51: Noted/Comply | M51: 0 | N51: Noted/Comply | P51: 0 | Q51: Noted/Comply | S51: 0 | W51: Noted/Comply | Y51: 0 | Z51: Noted/Comply | AB51: 0 | AC51: Noted/Comply | AE51: 0 | AF51: Noted/Comply | AH51: 0 | AL51: Noted/Comply | AN51: 0 | AO51: Noted/Comply | AQ51: 0 | AR51: Noted/Comply | AT51: 0 | AU51: Noted/Comply | AW51: 0 | BA51: Noted/Comply | BC51: 0 | BD51: Noted/Comply | BF51: 0 | BG51: Noted/Comply | BI51: 0 | BJ51: Noted/Comply | BL51: 0 | BP51: Noted/Comply | BR51: 0 | BS51: Noted/Comply | BU51: 0 | BV51: Noted/Comply | BX51: 0 | BY51: Noted/Comply | CA51: 0 | CE51: Noted/Comply | CG51: 0 | CH51: Noted/Comply | CJ51: 0 | CK51: Noted/Comply | CM51: 0 | CN51: Noted/Comply | CP51: 0 | CT51: Noted/Comply | CV51: 0 | CW51: Noted/Comply | CY51: 0 | CZ51: Noted/Comply | DB51: 0 | DC51: Noted/Comply | DE51: 0 | DI51: Noted/Comply | DK51: 0 | DL51: Noted/Comply | DN51: 0 | DO51: Noted/Comply | DQ51: 0 | DR51: Noted/Comply | DT51: 0 | DX51: Noted/Comply | DZ51: 0 | EA51: Noted/Comply | EC51: 0 | ED51: Noted/Comply | EF51: 0 | EG51: Noted/Comply | EI51: 0 | EM51: Noted/Comply | EO51: 0 | EP51: Noted/Comply | ER51: 0 | ES51: Noted/Comply | EU51: 0 | EY51: Noted/Comply | FA51: 0 | FB51: Noted/Comply | FD51: 0 | FE51: Noted/Comply | FG51: 0 | FK51: Noted/Comply | FM51: 0 | FQ51: Noted/Comply | FS51: 0 | FW51: Noted/Comply | FY51: 0 | GC51: Noted/Comply | GE51: 0
A52: 3.1.14 | B52: 3.2.1.16 | C52: Output power is maintained when parallel/modules units are switched on or off | E52: Yes/No | F52: Yes | G52: 0.6 | H52: Comply | I52: 3 | J52: 0.6 | K52: Comply | M52: 0 | N52: Comply | P52: 0 | Q52: Comply | S52: 0 | W52: Comply | Y52: 0 | Z52: Comply | AB52: 0 | AC52: Comply | AE52: 0 | AF52: Comply | AH52: 0 | AL52: Comply | AN52: 0 | AO52: Comply | AQ52: 0 | AR52: Comply | AT52: 0 | AU52: Comply | AW52: 0 | BA52: Comply | BC52: 0 | BD52: Comply | BF52: 0 | BG52: Comply | BI52: 0 | BJ52: Comply | BL52: 0 | BP52: Comply | BR52: 0 | BS52: Comply | BU52: 0 | BV52: Comply | BX52: 0 | BY52: Comply | CA52: 0 | CE52: Comply | CG52: 0 | CH52: Comply | CJ52: 0 | CK52: Comply | CM52: 0 | CN52: Comply | CP52: 0 | CT52: Comply | CV52: 0 | CW52: Comply | CY52: 0 | CZ52: Comply | DB52: 0 | DC52: Comply | DE52: 0 | DI52: Comply | DK52: 0 | DL52: Comply | DN52: 0 | DO52: Comply | DQ52: 0 | DR52: Comply | DT52: 0 | DX52: Comply | DZ52: 0 | EA52: Comply | EC52: 0 | ED52: Comply | EF52: 0 | EG52: Comply | EI52: 0 | EM52: Comply | EO52: 0 | EP52: Comply | ER52: 0 | ES52: Comply | EU52: 0 | EY52: Comply | FA52: 0 | FB52: Comply | FD52: 0 | FE52: Comply | FG52: 0 | FK52: Comply | FM52: 0 | FQ52: Comply | FS52: 0 | FW52: Comply | FY52: 0 | GC52: Comply | GE52: 0
A53: 3.1.15 | B53: 3.2.1.17 | C53: Microprocessor control module compatibility over the OEM product range | E53: Yes/No | F53: Yes | G53: 0.6 | H53: Comply/Pcbs used over entire range | I53: 3 | J53: 0.6 | K53: Comply/Pcbs used over entire range | M53: 0 | N53: Comply/Pcbs used over entire range | P53: 0 | Q53: Comply/Pcbs used over entire range | S53: 0 | W53: Comply/Pcbs used over entire range | Y53: 0 | Z53: Comply/Pcbs used over entire range | AB53: 0 | AC53: Comply/Pcbs used over entire range | AE53: 0 | AF53: Comply/Pcbs used over entire range | AH53: 0 | AL53: Comply/Pcbs used over entire range | AN53: 0 | AO53: Comply/Pcbs used over entire range | AQ53: 0 | AR53: Comply/Pcbs used over entire range | AT53: 0 | AU53: Comply/Pcbs used over entire range | AW53: 0 | BA53: Comply/Pcbs used over entire range | BC53: 0 | BD53: Comply/Pcbs used over entire range | BF53: 0 | BG53: Comply/Pcbs used over entire range | BI53: 0 | BJ53: Comply/Pcbs used over entire range | BL53: 0 | BP53: Comply/Pcbs used over entire range | BR53: 0 | BS53: Comply/Pcbs used over entire range | BU53: 0 | BV53: Comply/Pcbs used over entire range | BX53: 0 | BY53: Comply/Pcbs used over entire range | CA53: 0 | CE53: Comply/Pcbs used over entire range | CG53: 0 | CH53: Comply/Pcbs used over entire range | CJ53: 0 | CK53: Comply/Pcbs used over entire range | CM53: 0 | CN53: Comply/Pcbs used over entire range | CP53: 0 | CT53: Comply/Pcbs used over entire range | CV53: 0 | CW53: Comply/Pcbs used over entire range | CY53: 0 | CZ53: Comply/Pcbs used over entire range | DB53: 0 | DC53: Comply/Pcbs used over entire range | DE53: 0 | DI53: Comply/Pcbs used over entire range | DK53: 0 | DL53: Comply/Pcbs used over entire range | DN53: 0 | DO53: Comply/Pcbs used over entire range | DQ53: 0 | DR53: Comply/Pcbs used over entire range | DT53: 0 | DX53: Comply/Pcbs used over entire range | DZ53: 0 | EA53: Comply/Pcbs used over entire range | EC53: 0 | ED53: Comply/Pcbs used over entire range | EF53: 0 | EG53: Comply/Pcbs used over entire range | EI53: 0 | EM53: Comply/Pcbs used over entire range | EO53: 0 | EP53: Comply/Pcbs used over entire range | ER53: 0 | ES53: Comply/Pcbs used over entire range | EU53: 0 | EY53: Comply/Pcbs used over entire range | FA53: 0 | FB53: Comply/Pcbs used over entire range | FD53: 0 | FE53: Comply/Pcbs used over entire range | FG53: 0 | FK53: Comply/Pcbs used over entire range | FM53: 0 | FQ53: Comply/Pcbs used over entire range | FS53: 0 | FW53: Comply/Pcbs used over entire range | FY53: 0 | GC53: Comply/Pcbs used over entire range | GE53: 0
A54: 3.1.16 | B54: 3.2.1.18 | C54: Maintainability of parallel modules/units without output supply interruption and jeopardizing IP2X | E54: Yes/No | F54: Yes | G54: 0.6 | H54: Comply | I54: 3 | J54: 0.6 | K54: Comply | M54: 0 | N54: Comply | P54: 0 | Q54: Comply | S54: 0 | W54: Comply | Y54: 0 | Z54: Comply | AB54: 0 | AC54: Comply | AE54: 0 | AF54: Comply | AH54: 0 | AL54: Comply | AN54: 0 | AO54: Comply | AQ54: 0 | AR54: Comply | AT54: 0 | AU54: Comply | AW54: 0 | BA54: Comply | BC54: 0 | BD54: Comply | BF54: 0 | BG54: Comply | BI54: 0 | BJ54: Comply | BL54: 0 | BP54: Comply | BR54: 0 | BS54: Comply | BU54: 0 | BV54: Comply | BX54: 0 | BY54: Comply | CA54: 0 | CE54: Comply | CG54: 0 | CH54: Comply | CJ54: 0 | CK54: Comply | CM54: 0 | CN54: Comply | CP54: 0 | CT54: Comply | CV54: 0 | CW54: Comply | CY54: 0 | CZ54: Comply | DB54: 0 | DC54: Comply | DE54: 0 | DI54: Comply | DK54: 0 | DL54: Comply | DN54: 0 | DO54: Comply | DQ54: 0 | DR54: Comply | DT54: 0 | DX54: Comply | DZ54: 0 | EA54: Comply | EC54: 0 | ED54: Comply | EF54: 0 | EG54: Comply | EI54: 0 | EM54: Comply | EO54: 0 | EP54: Comply | ER54: 0 | ES54: Comply | EU54: 0 | EY54: Comply | FA54: 0 | FB54: Comply | FD54: 0 | FE54: Comply | FG54: 0 | FK54: Comply | FM54: 0 | FQ54: Comply | FS54: 0 | FW54: Comply | FY54: 0 | GC54: Comply | GE54: 0
A55: 3.1.17 | B55: 3.2.1.19 | C55: Output voltage regulation at +10 and -15% input voltage;
C56: Float | E56: % | F56: ±0.5 | G56: 0.6 | H56: Comply/Revised to 1% at clarification | I56: 3 | J56: 0.6 | K56: Comply/Revised to 1% at clarification | M56: 0 | N56: Comply/Revised to 1% at clarification | P56: 0 | Q56: Comply/Revised to 1% at clarification | S56: 0 | W56: Comply/Revised to 1% at clarification | Y56: 0 | Z56: Comply/Revised to 1% at clarification | AB56: 0 | AC56: Comply/Revised to 1% at clarification | AE56: 0 | AF56: Comply/Revised to 1% at clarification | AH56: 0 | AL56: Comply/Revised to 1% at clarification | AN56: 0 | AO56: Comply/Revised to 1% at clarification | AQ56: 0 | AR56: Comply/Revised to 1% at clarification | AT56: 0 | AU56: Comply/Revised to 1% at clarification | AW56: 0 | BA56: Comply/Revised to 1% at clarification | BC56: 0 | BD56: Comply/Revised to 1% at clarification | BF56: 0 | BG56: Comply/Revised to 1% at clarification | BI56: 0 | BJ56: Comply/Revised to 1% at clarification | BL56: 0 | BP56: Comply/Revised to 1% at clarification | BR56: 0 | BS56: Comply/Revised to 1% at clarification | BU56: 0 | BV56: Comply/Revised to 1% at clarification | BX56: 0 | BY56: Comply/Revised to 1% at clarification | CA56: 0 | CE56: Comply/Revised to 1% at clarification | CG56: 0 | CH56: Comply/Revised to 1% at clarification | CJ56: 0 | CK56: Comply/Revised to 1% at clarification | CM56: 0 | CN56: Comply/Revised to 1% at clarification | CP56: 0 | CT56: Comply/Revised to 1% at clarification | CV56: 0 | CW56: Comply/Revised to 1% at clarification | CY56: 0 | CZ56: Comply/Revised to 1% at clarification | DB56: 0 | DC56: Comply/Revised to 1% at clarification | DE56: 0 | DI56: Comply/Revised to 1% at clarification | DK56: 0 | DL56: Comply/Revised to 1% at clarification | DN56: 0 | DO56: Comply/Revised to 1% at clarification | DQ56: 0 | DR56: Comply/Revised to 1% at clarification | DT56: 0 | DX56: Comply/Revised to 1% at clarification | DZ56: 0 | EA56: Comply/Revised to 1% at clarification | EC56: 0 | ED56: Comply/Revised to 1% at clarification | EF56: 0 | EG56: Comply/Revised to 1% at clarification | EI56: 0 | EM56: Comply/Revised to 1% at clarification | EO56: 0 | EP56: Comply/Revised to 1% at clarification | ER56: 0 | ES56: Comply/Revised to 1% at clarification | EU56: 0 | EY56: Comply/Revised to 1% at clarification | FA56: 0 | FB56: Comply/Revised to 1% at clarification | FD56: 0 | FE56: Comply/Revised to 1% at clarification | FG56: 0 | FK56: Comply/Revised to 1% at clarification | FM56: 0 | FQ56: Comply/Revised to 1% at clarification | FS56: 0 | FW56: Comply/Revised to 1% at clarification | FY56: 0 | GC56: Comply/Revised to 1% at clarification | GE56: 0
C57: Other charging modes | E57: % | F57: ±1 | G57: 0.6 | H57: Comply | I57: 3 | J57: 0.6 | K57: Comply | M57: 0 | N57: Comply | P57: 0 | Q57: Comply | S57: 0 | W57: Comply | Y57: 0 | Z57: Comply | AB57: 0 | AC57: Comply | AE57: 0 | AF57: Comply | AH57: 0 | AL57: Comply | AN57: 0 | AO57: Comply | AQ57: 0 | AR57: Comply | AT57: 0 | AU57: Comply | AW57: 0 | BA57: Comply | BC57: 0 | BD57: Comply | BF57: 0 | BG57: Comply | BI57: 0 | BJ57: Comply | BL57: 0 | BP57: Comply | BR57: 0 | BS57: Comply | BU57: 0 | BV57: Comply | BX57: 0 | BY57: Comply | CA57: 0 | CE57: Comply | CG57: 0 | CH57: Comply | CJ57: 0 | CK57: Comply | CM57: 0 | CN57: Comply | CP57: 0 | CT57: Comply | CV57: 0 | CW57: Comply | CY57: 0 | CZ57: Comply | DB57: 0 | DC57: Comply | DE57: 0 | DI57: Comply | DK57: 0 | DL57: Comply | DN57: 0 | DO57: Comply | DQ57: 0 | DR57: Comply | DT57: 0 | DX57: Comply | DZ57: 0 | EA57: Comply | EC57: 0 | ED57: Comply | EF57: 0 | EG57: Comply | EI57: 0 | EM57: Comply | EO57: 0 | EP57: Comply | ER57: 0 | ES57: Comply | EU57: 0 | EY57: Comply | FA57: 0 | FB57: Comply | FD57: 0 | FE57: Comply | FG57: 0 | FK57: Comply | FM57: 0 | FQ57: Comply | FS57: 0 | FW57: Comply | FY57: 0 | GC57: Comply | GE57: 0
A58: 3.1.18 | B58: 3.2.1.20 | C58: Output voltage regulation at +25 and -25% input voltage;
C59: Float | E59: % | F59: ±1 | G59: 0.6 | H59: Comply/Revised to 2% at clarification | I59: 3 | J59: 0.6 | K59: Comply/Revised to 2% at clarification | M59: 0 | N59: Comply/Revised to 2% at clarification | P59: 0 | Q59: Comply/Revised to 2% at clarification | S59: 0 | W59: Comply/Revised to 2% at clarification | Y59: 0 | Z59: Comply/Revised to 2% at clarification | AB59: 0 | AC59: Comply/Revised to 2% at clarification | AE59: 0 | AF59: Comply/Revised to 2% at clarification | AH59: 0 | AL59: Comply/Revised to 2% at clarification | AN59: 0 | AO59: Comply/Revised to 2% at clarification | AQ59: 0 | AR59: Comply/Revised to 2% at clarification | AT59: 0 | AU59: Comply/Revised to 2% at clarification | AW59: 0 | BA59: Comply/Revised to 2% at clarification | BC59: 0 | BD59: Comply/Revised to 2% at clarification | BF59: 0 | BG59: Comply/Revised to 2% at clarification | BI59: 0 | BJ59: Comply/Revised to 2% at clarification | BL59: 0 | BP59: Comply/Revised to 2% at clarification | BR59: 0 | BS59: Comply/Revised to 2% at clarification | BU59: 0 | BV59: Comply/Revised to 2% at clarification | BX59: 0 | BY59: Comply/Revised to 2% at clarification | CA59: 0 | CE59: Comply/Revised to 2% at clarification | CG59: 0 | CH59: Comply/Revised to 2% at clarification | CJ59: 0 | CK59: Comply/Revised to 2% at clarification | CM59: 0 | CN59: Comply/Revised to 2% at clarification | CP59: 0 | CT59: Comply/Revised to 2% at clarification | CV59: 0 | CW59: Comply/Revised to 2% at clarification | CY59: 0 | CZ59: Comply/Revised to 2% at clarification | DB59: 0 | DC59: Comply/Revised to 2% at clarification | DE59: 0 | DI59: Comply/Revised to 2% at clarification | DK59: 0 | DL59: Comply/Revised to 2% at clarification | DN59: 0 | DO59: Comply/Revised to 2% at clarification | DQ59: 0 | DR59: Comply/Revised to 2% at clarification | DT59: 0 | DX59: Comply/Revised to 2% at clarification | DZ59: 0 | EA59: Comply/Revised to 2% at clarification | EC59: 0 | ED59: Comply/Revised to 2% at clarification | EF59: 0 | EG59: Comply/Revised to 2% at clarification | EI59: 0 | EM59: Comply/Revised to 2% at clarification | EO59: 0 | EP59: Comply/Revised to 2% at clarification | ER59: 0 | ES59: Comply/Revised to 2% at clarification | EU59: 0 | EY59: Comply/Revised to 2% at clarification | FA59: 0 | FB59: Comply/Revised to 2% at clarification | FD59: 0 | FE59: Comply/Revised to 2% at clarification | FG59: 0 | FK59: Comply/Revised to 2% at clarification | FM59: 0 | FQ59: Comply/Revised to 2% at clarification | FS59: 0 | FW59: Comply/Revised to 2% at clarification | FY59: 0 | GC59: Comply/Revised to 2% at clarification | GE59: 0
C60: Other charging modes | E60: % | F60: ±2 | G60: 0.6 | H60: ±2 | I60: 3 | J60: 0.6 | K60: ±2 | M60: 0 | N60: ±2 | P60: 0 | Q60: ±2 | S60: 0 | W60: ±2 | Y60: 0 | Z60: ±2 | AB60: 0 | AC60: ±2 | AE60: 0 | AF60: ±2 | AH60: 0 | AL60: ±2 | AN60: 0 | AO60: ±2 | AQ60: 0 | AR60: ±2 | AT60: 0 | AU60: ±2 | AW60: 0 | BA60: ±2 | BC60: 0 | BD60: ±2 | BF60: 0 | BG60: ±2 | BI60: 0 | BJ60: ±2 | BL60: 0 | BP60: ±2 | BR60: 0 | BS60: ±2 | BU60: 0 | BV60: ±2 | BX60: 0 | BY60: ±2 | CA60: 0 | CE60: ±2 | CG60: 0 | CH60: ±2 | CJ60: 0 | CK60: ±2 | CM60: 0 | CN60: ±2 | CP60: 0 | CT60: ±2 | CV60: 0 | CW60: ±2 | CY60: 0 | CZ60: ±2 | DB60: 0 | DC60: ±2 | DE60: 0 | DI60: ±2 | DK60: 0 | DL60: ±2 | DN60: 0 | DO60: ±2 | DQ60: 0 | DR60: ±2 | DT60: 0 | DX60: ±2 | DZ60: 0 | EA60: ±2 | EC60: 0 | ED60: ±2 | EF60: 0 | EG60: ±2 | EI60: 0 | EM60: ±2 | EO60: 0 | EP60: ±2 | ER60: 0 | ES60: ±2 | EU60: 0 | EY60: ±2 | FA60: 0 | FB60: ±2 | FD60: 0 | FE60: ±2 | FG60: 0 | FK60: ±2 | FM60: 0 | FQ60: ±2 | FS60: 0 | FW60: ±2 | FY60: 0 | GC60: ±2 | GE60: 0
A61: 3.1.19 | B61: 3.2.1.21 | C61: Voltage regulation during 10 to 90% step variation | E61: % after 1 second | F61: 2 | G61: 0.6 | H61: 0.02 | I61: 3 | J61: 0.6 | K61: 0.02 | M61: 0 | N61: 0.02 | P61: 0 | Q61: 0.02 | S61: 0 | W61: 0.02 | Y61: 0 | Z61: 0.02 | AB61: 0 | AC61: 0.02 | AE61: 0 | AF61: 0.02 | AH61: 0 | AL61: 0.02 | AN61: 0 | AO61: 0.02 | AQ61: 0 | AR61: 0.02 | AT61: 0 | AU61: 0.02 | AW61: 0 | BA61: 0.02 | BC61: 0 | BD61: 0.02 | BF61: 0 | BG61: 0.02 | BI61: 0 | BJ61: 0.02 | BL61: 0 | BP61: 0.02 | BR61: 0 | BS61: 0.02 | BU61: 0 | BV61: 0.02 | BX61: 0 | BY61: 0.02 | CA61: 0 | CE61: 0.02 | CG61: 0 | CH61: 0.02 | CJ61: 0 | CK61: 0.02 | CM61: 0 | CN61: 0.02 | CP61: 0 | CT61: 0.02 | CV61: 0 | CW61: 0.02 | CY61: 0 | CZ61: 0.02 | DB61: 0 | DC61: 0.02 | DE61: 0 | DI61: 0.02 | DK61: 0 | DL61: 0.02 | DN61: 0 | DO61: 0.02 | DQ61: 0 | DR61: 0.02 | DT61: 0 | DX61: 0.02 | DZ61: 0 | EA61: 0.02 | EC61: 0 | ED61: 0.02 | EF61: 0 | EG61: 0.02 | EI61: 0 | EM61: 0.02 | EO61: 0 | EP61: 0.02 | ER61: 0 | ES61: 0.02 | EU61: 0 | EY61: 0.02 | FA61: 0 | FB61: 0.02 | FD61: 0 | FE61: 0.02 | FG61: 0 | FK61: 0.02 | FM61: 0 | FQ61: 0.02 | FS61: 0 | FW61: 0.02 | FY61: 0 | GC61: 0.02 | GE61: 0
A62: 3.1.20 | B62: 3.2.1.22 | C62: Initial and equalize charge interlock when load is connected | E62: Yes/No | F62: Yes | G62: 0.6 | H62: Comply | I62: 3 | J62: 0.6 | K62: Comply | M62: 0 | N62: Comply | P62: 0 | Q62: Comply | S62: 0 | W62: Comply | Y62: 0 | Z62: Comply | AB62: 0 | AC62: Comply | AE62: 0 | AF62: Comply | AH62: 0 | AL62: Comply | AN62: 0 | AO62: Comply | AQ62: 0 | AR62: Comply | AT62: 0 | AU62: Comply | AW62: 0 | BA62: Comply | BC62: 0 | BD62: Comply | BF62: 0 | BG62: Comply | BI62: 0 | BJ62: Comply | BL62: 0 | BP62: Comply | BR62: 0 | BS62: Comply | BU62: 0 | BV62: Comply | BX62: 0 | BY62: Comply | CA62: 0 | CE62: Comply | CG62: 0 | CH62: Comply | CJ62: 0 | CK62: Comply | CM62: 0 | CN62: Comply | CP62: 0 | CT62: Comply | CV62: 0 | CW62: Comply | CY62: 0 | CZ62: Comply | DB62: 0 | DC62: Comply | DE62: 0 | DI62: Comply | DK62: 0 | DL62: Comply | DN62: 0 | DO62: Comply | DQ62: 0 | DR62: Comply | DT62: 0 | DX62: Comply | DZ62: 0 | EA62: Comply | EC62: 0 | ED62: Comply | EF62: 0 | EG62: Comply | EI62: 0 | EM62: Comply | EO62: 0 | EP62: Comply | ER62: 0 | ES62: Comply | EU62: 0 | EY62: Comply | FA62: 0 | FB62: Comply | FD62: 0 | FE62: Comply | FG62: 0 | FK62: Comply | FM62: 0 | FQ62: Comply | FS62: 0 | FW62: Comply | FY62: 0 | GC62: Comply | GE62: 0
A63: 3.1.22 | B63: 3.2.1.24 | C63: Load transfer switch required as an option | E63: Yes/No | F63: Yes | G63: 0.6 | H63: Comply | I63: 3 | J63: 0.6 | K63: Comply | M63: 0 | N63: Comply | P63: 0 | Q63: Comply | S63: 0 | W63: Comply | Y63: 0 | Z63: Comply | AB63: 0 | AC63: Comply | AE63: 0 | AF63: Comply | AH63: 0 | AL63: Comply | AN63: 0 | AO63: Comply | AQ63: 0 | AR63: Comply | AT63: 0 | AU63: Comply | AW63: 0 | BA63: Comply | BC63: 0 | BD63: Comply | BF63: 0 | BG63: Comply | BI63: 0 | BJ63: Comply | BL63: 0 | BP63: Comply | BR63: 0 | BS63: Comply | BU63: 0 | BV63: Comply | BX63: 0 | BY63: Comply | CA63: 0 | CE63: Comply | CG63: 0 | CH63: Comply | CJ63: 0 | CK63: Comply | CM63: 0 | CN63: Comply | CP63: 0 | CT63: Comply | CV63: 0 | CW63: Comply | CY63: 0 | CZ63: Comply | DB63: 0 | DC63: Comply | DE63: 0 | DI63: Comply | DK63: 0 | DL63: Comply | DN63: 0 | DO63: Comply | DQ63: 0 | DR63: Comply | DT63: 0 | DX63: Comply | DZ63: 0 | EA63: Comply | EC63: 0 | ED63: Comply | EF63: 0 | EG63: Comply | EI63: 0 | EM63: Comply | EO63: 0 | EP63: Comply | ER63: 0 | ES63: Comply | EU63: 0 | EY63: Comply | FA63: 0 | FB63: Comply | FD63: 0 | FE63: Comply | FG63: 0 | FK63: Comply | FM63: 0 | FQ63: Comply | FS63: 0 | FW63: Comply | FY63: 0 | GC63: Comply | GE63: 0
A64: 3.1.23 | B64: 3.2.1.25 | C64: Battery charging current limit adjustability | E64: % of rectifier capability | F64: 0-100 | G64: 0.6 | H64: 0-100% | I64: 3 | J64: 0.6 | K64: 0-100% | M64: 0 | N64: 0-100% | P64: 0 | Q64: 0-100% | S64: 0 | W64: Comply | Y64: 0 | Z64: Comply | AB64: 0 | AC64: Comply | AE64: 0 | AF64: Comply | AH64: 0 | AL64: Comply | AN64: 0 | AO64: Comply | AQ64: 0 | AR64: Comply | AT64: 0 | AU64: Comply | AW64: 0 | BA64: Comply | BC64: 0 | BD64: Comply | BF64: 0 | BG64: Comply | BI64: 0 | BJ64: Comply | BL64: 0 | BP64: Comply | BR64: 0 | BS64: Comply | BU64: 0 | BV64: Comply | BX64: 0 | BY64: Comply | CA64: 0 | CE64: Comply | CG64: 0 | CH64: Comply | CJ64: 0 | CK64: Comply | CM64: 0 | CN64: Comply | CP64: 0 | CT64: Comply | CV64: 0 | CW64: Comply | CY64: 0 | CZ64: Comply | DB64: 0 | DC64: Comply | DE64: 0 | DI64: Comply | DK64: 0 | DL64: Comply | DN64: 0 | DO64: Comply | DQ64: 0 | DR64: Comply | DT64: 0 | DX64: Comply | DZ64: 0 | EA64: Comply | EC64: 0 | ED64: Comply | EF64: 0 | EG64: Comply | EI64: 0 | EM64: Comply | EO64: 0 | EP64: Comply | ER64: 0 | ES64: Comply | EU64: 0 | EY64: Comply | FA64: 0 | FB64: Comply | FD64: 0 | FE64: Comply | FG64: 0 | FK64: Comply | FM64: 0 | FQ64: Comply | FS64: 0 | FW64: Comply | FY64: 0 | GC64: Comply | GE64: 0
A65: 3.1.24 | B65: 3.2.1.26 | C65: Rectifier auto-start when input voltage recovers within ±25%input voltage limit | E65: Yes/No | F65: Yes | G65: 0.6 | H65: Comply/+-Hyst | I65: 3 | J65: 0.6 | K65: Comply/+-Hyst | M65: 0 | N65: Comply/+-Hyst | P65: 0 | Q65: Comply/+-Hyst | S65: 0 | W65: Comply/+-Hyst | Y65: 0 | Z65: Comply/+-Hyst | AB65: 0 | AC65: Comply/+-Hyst | AE65: 0 | AF65: Comply/+-Hyst | AH65: 0 | AL65: Comply/+-Hyst | AN65: 0 | AO65: Comply/+-Hyst | AQ65: 0 | AR65: Comply/+-Hyst | AT65: 0 | AU65: Comply/+-Hyst | AW65: 0 | BA65: Comply/+-Hyst | BC65: 0 | BD65: Comply/+-Hyst | BF65: 0 | BG65: Comply/+-Hyst | BI65: 0 | BJ65: Comply/+-Hyst | BL65: 0 | BP65: Comply/+-Hyst | BR65: 0 | BS65: Comply/+-Hyst | BU65: 0 | BV65: Comply/+-Hyst | BX65: 0 | BY65: Comply/+-Hyst | CA65: 0 | CE65: Comply/+-Hyst | CG65: 0 | CH65: Comply/+-Hyst | CJ65: 0 | CK65: Comply/+-Hyst | CM65: 0 | CN65: Comply/+-Hyst | CP65: 0 | CT65: Comply/+-Hyst | CV65: 0 | CW65: Comply/+-Hyst | CY65: 0 | CZ65: Comply/+-Hyst | DB65: 0 | DC65: Comply/+-Hyst | DE65: 0 | DI65: Comply/+-Hyst | DK65: 0 | DL65: Comply/+-Hyst | DN65: 0 | DO65: Comply/+-Hyst | DQ65: 0 | DR65: Comply/+-Hyst | DT65: 0 | DX65: Comply/+-Hyst | DZ65: 0 | EA65: Comply/+-Hyst | EC65: 0 | ED65: Comply/+-Hyst | EF65: 0 | EG65: Comply/+-Hyst | EI65: 0 | EM65: Comply/+-Hyst | EO65: 0 | EP65: Comply/+-Hyst | ER65: 0 | ES65: Comply/+-Hyst | EU65: 0 | EY65: Comply/+-Hyst | FA65: 0 | FB65: Comply/+-Hyst | FD65: 0 | FE65: Comply/+-Hyst | FG65: 0 | FK65: Comply/+-Hyst | FM65: 0 | FQ65: Comply/+-Hyst | FS65: 0 | FW65: Comply/+-Hyst | FY65: 0 | GC65: Comply/+-Hyst | GE65: 0
A66: 3.1.27 | B66: 3.2.1.29 | C66: Individual charging mode enable/disable function; | E66: Yes/No | F66: Yes | G66: 0.6 | H66: Comply | I66: 3 | J66: 0.6 | K66: Comply | M66: 0 | N66: Comply | P66: 0 | Q66: Comply | S66: 0 | W66: Comply | Y66: 0 | Z66: Comply | AB66: 0 | AC66: Comply | AE66: 0 | AF66: Comply | AH66: 0 | AL66: Comply | AN66: 0 | AO66: Comply | AQ66: 0 | AR66: Comply | AT66: 0 | AU66: Comply | AW66: 0 | BA66: Comply | BC66: 0 | BD66: Comply | BF66: 0 | BG66: Comply | BI66: 0 | BJ66: Comply | BL66: 0 | BP66: Comply | BR66: 0 | BS66: Comply | BU66: 0 | BV66: Comply | BX66: 0 | BY66: Comply | CA66: 0 | CE66: Comply | CG66: 0 | CH66: Comply | CJ66: 0 | CK66: Comply | CM66: 0 | CN66: Comply | CP66: 0 | CT66: Comply | CV66: 0 | CW66: Comply | CY66: 0 | CZ66: Comply | DB66: 0 | DC66: Comply | DE66: 0 | DI66: Comply | DK66: 0 | DL66: Comply | DN66: 0 | DO66: Comply | DQ66: 0 | DR66: Comply | DT66: 0 | DX66: Comply | DZ66: 0 | EA66: Comply | EC66: 0 | ED66: Comply | EF66: 0 | EG66: Comply | EI66: 0 | EM66: Comply | EO66: 0 | EP66: Comply | ER66: 0 | ES66: Comply | EU66: 0 | EY66: Comply | FA66: 0 | FB66: Comply | FD66: 0 | FE66: Comply | FG66: 0 | FK66: Comply | FM66: 0 | FQ66: Comply | FS66: 0 | FW66: Comply | FY66: 0 | GC66: Comply | GE66: 0
C67: Manual boost charge function | E67: Yes/No | F67: Yes | G67: 0.6 | H67: Comply | I67: 3 | J67: 0.6 | K67: Comply | M67: 0 | N67: Comply | P67: 0 | Q67: Comply | S67: 0 | W67: Comply | Y67: 0 | Z67: Comply | AB67: 0 | AC67: Comply | AE67: 0 | AF67: Comply | AH67: 0 | AL67: Comply | AN67: 0 | AO67: Comply | AQ67: 0 | AR67: Comply | AT67: 0 | AU67: Comply | AW67: 0 | BA67: Comply | BC67: 0 | BD67: Comply | BF67: 0 | BG67: Comply | BI67: 0 | BJ67: Comply | BL67: 0 | BP67: Comply | BR67: 0 | BS67: Comply | BU67: 0 | BV67: Comply | BX67: 0 | BY67: Comply | CA67: 0 | CE67: Comply | CG67: 0 | CH67: Comply | CJ67: 0 | CK67: Comply | CM67: 0 | CN67: Comply | CP67: 0 | CT67: Comply | CV67: 0 | CW67: Comply | CY67: 0 | CZ67: Comply | DB67: 0 | DC67: Comply | DE67: 0 | DI67: Comply | DK67: 0 | DL67: Comply | DN67: 0 | DO67: Comply | DQ67: 0 | DR67: Comply | DT67: 0 | DX67: Comply | DZ67: 0 | EA67: Comply | EC67: 0 | ED67: Comply | EF67: 0 | EG67: Comply | EI67: 0 | EM67: Comply | EO67: 0 | EP67: Comply | ER67: 0 | ES67: Comply | EU67: 0 | EY67: Comply | FA67: 0 | FB67: Comply | FD67: 0 | FE67: Comply | FG67: 0 | FK67: Comply | FM67: 0 | FQ67: Comply | FS67: 0 | FW67: Comply | FY67: 0 | GC67: Comply | GE67: 0
A68: 3.1.31 | B68: 3.2.1.33 | C68: Battery circuit continuity monitoring | E68: Yes/No | F68: Yes | G68: 0.6 | H68: Comply | I68: 3 | J68: 0.6 | K68: Comply | M68: 0 | N68: Comply | P68: 0 | Q68: Comply | S68: 0 | T68: Battery Loss monitoring | U68: p4 | W68: Comply | Y68: 0 | Z68: Comply | AB68: 0 | AC68: Comply | AE68: 0 | AF68: Comply | AH68: 0 | AI68: Battery Loss monitoring | AJ68: p4 | AL68: Comply | AN68: 0 | AO68: Comply | AQ68: 0 | AR68: Comply | AT68: 0 | AU68: Comply | AW68: 0 | AX68: Battery Loss monitoring | AY68: p4 | BA68: Comply | BC68: 0 | BD68: Comply | BF68: 0 | BG68: Comply | BI68: 0 | BJ68: Comply | BL68: 0 | BM68: Battery Loss monitoring | BN68: p4 | BP68: Comply | BR68: 0 | BS68: Comply | BU68: 0 | BV68: Comply | BX68: 0 | BY68: Comply | CA68: 0 | CB68: Battery Loss monitoring | CC68: p4 | CE68: Comply | CG68: 0 | CH68: Comply | CJ68: 0 | CK68: Comply | CM68: 0 | CN68: Comply | CP68: 0 | CQ68: Battery Loss monitoring | CR68: p4 | CT68: Comply | CV68: 0 | CW68: Comply | CY68: 0 | CZ68: Comply | DB68: 0 | DC68: Comply | DE68: 0 | DF68: Battery Loss monitoring | DG68: p4 | DI68: Comply | DK68: 0 | DL68: Comply | DN68: 0 | DO68: Comply | DQ68: 0 | DR68: Comply | DT68: 0 | DU68: Battery Loss monitoring | DV68: p4 | DX68: Comply | DZ68: 0 | EA68: Comply | EC68: 0 | ED68: Comply | EF68: 0 | EG68: Comply | EI68: 0 | EJ68: Battery Loss monitoring | EK68: p4 | EM68: Comply | EO68: 0 | EP68: Comply | ER68: 0 | ES68: Comply | EU68: 0 | EV68: Battery Loss monitoring | EW68: p4 | EY68: Comply | FA68: 0 | FB68: Comply | FD68: 0 | FE68: Comply | FG68: 0 | FH68: Battery Loss monitoring | FI68: p4 | FK68: Comply | FM68: 0 | FN68: Battery Loss monitoring | FO68: p4 | FQ68: Comply | FS68: 0 | FT68: Battery Loss monitoring | FU68: p4 | FW68: Comply | FY68: 0 | FZ68: Battery Loss monitoring | GC68: Comply | GE68: 0 | GF68: Battery Loss monitoring
A69: 3.1.33 | B69: 3.2.1.35 | C69: THD | E69: % | F69: ≤10 | G69: 0.6 | H69: <=10% | I69: 3 | J69: 0.6 | K69: <=10% | M69: 0 | N69: <=10% | P69: 0 | Q69: <=10% | S69: 0 | W69: Comply | Y69: 0 | Z69: Comply | AB69: 0 | AC69: Comply | AE69: 0 | AF69: Comply | AH69: 0 | AL69: Comply | AN69: 0 | AO69: Comply | AQ69: 0 | AR69: Comply | AT69: 0 | AU69: Comply | AW69: 0 | BA69: Comply | BC69: 0 | BD69: Comply | BF69: 0 | BG69: Comply | BI69: 0 | BJ69: Comply | BL69: 0 | BP69: Comply | BR69: 0 | BS69: Comply | BU69: 0 | BV69: Comply | BX69: 0 | BY69: Comply | CA69: 0 | CE69: Comply | CG69: 0 | CH69: Comply | CJ69: 0 | CK69: Comply | CM69: 0 | CN69: Comply | CP69: 0 | CT69: Comply | CV69: 0 | CW69: Comply | CY69: 0 | CZ69: Comply | DB69: 0 | DC69: Comply | DE69: 0 | DI69: Comply | DK69: 0 | DL69: Comply | DN69: 0 | DO69: Comply | DQ69: 0 | DR69: Comply | DT69: 0 | DX69: Comply | DZ69: 0 | EA69: Comply | EC69: 0 | ED69: Comply | EF69: 0 | EG69: Comply | EI69: 0 | EM69: Comply | EO69: 0 | EP69: Comply | ER69: 0 | ES69: Comply | EU69: 0 | EY69: Comply | FA69: 0 | FB69: Comply | FD69: 0 | FE69: Comply | FG69: 0 | FK69: Comply | FM69: 0 | FQ69: Comply | FS69: 0 | FW69: Comply | FY69: 0 | GC69: Comply | GE69: 0
A70: 3.1.34 | B70: 3.2.1.36 | C70: Battery circuit disconnect | E70: Yes/No | F70: No | G70: 0.6 | H70: Comply | I70: 3 | J70: 0.6 | K70: Comply | M70: 0 | N70: Comply | P70: 0 | Q70: Comply | S70: 0 | W70: Noted/Comply | Y70: 0 | Z70: Noted/Comply | AB70: 0 | AC70: Noted/Comply | AE70: 0 | AF70: Noted/Comply | AH70: 0 | AL70: Noted/Comply | AN70: 0 | AO70: Noted/Comply | AQ70: 0 | AR70: Noted/Comply | AT70: 0 | AU70: Noted/Comply | AW70: 0 | BA70: Noted/Comply | BC70: 0 | BD70: Noted/Comply | BF70: 0 | BG70: Noted/Comply | BI70: 0 | BJ70: Noted/Comply | BL70: 0 | BP70: Noted/Comply | BR70: 0 | BS70: Noted/Comply | BU70: 0 | BV70: Noted/Comply | BX70: 0 | BY70: Noted/Comply | CA70: 0 | CE70: Noted/Comply | CG70: 0 | CH70: Noted/Comply | CJ70: 0 | CK70: Noted/Comply | CM70: 0 | CN70: Noted/Comply | CP70: 0 | CT70: Noted/Comply | CV70: 0 | CW70: Noted/Comply | CY70: 0 | CZ70: Noted/Comply | DB70: 0 | DC70: Noted/Comply | DE70: 0 | DI70: Noted/Comply | DK70: 0 | DL70: Noted/Comply | DN70: 0 | DO70: Noted/Comply | DQ70: 0 | DR70: Noted/Comply | DT70: 0 | DX70: Noted/Comply | DZ70: 0 | EA70: Noted/Comply | EC70: 0 | ED70: Noted/Comply | EF70: 0 | EG70: Noted/Comply | EI70: 0 | EM70: Noted/Comply | EO70: 0 | EP70: Noted/Comply | ER70: 0 | ES70: Noted/Comply | EU70: 0 | EY70: Noted/Comply | FA70: 0 | FB70: Noted/Comply | FD70: 0 | FE70: Noted/Comply | FG70: 0 | FK70: Noted/Comply | FM70: 0 | FQ70: Noted/Comply | FS70: 0 | FW70: Noted/Comply | FY70: 0 | GC70: Noted/Comply | GE70: 0
A71: 3.1.35 | B71: 3.2.1.37 | C71: 4-20mA Hydrogen analyser input with functionality | E71: Yes/No | F71: Yes | G71: 0.6 | H71: Comply/via 4to20ma loop | I71: 3 | J71: 0.6 | K71: Comply/via 4to20ma loop | M71: 0 | N71: Comply/via 4to20ma loop | P71: 0 | Q71: Comply/via 4to20ma loop | S71: 0 | W71: Comply/via 4to20ma loop | Y71: 0 | Z71: Comply/via 4to20ma loop | AB71: 0 | AC71: Comply/via 4to20ma loop | AE71: 0 | AF71: Comply/via 4to20ma loop | AH71: 0 | AL71: Comply/via 4to20ma loop | AN71: 0 | AO71: Comply/via 4to20ma loop | AQ71: 0 | AR71: Comply/via 4to20ma loop | AT71: 0 | AU71: Comply/via 4to20ma loop | AW71: 0 | BA71: Comply/via 4to20ma loop | BC71: 0 | BD71: Comply/via 4to20ma loop | BF71: 0 | BG71: Comply/via 4to20ma loop | BI71: 0 | BJ71: Comply/via 4to20ma loop | BL71: 0 | BP71: Comply/via 4to20ma loop | BR71: 0 | BS71: Comply/via 4to20ma loop | BU71: 0 | BV71: Comply/via 4to20ma loop | BX71: 0 | BY71: Comply/via 4to20ma loop | CA71: 0 | CE71: Comply/via 4to20ma loop | CG71: 0 | CH71: Comply/via 4to20ma loop | CJ71: 0 | CK71: Comply/via 4to20ma loop | CM71: 0 | CN71: Comply/via 4to20ma loop | CP71: 0 | CT71: Comply/via 4to20ma loop | CV71: 0 | CW71: Comply/via 4to20ma loop | CY71: 0 | CZ71: Comply/via 4to20ma loop | DB71: 0 | DC71: Comply/via 4to20ma loop | DE71: 0 | DI71: Comply/via 4to20ma loop | DK71: 0 | DL71: Comply/via 4to20ma loop | DN71: 0 | DO71: Comply/via 4to20ma loop | DQ71: 0 | DR71: Comply/via 4to20ma loop | DT71: 0 | DX71: Comply/via 4to20ma loop | DZ71: 0 | EA71: Comply/via 4to20ma loop | EC71: 0 | ED71: Comply/via 4to20ma loop | EF71: 0 | EG71: Comply/via 4to20ma loop | EI71: 0 | EM71: Comply/via 4to20ma loop | EO71: 0 | EP71: Comply/via 4to20ma loop | ER71: 0 | ES71: Comply/via 4to20ma loop | EU71: 0 | EY71: Comply/via 4to20ma loop | FA71: 0 | FB71: Comply/via 4to20ma loop | FD71: 0 | FE71: Comply/via 4to20ma loop | FG71: 0 | FK71: Comply/via 4to20ma loop | FM71: 0 | FQ71: Comply/via 4to20ma loop | FS71: 0 | FW71: Comply/via 4to20ma loop | FY71: 0 | GC71: Comply/via 4to20ma loop | GE71: 0
A72: 3.1.37 | B72: 3.2.1.39 | C72: Additional hardwire over voltage protection | E72: Yes/No | F72: Yes | G72: 0.6 | H72: Comply/Independent monitor | I72: 3 | J72: 0.6 | K72: Comply/Independent monitor | M72: 0 | N72: Comply/Independent monitor | P72: 0 | Q72: Comply/Independent monitor | S72: 0 | T72: Additionally protecting the battery from overvoltage | U72: p5 | W72: Comply/Independent monitor | Y72: 0 | Z72: Comply/Independent monitor | AB72: 0 | AC72: Comply/Independent monitor | AE72: 0 | AF72: Comply/Independent monitor | AH72: 0 | AI72: Additionally protecting the battery from overvoltage | AJ72: p5 | AL72: Comply/Independent monitor | AN72: 0 | AO72: Comply/Independent monitor | AQ72: 0 | AR72: Comply/Independent monitor | AT72: 0 | AU72: Comply/Independent monitor | AW72: 0 | AX72: Additionally protecting the battery from overvoltage | AY72: p5 | BA72: Comply/Independent monitor | BC72: 0 | BD72: Comply/Independent monitor | BF72: 0 | BG72: Comply/Independent monitor | BI72: 0 | BJ72: Comply/Independent monitor | BL72: 0 | BM72: Additionally protecting the battery from overvoltage | BN72: p5 | BP72: Comply/Independent monitor | BR72: 0 | BS72: Comply/Independent monitor | BU72: 0 | BV72: Comply/Independent monitor | BX72: 0 | BY72: Comply/Independent monitor | CA72: 0 | CB72: Additionally protecting the battery from overvoltage | CC72: p5 | CE72: Comply/Independent monitor | CG72: 0 | CH72: Comply/Independent monitor | CJ72: 0 | CK72: Comply/Independent monitor | CM72: 0 | CN72: Comply/Independent monitor | CP72: 0 | CQ72: Additionally protecting the battery from overvoltage | CR72: p5 | CT72: Comply/Independent monitor | CV72: 0 | CW72: Comply/Independent monitor | CY72: 0 | CZ72: Comply/Independent monitor | DB72: 0 | DC72: Comply/Independent monitor | DE72: 0 | DF72: Additionally protecting the battery from overvoltage | DG72: p5 | DI72: Comply/Independent monitor | DK72: 0 | DL72: Comply/Independent monitor | DN72: 0 | DO72: Comply/Independent monitor | DQ72: 0 | DR72: Comply/Independent monitor | DT72: 0 | DU72: Additionally protecting the battery from overvoltage | DV72: p5 | DX72: Comply/Independent monitor | DZ72: 0 | EA72: Comply/Independent monitor | EC72: 0 | ED72: Comply/Independent monitor | EF72: 0 | EG72: Comply/Independent monitor | EI72: 0 | EJ72: Additionally protecting the battery from overvoltage | EK72: p5 | EM72: Comply/Independent monitor | EO72: 0 | EP72: Comply/Independent monitor | ER72: 0 | ES72: Comply/Independent monitor | EU72: 0 | EV72: Additionally protecting the battery from overvoltage | EW72: p5 | EY72: Comply/Independent monitor | FA72: 0 | FB72: Comply/Independent monitor | FD72: 0 | FE72: Comply/Independent monitor | FG72: 0 | FH72: Additionally protecting the battery from overvoltage | FI72: p5 | FK72: Comply/Independent monitor | FM72: 0 | FN72: Additionally protecting the battery from overvoltage | FO72: p5 | FQ72: Comply/Independent monitor | FS72: 0 | FT72: Additionally protecting the battery from overvoltage | FU72: p5 | FW72: Comply/Independent monitor | FY72: 0 | FZ72: Additionally protecting the battery from overvoltage | GC72: Comply/Independent monitor | GE72: 0 | GF72: Additionally protecting the battery from overvoltage
A73: 3.2.1 | B73: 3.2.4 | C73: Input requirements | E73: As per clause 3.1.2 | G73: 0.6 | H73: Comply/400vac 3ph | I73: 3 | J73: 0.6 | K73: Comply/400vac 3ph | M73: 0 | N73: Comply/400vac 3ph | P73: 0 | Q73: Comply/400vac 3ph | S73: 0 | W73: Comply/400vac 3ph | Y73: 0 | Z73: Comply/400vac 3ph | AB73: 0 | AC73: Comply/400vac 3ph | AE73: 0 | AF73: Comply/400vac 3ph | AH73: 0 | AL73: Comply/400vac 3ph | AN73: 0 | AO73: Comply/400vac 3ph | AQ73: 0 | AR73: Comply/400vac 3ph | AT73: 0 | AU73: Comply/400vac 3ph | AW73: 0 | BA73: Comply/400vac 3ph | BC73: 0 | BD73: Comply/400vac 3ph | BF73: 0 | BG73: Comply/400vac 3ph | BI73: 0 | BJ73: Comply/400vac 3ph | BL73: 0 | BP73: Comply/400vac 3ph | BR73: 0 | BS73: Comply/400vac 3ph | BU73: 0 | BV73: Comply/400vac 3ph | BX73: 0 | BY73: Comply/400vac 3ph | CA73: 0 | CE73: Comply/400vac 3ph | CG73: 0 | CH73: Comply/400vac 3ph | CJ73: 0 | CK73: Comply/400vac 3ph | CM73: 0 | CN73: Comply/400vac 3ph | CP73: 0 | CT73: Comply/400vac 3ph | CV73: 0 | CW73: Comply/400vac 3ph | CY73: 0 | CZ73: Comply/400vac 3ph | DB73: 0 | DC73: Comply/400vac 3ph | DE73: 0 | DI73: Comply/400vac 3ph | DK73: 0 | DL73: Comply/400vac 3ph | DN73: 0 | DO73: Comply/400vac 3ph | DQ73: 0 | DR73: Comply/400vac 3ph | DT73: 0 | DX73: Comply/400vac 3ph | DZ73: 0 | EA73: Comply/400vac 3ph | EC73: 0 | ED73: Comply/400vac 3ph | EF73: 0 | EG73: Comply/400vac 3ph | EI73: 0 | EM73: Comply/400vac 3ph | EO73: 0 | EP73: Comply/400vac 3ph | ER73: 0 | ES73: Comply/400vac 3ph | EU73: 0 | EY73: Comply/400vac 3ph | FA73: 0 | FB73: Comply/400vac 3ph | FD73: 0 | FE73: Comply/400vac 3ph | FG73: 0 | FK73: Comply/400vac 3ph | FM73: 0 | FQ73: Comply/400vac 3ph | FS73: 0 | FW73: Comply/400vac 3ph | FY73: 0 | GC73: Comply/400vac 3ph | GE73: 0
A74: 3.2.2 | B74: 3.2.3 | C74: Output requirements
A75: 3.2.2.1 | B75: 3.2.3 | C75: Standard output operating voltage tolerance | E75: Vnom | F75: Vnom | G75: 0.4 | H75: 24v | I75: 3 | J75: 0.4 | K75: 48v | M75: 0 | N75: 110v | P75: 0 | Q75: 220v | S75: 0 | T75: Charger Spec | W75: 24v | Y75: 0 | Z75: 48v | AB75: 0 | AC75: 110v | AE75: 0 | AF75: 220v | AH75: 0 | AI75: Charger Spec | AL75: 24v | AN75: 0 | AO75: 48v | AQ75: 0 | AR75: 110v | AT75: 0 | AU75: 220v | AW75: 0 | AX75: Charger Spec | BA75: 24v | BC75: 0 | BD75: 48v | BF75: 0 | BG75: 110v | BI75: 0 | BJ75: 220v | BL75: 0 | BM75: Charger Spec | BP75: 24v | BR75: 0 | BS75: 48v | BU75: 0 | BV75: 110v | BX75: 0 | BY75: 220v | CA75: 0 | CB75: Charger Spec | CE75: 24v | CG75: 0 | CH75: 48v | CJ75: 0 | CK75: 110v | CM75: 0 | CN75: 220v | CP75: 0 | CQ75: Charger Spec | CT75: 24v | CV75: 0 | CW75: 48v | CY75: 0 | CZ75: 110v | DB75: 0 | DC75: 220v | DE75: 0 | DF75: Charger Spec | DI75: 24v | DK75: 0 | DL75: 48v | DN75: 0 | DO75: 110v | DQ75: 0 | DR75: 220v | DT75: 0 | DU75: Charger Spec | DX75: 24v | DZ75: 0 | EA75: 48v | EC75: 0 | ED75: 110v | EF75: 0 | EG75: 220v | EI75: 0 | EJ75: Charger Spec | EM75: 24v | EO75: 0 | EP75: 48v | ER75: 0 | ES75: 220v | EU75: 0 | EV75: Charger Spec | EY75: 24v | FA75: 0 | FB75: 48v | FD75: 0 | FE75: 220v | FG75: 0 | FH75: Charger Spec | FK75: 24v | FM75: 0 | FN75: Charger Spec | FQ75: 24v | FS75: 0 | FT75: Charger Spec | FW75: 24v | FY75: 0 | FZ75: Charger Spec | GC75: 24v | GE75: 0 | GF75: Charger Spec
C76: Minimum output voltage | E76: Vmin | F76: Vmin | G76: 0.4 | H76: 18v | I76: 3 | J76: 0.4 | K76: 36v | M76: 0 | N76: 80v | P76: 0 | Q76: 120v | S76: 0 | T76: Charger Spec | W76: 18v | Y76: 0 | Z76: 36v | AB76: 0 | AC76: 80v | AE76: 0 | AF76: 120v | AH76: 0 | AI76: Charger Spec | AL76: 18v | AN76: 0 | AO76: 36v | AQ76: 0 | AR76: 80v | AT76: 0 | AU76: 120v | AW76: 0 | AX76: Charger Spec | BA76: 18v | BC76: 0 | BD76: 36v | BF76: 0 | BG76: 80v | BI76: 0 | BJ76: 120v | BL76: 0 | BM76: Charger Spec | BP76: 18v | BR76: 0 | BS76: 36v | BU76: 0 | BV76: 80v | BX76: 0 | BY76: 120v | CA76: 0 | CB76: Charger Spec | CE76: 18v | CG76: 0 | CH76: 36v | CJ76: 0 | CK76: 80v | CM76: 0 | CN76: 120v | CP76: 0 | CQ76: Charger Spec | CT76: 18v | CV76: 0 | CW76: 36v | CY76: 0 | CZ76: 80v | DB76: 0 | DC76: 120v | DE76: 0 | DF76: Charger Spec | DI76: 18v | DK76: 0 | DL76: 36v | DN76: 0 | DO76: 80v | DQ76: 0 | DR76: 120v | DT76: 0 | DU76: Charger Spec | DX76: 18v | DZ76: 0 | EA76: 36v | EC76: 0 | ED76: 80v | EF76: 0 | EG76: 120v | EI76: 0 | EJ76: Charger Spec | EM76: 18v | EO76: 0 | EP76: 36v | ER76: 0 | ES76: 120v | EU76: 0 | EV76: Charger Spec | EY76: 18v | FA76: 0 | FB76: 36v | FD76: 0 | FE76: 120v | FG76: 0 | FH76: Charger Spec | FK76: 18v | FM76: 0 | FN76: Charger Spec | FQ76: 18v | FS76: 0 | FT76: Charger Spec | FW76: 18v | FY76: 0 | FZ76: Charger Spec | GC76: 18v | GE76: 0 | GF76: Charger Spec
C77: Maximum output voltage | E77: Vmax | F77: Vmax | G77: 0.4 | H77: 36v | I77: 3 | J77: 0.4 | K77: 72v | M77: 0 | N77: 160v | P77: 0 | Q77: 320v | S77: 0 | T77: Charger Spec | W77: 36v | Y77: 0 | Z77: 72v | AB77: 0 | AC77: 160v | AE77: 0 | AF77: 320v | AH77: 0 | AI77: Charger Spec | AL77: 36v | AN77: 0 | AO77: 72v | AQ77: 0 | AR77: 160v | AT77: 0 | AU77: 320v | AW77: 0 | AX77: Charger Spec | BA77: 36v | BC77: 0 | BD77: 72v | BF77: 0 | BG77: 160v | BI77: 0 | BJ77: 320v | BL77: 0 | BM77: Charger Spec | BP77: 36v | BR77: 0 | BS77: 72v | BU77: 0 | BV77: 160v | BX77: 0 | BY77: 320v | CA77: 0 | CB77: Charger Spec | CE77: 36v | CG77: 0 | CH77: 72v | CJ77: 0 | CK77: 160v | CM77: 0 | CN77: 320v | CP77: 0 | CQ77: Charger Spec | CT77: 36v | CV77: 0 | CW77: 72v | CY77: 0 | CZ77: 160v | DB77: 0 | DC77: 320v | DE77: 0 | DF77: Charger Spec | DI77: 36v | DK77: 0 | DL77: 72v | DN77: 0 | DO77: 160v | DQ77: 0 | DR77: 320v | DT77: 0 | DU77: Charger Spec | DX77: 36v | DZ77: 0 | EA77: 72v | EC77: 0 | ED77: 160v | EF77: 0 | EG77: 320v | EI77: 0 | EJ77: Charger Spec | EM77: 36v | EO77: 0 | EP77: 72v | ER77: 0 | ES77: 320v | EU77: 0 | EV77: Charger Spec | EY77: 36v | FA77: 0 | FB77: 72v | FD77: 0 | FE77: 320v | FG77: 0 | FH77: Charger Spec | FK77: 36v | FM77: 0 | FN77: Charger Spec | FQ77: 36v | FS77: 0 | FT77: Charger Spec | FW77: 36v | FY77: 0 | FZ77: Charger Spec | GC77: 36v | GE77: 0 | GF77: Charger Spec
A78: 3.2.3 | B78: 3.2.6 | C78: Voltage ripple | E78: % | F78: 0.1 | G78: 0.4 | H78: 0.001 | I78: 3 | J78: 0.4 | K78: 0.001 | M78: 0 | N78: 0.001 | P78: 0 | Q78: 0.001 | S78: 0 | T78: Charger Spec | W78: Comply | Y78: 0 | Z78: Comply | AB78: 0 | AC78: Comply | AE78: 0 | AF78: Comply | AH78: 0 | AI78: Charger Spec | AL78: Comply | AN78: 0 | AO78: Comply | AQ78: 0 | AR78: Comply | AT78: 0 | AU78: Comply | AW78: 0 | AX78: Charger Spec | BA78: Comply | BC78: 0 | BD78: Comply | BF78: 0 | BG78: Comply | BI78: 0 | BJ78: Comply | BL78: 0 | BM78: Charger Spec | BP78: Comply | BR78: 0 | BS78: Comply | BU78: 0 | BV78: Comply | BX78: 0 | BY78: Comply | CA78: 0 | CB78: Charger Spec | CE78: Comply | CG78: 0 | CH78: Comply | CJ78: 0 | CK78: Comply | CM78: 0 | CN78: Comply | CP78: 0 | CQ78: Charger Spec | CT78: Comply | CV78: 0 | CW78: Comply | CY78: 0 | CZ78: Comply | DB78: 0 | DC78: Comply | DE78: 0 | DF78: Charger Spec | DI78: Comply | DK78: 0 | DL78: Comply | DN78: 0 | DO78: Comply | DQ78: 0 | DR78: Comply | DT78: 0 | DU78: Charger Spec | DX78: Comply | DZ78: 0 | EA78: Comply | EC78: 0 | ED78: Comply | EF78: 0 | EG78: Comply | EI78: 0 | EJ78: Charger Spec | EM78: Comply | EO78: 0 | EP78: Comply | ER78: 0 | ES78: Comply | EU78: 0 | EV78: Charger Spec | EY78: Comply | FA78: 0 | FB78: Comply | FD78: 0 | FE78: Comply | FG78: 0 | FH78: Charger Spec | FK78: Comply | FM78: 0 | FN78: Charger Spec | FQ78: Comply | FS78: 0 | FT78: Charger Spec | FW78: Comply | FY78: 0 | FZ78: Charger Spec | GC78: Comply | GE78: 0 | GF78: Charger Spec
A79: 3.2.4 | B79: 3.2.7 | C79: Current ripple | E79: 5A per 100Ah of battery capacity | F79: 5A per 100Ah of battery capacity | G79: 0.4 | H79: Comply | I79: 3 | J79: 0.4 | K79: Comply | M79: 0 | N79: Comply | P79: 0 | Q79: Comply | S79: 0 | T79: Charger Spec | W79: Comply | Y79: 0 | Z79: Comply | AB79: 0 | AC79: Comply | AE79: 0 | AF79: Comply | AH79: 0 | AI79: Charger Spec | AL79: Comply | AN79: 0 | AO79: Comply | AQ79: 0 | AR79: Comply | AT79: 0 | AU79: Comply | AW79: 0 | AX79: Charger Spec | BA79: Comply | BC79: 0 | BD79: Comply | BF79: 0 | BG79: Comply | BI79: 0 | BJ79: Comply | BL79: 0 | BM79: Charger Spec | BP79: Comply | BR79: 0 | BS79: Comply | BU79: 0 | BV79: Comply | BX79: 0 | BY79: Comply | CA79: 0 | CB79: Charger Spec | CE79: Comply | CG79: 0 | CH79: Comply | CJ79: 0 | CK79: Comply | CM79: 0 | CN79: Comply | CP79: 0 | CQ79: Charger Spec | CT79: Comply | CV79: 0 | CW79: Comply | CY79: 0 | CZ79: Comply | DB79: 0 | DC79: Comply | DE79: 0 | DF79: Charger Spec | DI79: Comply | DK79: 0 | DL79: Comply | DN79: 0 | DO79: Comply | DQ79: 0 | DR79: Comply | DT79: 0 | DU79: Charger Spec | DX79: Comply | DZ79: 0 | EA79: Comply | EC79: 0 | ED79: Comply | EF79: 0 | EG79: Comply | EI79: 0 | EJ79: Charger Spec | EM79: Comply | EO79: 0 | EP79: Comply | ER79: 0 | ES79: Comply | EU79: 0 | EV79: Charger Spec | EY79: Comply | FA79: 0 | FB79: Comply | FD79: 0 | FE79: Comply | FG79: 0 | FH79: Charger Spec | FK79: Comply | FM79: 0 | FN79: Charger Spec | FQ79: Comply | FS79: 0 | FT79: Charger Spec | FW79: Comply | FY79: 0 | FZ79: Charger Spec | GC79: Comply | GE79: 0 | GF79: Charger Spec
A80: 3.2.5 | B80: 3.2.8 | C80: Cooling requirements
A81: 3.2.5.1 | B81: 3.2.8.1 | C81: Natural | E81: Yes/No | G81: 0.4 | H81: Natural | I81: 3 | J81: 0.4 | K81: Natural | M81: 0 | N81: Natural | P81: 0 | Q81: Natural | S81: 0 | T81: Charger Efficiencies | W81: Natural | Y81: 0 | Z81: Natural | AB81: 0 | AC81: Natural | AE81: 0 | AF81: Natural | AH81: 0 | AI81: Charger Efficiencies | AL81: Natural | AN81: 0 | AO81: Natural | AQ81: 0 | AR81: Natural | AT81: 0 | AU81: Natural | AW81: 0 | AX81: Charger Efficiencies | BA81: Bridge natural/dropping diode forced | BC81: 0 | BD81: Bridge natural/dropping diode forced | BF81: 0 | BG81: Bridge natural/dropping diode forced | BI81: 0 | BJ81: Bridge natural/dropping diode forced | BL81: 0 | BM81: Charger Efficiencies | BP81: Bridge natural/dropping diode forced | BR81: 0 | BS81: Bridge natural/dropping diode forced | BU81: 0 | BV81: Bridge natural/dropping diode forced | BX81: 0 | BY81: Bridge natural/dropping diode forced | CA81: 0 | CB81: Charger Efficiencies | CE81: Bridge natural/dropping diode forced | CG81: 0 | CH81: Bridge natural/dropping diode forced | CJ81: 0 | CK81: Bridge natural/dropping diode forced | CM81: 0 | CN81: Bridge natural/dropping diode forced | CP81: 0 | CQ81: Charger Efficiencies | CT81: Bridge natural/dropping diode forced | CV81: 0 | CW81: Bridge natural/dropping diode forced | CY81: 0 | CZ81: Bridge natural/dropping diode forced | DB81: 0 | DC81: Bridge natural/dropping diode forced | DE81: 0 | DF81: Charger Efficiencies | DI81: Bridge natural/dropping diode forced | DK81: 0 | DL81: Bridge natural/dropping diode forced | DN81: 0 | DO81: Bridge natural/dropping diode forced | DQ81: 0 | DR81: Bridge natural/dropping diode forced | DT81: 0 | DU81: Charger Efficiencies | DX81: Bridge natural/dropping diode forced | DZ81: 0 | EA81: Bridge natural/dropping diode forced | EC81: 0 | ED81: Bridge natural/dropping diode forced | EF81: 0 | EG81: Bridge natural/dropping diode forced | EI81: 0 | EJ81: Charger Efficiencies | EM81: Forced cooled | EO81: 0 | EP81: Forced cooled | ER81: 0 | ES81: Forced cooled | EU81: 0 | EV81: Charger Efficiencies | EY81: Forced cooled | FA81: 0 | FB81: Forced cooled | FD81: 0 | FE81: Forced cooled | FG81: 0 | FH81: Charger Efficiencies | FK81: Forced cooled | FM81: 0 | FN81: Charger Efficiencies | FQ81: Natural | FS81: 0 | FT81: Charger Efficiencies | FW81: Natural | FY81: 0 | FZ81: Charger Efficiencies | GC81: Natural | GE81: 0 | GF81: Charger Efficiencies
A82: 3.2.5.2 | B82: 3.2.8.2 | C82: Forced cooling as per a) to j) | F82: xxxx | G82: 0.4 | H82: Comply/Natural Cooled | I82: 3 | J82: 0.4 | K82: Comply/Natural Cooled | M82: 0 | N82: Comply/Natural Cooled | P82: 0 | Q82: Comply/Natural Cooled | S82: 0 | W82: Comply/Natural Cooled | Y82: 0 | Z82: Comply/Natural Cooled | AB82: 0 | AC82: Comply/Natural Cooled | AE82: 0 | AF82: Comply/Natural Cooled | AH82: 0 | AL82: Comply/Natural Cooled | AN82: 0 | AO82: Comply/Natural Cooled | AQ82: 0 | AR82: Comply/Natural Cooled | AT82: 0 | AU82: Comply/Natural Cooled | AW82: 0 | BA82: Comply | BC82: 0 | BD82: Comply | BF82: 0 | BG82: Comply | BI82: 0 | BJ82: Comply | BL82: 0 | BP82: Comply | BR82: 0 | BS82: Comply | BU82: 0 | BV82: Comply | BX82: 0 | BY82: Comply | CA82: 0 | CE82: Comply | CG82: 0 | CH82: Comply | CJ82: 0 | CK82: Comply | CM82: 0 | CN82: Comply | CP82: 0 | CT82: Comply | CV82: 0 | CW82: Comply | CY82: 0 | CZ82: Comply | DB82: 0 | DC82: Comply | DE82: 0 | DI82: Comply | DK82: 0 | DL82: Comply | DN82: 0 | DO82: Comply | DQ82: 0 | DR82: Comply | DT82: 0 | DX82: Comply | DZ82: 0 | EA82: Comply | EC82: 0 | ED82: Comply | EF82: 0 | EG82: Comply | EI82: 0 | EM82: Comply | EO82: 0 | EP82: Comply | ER82: 0 | ES82: Comply | EU82: 0 | EY82: Comply | FA82: 0 | FB82: Comply | FD82: 0 | FE82: Comply | FG82: 0 | FK82: Comply | FM82: 0 | FQ82: Comply | FS82: 0 | FW82: Comply | FY82: 0 | GC82: Comply | GE82: 0
A83: 3.2.6 | B83: 3.2.9 | C83: Abnormal DC output voltage
A84: 3.2.6.1 | B84: 3.2.9.1 | C84: Abnormal DC output voltage protection as specified | E84: Yes/No | G84: 0.4 | H84: Comply | I84: 3 | J84: 0.4 | K84: Comply | M84: 0 | N84: Comply | P84: 0 | Q84: Comply | S84: 0 | T84: Battery overvoltage protection | U84: p5 | W84: Comply | Y84: 0 | Z84: Comply | AB84: 0 | AC84: Comply | AE84: 0 | AF84: Comply | AH84: 0 | AI84: Battery overvoltage protection | AJ84: p5 | AL84: Comply | AN84: 0 | AO84: Comply | AQ84: 0 | AR84: Comply | AT84: 0 | AU84: Comply | AW84: 0 | AX84: Battery overvoltage protection | AY84: p5 | BA84: Comply | BC84: 0 | BD84: Comply | BF84: 0 | BG84: Comply | BI84: 0 | BJ84: Comply | BL84: 0 | BM84: Battery overvoltage protection | BN84: p5 | BP84: Comply | BR84: 0 | BS84: Comply | BU84: 0 | BV84: Comply | BX84: 0 | BY84: Comply | CA84: 0 | CB84: Battery overvoltage protection | CC84: p5 | CE84: Comply | CG84: 0 | CH84: Comply | CJ84: 0 | CK84: Comply | CM84: 0 | CN84: Comply | CP84: 0 | CQ84: Battery overvoltage protection | CR84: p5 | CT84: Comply | CV84: 0 | CW84: Comply | CY84: 0 | CZ84: Comply | DB84: 0 | DC84: Comply | DE84: 0 | DF84: Battery overvoltage protection | DG84: p5 | DI84: Comply | DK84: 0 | DL84: Comply | DN84: 0 | DO84: Comply | DQ84: 0 | DR84: Comply | DT84: 0 | DU84: Battery overvoltage protection | DV84: p5 | DX84: Comply | DZ84: 0 | EA84: Comply | EC84: 0 | ED84: Comply | EF84: 0 | EG84: Comply | EI84: 0 | EJ84: Battery overvoltage protection | EK84: p5 | EM84: Comply | EO84: 0 | EP84: Comply | ER84: 0 | ES84: Comply | EU84: 0 | EV84: Battery overvoltage protection | EW84: p5 | EY84: Comply | FA84: 0 | FB84: Comply | FD84: 0 | FE84: Comply | FG84: 0 | FH84: Battery overvoltage protection | FI84: p5 | FK84: Comply | FM84: 0 | FN84: Battery overvoltage protection | FO84: p5 | FQ84: Comply | FS84: 0 | FT84: Battery overvoltage protection | FU84: p5 | FW84: Comply | FY84: 0 | FZ84: Battery overvoltage protection | GC84: Comply | GE84: 0 | GF84: Battery overvoltage protection
A85: 3.2.7 | B85: 3.2.10 | C85: Inrush current
A86: 3.2.7.1 | B86: 3.2.10.1 | C86: Inrush current determined as specified in IEC 62040-3 | F86: xxxx | G86: 0.4 | H86: 10* I phase peak | I86: 3 | J86: 0.4 | K86: 10* I phase peak | M86: =$G86/3*L86 -> 0 | N86: 10* I phase peak | P86: =$G86/3*O86 -> 0 | Q86: 10* I phase peak | S86: =$G86/3*R86 -> 0 | T86: Inrush current | U86: p11 | W86: 10* I phase peak | Y86: =$G86/3*X86 -> 0 | Z86: 10* I phase peak | AB86: =$G86/3*AA86 -> 0 | AC86: 10* I phase peak | AE86: =$G86/3*AD86 -> 0 | AF86: 10* I phase peak | AH86: =$G86/3*AG86 -> 0 | AI86: Inrush current | AJ86: p11 | AL86: 10* I phase peak | AN86: =$G86/3*AM86 -> 0 | AO86: 10* I phase peak | AQ86: =$G86/3*AP86 -> 0 | AR86: 10* I phase peak | AT86: =$G86/3*AS86 -> 0 | AU86: 10* I phase peak | AW86: =$G86/3*AV86 -> 0 | AX86: Inrush current | AY86: p11 | BA86: 10* I phase peak | BC86: =$G86/3*BB86 -> 0 | BD86: 10* I phase peak | BF86: =$G86/3*BE86 -> 0 | BG86: 10* I phase peak | BI86: =$G86/3*BH86 -> 0 | BJ86: 10* I phase peak | BL86: =$G86/3*BK86 -> 0 | BM86: Inrush current | BN86: p11 | BP86: 10* I phase peak | BR86: =$G86/3*BQ86 -> 0 | BS86: 10* I phase peak | BU86: =$G86/3*BT86 -> 0 | BV86: 10* I phase peak | BX86: =$G86/3*BW86 -> 0 | BY86: 10* I phase peak | CA86: =$G86/3*BZ86 -> 0 | CB86: Inrush current | CC86: p11 | CE86: 10* I phase peak | CG86: =$G86/3*CF86 -> 0 | CH86: 10* I phase peak | CJ86: =$G86/3*CI86 -> 0 | CK86: 10* I phase peak | CM86: =$G86/3*CL86 -> 0 | CN86: 10* I phase peak | CP86: =$G86/3*CO86 -> 0 | CQ86: Inrush current | CR86: p11 | CT86: 10* I phase peak | CV86: =$G86/3*CU86 -> 0 | CW86: 10* I phase peak | CY86: =$G86/3*CX86 -> 0 | CZ86: 10* I phase peak | DB86: =$G86/3*DA86 -> 0 | DC86: 10* I phase peak | DE86: =$G86/3*DD86 -> 0 | DF86: Inrush current | DG86: p11 | DI86: 10* I phase peak | DK86: =$G86/3*DJ86 -> 0 | DL86: 10* I phase peak | DN86: =$G86/3*DM86 -> 0 | DO86: 10* I phase peak | DQ86: =$G86/3*DP86 -> 0 | DR86: 10* I phase peak | DT86: =$G86/3*DS86 -> 0 | DU86: Inrush current | DV86: p11 | DX86: 10* I phase peak | DZ86: =$G86/3*DY86 -> 0 | EA86: 10* I phase peak | EC86: =$G86/3*EB86 -> 0 | ED86: 10* I phase peak | EF86: =$G86/3*EE86 -> 0 | EG86: 10* I phase peak | EI86: =$G86/3*EH86 -> 0 | EJ86: Inrush current | EK86: p11 | EM86: 10* I phase peak | EO86: =$G86/3*EN86 -> 0 | EP86: 10* I phase peak | ER86: =$G86/3*EQ86 -> 0 | ES86: 10* I phase peak | EU86: =$G86/3*ET86 -> 0 | EV86: Inrush current | EW86: p11 | EY86: 10* I phase peak | FA86: =$G86/3*EZ86 -> 0 | FB86: 10* I phase peak | FD86: =$G86/3*FC86 -> 0 | FE86: 10* I phase peak | FG86: =$G86/3*FF86 -> 0 | FH86: Inrush current | FI86: p11 | FK86: 10* I phase peak | FM86: =$G86/3*FL86 -> 0 | FN86: Inrush current | FO86: p11 | FQ86: 10* I phase peak | FS86: =$G86/3*FR86 -> 0 | FT86: Inrush current | FU86: p11 | FW86: 10* I phase peak | FY86: =$G86/3*FX86 -> 0 | FZ86: Inrush current | GC86: 10* I phase peak | GE86: =$G86/3*GD86 -> 0 | GF86: Inrush current
A87: 3.2.8 | B87: 3.2.11 | C87: No-load operation
A88: 3.2.8.1 | B88: 3.2.11.1 | C88: No-load operation maximum voltage | E88: % | F88: 10 | G88: 0.6 | H88: <10% | I88: 3 | J88: 0.6 | K88: <10% | M88: 0 | N88: <10% | P88: 0 | Q88: <10% | S88: 0 | W88: Comply | Y88: 0 | Z88: Comply | AB88: 0 | AC88: Comply | AE88: 0 | AF88: Comply | AH88: 0 | AL88: Comply | AN88: 0 | AO88: Comply | AQ88: 0 | AR88: Comply | AT88: 0 | AU88: Comply | AW88: 0 | BA88: Comply | BC88: 0 | BD88: Comply | BF88: 0 | BG88: Comply | BI88: 0 | BJ88: Comply | BL88: 0 | BP88: Comply | BR88: 0 | BS88: Comply | BU88: 0 | BV88: Comply | BX88: 0 | BY88: Comply | CA88: 0 | CE88: Comply | CG88: 0 | CH88: Comply | CJ88: 0 | CK88: Comply | CM88: 0 | CN88: Comply | CP88: 0 | CT88: Comply | CV88: 0 | CW88: Comply | CY88: 0 | CZ88: Comply | DB88: 0 | DC88: Comply | DE88: 0 | DI88: Comply | DK88: 0 | DL88: Comply | DN88: 0 | DO88: Comply | DQ88: 0 | DR88: Comply | DT88: 0 | DX88: Comply | DZ88: 0 | EA88: Comply | EC88: 0 | ED88: Comply | EF88: 0 | EG88: Comply | EI88: 0 | EM88: Comply | EO88: 0 | EP88: Comply | ER88: 0 | ES88: Comply | EU88: 0 | EY88: Comply | FA88: 0 | FB88: Comply | FD88: 0 | FE88: Comply | FG88: 0 | FK88: Comply | FM88: 0 | FQ88: Comply | FS88: 0 | FW88: Comply | FY88: 0 | GC88: Comply | GE88: 0
A89: 3.2.9 | B89: 3.2.12 | C89: Step load capability
A90: 3.2.9.1 | B90: 3.2.12.1 | C90: Voltage regulation during 10 to 90% step variation | E90: % after 1 second | F90: 2 | G90: 0.6 | H90: 0.02 | I90: 3 | J90: 0.6 | K90: 0.02 | M90: 0 | N90: 0.02 | P90: 0 | Q90: 0.02 | S90: 0 | T90: Charger Spec | W90: Comply | Y90: 0 | Z90: Comply | AB90: 0 | AC90: Comply | AE90: 0 | AF90: Comply | AH90: 0 | AI90: Charger Spec | AL90: Comply | AN90: 0 | AO90: Comply | AQ90: 0 | AR90: Comply | AT90: 0 | AU90: Comply | AW90: 0 | AX90: Charger Spec | BA90: Comply | BC90: 0 | BD90: Comply | BF90: 0 | BG90: Comply | BI90: 0 | BJ90: Comply | BL90: 0 | BM90: Charger Spec | BP90: Comply | BR90: 0 | BS90: Comply | BU90: 0 | BV90: Comply | BX90: 0 | BY90: Comply | CA90: 0 | CB90: Charger Spec | CE90: Comply | CG90: 0 | CH90: Comply | CJ90: 0 | CK90: Comply | CM90: 0 | CN90: Comply | CP90: 0 | CQ90: Charger Spec | CT90: Comply | CV90: 0 | CW90: Comply | CY90: 0 | CZ90: Comply | DB90: 0 | DC90: Comply | DE90: 0 | DF90: Charger Spec | DI90: Comply | DK90: 0 | DL90: Comply | DN90: 0 | DO90: Comply | DQ90: 0 | DR90: Comply | DT90: 0 | DU90: Charger Spec | DX90: Comply | DZ90: 0 | EA90: Comply | EC90: 0 | ED90: Comply | EF90: 0 | EG90: Comply | EI90: 0 | EJ90: Charger Spec | EM90: Comply | EO90: 0 | EP90: Comply | ER90: 0 | ES90: Comply | EU90: 0 | EV90: Charger Spec | EY90: Comply | FA90: 0 | FB90: Comply | FD90: 0 | FE90: Comply | FG90: 0 | FH90: Charger Spec | FK90: Comply | FM90: 0 | FN90: Charger Spec | FQ90: Comply | FS90: 0 | FW90: Comply | FY90: 0 | GC90: Comply | GE90: 0
A91: 3.2.10 | B91: 3.2.13 | C91: Overload capability
A92: 3.2.10.1 | B92: 3.2.13.1 | C92: Overload capability | E92: Duty class | F92: II | G92: 0.4 | H92: Comply/If Current limit set to 150% | I92: 3 | J92: 0.4 | K92: Comply/If Current limit set to 150% | M92: 0 | N92: Comply/If Current limit set to 150% | P92: 0 | Q92: Comply/If Current limit set to 150% | S92: 0 | W92: Comply/If Current limit set to 150% | Y92: 0 | Z92: Comply/If Current limit set to 150% | AB92: 0 | AC92: Comply/If Current limit set to 150% | AE92: 0 | AF92: Comply/If Current limit set to 150% | AH92: 0 | AL92: Comply/If Current limit set to 150% | AN92: 0 | AO92: Comply/If Current limit set to 150% | AQ92: 0 | AR92: Comply/If Current limit set to 150% | AT92: 0 | AU92: Comply/If Current limit set to 150% | AW92: 0 | BA92: Comply/If Current limit set to 150% | BC92: 0 | BD92: Comply/If Current limit set to 150% | BF92: 0 | BG92: Comply/If Current limit set to 150% | BI92: 0 | BJ92: Comply/If Current limit set to 150% | BL92: 0 | BP92: Comply/If Current limit set to 150% | BR92: 0 | BS92: Comply/If Current limit set to 150% | BU92: 0 | BV92: Comply/If Current limit set to 150% | BX92: 0 | BY92: Comply/If Current limit set to 150% | CA92: 0 | CE92: Comply/If Current limit set to 150% | CG92: 0 | CH92: Comply/If Current limit set to 150% | CJ92: 0 | CK92: Comply/If Current limit set to 150% | CM92: 0 | CN92: Comply/If Current limit set to 150% | CP92: 0 | CT92: Comply/If Current limit set to 150% | CV92: 0 | CW92: Comply/If Current limit set to 150% | CY92: 0 | CZ92: Comply/If Current limit set to 150% | DB92: 0 | DC92: Comply/If Current limit set to 150% | DE92: 0 | DI92: Comply/If Current limit set to 150% | DK92: 0 | DL92: Comply/If Current limit set to 150% | DN92: 0 | DO92: Comply/If Current limit set to 150% | DQ92: 0 | DR92: Comply/If Current limit set to 150% | DT92: 0 | DX92: Comply/If Current limit set to 150% | DZ92: 0 | EA92: Comply/If Current limit set to 150% | EC92: 0 | ED92: Comply/If Current limit set to 150% | EF92: 0 | EG92: Comply/If Current limit set to 150% | EI92: 0 | EM92: Comply/If Current limit set to 150% | EO92: 0 | EP92: Comply/If Current limit set to 150% | ER92: 0 | ES92: Comply/If Current limit set to 150% | EU92: 0 | EY92: Comply/If Current limit set to 150% | FA92: 0 | FB92: Comply/If Current limit set to 150% | FD92: 0 | FE92: Comply/If Current limit set to 150% | FG92: 0 | FK92: Comply/If Current limit set to 150% | FM92: 0 | FQ92: Comply/If Current limit set to 150% | FS92: 0 | FW92: Comply/If Current limit set to 150% | FY92: 0 | GC92: Comply/If Current limit set to 150% | GE92: 0
A93: 3.2.11 | B93: 3.2.14 | C93: Short-circuit and current limit capability
A94: 3.2.11.1 | B94: 3.2.14.1 | C94: Short circuit capability as stipulated in IEC 62040-3 | E94: Yes/No | F94: Yes | G94: 0.6 | H94: Comply | I94: 3 | J94: 0.6 | K94: Comply | M94: 0 | N94: Comply | P94: 0 | Q94: Comply | S94: 0 | W94: Comply | Y94: 0 | Z94: Comply | AB94: 0 | AC94: Comply | AE94: 0 | AF94: Comply | AH94: 0 | AL94: Comply | AN94: 0 | AO94: Comply | AQ94: 0 | AR94: Comply | AT94: 0 | AU94: Comply | AW94: 0 | BA94: Comply | BC94: 0 | BD94: Comply | BF94: 0 | BG94: Comply | BI94: 0 | BJ94: Comply | BL94: 0 | BP94: Comply | BR94: 0 | BS94: Comply | BU94: 0 | BV94: Comply | BX94: 0 | BY94: Comply | CA94: 0 | CE94: Comply | CG94: 0 | CH94: Comply | CJ94: 0 | CK94: Comply | CM94: 0 | CN94: Comply | CP94: 0 | CT94: Comply | CV94: 0 | CW94: Comply | CY94: 0 | CZ94: Comply | DB94: 0 | DC94: Comply | DE94: 0 | DI94: Comply | DK94: 0 | DL94: Comply | DN94: 0 | DO94: Comply | DQ94: 0 | DR94: Comply | DT94: 0 | DX94: Comply | DZ94: 0 | EA94: Comply | EC94: 0 | ED94: Comply | EF94: 0 | EG94: Comply | EI94: 0 | EM94: Comply | EO94: 0 | EP94: Comply | ER94: 0 | ES94: Comply | EU94: 0 | EY94: Comply | FA94: 0 | FB94: Comply | FD94: 0 | FE94: Comply | FG94: 0 | FK94: Comply | FM94: 0 | FQ94: Comply | FS94: 0 | FW94: Comply | FY94: 0 | GC94: Comply | GE94: 0
A95: 3.2.12 | B95: 3.2.15 | C95: Psophometric noise
A96: 3.2.12.1 | B96: 3.2.15.1 | C96: Maximum Psophometric noise CCITT Class A | E96: mV% | F96: 2 | G96: 0.6 | H96: NA/Only applies to 48volt units | I96: 3 | J96: 0.6 | K96: 2mV | M96: 0 | N96: NA/Only applies to 48volt units | P96: 0 | Q96: NA/Only applies to 48volt units | S96: 0 | W96: NA/Only applies to 48volt units | Y96: 0 | Z96: Comply | AB96: 0 | AC96: NA/Only applies to 48volt units | AE96: 0 | AF96: NA/Only applies to 48volt units | AH96: 0 | AL96: NA/Only applies to 48volt units | AN96: 0 | AO96: Comply | AQ96: 0 | AR96: NA/Only applies to 48volt units | AT96: 0 | AU96: NA/Only applies to 48volt units | AW96: 0 | BA96: NA/Only applies to 48volt units | BC96: 0 | BD96: Comply | BF96: 0 | BG96: NA/Only applies to 48volt units | BI96: 0 | BJ96: NA/Only applies to 48volt units | BL96: 0 | BP96: NA/Only applies to 48volt units | BR96: 0 | BS96: Comply | BU96: 0 | BV96: NA/Only applies to 48volt units | BX96: 0 | BY96: NA/Only applies to 48volt units | CA96: 0 | CE96: NA/Only applies to 48volt units | CG96: 0 | CH96: Comply | CJ96: 0 | CK96: NA/Only applies to 48volt units | CM96: 0 | CN96: NA/Only applies to 48volt units | CP96: 0 | CT96: NA/Only applies to 48volt units | CV96: 0 | CW96: Comply | CY96: 0 | CZ96: NA/Only applies to 48volt units | DB96: 0 | DC96: NA/Only applies to 48volt units | DE96: 0 | DI96: NA/Only applies to 48volt units | DK96: 0 | DL96: Comply | DN96: 0 | DO96: NA/Only applies to 48volt units | DQ96: 0 | DR96: NA/Only applies to 48volt units | DT96: 0 | DX96: NA/Only applies to 48volt units | DZ96: 0 | EA96: Comply | EC96: 0 | ED96: NA/Only applies to 48volt units | EF96: 0 | EG96: NA/Only applies to 48volt units | EI96: 0 | EM96: NA/Only applies to 48volt units | EO96: 0 | EP96: Comply | ER96: 0 | ES96: NA/Only applies to 48volt units | EU96: 0 | EY96: NA/Only applies to 48volt units | FA96: 0 | FB96: Comply | FD96: 0 | FE96: NA/Only applies to 48volt units | FG96: 0 | FK96: NA/Only applies to 48volt units | FM96: 0 | FQ96: NA/Only applies to 48volt units | FS96: 0 | FW96: NA/Only applies to 48volt units | FY96: 0 | GC96: NA/Only applies to 48volt units | GE96: 0
A97: 3.2.13 | B97: 3.2.16 | C97: Internal protection
A98: 3.2.13.1 | B98: 3.2.16.1 | C98: Internal protection | E98: Yes | F98: Yes | G98: 0.6 | H98: Comply | I98: 3 | J98: 0.6 | K98: Comply | M98: 0 | N98: Comply | P98: 0 | Q98: Comply | S98: 0 | W98: Comply | Y98: 0 | Z98: Comply | AB98: 0 | AC98: Comply | AE98: 0 | AF98: Comply | AH98: 0 | AL98: Comply | AN98: 0 | AO98: Comply | AQ98: 0 | AR98: Comply | AT98: 0 | AU98: Comply | AW98: 0 | BA98: Comply | BC98: 0 | BD98: Comply | BF98: 0 | BG98: Comply | BI98: 0 | BJ98: Comply | BL98: 0 | BP98: Comply | BR98: 0 | BS98: Comply | BU98: 0 | BV98: Comply | BX98: 0 | BY98: Comply | CA98: 0 | CE98: Comply | CG98: 0 | CH98: Comply | CJ98: 0 | CK98: Comply | CM98: 0 | CN98: Comply | CP98: 0 | CT98: Comply | CV98: 0 | CW98: Comply | CY98: 0 | CZ98: Comply | DB98: 0 | DC98: Comply | DE98: 0 | DI98: Comply | DK98: 0 | DL98: Comply | DN98: 0 | DO98: Comply | DQ98: 0 | DR98: Comply | DT98: 0 | DX98: Comply | DZ98: 0 | EA98: Comply | EC98: 0 | ED98: Comply | EF98: 0 | EG98: Comply | EI98: 0 | EM98: Comply | EO98: 0 | EP98: Comply | ER98: 0 | ES98: Comply | EU98: 0 | EY98: Comply | FA98: 0 | FB98: Comply | FD98: 0 | FE98: Comply | FG98: 0 | FK98: Comply | FM98: 0 | FQ98: Comply | FS98: 0 | FW98: Comply | FY98: 0 | GC98: Comply | GE98: 0
A99: 3.2.14 | B99: 3.2.17 | C99: Hardwire/hardware independent protection
A100: 3.2.14.1 | B100: 3.2.17.1 | C100: Hardwire/hardware independent protection:
C101: Overvoltage protection on rectifier output | E101: Yes/No | F101: Yes | G101: 0.6 | H101: Comply | I101: 3 | J101: =$G101/3*I101 -> 0.6 | K101: Comply | M101: =$G101/3*L101 -> 0 | N101: Comply | P101: =$G101/3*O101 -> 0 | Q101: Comply | S101: =$G101/3*R101 -> 0 | T101: Battery overvoltage protection | U101: p5 | W101: Comply | Y101: =$G101/3*X101 -> 0 | Z101: Comply | AB101: =$G101/3*AA101 -> 0 | AC101: Comply | AE101: =$G101/3*AD101 -> 0 | AF101: Comply | AH101: =$G101/3*AG101 -> 0 | AI101: Battery overvoltage protection | AJ101: p5 | AL101: Comply | AN101: =$G101/3*AM101 -> 0 | AO101: Comply | AQ101: =$G101/3*AP101 -> 0 | AR101: Comply | AT101: =$G101/3*AS101 -> 0 | AU101: Comply | AW101: =$G101/3*AV101 -> 0 | AX101: Battery overvoltage protection | AY101: p5 | BA101: Comply | BC101: =$G101/3*BB101 -> 0 | BD101: Comply | BF101: =$G101/3*BE101 -> 0 | BG101: Comply | BI101: =$G101/3*BH101 -> 0 | BJ101: Comply | BL101: =$G101/3*BK101 -> 0 | BM101: Battery overvoltage protection | BN101: p5 | BP101: Comply | BR101: =$G101/3*BQ101 -> 0 | BS101: Comply | BU101: =$G101/3*BT101 -> 0 | BV101: Comply | BX101: =$G101/3*BW101 -> 0 | BY101: Comply | CA101: =$G101/3*BZ101 -> 0 | CB101: Battery overvoltage protection | CC101: p5 | CE101: Comply | CG101: =$G101/3*CF101 -> 0 | CH101: Comply | CJ101: =$G101/3*CI101 -> 0 | CK101: Comply | CM101: =$G101/3*CL101 -> 0 | CN101: Comply | CP101: =$G101/3*CO101 -> 0 | CQ101: Battery overvoltage protection | CR101: p5 | CT101: Comply | CV101: =$G101/3*CU101 -> 0 | CW101: Comply | CY101: =$G101/3*CX101 -> 0 | CZ101: Comply | DB101: =$G101/3*DA101 -> 0 | DC101: Comply | DE101: =$G101/3*DD101 -> 0 | DF101: Battery overvoltage protection | DG101: p5 | DI101: Comply | DK101: =$G101/3*DJ101 -> 0 | DL101: Comply | DN101: =$G101/3*DM101 -> 0 | DO101: Comply | DQ101: =$G101/3*DP101 -> 0 | DR101: Comply | DT101: =$G101/3*DS101 -> 0 | DU101: Battery overvoltage protection | DV101: p5 | DX101: Comply | DZ101: =$G101/3*DY101 -> 0 | EA101: Comply | EC101: =$G101/3*EB101 -> 0 | ED101: Comply | EF101: =$G101/3*EE101 -> 0 | EG101: Comply | EI101: =$G101/3*EH101 -> 0 | EJ101: Battery overvoltage protection | EK101: p5 | EM101: Comply | EO101: =$G101/3*EN101 -> 0 | EP101: Comply | ER101: =$G101/3*EQ101 -> 0 | ES101: Comply | EU101: =$G101/3*ET101 -> 0 | EV101: Battery overvoltage protection | EW101: p5 | EY101: Comply | FA101: =$G101/3*EZ101 -> 0 | FB101: Comply | FD101: =$G101/3*FC101 -> 0 | FE101: Comply | FG101: =$G101/3*FF101 -> 0 | FH101: Battery overvoltage protection | FI101: p5 | FK101: Comply | FM101: =$G101/3*FL101 -> 0 | FN101: Battery overvoltage protection | FO101: p5 | FQ101: Comply | FS101: =$G101/3*FR101 -> 0 | FT101: Battery overvoltage protection | FU101: p5 | FW101: Comply | FY101: =$G101/3*FX101 -> 0 | FZ101: Battery overvoltage protection | GC101: Comply | GE101: =$G101/3*GD101 -> 0 | GF101: Battery overvoltage protection
C102: Overvoltage protection on load | E102: Yes/No provided as #xIn for period in ms | F102: Yes, overload protection will be finalised as per design and load profile. | G102: 0.6 | H102: Comply/Noted value load dependant | I102: 3 | J102: 0.6 | K102: Comply/Noted value load dependant | M102: 0 | N102: Comply/Noted value load dependant | P102: 0 | Q102: Comply/Noted value load dependant | S102: 0 | T102: Primarily protecting the load from overvoltage | U102: p5 | W102: Comply/Noted value load dependant | Y102: 0 | Z102: Comply/Noted value load dependant | AB102: 0 | AC102: Comply/Noted value load dependant | AE102: 0 | AF102: Comply/Noted value load dependant | AH102: 0 | AI102: Primarily protecting the load from overvoltage | AJ102: p5 | AL102: Comply/Noted value load dependant | AN102: 0 | AO102: Comply/Noted value load dependant | AQ102: 0 | AR102: Comply/Noted value load dependant | AT102: 0 | AU102: Comply/Noted value load dependant | AW102: 0 | AX102: Primarily protecting the load from overvoltage | AY102: p5 | BA102: Comply/Noted value load dependant | BC102: 0 | BD102: Comply/Noted value load dependant | BF102: 0 | BG102: Comply/Noted value load dependant | BI102: 0 | BJ102: Comply/Noted value load dependant | BL102: 0 | BM102: Primarily protecting the load from overvoltage | BN102: p5 | BP102: Comply/Noted value load dependant | BR102: 0 | BS102: Comply/Noted value load dependant | BU102: 0 | BV102: Comply/Noted value load dependant | BX102: 0 | BY102: Comply/Noted value load dependant | CA102: 0 | CB102: Primarily protecting the load from overvoltage | CC102: p5 | CE102: Comply/Noted value load dependant | CG102: 0 | CH102: Comply/Noted value load dependant | CJ102: 0 | CK102: Comply/Noted value load dependant | CM102: 0 | CN102: Comply/Noted value load dependant | CP102: 0 | CQ102: Primarily protecting the load from overvoltage | CR102: p5 | CT102: Comply/Noted value load dependant | CV102: 0 | CW102: Comply/Noted value load dependant | CY102: 0 | CZ102: Comply/Noted value load dependant | DB102: 0 | DC102: Comply/Noted value load dependant | DE102: 0 | DF102: Primarily protecting the load from overvoltage | DG102: p5 | DI102: Comply/Noted value load dependant | DK102: 0 | DL102: Comply/Noted value load dependant | DN102: 0 | DO102: Comply/Noted value load dependant | DQ102: 0 | DR102: Comply/Noted value load dependant | DT102: 0 | DU102: Primarily protecting the load from overvoltage | DV102: p5 | DX102: Comply/Noted value load dependant | DZ102: 0 | EA102: Comply/Noted value load dependant | EC102: 0 | ED102: Comply/Noted value load dependant | EF102: 0 | EG102: Comply/Noted value load dependant | EI102: 0 | EJ102: Primarily protecting the load from overvoltage | EK102: p5 | EM102: Comply/Noted value load dependant | EO102: 0 | EP102: Comply/Noted value load dependant | ER102: 0 | ES102: Comply/Noted value load dependant | EU102: 0 | EV102: Primarily protecting the load from overvoltage | EW102: p5 | EY102: Comply/Noted value load dependant | FA102: 0 | FB102: Comply/Noted value load dependant | FD102: 0 | FE102: Comply/Noted value load dependant | FG102: 0 | FH102: Primarily protecting the load from overvoltage | FI102: p5 | FK102: Comply/Noted value load dependant | FM102: 0 | FN102: Primarily protecting the load from overvoltage | FO102: p5 | FQ102: Comply/Noted value load dependant | FS102: 0 | FT102: Primarily protecting the load from overvoltage | FU102: p5 | FW102: Comply/Noted value load dependant | FY102: 0 | FZ102: Primarily protecting the load from overvoltage | GC102: Comply/Noted value load dependant | GE102: 0 | GF102: Primarily protecting the load from overvoltage
C103: Over temperature monitoring | E103: Yes/No | F103: Yes | G103: 0.6 | H103: Comply | I103: 3 | J103: 0.6 | K103: Comply | M103: 0 | N103: Comply | P103: 0 | Q103: Comply | S103: 0 | W103: Comply | Y103: 0 | Z103: Comply | AB103: 0 | AC103: Comply | AE103: 0 | AF103: Comply | AH103: 0 | AL103: Comply | AN103: 0 | AO103: Comply | AQ103: 0 | AR103: Comply | AT103: 0 | AU103: Comply | AW103: 0 | BA103: Comply | BC103: 0 | BD103: Comply | BF103: 0 | BG103: Comply | BI103: 0 | BJ103: Comply | BL103: 0 | BP103: Comply | BR103: 0 | BS103: Comply | BU103: 0 | BV103: Comply | BX103: 0 | BY103: Comply | CA103: 0 | CE103: Comply | CG103: 0 | CH103: Comply | CJ103: 0 | CK103: Comply | CM103: 0 | CN103: Comply | CP103: 0 | CT103: Comply | CV103: 0 | CW103: Comply | CY103: 0 | CZ103: Comply | DB103: 0 | DC103: Comply | DE103: 0 | DI103: Comply | DK103: 0 | DL103: Comply | DN103: 0 | DO103: Comply | DQ103: 0 | DR103: Comply | DT103: 0 | DX103: Comply | DZ103: 0 | EA103: Comply | EC103: 0 | ED103: Comply | EF103: 0 | EG103: Comply | EI103: 0 | EM103: Comply | EO103: 0 | EP103: Comply | ER103: 0 | ES103: Comply | EU103: 0 | EY103: Comply | FA103: 0 | FB103: Comply | FD103: 0 | FE103: Comply | FG103: 0 | FK103: Comply | FM103: 0 | FQ103: Comply | FS103: 0 | FW103: Comply | FY103: 0 | GC103: Comply | GE103: 0
C104: Additional hardwire overvoltage protection on DC port | E104: Yes/No | F104: Yes | G104: 0.6 | H104: Comply/Independent monitor | I104: 3 | J104: 0.6 | K104: Comply/Independent monitor | M104: 0 | N104: Comply/Independent monitor | P104: 0 | Q104: Comply/Independent monitor | S104: 0 | T104: Additionally protecting the battery from overvoltage | U104: p5 | W104: Comply/Independent monitor | Y104: 0 | Z104: Comply/Independent monitor | AB104: 0 | AC104: Comply/Independent monitor | AE104: 0 | AF104: Comply/Independent monitor | AH104: 0 | AI104: Additionally protecting the battery from overvoltage | AJ104: p5 | AL104: Comply/Independent monitor | AN104: 0 | AO104: Comply/Independent monitor | AQ104: 0 | AR104: Comply/Independent monitor | AT104: 0 | AU104: Comply/Independent monitor | AW104: 0 | AX104: Additionally protecting the battery from overvoltage | AY104: p5 | BA104: Comply/Independent monitor | BC104: 0 | BD104: Comply/Independent monitor | BF104: 0 | BG104: Comply/Independent monitor | BI104: 0 | BJ104: Comply/Independent monitor | BL104: 0 | BM104: Additionally protecting the battery from overvoltage | BN104: p5 | BP104: Comply/Independent monitor | BR104: 0 | BS104: Comply/Independent monitor | BU104: 0 | BV104: Comply/Independent monitor | BX104: 0 | BY104: Comply/Independent monitor | CA104: 0 | CB104: Additionally protecting the battery from overvoltage | CC104: p5 | CE104: Comply/Independent monitor | CG104: 0 | CH104: Comply/Independent monitor | CJ104: 0 | CK104: Comply/Independent monitor | CM104: 0 | CN104: Comply/Independent monitor | CP104: 0 | CQ104: Additionally protecting the battery from overvoltage | CR104: p5 | CT104: Comply/Independent monitor | CV104: 0 | CW104: Comply/Independent monitor | CY104: 0 | CZ104: Comply/Independent monitor | DB104: 0 | DC104: Comply/Independent monitor | DE104: 0 | DF104: Additionally protecting the battery from overvoltage | DG104: p5 | DI104: Comply/Independent monitor | DK104: 0 | DL104: Comply/Independent monitor | DN104: 0 | DO104: Comply/Independent monitor | DQ104: 0 | DR104: Comply/Independent monitor | DT104: 0 | DU104: Additionally protecting the battery from overvoltage | DV104: p5 | DX104: Comply/Independent monitor | DZ104: 0 | EA104: Comply/Independent monitor | EC104: 0 | ED104: Comply/Independent monitor | EF104: 0 | EG104: Comply/Independent monitor | EI104: 0 | EJ104: Additionally protecting the battery from overvoltage | EK104: p5 | EM104: Comply/Independent monitor | EO104: 0 | EP104: Comply/Independent monitor | ER104: 0 | ES104: Comply/Independent monitor | EU104: 0 | EV104: Additionally protecting the battery from overvoltage | EW104: p5 | EY104: Comply/Independent monitor | FA104: 0 | FB104: Comply/Independent monitor | FD104: 0 | FE104: Comply/Independent monitor | FG104: 0 | FH104: Additionally protecting the battery from overvoltage | FI104: p5 | FK104: Comply/Independent monitor | FM104: 0 | FN104: Additionally protecting the battery from overvoltage | FO104: p5 | FQ104: Comply/Independent monitor | FS104: 0 | FT104: Additionally protecting the battery from overvoltage | FU104: p5 | FW104: Comply/Independent monitor | FY104: 0 | FZ104: Additionally protecting the battery from overvoltage | GC104: Comply/Independent monitor | GE104: 0 | GF104: Additionally protecting the battery from overvoltage
A105: 3.2.15 | B105: 3.2.18 | C105: Active load sharing
